Workbook

Sheet RESUMO (2)
A2: R.N.DIAS CONSULTORIA E PROJETO ME
A3: CNPJ: 40.600.695/0001-67
A5: Objeto: “REFORMA E AMPLIAÇÃO CIRETRAN PEDRA PRETA - MT"
A6: Endereço: RUA AMAMBAL, S/N - PEDRA PRETA - MT
A7: Cidade: PEDRA PRETA - MT
A8: BDI: | B8: 0.2222616419
A9: Referência: | B9: FONTE SINAPI DEZEMBRO/2024 SEM DESONERAÇÃO | C9: Período: | D9: 180 dias
A10: PLANILHA RESUMO DO ORÇAMENTO
A11: ='PLANILHA ORÇAMENTÁRIA'!F25 -> 1.0 | B11: ADMINISTRAÇÃO OBRA | C11: ='PLANILHA ORÇAMENTÁRIA'!N25 -> 52536.77 | D11: =C11/$C$32 -> 0.04741297197
A12: ='PLANILHA ORÇAMENTÁRIA'!F28 -> 2.0 | B12: SERVIÇOS PRELIMINARES | C12: ='PLANILHA ORÇAMENTÁRIA'!N28 -> 17947.54 | D12: =C12/$C$32 -> 0.01619715508
A13: ='PLANILHA ORÇAMENTÁRIA'!F36 -> 3.0 | B13: DEMOLIÇÕES E RETIRADAS | C13: ='PLANILHA ORÇAMENTÁRIA'!N36 -> 34809.1 | D13: 0.03141424345
A14: ='PLANILHA ORÇAMENTÁRIA'!F53 -> 4.0 | B14: MOVIMENTO DE TERRA | C14: ='PLANILHA ORÇAMENTÁRIA'!N53 -> 20161.5 | D14: 0.01819519233
A15: ='PLANILHA ORÇAMENTÁRIA'!F67 -> 5.0 | B15: FUNDAÇÃO | C15: ='PLANILHA ORÇAMENTÁRIA'!N67 -> 44412.05 | D15: 0.04008063841
A16: ='PLANILHA ORÇAMENTÁRIA'!F87 -> 6.0 | B16: ESTRUTURA | C16: ='PLANILHA ORÇAMENTÁRIA'!N87 -> 76297.58 | D16: 0.06885644134
A17: ='PLANILHA ORÇAMENTÁRIA'!F114 -> 7.0 | B17: IMPERMEABILIZAÇÃO | C17: ='PLANILHA ORÇAMENTÁRIA'!N114 -> 6967.13 | D17: 0.006287640816
A18: ='PLANILHA ORÇAMENTÁRIA'!F120 -> 8.0 | B18: ALVENARIA, FECHAMENTOS E DIVISÓRIAS | C18: ='PLANILHA ORÇAMENTÁRIA'!N120 -> 42373.38 | D18: 0.03824079551
A19: ='PLANILHA ORÇAMENTÁRIA'!F137 -> 9.0 | B19: ESQUADRIAS | C19: ='PLANILHA ORÇAMENTÁRIA'!N137 -> 79636.8 | D19: 0.07186999441
A20: ='PLANILHA ORÇAMENTÁRIA'!F166 -> 10.0 | B20: COBERTURA | C20: ='PLANILHA ORÇAMENTÁRIA'!N166 -> 128017.41 | D20: 0.1155321477
A21: ='PLANILHA ORÇAMENTÁRIA'!F175 -> 11.0 | B21: REVESTIMENTO | C21: ='PLANILHA ORÇAMENTÁRIA'!N175 -> 50531.5 | D21: 0.04560327163
A22: ='PLANILHA ORÇAMENTÁRIA'!F187 -> 12.0 | B22: PISOS | C22: ='PLANILHA ORÇAMENTÁRIA'!N187 -> 212854.72 | D22: 0.1920954576
A23: ='PLANILHA ORÇAMENTÁRIA'!F200 -> 13.0 | B23: FORRO | C23: ='PLANILHA ORÇAMENTÁRIA'!N200 -> 20298.92 | D23: 0.01831921005
A24: ='PLANILHA ORÇAMENTÁRIA'!F204 -> 14.0 | B24: INSTALAÇÕES HIDROSSANITÁRIAS | C24: ='PLANILHA ORÇAMENTÁRIA'!N204 -> 95691.28 | D24: 0.08635871555
A25: ='PLANILHA ORÇAMENTÁRIA'!F313 -> 15.0 | B25: INSTALAÇÕES ELÉTRICAS | C25: ='PLANILHA ORÇAMENTÁRIA'!N313 -> 97974.04 | D25: 0.08841884289
A26: ='PLANILHA ORÇAMENTÁRIA'!F407 -> 16.0 | B26: SPDA | C26: ='PLANILHA ORÇAMENTÁRIA'!N407 -> 36313.68 | D26: 0.032772085
A27: ='PLANILHA ORÇAMENTÁRIA'!F433 -> 17.0 | B27: LÓGICA | C27: ='PLANILHA ORÇAMENTÁRIA'!N433 -> 38552.15 | D27: 0.03479224184
A28: ='PLANILHA ORÇAMENTÁRIA'!F494 -> 18.0 | B28: PREVENÇÃO E COMBATE A INCÊNDIO | C28: ='PLANILHA ORÇAMENTÁRIA'!N494 -> 1424 | D28: 0.001285120347
A29: ='PLANILHA ORÇAMENTÁRIA'!F503 -> 19.0 | B29: PINTURAS | C29: ='PLANILHA ORÇAMENTÁRIA'!N503 -> 41643.81 | D29: 0.0375823789
A30: ='PLANILHA ORÇAMENTÁRIA'!F523 -> 20.0 | B30: ACESSIBILIDADE | C30: ='PLANILHA ORÇAMENTÁRIA'!N523 -> 3450.72 | D30: 0.00311417871
A31: ='PLANILHA ORÇAMENTÁRIA'!F526 -> 21.0 | B31: SERVIÇOS COMPLEMENTARES | C31: ='PLANILHA ORÇAMENTÁRIA'!N526 -> 6173.35 | D31: 0.00557127647
B32: TOTAL | C32: =SUM(C11+C12+C13+C14+C15+C16+C17+C18+C19+C20+C21+C22+C23+C24+C25+C26+C27+C28+C29+C30+C31) -> 1108067.43 | D32: =D11+D12+D13+D14+D15+D16+D17+D18+D19+D20+D21+D22+D23+D24+D25+D26+D27+D28+D29+D30+D31 -> 1
J33: =C32/6 -> 184677.905
A34: ROGÉRIO NOGUEIRA DIAS
A35: Arquiteto, Urbanista, Especialista em Engenharia de Segurança do Trabalho
A36: CAU A76801-4
G42: 1073103.72

Sheet PLANILHA ORÇAMENTÁRIA
Q2: OUTROS
O3: CAIXA | P3: DESONERADO
O4: OUTROS | P4: NÃO DESONERADO
I5: R.N.DIAS CONSULTORIA E PROJETO ME | M5: Ref.: Tabela de Serviços SINAPI (JUNHO/2024)
M6: NÃO DESONERADO
I7: CNPJ: 40.600.695/0001-67 | M7: BDI | N7: ='BDI '!G31 -> 0.2223
K8: BDI DIFERENCIADO | N8: =#REF! -> 
F10: R.N.DIAS CONSULTORIA E PROJETO ME
F11: CNPJ: 40.600.695/0001-67
F16: DADOS DA OBRA
F17: Objeto: | G17: REFORMA E AMPLIAÇÃO CIRETRAN PEDRA PRETA | K17: Prazo de Execução: | N17: 180 DIAS
F18: Endereço | G18: RUA AMAMBAL, S/N - PEDRA PRETA - MT | K18: BDI: | N18: ='BDI '!G31 -> 0.2223
F19: Cidade: | G19: PEDRA PRETA - MT | K19: DATA: | N19: =TODAY() -> 2025-01-28
F20: FONTE SINAPI DEZEMBRO/2024 SEM DESONERAÇÃO
F21: PLANILHA ORÇAMENTÁRIA
F22: ITEM | G22: CÓDIGO | H22: FONTE | I22: DESCRIÇÃO DO SERVIÇO | J22: UN. | K22: QUANT. | L22: PREÇO UNITÁRIO | N22: P. TOTAL
L23: SEM BDI | M23: COM BDI
A25: =IF(LEN(D25),OFFSET(A25,-1,0)+1,OFFSET(A25,-1,0)) -> 1 | B25: =IF(OR(C25=1,D25=1),SUMIF($A$25:A25,A25,$C$25:C25),"") -> 0 | C25: =IF(G25>0,1,"") ->  | D25: =IF(AND(CONCATENATE(G25,I25,J25,K25,L25,M25,N25)=I25&N25,CONCATENATE(G25,I25,J25,K25,L25,M25,N25)<>"",N25<>""),1,"") -> 1 | F25: =IF(B25<>"",A25&"."&B25,"") -> 1.0 | I25: ADMINISTRAÇÃO OBRA | N25: =SUM(N26) -> 52536.77
A26: =IF(LEN(D26),OFFSET(A26,-1,0)+1,OFFSET(A26,-1,0)) -> 1 | B26: =IF(OR(C26=1,D26=1),SUMIF($A$25:A26,A26,$C$25:C26),"") -> 1 | C26: =IF(G26>0,1,"") -> 1 | D26: =IF(AND(CONCATENATE(G26,I26,J26,K26,L26,M26,N26)=I26&N26,CONCATENATE(G26,I26,J26,K26,L26,M26,N26)<>"",N26<>""),1,"") ->  | F26: 1.1 | G26: ='COMPOSIÇÃO CIVIL'!$B$17 -> CIV 001 | H26: =IF(G26>="AMM","PRÓPRIO","SINAPI") -> PRÓPRIO | I26: ='COMPOSIÇÃO CIVIL'!C17 -> ADMINISTRAÇÃO LOCAL | J26: ='COMPOSIÇÃO CIVIL'!G17 -> UN | K26: 1 | L26: ='COMPOSIÇÃO CIVIL'!G25 -> 42981.9 | M26: =IF($Q$2="OUTROS",TRUNC(L26*(1+$N$7),2),ROUND(L26*(1+$N$7),2)) -> 52536.77 | N26: =IF($Q$2="OUTROS",TRUNC(M26*K26,2),ROUND(M26*K26,2)) -> 52536.77 | P26: ='COMPOSIÇÃO CIVIL'!H30 -> VIGIA DIURNO COM ENCARGOS COMPLEMENTARES: 8HR*2DIAS*4SEMANAS*6MESES ENCARREGADO GERAL COM ENCARGOS COMPLEMENTARES: 8HR*4DIAS*4SEMANAS*6MESES TÉCNICO EM SEGURANÇA DO TRABALHO COM ENCARGOS COMPLEMENTARES: 1HR*1DIAS*3SEMANAS*6MESES MESTRE DE OBRAS COM ENCARGOS COMPLEMENTARES: 2HR*3DIAS*4SEMANAS*6MESES ENGENHEIRO CIVIL DE OBRA JUNIOR COM ENCARGOS COMPLEMENTARES: 1HR*1DIAS*4SEMANAS*6MESES | Q26: =F26 -> 1.1
A27: 1 | B27: =IF(OR(C27=1,D27=1),SUMIF($A$25:A27,A27,$C$25:C27),"") -> 
A28: 2 | B28: =IF(OR(C28=1,D28=1),SUMIF($A$25:A28,A28,$C$25:C28),"") -> 0 | D28: 1 | F28: 2.0 | I28: SERVIÇOS PRELIMINARES | N28: =SUM(N29:N32) -> 17947.54
A29: 2 | B29: =IF(OR(C29=1,D29=1),SUMIF($A$25:A29,A29,$C$25:C29),"") -> 1 | C29: 1 | F29: =IF(B29<>"",A29&"."&B29,"") -> 2.1 | G29: 103689 | H29: =IF(G29>="AMM","PRÓPRIO","SINAPI") -> SINAPI | I29: =VLOOKUP($G29,IF(LEFT($G29,3)="AMM",COMPOSIÇÕES!$B$1:$E$4233,'BANCO DE DADOS DEZ-24 SERV'!$B$2:$F$7984),2,FALSE) -> FORNECIMENTO E INSTALAÇÃO DE PLACA DE OBRA COM CHAPA GALVANIZADA E ESTRUTURA DE MADEIRA. AF_03/2022_PS | J29: =VLOOKUP($G29,IF(LEFT($G29,3)="AMM",COMPOSIÇÕES!$B$1:$E$4233,'BANCO DE DADOS DEZ-24 SERV'!$B$2:$F$7984),3,FALSE) -> M2 | K29: =5*2.5 -> 12.5 | L29: =VLOOKUP($G29,IF(LEFT($G29,3)="AMM",COMPOSIÇÕES!$B$1:$E$4233,'BANCO DE DADOS DEZ-24 SERV'!$B$2:$F$7984),4,FALSE) -> 462.17 | M29: =IF($Q$2="OUTROS",TRUNC(L29*(1+$N$7),2),ROUND(L29*(1+$N$7),2)) -> 564.91 | N29: =IF($Q$2="OUTROS",TRUNC(M29*K29,2),ROUND(M29*K29,2)) -> 7061.37 | P29: 5*2,5 | Q29: =F29 -> 2.1
A30: =IF(LEN(D30),OFFSET(A30,-1,0)+1,OFFSET(A30,-1,0)) -> 2 | B30: =IF(OR(C30=1,D30=1),SUMIF($A$25:A30,A30,$C$25:C30),"") ->  | C30: =IF(G30>0,1,"") ->  | D30: =IF(AND(CONCATENATE(G30,I30,J30,K30,L30,M30,N30)=I30&N30,CONCATENATE(G30,I30,J30,K30,L30,M30,N30)<>"",N30<>""),1,"") ->  | I30: ATERRO
A31: 2 | B31: =IF(OR(C31=1,D31=1),SUMIF($A$25:A31,A31,$C$25:C31),"") -> 2 | C31: 1 | D31: =IF(AND(CONCATENATE(G31,I31,J31,K31,L31,M31,N31)=I31&N31,CONCATENATE(G31,I31,J31,K31,L31,M31,N31)<>"",N31<>""),1,"") ->  | F31: 2.2 | G31: 94342 | H31: =IF(G31>="AMM","PRÓPRIO","SINAPI") -> SINAPI | I31: =VLOOKUP($G31,IF(LEFT($G31,3)="AMM",COMPOSIÇÕES!$B$1:$E$4233,'BANCO DE DADOS DEZ-24 SERV'!$B$2:$F$7984),2,FALSE) -> ATERRO MANUAL DE VALAS COM AREIA PARA ATERRO. AF_08/2023 | J31: =VLOOKUP($G31,IF(LEFT($G31,3)="AMM",COMPOSIÇÕES!$B$1:$E$4233,'BANCO DE DADOS DEZ-24 SERV'!$B$2:$F$7984),3,FALSE) -> M3 | K31: =TRUNC(246.47*0.3,2) -> 73.94 | L31: =VLOOKUP($G31,IF(LEFT($G31,3)="AMM",COMPOSIÇÕES!$B$1:$E$4233,'BANCO DE DADOS DEZ-24 SERV'!$B$2:$F$7984),4,FALSE) -> 114 | M31: =IF($Q$2="OUTROS",TRUNC(L31*(1+$N$7),2),ROUND(L31*(1+$N$7),2)) -> 139.34 | N31: =IF($Q$2="OUTROS",TRUNC(M31*K31,2),ROUND(M31*K31,2)) -> 10302.79 | P31: 246,47*0,3 | Q31: =F31 -> 2.2
A32: 2 | B32: =IF(OR(C32=1,D32=1),SUMIF($A$25:A32,A32,$C$25:C32),"") -> 3 | C32: 1 | D32: =IF(AND(CONCATENATE(G32,I32,J32,K32,L32,M32,N32)=I32&N32,CONCATENATE(G32,I32,J32,K32,L32,M32,N32)<>"",N32<>""),1,"") ->  | F32: 2.3 | G32: 96386 | H32: =IF(G32>="AMM","PRÓPRIO","SINAPI") -> SINAPI | I32: =VLOOKUP($G32,IF(LEFT($G32,3)="AMM",COMPOSIÇÕES!$B$1:$E$4233,'BANCO DE DADOS DEZ-24 SERV'!$B$2:$F$7984),2,FALSE) -> EXECUÇÃO E COMPACTAÇÃO DE CORPO DE ATERRO (95% DE ENERGIA DO PROCTOR NORMAL) COM SOLO PREDOMINANTEMENTE ARENOSO ESPESSURA 15CM - EXCLUSIVE MATERIAL, ESCAVAÇÃO, CARGA E TRANSPORTE. AF_09/2024 | J32: =VLOOKUP($G32,IF(LEFT($G32,3)="AMM",COMPOSIÇÕES!$B$1:$E$4233,'BANCO DE DADOS DEZ-24 SERV'!$B$2:$F$7984),3,FALSE) -> M3 | K32: =K31 -> 73.94 | L32: =VLOOKUP($G32,IF(LEFT($G32,3)="AMM",COMPOSIÇÕES!$B$1:$E$4233,'BANCO DE DADOS DEZ-24 SERV'!$B$2:$F$7984),4,FALSE) -> 6.46 | M32: =IF($Q$2="OUTROS",TRUNC(L32*(1+$N$7),2),ROUND(L32*(1+$N$7),2)) -> 7.89 | N32: =IF($Q$2="OUTROS",TRUNC(M32*K32,2),ROUND(M32*K32,2)) -> 583.38 | P32: 246,47*0,3 | Q32: =F32 -> 2.3
A33: 2 | B33: =IF(OR(C33=1,D33=1),SUMIF($A$25:A33,A33,$C$25:C33),"") ->  | F33: =IF(B33<>"",A33&"."&B33,"") -> 
A34: 2 | B34: =IF(OR(C34=1,D34=1),SUMIF($A$25:A34,A34,$C$25:C34),"") ->  | F34: DETRAN
A35: 2 | B35: =IF(OR(C35=1,D35=1),SUMIF($A$25:A35,A35,$C$25:C35),"") ->  | F35: =IF(B35<>"",A35&"."&B35,"") -> 
A36: 3 | B36: =IF(OR(C36=1,D36=1),SUMIF($A$25:A36,A36,$C$25:C36),"") -> 0 | D36: 1 | F36: 3.0 | I36: DEMOLIÇÕES E RETIRADAS | N36: =SUM(N37:N51) -> 34809.1
A37: 3 | B37: =IF(OR(C37=1,D37=1),SUMIF($A$25:A37,A37,$C$25:C37),"") -> 1 | C37: 1 | F37: 3.1 | G37: 97622 | H37: =IF(G37>="AMM","PRÓPRIO","SINAPI") -> SINAPI | I37: =VLOOKUP($G37,IF(LEFT($G37,3)="AMM",COMPOSIÇÕES!$B$1:$E$4233,'BANCO DE DADOS DEZ-24 SERV'!$B$2:$F$7984),2,FALSE) -> DEMOLIÇÃO DE ALVENARIA DE BLOCO FURADO, DE FORMA MANUAL, SEM REAPROVEITAMENTO. AF_09/2023 | J37: =VLOOKUP($G37,IF(LEFT($G37,3)="AMM",COMPOSIÇÕES!$B$1:$E$4233,'BANCO DE DADOS DEZ-24 SERV'!$B$2:$F$7984),3,FALSE) -> M3 | K37: =13.6 -> 13.6 | L37: =VLOOKUP($G37,IF(LEFT($G37,3)="AMM",COMPOSIÇÕES!$B$1:$E$4233,'BANCO DE DADOS DEZ-24 SERV'!$B$2:$F$7984),4,FALSE) -> 53.68 | M37: =IF($Q$2="OUTROS",TRUNC(L37*(1+$N$7),2),ROUND(L37*(1+$N$7),2)) -> 65.61 | N37: =IF($Q$2="OUTROS",TRUNC(M37*K37,2),ROUND(M37*K37,2)) -> 892.29 | P37: CONFORME PROJETO ARQUITETÔNICO | Q37: =F37 -> 3.1
A38: 3 | B38: =IF(OR(C38=1,D38=1),SUMIF($A$25:A38,A38,$C$25:C38),"") -> 2 | C38: 1 | F38: 3.2 | G38: 97631 | H38: SINAPI | I38: =VLOOKUP($G38,IF(LEFT($G38,3)="AMM",COMPOSIÇÕES!$B$1:$E$4233,'BANCO DE DADOS DEZ-24 SERV'!$B$2:$F$7984),2,FALSE) -> DEMOLIÇÃO DE ARGAMASSAS, DE FORMA MANUAL, SEM REAPROVEITAMENTO. AF_09/2023 | J38: =VLOOKUP($G38,IF(LEFT($G38,3)="AMM",COMPOSIÇÕES!$B$1:$E$4233,'BANCO DE DADOS DEZ-24 SERV'!$B$2:$F$7984),3,FALSE) -> M2 | K38: 16.62 | L38: =VLOOKUP($G38,IF(LEFT($G38,3)="AMM",COMPOSIÇÕES!$B$1:$E$4233,'BANCO DE DADOS DEZ-24 SERV'!$B$2:$F$7984),4,FALSE) -> 10.8 | M38: 13.2 | N38: 219.38 | P38: CONFORME PROJETO ARQUITETÔNICO | Q38: 3.2
A39: 3 | B39: =IF(OR(C39=1,D39=1),SUMIF($A$25:A39,A39,$C$25:C39),"") -> 3 | C39: 1 | F39: 3.3 | G39: 97634 | H39: SINAPI | I39: =VLOOKUP($G39,IF(LEFT($G39,3)="AMM",COMPOSIÇÕES!$B$1:$E$4233,'BANCO DE DADOS DEZ-24 SERV'!$B$2:$F$7984),2,FALSE) -> DEMOLIÇÃO DE REVESTIMENTO CERÂMICO, DE FORMA MECANIZADA COM MARTELETE, SEM REAPROVEITAMENTO. AF_09/2023 | J39: =VLOOKUP($G39,IF(LEFT($G39,3)="AMM",COMPOSIÇÕES!$B$1:$E$4233,'BANCO DE DADOS DEZ-24 SERV'!$B$2:$F$7984),3,FALSE) -> M2 | K39: =117.89+197.93 -> 315.82 | L39: =VLOOKUP($G39,IF(LEFT($G39,3)="AMM",COMPOSIÇÕES!$B$1:$E$4233,'BANCO DE DADOS DEZ-24 SERV'!$B$2:$F$7984),4,FALSE) -> 6.04 | M39: 7.38 | N39: 2330.75 | P39: REVESTIMENTO CERÂMICO 117,89 M2 + PISO CERÂMICO 197,93 M2 | Q39: 3.3
A40: 3 | B40: =IF(OR(C40=1,D40=1),SUMIF($A$25:A40,A40,$C$25:C40),"") -> 4 | C40: 1 | F40: 3.4 | G40: 104790 | H40: SINAPI | I40: =VLOOKUP($G40,IF(LEFT($G40,3)="AMM",COMPOSIÇÕES!$B$1:$E$4233,'BANCO DE DADOS DEZ-24 SERV'!$B$2:$F$7984),2,FALSE) -> DEMOLIÇÃO DE PISO DE CONCRETO SIMPLES, DE FORMA MECANIZADA COM MARTELETE, SEM REAPROVEITAMENTO. AF_09/2023 | J40: =VLOOKUP($G40,IF(LEFT($G40,3)="AMM",COMPOSIÇÕES!$B$1:$E$4233,'BANCO DE DADOS DEZ-24 SERV'!$B$2:$F$7984),3,FALSE) -> M3 | K40: 134.62 | L40: =VLOOKUP($G40,IF(LEFT($G40,3)="AMM",COMPOSIÇÕES!$B$1:$E$4233,'BANCO DE DADOS DEZ-24 SERV'!$B$2:$F$7984),4,FALSE) -> 102.77 | M40: 125.61 | N40: 16909.61 | P40: DEMOLIÇÃO DE LASTRO DE CONCRETO | Q40: 3.4
A41: 3 | B41: =IF(OR(C41=1,D41=1),SUMIF($A$25:A41,A41,$C$25:C41),"") -> 5 | C41: 1 | F41: 3.5 | G41: 97640 | H41: SINAPI | I41: =VLOOKUP($G41,IF(LEFT($G41,3)="AMM",COMPOSIÇÕES!$B$1:$E$4233,'BANCO DE DADOS DEZ-24 SERV'!$B$2:$F$7984),2,FALSE) -> REMOÇÃO DE FORROS DE DRYWALL, PVC E FIBROMINERAL, DE FORMA MANUAL, SEM REAPROVEITAMENTO. AF_09/2023 | J41: =VLOOKUP($G41,IF(LEFT($G41,3)="AMM",COMPOSIÇÕES!$B$1:$E$4233,'BANCO DE DADOS DEZ-24 SERV'!$B$2:$F$7984),3,FALSE) -> M2 | K41: 238.19 | L41: =VLOOKUP($G41,IF(LEFT($G41,3)="AMM",COMPOSIÇÕES!$B$1:$E$4233,'BANCO DE DADOS DEZ-24 SERV'!$B$2:$F$7984),4,FALSE) -> 1.82 | M41: 2.22 | N41: 528.78 | P41: CONFORME PROJETO ARQUITETÔNICO | Q41: 3.5
A42: 3 | B42: =IF(OR(C42=1,D42=1),SUMIF($A$25:A42,A42,$C$25:C42),"") -> 6 | C42: 1 | F42: 3.6 | G42: 97644 | H42: SINAPI | I42: =VLOOKUP($G42,IF(LEFT($G42,3)="AMM",COMPOSIÇÕES!$B$1:$E$4233,'BANCO DE DADOS DEZ-24 SERV'!$B$2:$F$7984),2,FALSE) -> REMOÇÃO DE PORTAS, DE FORMA MANUAL, SEM REAPROVEITAMENTO. AF_09/2023 | J42: =VLOOKUP($G42,IF(LEFT($G42,3)="AMM",COMPOSIÇÕES!$B$1:$E$4233,'BANCO DE DADOS DEZ-24 SERV'!$B$2:$F$7984),3,FALSE) -> M2 | K42: =TRUNC(1.26*3+1.47*2+1.68*1+1.68*5+1.89*1+2.1*1+1.85*1+4.24*1+7.4*1,2) -> 34.28 | L42: =VLOOKUP($G42,IF(LEFT($G42,3)="AMM",COMPOSIÇÕES!$B$1:$E$4233,'BANCO DE DADOS DEZ-24 SERV'!$B$2:$F$7984),4,FALSE) -> 9.02 | M42: 11.02 | N42: 377.76 | P42: REMOÇÃO DAS PORTAS CONFORME QUADRO DE PORTAS - DEMOLIR (1,26*3+1,47*2+1,68*1+1,68*5+1,89*1+2,1*1+1,85*1+4,24*1+7,4*1) | Q42: 3.6
A43: 3 | B43: =IF(OR(C43=1,D43=1),SUMIF($A$25:A43,A43,$C$25:C43),"") -> 7 | C43: 1 | F43: 3.7 | G43: 97645 | H43: SINAPI | I43: =VLOOKUP($G43,IF(LEFT($G43,3)="AMM",COMPOSIÇÕES!$B$1:$E$4233,'BANCO DE DADOS DEZ-24 SERV'!$B$2:$F$7984),2,FALSE) -> REMOÇÃO DE JANELAS, DE FORMA MANUAL, SEM REAPROVEITAMENTO. AF_09/2023 | J43: =VLOOKUP($G43,IF(LEFT($G43,3)="AMM",COMPOSIÇÕES!$B$1:$E$4233,'BANCO DE DADOS DEZ-24 SERV'!$B$2:$F$7984),3,FALSE) -> M2 | K43: =TRUNC(0.36*4+1.1+0.72*3+2.2*4,2) -> 13.5 | L43: =VLOOKUP($G43,IF(LEFT($G43,3)="AMM",COMPOSIÇÕES!$B$1:$E$4233,'BANCO DE DADOS DEZ-24 SERV'!$B$2:$F$7984),4,FALSE) -> 23.31 | M43: 28.49 | N43: 384.61 | P43: REMOÇÃO DAS JANELAS CONFORME QUADRO DE JANELAS - DEMOLIR (0,36*4+1,1+0,72*3+2,2*4) | Q43: 3.7
A44: 3 | B44: =IF(OR(C44=1,D44=1),SUMIF($A$25:A44,A44,$C$25:C44),"") -> 8 | C44: 1 | F44: 3.8 | G44: 97649 | H44: SINAPI | I44: =VLOOKUP($G44,IF(LEFT($G44,3)="AMM",COMPOSIÇÕES!$B$1:$E$4233,'BANCO DE DADOS DEZ-24 SERV'!$B$2:$F$7984),2,FALSE) -> REMOÇÃO DE TELHAS DE FIBROCIMENTO, METÁLICA E CERÂMICA, DE FORMA MECANIZADA, COM USO DE GUINDASTE, SEM REAPROVEITAMENTO. AF_09/2023 | J44: =VLOOKUP($G44,IF(LEFT($G44,3)="AMM",COMPOSIÇÕES!$B$1:$E$4233,'BANCO DE DADOS DEZ-24 SERV'!$B$2:$F$7984),3,FALSE) -> M2 | K44: =TRUNC((6.9*8.75)+(10.8*17.15)+(2.43*4),2) -> 255.31 | L44: =VLOOKUP($G44,IF(LEFT($G44,3)="AMM",COMPOSIÇÕES!$B$1:$E$4233,'BANCO DE DADOS DEZ-24 SERV'!$B$2:$F$7984),4,FALSE) -> 4.31 | M44: 5.26 | N44: 1342.93 | P44: DEMOLIÇÃO DAS TELHAS DE FIBROCIMENTO E DAS TELHAS METÁLICAS ((6,9*8,75)+(10,8*17,15)+(2,43*4)) | Q44: 3.8
A45: 3 | B45: =IF(OR(C45=1,D45=1),SUMIF($A$25:A45,A45,$C$25:C45),"") -> 9 | C45: 1 | F45: 3.9 | G45: 97650 | H45: SINAPI | I45: =VLOOKUP($G45,IF(LEFT($G45,3)="AMM",COMPOSIÇÕES!$B$1:$E$4233,'BANCO DE DADOS DEZ-24 SERV'!$B$2:$F$7984),2,FALSE) -> REMOÇÃO DE TRAMA DE MADEIRA PARA COBERTURA, DE FORMA MANUAL, SEM REAPROVEITAMENTO. AF_09/2023 | J45: =VLOOKUP($G45,IF(LEFT($G45,3)="AMM",COMPOSIÇÕES!$B$1:$E$4233,'BANCO DE DADOS DEZ-24 SERV'!$B$2:$F$7984),3,FALSE) -> M2 | K45: =K44 -> 255.31 | L45: =VLOOKUP($G45,IF(LEFT($G45,3)="AMM",COMPOSIÇÕES!$B$1:$E$4233,'BANCO DE DADOS DEZ-24 SERV'!$B$2:$F$7984),4,FALSE) -> 7.24 | M45: 8.84 | N45: 2256.94 | P45: ÁREA DE COBERTURA ((6,9*8,75)+(10,8*17,15)+(2,43*4)) | Q45: 3.9
A46: 3 | B46: =IF(OR(C46=1,D46=1),SUMIF($A$25:A46,A46,$C$25:C46),"") -> 10 | C46: 1 | F46: 3.10 | G46: 104803 | H46: SINAPI | I46: =VLOOKUP($G46,IF(LEFT($G46,3)="AMM",COMPOSIÇÕES!$B$1:$E$4233,'BANCO DE DADOS DEZ-24 SERV'!$B$2:$F$7984),2,FALSE) -> REMOÇÃO CALHAS E RUFOS, DE FORMA MANUAL, SEM REAPROVEITAMENTO. AF_09/2023 | J46: =VLOOKUP($G46,IF(LEFT($G46,3)="AMM",COMPOSIÇÕES!$B$1:$E$4233,'BANCO DE DADOS DEZ-24 SERV'!$B$2:$F$7984),3,FALSE) -> M | K46: =TRUNC(8.75*2+17.15*2,2) -> 51.8 | L46: =VLOOKUP($G46,IF(LEFT($G46,3)="AMM",COMPOSIÇÕES!$B$1:$E$4233,'BANCO DE DADOS DEZ-24 SERV'!$B$2:$F$7984),4,FALSE) -> 4.32 | M46: 5.28 | N46: 273.5 | P46: 8,75*2+17,15*2 - REMOÇÃO DE CALHAS | Q46: 3.10
A47: 3 | B47: =IF(OR(C47=1,D47=1),SUMIF($A$25:A47,A47,$C$25:C47),"") -> 11 | C47: 1 | F47: 3.11 | G47: 97663 | H47: SINAPI | I47: =VLOOKUP($G47,IF(LEFT($G47,3)="AMM",COMPOSIÇÕES!$B$1:$E$4233,'BANCO DE DADOS DEZ-24 SERV'!$B$2:$F$7984),2,FALSE) -> REMOÇÃO DE LOUÇAS, DE FORMA MANUAL, SEM REAPROVEITAMENTO. AF_09/2023 | J47: =VLOOKUP($G47,IF(LEFT($G47,3)="AMM",COMPOSIÇÕES!$B$1:$E$4233,'BANCO DE DADOS DEZ-24 SERV'!$B$2:$F$7984),3,FALSE) -> UN | K47: =4+4+1+1 -> 10 | L47: =VLOOKUP($G47,IF(LEFT($G47,3)="AMM",COMPOSIÇÕES!$B$1:$E$4233,'BANCO DE DADOS DEZ-24 SERV'!$B$2:$F$7984),4,FALSE) -> 12.01 | M47: 14.67 | N47: 146.7 | P47: 4 BACIAS SANITÁRIAS + 4 PIAS DE BANHEIRO + 1 PIA DE LAVANDERIA + 1 BANCADA DE COZINHA | Q47: 3.11
A48: 3 | B48: =IF(OR(C48=1,D48=1),SUMIF($A$25:A48,A48,$C$25:C48),"") -> 12 | C48: 1 | F48: 3.12 | G48: 97664 | H48: SINAPI | I48: =VLOOKUP($G48,IF(LEFT($G48,3)="AMM",COMPOSIÇÕES!$B$1:$E$4233,'BANCO DE DADOS DEZ-24 SERV'!$B$2:$F$7984),2,FALSE) -> REMOÇÃO DE ACESSÓRIOS, DE FORMA MANUAL, SEM REAPROVEITAMENTO. AF_09/2023 | J48: =VLOOKUP($G48,IF(LEFT($G48,3)="AMM",COMPOSIÇÕES!$B$1:$E$4233,'BANCO DE DADOS DEZ-24 SERV'!$B$2:$F$7984),3,FALSE) -> UN | K48: 2 | L48: =VLOOKUP($G48,IF(LEFT($G48,3)="AMM",COMPOSIÇÕES!$B$1:$E$4233,'BANCO DE DADOS DEZ-24 SERV'!$B$2:$F$7984),4,FALSE) -> 1.5 | M48: 1.83 | N48: 3.66 | P48: 2 BARRAS DE APOIO - WC PCD | Q48: 3.12
A49: 3 | B49: =IF(OR(C49=1,D49=1),SUMIF($A$25:A49,A49,$C$25:C49),"") -> 13 | C49: 1 | F49: 3.13 | G49: 97666 | H49: SINAPI | I49: =VLOOKUP($G49,IF(LEFT($G49,3)="AMM",COMPOSIÇÕES!$B$1:$E$4233,'BANCO DE DADOS DEZ-24 SERV'!$B$2:$F$7984),2,FALSE) -> REMOÇÃO DE METAIS SANITÁRIOS, DE FORMA MANUAL, SEM REAPROVEITAMENTO. AF_09/2023 | J49: =VLOOKUP($G49,IF(LEFT($G49,3)="AMM",COMPOSIÇÕES!$B$1:$E$4233,'BANCO DE DADOS DEZ-24 SERV'!$B$2:$F$7984),3,FALSE) -> UN | K49: 2 | L49: =VLOOKUP($G49,IF(LEFT($G49,3)="AMM",COMPOSIÇÕES!$B$1:$E$4233,'BANCO DE DADOS DEZ-24 SERV'!$B$2:$F$7984),4,FALSE) -> 8.75 | M49: 10.69 | N49: 21.38 | P49: 2 CHUVEIROS | Q49: 3.13
A50: 3 | B50: =IF(OR(C50=1,D50=1),SUMIF($A$25:A50,A50,$C$25:C50),"") -> 14 | C50: 1 | F50: 3.14 | G50: ='COMPOSIÇÃO CIVIL'!B36 -> CIV 002 | H50: =IF(G50>="AMM","PRÓPRIO","SINAPI") -> PRÓPRIO | I50: ='COMPOSIÇÃO CIVIL'!C36 -> DEMOLIÇÃO DE PISO DE ALTA RESISTÊNCIA | J50: ='COMPOSIÇÃO CIVIL'!G36 -> M2 | K50: =310.22 -> 310.22 | L50: ='COMPOSIÇÃO CIVIL'!G41 -> 22.88 | M50: 27.96 | N50: =IF($Q$2="OUTROS",TRUNC(M50*K50,2),ROUND(M50*K50,2)) -> 8673.75 | P50: DEMOLIÇÃO DE CALÇADA EM CONCRETO | Q50: =F50 -> 3.14
A51: 3 | B51: =IF(OR(C51=1,D51=1),SUMIF($A$25:A51,A51,$C$25:C51),"") -> 15 | C51: 1 | F51: 3.15 | G51: ='COMPOSIÇÃO CIVIL'!B43 -> CIV 003 | H51: PRÓPRIO | I51: ='COMPOSIÇÃO CIVIL'!C43 -> REMOÇÃO DE ESTRUTURA METÁLICA CHUMBADA EM CONCRETO (ALAMBRADO, GUARDA-CORPO) | J51: ='COMPOSIÇÃO CIVIL'!G43 -> M2 | K51: 6 | L51: ='COMPOSIÇÃO CIVIL'!G47 -> 60.96 | M51: 74.51 | N51: 447.06 | P51: REMOÇÃO DA ESTRUTURA METÁLICA COM REVESTIMENTO EM ACM | Q51: 3.15
A52: 3 | B52: =IF(OR(C52=1,D52=1),SUMIF($A$25:A52,A52,$C$25:C52),"") ->  | F52: =IF(B52<>"",A52&"."&B52,"") -> 
A53: 4 | B53: =IF(OR(C53=1,D53=1),SUMIF($A$25:A53,A53,$C$25:C53),"") -> 0 | D53: 1 | F53: =IF(B53<>"",A53&"."&B53,"") -> 4.0 | I53: MOVIMENTO DE TERRA | N53: =SUM(N55:N65) -> 20161.5
A54: 4 | B54: =IF(OR(C54=1,D54=1),SUMIF($A$25:A54,A54,$C$25:C54),"") ->  | I54: SAPATA OU BLOCO
A55: 4 | B55: =IF(OR(C55=1,D55=1),SUMIF($A$25:A55,A55,$C$25:C55),"") -> 1 | C55: 1 | F55: 4.1 | G55: 96523 | H55: =IF(G55>="AMM","PRÓPRIO","SINAPI") -> SINAPI | I55: =VLOOKUP($G55,IF(LEFT($G55,3)="AMM",COMPOSIÇÕES!$B$1:$E$4233,'BANCO DE DADOS DEZ-24 SERV'!$B$2:$F$7984),2,FALSE) -> ESCAVAÇÃO MANUAL PARA BLOCO DE COROAMENTO OU SAPATA (INCLUINDO ESCAVAÇÃO PARA COLOCAÇÃO DE FÔRMAS). AF_01/2024 | J55: =VLOOKUP($G55,IF(LEFT($G55,3)="AMM",COMPOSIÇÕES!$B$1:$E$4233,'BANCO DE DADOS DEZ-24 SERV'!$B$2:$F$7984),3,FALSE) -> M3 | K55: ='M.C. FUNDAÇÃO'!K20 -> 84.12 | L55: =VLOOKUP($G55,IF(LEFT($G55,3)="AMM",COMPOSIÇÕES!$B$1:$E$4233,'BANCO DE DADOS DEZ-24 SERV'!$B$2:$F$7984),4,FALSE) -> 88.26 | M55: =IF($Q$2="OUTROS",TRUNC(L55*(1+$N$7),2),ROUND(L55*(1+$N$7),2)) -> 107.88 | N55: =IF($Q$2="OUTROS",TRUNC(M55*K55,2),ROUND(M55*K55,2)) -> 9074.86 | P55: CONFORME MEMORIAL DE CALCULO FUNDAÇÃO | Q55: =F55 -> 4.1
A56: 4 | B56: =IF(OR(C56=1,D56=1),SUMIF($A$25:A56,A56,$C$25:C56),"") -> 2 | C56: 1 | F56: 4.2 | G56: 104737 | H56: =IF(G56>="AMM","PRÓPRIO","SINAPI") -> SINAPI | I56: =VLOOKUP($G56,IF(LEFT($G56,3)="AMM",COMPOSIÇÕES!$B$1:$E$4233,'BANCO DE DADOS DEZ-24 SERV'!$B$2:$F$7984),2,FALSE) -> REATERRO MANUAL DE VALAS, COM PLACA VIBRATÓRIA. AF_08/2023 | J56: =VLOOKUP($G56,IF(LEFT($G56,3)="AMM",COMPOSIÇÕES!$B$1:$E$4233,'BANCO DE DADOS DEZ-24 SERV'!$B$2:$F$7984),3,FALSE) -> M3 | K56: =TRUNC(K55-K70,2) -> 79.31 | L56: =VLOOKUP($G56,IF(LEFT($G56,3)="AMM",COMPOSIÇÕES!$B$1:$E$4233,'BANCO DE DADOS DEZ-24 SERV'!$B$2:$F$7984),4,FALSE) -> 20.67 | M56: =IF($Q$2="OUTROS",TRUNC(L56*(1+$N$7),2),ROUND(L56*(1+$N$7),2)) -> 25.26 | N56: =IF($Q$2="OUTROS",TRUNC(M56*K56,2),ROUND(M56*K56,2)) -> 2003.37 | P56: [VOLUME DE ESCAVAÇÃO SAPATA OU BLOCO] - [VOLUME DE CONCRETO SAPATA OU BLOCO] | Q56: =F56 -> 4.2
A57: 4 | B57: =IF(OR(C57=1,D57=1),SUMIF($A$25:A57,A57,$C$25:C57),"") -> 3 | C57: 1 | F57: 4.3 | G57: 101616 | H57: =IF(G57>="AMM","PRÓPRIO","SINAPI") -> SINAPI | I57: =VLOOKUP($G57,IF(LEFT($G57,3)="AMM",COMPOSIÇÕES!$B$1:$E$4233,'BANCO DE DADOS DEZ-24 SERV'!$B$2:$F$7984),2,FALSE) -> PREPARO DE FUNDO DE VALA COM LARGURA MENOR QUE 1,5 M (ACERTO DO SOLO NATURAL). AF_08/2020 | J57: =VLOOKUP($G57,IF(LEFT($G57,3)="AMM",COMPOSIÇÕES!$B$1:$E$4233,'BANCO DE DADOS DEZ-24 SERV'!$B$2:$F$7984),3,FALSE) -> M2 | K57: ='M.C. FUNDAÇÃO'!L20 -> 20.26 | L57: =VLOOKUP($G57,IF(LEFT($G57,3)="AMM",COMPOSIÇÕES!$B$1:$E$4233,'BANCO DE DADOS DEZ-24 SERV'!$B$2:$F$7984),4,FALSE) -> 5.9 | M57: =IF($Q$2="OUTROS",TRUNC(L57*(1+$N$7),2),ROUND(L57*(1+$N$7),2)) -> 7.21 | N57: =IF($Q$2="OUTROS",TRUNC(M57*K57,2),ROUND(M57*K57,2)) -> 146.07 | P57: CONFORME MEMORIAL DE CALCULO FUNDAÇÃO | Q57: =F57 -> 4.3
A58: 4 | B58: =IF(OR(C58=1,D58=1),SUMIF($A$25:A58,A58,$C$25:C58),"") ->  | I58: VIGA BALDRAME
A59: 4 | B59: =IF(OR(C59=1,D59=1),SUMIF($A$25:A59,A59,$C$25:C59),"") -> 4 | C59: 1 | F59: 4.4 | G59: 96527 | H59: =IF(G59>="AMM","PRÓPRIO","SINAPI") -> SINAPI | I59: =VLOOKUP($G59,IF(LEFT($G59,3)="AMM",COMPOSIÇÕES!$B$1:$E$4233,'BANCO DE DADOS DEZ-24 SERV'!$B$2:$F$7984),2,FALSE) -> ESCAVAÇÃO MANUAL PARA VIGA BALDRAME OU SAPATA CORRIDA (INCLUINDO ESCAVAÇÃO PARA COLOCAÇÃO DE FÔRMAS). AF_01/2024 | J59: =VLOOKUP($G59,IF(LEFT($G59,3)="AMM",COMPOSIÇÕES!$B$1:$E$4233,'BANCO DE DADOS DEZ-24 SERV'!$B$2:$F$7984),3,FALSE) -> M3 | K59: =TRUNC(O59*(0.15+0.4)*0.45,2) -> 12.39 | L59: =VLOOKUP($G59,IF(LEFT($G59,3)="AMM",COMPOSIÇÕES!$B$1:$E$4233,'BANCO DE DADOS DEZ-24 SERV'!$B$2:$F$7984),4,FALSE) -> 97.14 | M59: =IF($Q$2="OUTROS",TRUNC(L59*(1+$N$7),2),ROUND(L59*(1+$N$7),2)) -> 118.73 | N59: =IF($Q$2="OUTROS",TRUNC(M59*K59,2),ROUND(M59*K59,2)) -> 1471.06 | O59: 50.09 | P59: =CONCATENATE(O59,"*(0,15+0,4)*0,45 - COMPRIMENTO TOTAL DAS VIGAS BALDRAMES * ( LARGURA DA VIGA + 40 CM, SENDO 20CM DE CADA LADO PARA COLOCAÇÃO DAS FÔRMAS) * ALTURA DA VIGA") -> 50,09*(0,15+0,4)*0,45 - COMPRIMENTO TOTAL DAS VIGAS BALDRAMES * ( LARGURA DA VIGA + 40 CM, SENDO 20CM DE CADA LADO PARA COLOCAÇÃO DAS FÔRMAS) * ALTURA DA VIGA | Q59: =F59 -> 4.4
A60: 4 | B60: =IF(OR(C60=1,D60=1),SUMIF($A$25:A60,A60,$C$25:C60),"") -> 5 | C60: 1 | F60: 4.5 | G60: 104737 | H60: =IF(G60>="AMM","PRÓPRIO","SINAPI") -> SINAPI | I60: =VLOOKUP($G60,IF(LEFT($G60,3)="AMM",COMPOSIÇÕES!$B$1:$E$4233,'BANCO DE DADOS DEZ-24 SERV'!$B$2:$F$7984),2,FALSE) -> REATERRO MANUAL DE VALAS, COM PLACA VIBRATÓRIA. AF_08/2023 | J60: =VLOOKUP($G60,IF(LEFT($G60,3)="AMM",COMPOSIÇÕES!$B$1:$E$4233,'BANCO DE DADOS DEZ-24 SERV'!$B$2:$F$7984),3,FALSE) -> M3 | K60: =TRUNC(K59-K78,2) -> 4.25 | L60: =VLOOKUP($G60,IF(LEFT($G60,3)="AMM",COMPOSIÇÕES!$B$1:$E$4233,'BANCO DE DADOS DEZ-24 SERV'!$B$2:$F$7984),4,FALSE) -> 20.67 | M60: =IF($Q$2="OUTROS",TRUNC(L60*(1+$N$7),2),ROUND(L60*(1+$N$7),2)) -> 25.26 | N60: =IF($Q$2="OUTROS",TRUNC(M60*K60,2),ROUND(M60*K60,2)) -> 107.35 | P60: [VOLUME DE ESCAVAÇÃO BALDRAME] - [VOLUME DE CONCRETO VIGAS BALDRAMES] | Q60: =F60 -> 4.5
A61: 4 | B61: =IF(OR(C61=1,D61=1),SUMIF($A$25:A61,A61,$C$25:C61),"") -> 6 | C61: 1 | F61: 4.6 | G61: 101616 | H61: =IF(G61>="AMM","PRÓPRIO","SINAPI") -> SINAPI | I61: =VLOOKUP($G61,IF(LEFT($G61,3)="AMM",COMPOSIÇÕES!$B$1:$E$4233,'BANCO DE DADOS DEZ-24 SERV'!$B$2:$F$7984),2,FALSE) -> PREPARO DE FUNDO DE VALA COM LARGURA MENOR QUE 1,5 M (ACERTO DO SOLO NATURAL). AF_08/2020 | J61: =VLOOKUP($G61,IF(LEFT($G61,3)="AMM",COMPOSIÇÕES!$B$1:$E$4233,'BANCO DE DADOS DEZ-24 SERV'!$B$2:$F$7984),3,FALSE) -> M2 | K61: =TRUNC(O59*0.15,2) -> 7.51 | L61: =VLOOKUP($G61,IF(LEFT($G61,3)="AMM",COMPOSIÇÕES!$B$1:$E$4233,'BANCO DE DADOS DEZ-24 SERV'!$B$2:$F$7984),4,FALSE) -> 5.9 | M61: =IF($Q$2="OUTROS",TRUNC(L61*(1+$N$7),2),ROUND(L61*(1+$N$7),2)) -> 7.21 | N61: =IF($Q$2="OUTROS",TRUNC(M61*K61,2),ROUND(M61*K61,2)) -> 54.14 | P61: =CONCATENATE(O59,"*0,15 - COMPRIMENTO TOTAL DAS VIGAS BALDRAMES * LARGURA") -> 50,09*0,15 - COMPRIMENTO TOTAL DAS VIGAS BALDRAMES * LARGURA | Q61: =F61 -> 4.6
A62: 4 | B62: =IF(OR(C62=1,D62=1),SUMIF($A$25:A62,A62,$C$25:C62),"") ->  | F62: =IF(B62<>"",A62&"."&B62,"") ->  | I62: FOSSO
A63: 4 | B63: =IF(OR(C63=1,D63=1),SUMIF($A$25:A63,A63,$C$25:C63),"") -> 7 | C63: 1 | D63: =IF(AND(CONCATENATE(G63,I63,J63,K63,L63,M63,N63)=I63&N63,CONCATENATE(G63,I63,J63,K63,L63,M63,N63)<>"",N63<>""),1,"") ->  | F63: 4.7 | G63: 96526 | H63: =IF(G63>="AMM","PRÓPRIO","SINAPI") -> SINAPI | I63: =VLOOKUP($G63,IF(LEFT($G63,3)="AMM",COMPOSIÇÕES!$B$1:$E$4233,'BANCO DE DADOS DEZ-24 SERV'!$B$2:$F$7984),2,FALSE) -> ESCAVAÇÃO MANUAL PARA VIGA BALDRAME OU SAPATA CORRIDA (SEM ESCAVAÇÃO PARA COLOCAÇÃO DE FÔRMAS). AF_01/2024 | J63: =VLOOKUP($G63,IF(LEFT($G63,3)="AMM",COMPOSIÇÕES!$B$1:$E$4233,'BANCO DE DADOS DEZ-24 SERV'!$B$2:$F$7984),3,FALSE) -> M3 | K63: =TRUNC(1.85*(2*(0.4+0.7+0.2+0.2+0.4+0.2+3.48+0.2+2.32+0.2)),2) -> 30.71 | L63: =VLOOKUP($G63,IF(LEFT($G63,3)="AMM",COMPOSIÇÕES!$B$1:$E$4233,'BANCO DE DADOS DEZ-24 SERV'!$B$2:$F$7984),4,FALSE) -> 190.65 | M63: =IF($Q$2="OUTROS",TRUNC(L63*(1+$N$7),2),ROUND(L63*(1+$N$7),2)) -> 233.03 | N63: =IF($Q$2="OUTROS",TRUNC(M63*K63,2),ROUND(M63*K63,2)) -> 7156.35 | P63: 1,85*(2*(0,4+0,7+0,2+0,2+0,4+0,2+3,48+0,2+2,32+0,2)) | Q63: =F63 -> 4.7
A64: 4 | B64: =IF(OR(C64=1,D64=1),SUMIF($A$25:A64,A64,$C$25:C64),"") -> 8 | C64: 1 | F64: =IF(B64<>"",A64&"."&B64,"") -> 4.8 | G64: 104737 | H64: =IF(G64>="AMM","PRÓPRIO","SINAPI") -> SINAPI | I64: =VLOOKUP($G64,IF(LEFT($G64,3)="AMM",COMPOSIÇÕES!$B$1:$E$4233,'BANCO DE DADOS DEZ-24 SERV'!$B$2:$F$7984),2,FALSE) -> REATERRO MANUAL DE VALAS, COM PLACA VIBRATÓRIA. AF_08/2023 | J64: =VLOOKUP($G64,IF(LEFT($G64,3)="AMM",COMPOSIÇÕES!$B$1:$E$4233,'BANCO DE DADOS DEZ-24 SERV'!$B$2:$F$7984),3,FALSE) -> M3 | K64: =TRUNC(1.85*(2*(0.4+0.7+0.2+0.2+0.4+0.2+3.48+0.2+2.32+0.2))-1.85*(2*(0.7+0.2+0.2+0.2+3.48+0.2+2.32+0.2)),2) -> 2.96 | L64: =VLOOKUP($G64,IF(LEFT($G64,3)="AMM",COMPOSIÇÕES!$B$1:$E$4233,'BANCO DE DADOS DEZ-24 SERV'!$B$2:$F$7984),4,FALSE) -> 20.67 | M64: =IF($Q$2="OUTROS",TRUNC(L64*(1+$N$7),2),ROUND(L64*(1+$N$7),2)) -> 25.26 | N64: =IF($Q$2="OUTROS",TRUNC(M64*K64,2),ROUND(M64*K64,2)) -> 74.76 | P64: 1,85*(2*(0,4+0,7+0,2+0,2+0,4+0,2+3,48+0,2+2,32+0,2))-1,85*(2*(0,7+0,2+0,2+0,2+3,48+0,2+2,32+0,2)) | Q64: =F64 -> 4.8
A65: 4 | B65: =IF(OR(C65=1,D65=1),SUMIF($A$25:A65,A65,$C$25:C65),"") -> 9 | C65: 1 | D65: =IF(AND(CONCATENATE(G65,I65,J65,K65,L65,M65,N65)=I65&N65,CONCATENATE(G65,I65,J65,K65,L65,M65,N65)<>"",N65<>""),1,"") ->  | F65: 4.9 | G65: 101616 | H65: =IF(G65>="AMM","PRÓPRIO","SINAPI") -> SINAPI | I65: =VLOOKUP($G65,IF(LEFT($G65,3)="AMM",COMPOSIÇÕES!$B$1:$E$4233,'BANCO DE DADOS DEZ-24 SERV'!$B$2:$F$7984),2,FALSE) -> PREPARO DE FUNDO DE VALA COM LARGURA MENOR QUE 1,5 M (ACERTO DO SOLO NATURAL). AF_08/2020 | J65: =VLOOKUP($G65,IF(LEFT($G65,3)="AMM",COMPOSIÇÕES!$B$1:$E$4233,'BANCO DE DADOS DEZ-24 SERV'!$B$2:$F$7984),3,FALSE) -> M2 | K65: =TRUNC((0.4+0.7+0.2+0.2)*(0.4+0.2+3.48+0.2+2.32+0.2),2) -> 10.2 | L65: =VLOOKUP($G65,IF(LEFT($G65,3)="AMM",COMPOSIÇÕES!$B$1:$E$4233,'BANCO DE DADOS DEZ-24 SERV'!$B$2:$F$7984),4,FALSE) -> 5.9 | M65: =IF($Q$2="OUTROS",TRUNC(L65*(1+$N$7),2),ROUND(L65*(1+$N$7),2)) -> 7.21 | N65: =IF($Q$2="OUTROS",TRUNC(M65*K65,2),ROUND(M65*K65,2)) -> 73.54 | P65: (0,4+0,7+0,2+0,2)*(0,4+0,2+3,48+0,2+2,32+0,2) | Q65: =F65 -> 4.9
A66: 4 | B66: =IF(OR(C66=1,D66=1),SUMIF($A$25:A66,A66,$C$25:C66),"") -> 
A67: 5 | B67: =IF(OR(C67=1,D67=1),SUMIF($A$25:A67,A67,$C$25:C67),"") -> 0 | D67: 1 | F67: 5.0 | I67: FUNDAÇÃO | N67: =SUM(N68:N85) -> 44412.05
A68: 5 | B68: =IF(OR(C68=1,D68=1),SUMIF($A$25:A68,A68,$C$25:C68),"") ->  | I68: SAPATA
A69: 5 | B69: =IF(OR(C69=1,D69=1),SUMIF($A$25:A69,A69,$C$25:C69),"") -> 1 | C69: 1 | F69: 5.1 | G69: 96619 | H69: =IF(G69>="AMM","PRÓPRIO","SINAPI") -> SINAPI | I69: =VLOOKUP($G69,IF(LEFT($G69,3)="AMM",COMPOSIÇÕES!$B$1:$E$4233,'BANCO DE DADOS DEZ-24 SERV'!$B$2:$F$7984),2,FALSE) -> LASTRO DE CONCRETO MAGRO, APLICADO EM BLOCOS DE COROAMENTO OU SAPATAS, ESPESSURA DE 5 CM. AF_01/2024 | J69: =VLOOKUP($G69,IF(LEFT($G69,3)="AMM",COMPOSIÇÕES!$B$1:$E$4233,'BANCO DE DADOS DEZ-24 SERV'!$B$2:$F$7984),3,FALSE) -> M2 | K69: =K57 -> 20.26 | L69: =VLOOKUP($G69,IF(LEFT($G69,3)="AMM",COMPOSIÇÕES!$B$1:$E$4233,'BANCO DE DADOS DEZ-24 SERV'!$B$2:$F$7984),4,FALSE) -> 44.18 | M69: =IF($Q$2="OUTROS",TRUNC(L69*(1+$N$7),2),ROUND(L69*(1+$N$7),2)) -> 54 | N69: =IF($Q$2="OUTROS",TRUNC(M69*K69,2),ROUND(M69*K69,2)) -> 1094.04 | P69: CONFORME PROJETO ESTRUTURAL | Q69: =F69 -> 5.1
A70: =IF(LEN(D70),OFFSET(A70,-1,0)+1,OFFSET(A70,-1,0)) -> 5 | B70: =IF(OR(C70=1,D70=1),SUMIF($A$25:A70,A70,$C$25:C70),"") -> 2 | C70: =IF(G70>0,1,"") -> 1 | D70: =IF(AND(CONCATENATE(G70,I70,J70,K70,L70,M70,N70)=I70&N70,CONCATENATE(G70,I70,J70,K70,L70,M70,N70)<>"",N70<>""),1,"") ->  | F70: 5.2 | G70: 94965 | H70: SINAPI | I70: =VLOOKUP($G70,IF(LEFT($G70,3)="AMM",COMPOSIÇÕES!$B$1:$E$4233,'BANCO DE DADOS DEZ-24 SERV'!$B$2:$F$7984),2,FALSE) -> CONCRETO FCK = 25MPA, TRAÇO 1:2,3:2,7 (EM MASSA SECA DE CIMENTO/ AREIA MÉDIA/ BRITA 1) - PREPARO MECÂNICO COM BETONEIRA 400 L. AF_05/2021 | J70: =VLOOKUP($G70,IF(LEFT($G70,3)="AMM",COMPOSIÇÕES!$B$1:$E$4233,'BANCO DE DADOS DEZ-24 SERV'!$B$2:$F$7984),3,FALSE) -> M3 | K70: 4.81 | L70: =VLOOKUP($G70,IF(LEFT($G70,3)="AMM",COMPOSIÇÕES!$B$1:$E$4233,'BANCO DE DADOS DEZ-24 SERV'!$B$2:$F$7984),4,FALSE) -> 609.8 | M70: 745.35 | N70: 3585.13 | P70: CONFORME PROJETO ESTRUTURAL | Q70: 5.2
A71: 5 | B71: =IF(OR(C71=1,D71=1),SUMIF($A$25:A71,A71,$C$25:C71),"") -> 3 | C71: 1 | F71: 5.3 | G71: 103670 | H71: SINAPI | I71: =VLOOKUP($G71,IF(LEFT($G71,3)="AMM",COMPOSIÇÕES!$B$1:$E$4233,'BANCO DE DADOS DEZ-24 SERV'!$B$2:$F$7984),2,FALSE) -> LANÇAMENTO COM USO DE BALDES, ADENSAMENTO E ACABAMENTO DE CONCRETO EM ESTRUTURAS. AF_02/2022 | J71: =VLOOKUP($G71,IF(LEFT($G71,3)="AMM",COMPOSIÇÕES!$B$1:$E$4233,'BANCO DE DADOS DEZ-24 SERV'!$B$2:$F$7984),3,FALSE) -> M3 | K71: =K70 -> 4.81 | L71: =VLOOKUP($G71,IF(LEFT($G71,3)="AMM",COMPOSIÇÕES!$B$1:$E$4233,'BANCO DE DADOS DEZ-24 SERV'!$B$2:$F$7984),4,FALSE) -> 277.21 | M71: 338.83 | N71: 1629.77 | P71: CONFORME PROJETO ESTRUTURAL | Q71: 5.3
A72: =IF(LEN(D72),OFFSET(A72,-1,0)+1,OFFSET(A72,-1,0)) -> 5 | B72: =IF(OR(C72=1,D72=1),SUMIF($A$25:A72,A72,$C$25:C72),"") -> 4 | C72: =IF(G72>0,1,"") -> 1 | D72: =IF(AND(CONCATENATE(G72,I72,J72,K72,L72,M72,N72)=I72&N72,CONCATENATE(G72,I72,J72,K72,L72,M72,N72)<>"",N72<>""),1,"") ->  | F72: =IF(B72<>"",A72&"."&B72,"") -> 5.4 | G72: 96535 | H72: SINAPI | I72: =VLOOKUP($G72,IF(LEFT($G72,3)="AMM",COMPOSIÇÕES!$B$1:$E$4233,'BANCO DE DADOS DEZ-24 SERV'!$B$2:$F$7984),2,FALSE) -> FABRICAÇÃO, MONTAGEM E DESMONTAGEM DE FÔRMA PARA SAPATA, EM MADEIRA SERRADA, E=25 MM, 4 UTILIZAÇÕES. AF_01/2024 | J72: =VLOOKUP($G72,IF(LEFT($G72,3)="AMM",COMPOSIÇÕES!$B$1:$E$4233,'BANCO DE DADOS DEZ-24 SERV'!$B$2:$F$7984),3,FALSE) -> M2 | K72: 17.8 | L72: =VLOOKUP($G72,IF(LEFT($G72,3)="AMM",COMPOSIÇÕES!$B$1:$E$4233,'BANCO DE DADOS DEZ-24 SERV'!$B$2:$F$7984),4,FALSE) -> 131.58 | M72: =IF($Q$2="OUTROS",TRUNC(L72*(1+$N$7),2),ROUND(L72*(1+$N$7),2)) -> 160.83 | N72: =IF($Q$2="OUTROS",TRUNC(M72*K72,2),ROUND(M72*K72,2)) -> 2862.77 | P72: CONFORME PROJETO ESTRUTURAL | Q72: =F72 -> 5.4
A73: 5 | B73: =IF(OR(C73=1,D73=1),SUMIF($A$25:A73,A73,$C$25:C73),"") -> 5 | C73: 1 | F73: 5.5 | G73: 104917 | H73: SINAPI | I73: =VLOOKUP($G73,IF(LEFT($G73,3)="AMM",COMPOSIÇÕES!$B$1:$E$4233,'BANCO DE DADOS DEZ-24 SERV'!$B$2:$F$7984),2,FALSE) -> ARMAÇÃO DE SAPATA ISOLADA, VIGA BALDRAME E SAPATA CORRIDA UTILIZANDO AÇO CA-50 DE 6,3 MM - MONTAGEM. AF_01/2024 | J73: =VLOOKUP($G73,IF(LEFT($G73,3)="AMM",COMPOSIÇÕES!$B$1:$E$4233,'BANCO DE DADOS DEZ-24 SERV'!$B$2:$F$7984),3,FALSE) -> KG | K73: 9 | L73: =VLOOKUP($G73,IF(LEFT($G73,3)="AMM",COMPOSIÇÕES!$B$1:$E$4233,'BANCO DE DADOS DEZ-24 SERV'!$B$2:$F$7984),4,FALSE) -> 16.24 | M73: 19.85 | N73: 178.65 | P73: CONFORME PROJETO ESTRUTURAL | Q73: 5.5
A74: 5 | B74: =IF(OR(C74=1,D74=1),SUMIF($A$25:A74,A74,$C$25:C74),"") -> 6 | C74: 1 | F74: 5.6 | G74: 104918 | H74: =IF(G74>="AMM","PRÓPRIO","SINAPI") -> SINAPI | I74: =VLOOKUP($G74,IF(LEFT($G74,3)="AMM",COMPOSIÇÕES!$B$1:$E$4233,'BANCO DE DADOS DEZ-24 SERV'!$B$2:$F$7984),2,FALSE) -> ARMAÇÃO DE SAPATA ISOLADA, VIGA BALDRAME E SAPATA CORRIDA UTILIZANDO AÇO CA-50 DE 8 MM - MONTAGEM. AF_01/2024 | J74: =VLOOKUP($G74,IF(LEFT($G74,3)="AMM",COMPOSIÇÕES!$B$1:$E$4233,'BANCO DE DADOS DEZ-24 SERV'!$B$2:$F$7984),3,FALSE) -> KG | K74: 205 | L74: =VLOOKUP($G74,IF(LEFT($G74,3)="AMM",COMPOSIÇÕES!$B$1:$E$4233,'BANCO DE DADOS DEZ-24 SERV'!$B$2:$F$7984),4,FALSE) -> 15.26 | M74: 18.65 | N74: =IF($Q$2="OUTROS",TRUNC(M74*K74,2),ROUND(M74*K74,2)) -> 3823.25 | P74: CONFORME PROJETO ESTRUTURAL | Q74: =F74 -> 5.6
A75: 5 | B75: =IF(OR(C75=1,D75=1),SUMIF($A$25:A75,A75,$C$25:C75),"") -> 7 | C75: 1 | F75: =IF(B75<>"",A75&"."&B75,"") -> 5.7 | G75: 104919 | H75: SINAPI | I75: =VLOOKUP($G75,IF(LEFT($G75,3)="AMM",COMPOSIÇÕES!$B$1:$E$4233,'BANCO DE DADOS DEZ-24 SERV'!$B$2:$F$7984),2,FALSE) -> ARMAÇÃO DE SAPATA ISOLADA, VIGA BALDRAME E SAPATA CORRIDA UTILIZANDO AÇO CA-50 DE 10 MM - MONTAGEM. AF_01/2024 | J75: =VLOOKUP($G75,IF(LEFT($G75,3)="AMM",COMPOSIÇÕES!$B$1:$E$4233,'BANCO DE DADOS DEZ-24 SERV'!$B$2:$F$7984),3,FALSE) -> KG | K75: 16 | L75: =VLOOKUP($G75,IF(LEFT($G75,3)="AMM",COMPOSIÇÕES!$B$1:$E$4233,'BANCO DE DADOS DEZ-24 SERV'!$B$2:$F$7984),4,FALSE) -> 13.7 | M75: 16.74 | N75: 267.84 | P75: CONFORME PROJETO ESTRUTURAL | Q75: 5.7
A76: =IF(LEN(D76),OFFSET(A76,-1,0)+1,OFFSET(A76,-1,0)) -> 5 | B76: =IF(OR(C76=1,D76=1),SUMIF($A$25:A76,A76,$C$25:C76),"") ->  | C76: =IF(G76>0,1,"") ->  | D76: =IF(AND(CONCATENATE(G76,I76,J76,K76,L76,M76,N76)=I76&N76,CONCATENATE(G76,I76,J76,K76,L76,M76,N76)<>"",N76<>""),1,"") ->  | I76: VIGA BALDRAME
A77: 5 | B77: =IF(OR(C77=1,D77=1),SUMIF($A$25:A77,A77,$C$25:C77),"") -> 8 | C77: 1 | F77: 5.8 | G77: 94962 | H77: =IF(G77>="AMM","PRÓPRIO","SINAPI") -> SINAPI | I77: =VLOOKUP($G77,IF(LEFT($G77,3)="AMM",COMPOSIÇÕES!$B$1:$E$4233,'BANCO DE DADOS DEZ-24 SERV'!$B$2:$F$7984),2,FALSE) -> CONCRETO MAGRO PARA LASTRO, TRAÇO 1:4,5:4,5 (EM MASSA SECA DE CIMENTO/ AREIA MÉDIA/ BRITA 1) - PREPARO MECÂNICO COM BETONEIRA 400 L. AF_05/2021 | J77: =VLOOKUP($G77,IF(LEFT($G77,3)="AMM",COMPOSIÇÕES!$B$1:$E$4233,'BANCO DE DADOS DEZ-24 SERV'!$B$2:$F$7984),3,FALSE) -> M3 | K77: =TRUNC(O77*0.05,2) -> 0.37 | L77: =VLOOKUP($G77,IF(LEFT($G77,3)="AMM",COMPOSIÇÕES!$B$1:$E$4233,'BANCO DE DADOS DEZ-24 SERV'!$B$2:$F$7984),4,FALSE) -> 480.22 | M77: =IF($Q$2="OUTROS",TRUNC(L77*(1+$N$7),2),ROUND(L77*(1+$N$7),2)) -> 586.97 | N77: =IF($Q$2="OUTROS",TRUNC(M77*K77,2),ROUND(M77*K77,2)) -> 217.17 | O77: =K61 -> 7.51 | P77: =CONCATENATE(O77,"*0,05 - CONFORME PREPARO DE FUNDO DE VALA DAS VIGAS BALDRAMES * 0,05 CM DE ESPESSURA") -> 7,51*0,05 - CONFORME PREPARO DE FUNDO DE VALA DAS VIGAS BALDRAMES * 0,05 CM DE ESPESSURA | Q77: =F77 -> 5.8
A78: 5 | B78: =IF(OR(C78=1,D78=1),SUMIF($A$25:A78,A78,$C$25:C78),"") -> 9 | C78: 1 | F78: =IF(B78<>"",A78&"."&B78,"") -> 5.9 | G78: 94965 | H78: =IF(G78>="AMM","PRÓPRIO","SINAPI") -> SINAPI | I78: =VLOOKUP($G78,IF(LEFT($G78,3)="AMM",COMPOSIÇÕES!$B$1:$E$4233,'BANCO DE DADOS DEZ-24 SERV'!$B$2:$F$7984),2,FALSE) -> CONCRETO FCK = 25MPA, TRAÇO 1:2,3:2,7 (EM MASSA SECA DE CIMENTO/ AREIA MÉDIA/ BRITA 1) - PREPARO MECÂNICO COM BETONEIRA 400 L. AF_05/2021 | J78: =VLOOKUP($G78,IF(LEFT($G78,3)="AMM",COMPOSIÇÕES!$B$1:$E$4233,'BANCO DE DADOS DEZ-24 SERV'!$B$2:$F$7984),3,FALSE) -> M3 | K78: 8.14 | L78: =VLOOKUP($G78,IF(LEFT($G78,3)="AMM",COMPOSIÇÕES!$B$1:$E$4233,'BANCO DE DADOS DEZ-24 SERV'!$B$2:$F$7984),4,FALSE) -> 609.8 | M78: 745.35 | N78: =IF($Q$2="OUTROS",TRUNC(M78*K78,2),ROUND(M78*K78,2)) -> 6067.14 | P78: CONFORME PROJETO ESTRUTURAL | Q78: =F78 -> 5.9
A79: 5 | B79: =IF(OR(C79=1,D79=1),SUMIF($A$25:A79,A79,$C$25:C79),"") -> 10 | C79: 1 | F79: 5.10 | G79: 103670 | H79: =IF(G79>="AMM","PRÓPRIO","SINAPI") -> SINAPI | I79: =VLOOKUP($G79,IF(LEFT($G79,3)="AMM",COMPOSIÇÕES!$B$1:$E$4233,'BANCO DE DADOS DEZ-24 SERV'!$B$2:$F$7984),2,FALSE) -> LANÇAMENTO COM USO DE BALDES, ADENSAMENTO E ACABAMENTO DE CONCRETO EM ESTRUTURAS. AF_02/2022 | J79: =VLOOKUP($G79,IF(LEFT($G79,3)="AMM",COMPOSIÇÕES!$B$1:$E$4233,'BANCO DE DADOS DEZ-24 SERV'!$B$2:$F$7984),3,FALSE) -> M3 | K79: =K78 -> 8.14 | L79: =VLOOKUP($G79,IF(LEFT($G79,3)="AMM",COMPOSIÇÕES!$B$1:$E$4233,'BANCO DE DADOS DEZ-24 SERV'!$B$2:$F$7984),4,FALSE) -> 277.21 | M79: 338.83 | N79: =IF($Q$2="OUTROS",TRUNC(M79*K79,2),ROUND(M79*K79,2)) -> 2758.07 | P79: CONFORME PROJETO ESTRUTURAL | Q79: =F79 -> 5.10
A80: 5 | B80: =IF(OR(C80=1,D80=1),SUMIF($A$25:A80,A80,$C$25:C80),"") -> 11 | C80: 1 | F80: 5.11 | G80: 96536 | H80: SINAPI | I80: =VLOOKUP($G80,IF(LEFT($G80,3)="AMM",COMPOSIÇÕES!$B$1:$E$4233,'BANCO DE DADOS DEZ-24 SERV'!$B$2:$F$7984),2,FALSE) -> FABRICAÇÃO, MONTAGEM E DESMONTAGEM DE FÔRMA PARA VIGA BALDRAME, EM MADEIRA SERRADA, E=25 MM, 4 UTILIZAÇÕES. AF_01/2024 | J80: =VLOOKUP($G80,IF(LEFT($G80,3)="AMM",COMPOSIÇÕES!$B$1:$E$4233,'BANCO DE DADOS DEZ-24 SERV'!$B$2:$F$7984),3,FALSE) -> M2 | K80: 102.26 | L80: =VLOOKUP($G80,IF(LEFT($G80,3)="AMM",COMPOSIÇÕES!$B$1:$E$4233,'BANCO DE DADOS DEZ-24 SERV'!$B$2:$F$7984),4,FALSE) -> 71.99 | M80: 87.99 | N80: 8997.85 | P80: CONFORME PROJETO ESTRUTURAL | Q80: 5.11
A81: 5 | B81: =IF(OR(C81=1,D81=1),SUMIF($A$25:A81,A81,$C$25:C81),"") -> 12 | C81: 1 | F81: 5.12 | G81: 104917 | H81: SINAPI | I81: =VLOOKUP($G81,IF(LEFT($G81,3)="AMM",COMPOSIÇÕES!$B$1:$E$4233,'BANCO DE DADOS DEZ-24 SERV'!$B$2:$F$7984),2,FALSE) -> ARMAÇÃO DE SAPATA ISOLADA, VIGA BALDRAME E SAPATA CORRIDA UTILIZANDO AÇO CA-50 DE 6,3 MM - MONTAGEM. AF_01/2024 | J81: =VLOOKUP($G81,IF(LEFT($G81,3)="AMM",COMPOSIÇÕES!$B$1:$E$4233,'BANCO DE DADOS DEZ-24 SERV'!$B$2:$F$7984),3,FALSE) -> KG | K81: =26+133 -> 159 | L81: =VLOOKUP($G81,IF(LEFT($G81,3)="AMM",COMPOSIÇÕES!$B$1:$E$4233,'BANCO DE DADOS DEZ-24 SERV'!$B$2:$F$7984),4,FALSE) -> 16.24 | M81: 19.85 | N81: 3156.15 | P81: CONFORME PROJETO ESTRUTURAL | Q81: 5.12
A82: 5 | B82: =IF(OR(C82=1,D82=1),SUMIF($A$25:A82,A82,$C$25:C82),"") -> 13 | C82: 1 | F82: 5.13 | G82: 104918 | H82: SINAPI | I82: =VLOOKUP($G82,IF(LEFT($G82,3)="AMM",COMPOSIÇÕES!$B$1:$E$4233,'BANCO DE DADOS DEZ-24 SERV'!$B$2:$F$7984),2,FALSE) -> ARMAÇÃO DE SAPATA ISOLADA, VIGA BALDRAME E SAPATA CORRIDA UTILIZANDO AÇO CA-50 DE 8 MM - MONTAGEM. AF_01/2024 | J82: =VLOOKUP($G82,IF(LEFT($G82,3)="AMM",COMPOSIÇÕES!$B$1:$E$4233,'BANCO DE DADOS DEZ-24 SERV'!$B$2:$F$7984),3,FALSE) -> KG | K82: =76+226 -> 302 | L82: =VLOOKUP($G82,IF(LEFT($G82,3)="AMM",COMPOSIÇÕES!$B$1:$E$4233,'BANCO DE DADOS DEZ-24 SERV'!$B$2:$F$7984),4,FALSE) -> 15.26 | M82: 18.65 | N82: 5632.3 | P82: CONFORME PROJETO ESTRUTURAL | Q82: 5.13
A83: 5 | B83: =IF(OR(C83=1,D83=1),SUMIF($A$25:A83,A83,$C$25:C83),"") -> 14 | C83: 1 | F83: 5.14 | G83: 104919 | H83: SINAPI | I83: =VLOOKUP($G83,IF(LEFT($G83,3)="AMM",COMPOSIÇÕES!$B$1:$E$4233,'BANCO DE DADOS DEZ-24 SERV'!$B$2:$F$7984),2,FALSE) -> ARMAÇÃO DE SAPATA ISOLADA, VIGA BALDRAME E SAPATA CORRIDA UTILIZANDO AÇO CA-50 DE 10 MM - MONTAGEM. AF_01/2024 | J83: =VLOOKUP($G83,IF(LEFT($G83,3)="AMM",COMPOSIÇÕES!$B$1:$E$4233,'BANCO DE DADOS DEZ-24 SERV'!$B$2:$F$7984),3,FALSE) -> KG | K83: =74+11 -> 85 | L83: =VLOOKUP($G83,IF(LEFT($G83,3)="AMM",COMPOSIÇÕES!$B$1:$E$4233,'BANCO DE DADOS DEZ-24 SERV'!$B$2:$F$7984),4,FALSE) -> 13.7 | M83: 16.74 | N83: 1422.9 | P83: CONFORME PROJETO ESTRUTURAL | Q83: 5.14
A84: 5 | B84: =IF(OR(C84=1,D84=1),SUMIF($A$25:A84,A84,$C$25:C84),"") -> 15 | C84: 1 | F84: 5.15 | G84: 104921 | H84: SINAPI | I84: =VLOOKUP($G84,IF(LEFT($G84,3)="AMM",COMPOSIÇÕES!$B$1:$E$4233,'BANCO DE DADOS DEZ-24 SERV'!$B$2:$F$7984),2,FALSE) -> ARMAÇÃO DE BLOCO, SAPATA ISOLADA, VIGA BALDRAME E SAPATA CORRIDA UTILIZANDO AÇO CA-50 DE 16 MM - MONTAGEM. AF_01/2024 | J84: =VLOOKUP($G84,IF(LEFT($G84,3)="AMM",COMPOSIÇÕES!$B$1:$E$4233,'BANCO DE DADOS DEZ-24 SERV'!$B$2:$F$7984),3,FALSE) -> KG | K84: =16+106 -> 122 | L84: =VLOOKUP($G84,IF(LEFT($G84,3)="AMM",COMPOSIÇÕES!$B$1:$E$4233,'BANCO DE DADOS DEZ-24 SERV'!$B$2:$F$7984),4,FALSE) -> 11.05 | M84: 13.5 | N84: 1647 | P84: CONFORME PROJETO ESTRUTURAL | Q84: 5.15
A85: 5 | B85: =IF(OR(C85=1,D85=1),SUMIF($A$25:A85,A85,$C$25:C85),"") -> 16 | C85: 1 | F85: =IF(B85<>"",A85&"."&B85,"") -> 5.16 | G85: 104916 | H85: =IF(G85>="AMM","PRÓPRIO","SINAPI") -> SINAPI | I85: =VLOOKUP($G85,IF(LEFT($G85,3)="AMM",COMPOSIÇÕES!$B$1:$E$4233,'BANCO DE DADOS DEZ-24 SERV'!$B$2:$F$7984),2,FALSE) -> ARMAÇÃO DE SAPATA ISOLADA, VIGA BALDRAME E SAPATA CORRIDA UTILIZANDO AÇO CA-60 DE 5 MM - MONTAGEM. AF_01/2024 | J85: =VLOOKUP($G85,IF(LEFT($G85,3)="AMM",COMPOSIÇÕES!$B$1:$E$4233,'BANCO DE DADOS DEZ-24 SERV'!$B$2:$F$7984),3,FALSE) -> KG | K85: =44+7 -> 51 | L85: =VLOOKUP($G85,IF(LEFT($G85,3)="AMM",COMPOSIÇÕES!$B$1:$E$4233,'BANCO DE DADOS DEZ-24 SERV'!$B$2:$F$7984),4,FALSE) -> 17.2 | M85: 21.02 | N85: =IF($Q$2="OUTROS",TRUNC(M85*K85,2),ROUND(M85*K85,2)) -> 1072.02 | P85: CONFORME PROJETO ESTRUTURAL | Q85: =F85 -> 5.16
A86: 5 | B86: =IF(OR(C86=1,D86=1),SUMIF($A$25:A86,A86,$C$25:C86),"") -> 
A87: 6 | B87: =IF(OR(C87=1,D87=1),SUMIF($A$25:A87,A87,$C$25:C87),"") -> 0 | D87: 1 | F87: 6.0 | I87: ESTRUTURA | N87: =SUM(N88:N112) -> 76297.58
A88: 6 | B88: =IF(OR(C88=1,D88=1),SUMIF($A$25:A88,A88,$C$25:C88),"") ->  | I88: VIGAS
A89: 6 | B89: =IF(OR(C89=1,D89=1),SUMIF($A$25:A89,A89,$C$25:C89),"") -> 1 | C89: 1 | F89: 6.1 | G89: 94965 | H89: =IF(G89>="AMM","PRÓPRIO","SINAPI") -> SINAPI | I89: =VLOOKUP($G89,IF(LEFT($G89,3)="AMM",COMPOSIÇÕES!$B$1:$E$4233,'BANCO DE DADOS DEZ-24 SERV'!$B$2:$F$7984),2,FALSE) -> CONCRETO FCK = 25MPA, TRAÇO 1:2,3:2,7 (EM MASSA SECA DE CIMENTO/ AREIA MÉDIA/ BRITA 1) - PREPARO MECÂNICO COM BETONEIRA 400 L. AF_05/2021 | J89: =VLOOKUP($G89,IF(LEFT($G89,3)="AMM",COMPOSIÇÕES!$B$1:$E$4233,'BANCO DE DADOS DEZ-24 SERV'!$B$2:$F$7984),3,FALSE) -> M3 | K89: =1.73+0.73+3.51 -> 5.97 | L89: =VLOOKUP($G89,IF(LEFT($G89,3)="AMM",COMPOSIÇÕES!$B$1:$E$4233,'BANCO DE DADOS DEZ-24 SERV'!$B$2:$F$7984),4,FALSE) -> 609.8 | M89: =IF($Q$2="OUTROS",TRUNC(L89*(1+$N$7),2),ROUND(L89*(1+$N$7),2)) -> 745.35 | N89: =IF($Q$2="OUTROS",TRUNC(M89*K89,2),ROUND(M89*K89,2)) -> 4449.73 | P89: CONFORME PROJETO ESTRUTURAL | Q89: =F89 -> 6.1
A90: 6 | B90: =IF(OR(C90=1,D90=1),SUMIF($A$25:A90,A90,$C$25:C90),"") -> 2 | C90: 1 | F90: 6.2 | G90: 103670 | H90: SINAPI | I90: =VLOOKUP($G90,IF(LEFT($G90,3)="AMM",COMPOSIÇÕES!$B$1:$E$4233,'BANCO DE DADOS DEZ-24 SERV'!$B$2:$F$7984),2,FALSE) -> LANÇAMENTO COM USO DE BALDES, ADENSAMENTO E ACABAMENTO DE CONCRETO EM ESTRUTURAS. AF_02/2022 | J90: =VLOOKUP($G90,IF(LEFT($G90,3)="AMM",COMPOSIÇÕES!$B$1:$E$4233,'BANCO DE DADOS DEZ-24 SERV'!$B$2:$F$7984),3,FALSE) -> M3 | K90: =K89 -> 5.97 | L90: =VLOOKUP($G90,IF(LEFT($G90,3)="AMM",COMPOSIÇÕES!$B$1:$E$4233,'BANCO DE DADOS DEZ-24 SERV'!$B$2:$F$7984),4,FALSE) -> 277.21 | M90: 338.83 | N90: 2022.81 | P90: CONFORME PROJETO ESTRUTURAL | Q90: 6.2
A91: 6 | B91: =IF(OR(C91=1,D91=1),SUMIF($A$25:A91,A91,$C$25:C91),"") -> 3 | C91: 1 | F91: 6.3 | G91: 92463 | H91: SINAPI | I91: =VLOOKUP($G91,IF(LEFT($G91,3)="AMM",COMPOSIÇÕES!$B$1:$E$4233,'BANCO DE DADOS DEZ-24 SERV'!$B$2:$F$7984),2,FALSE) -> MONTAGEM E DESMONTAGEM DE FÔRMA DE VIGA, ESCORAMENTO COM GARFO DE MADEIRA, PÉ-DIREITO SIMPLES, EM CHAPA DE MADEIRA RESINADA, 8 UTILIZAÇÕES. AF_09/2020 | J91: =VLOOKUP($G91,IF(LEFT($G91,3)="AMM",COMPOSIÇÕES!$B$1:$E$4233,'BANCO DE DADOS DEZ-24 SERV'!$B$2:$F$7984),3,FALSE) -> M2 | K91: =24.26+11.32+55.88 -> 91.46 | L91: =VLOOKUP($G91,IF(LEFT($G91,3)="AMM",COMPOSIÇÕES!$B$1:$E$4233,'BANCO DE DADOS DEZ-24 SERV'!$B$2:$F$7984),4,FALSE) -> 140.46 | M91: 171.68 | N91: 15701.85 | P91: CONFORME PROJETO ESTRUTURAL | Q91: 6.3
A92: 6 | B92: =IF(OR(C92=1,D92=1),SUMIF($A$25:A92,A92,$C$25:C92),"") -> 4 | C92: 1 | F92: 6.4 | G92: 92761 | H92: SINAPI | I92: =VLOOKUP($G92,IF(LEFT($G92,3)="AMM",COMPOSIÇÕES!$B$1:$E$4233,'BANCO DE DADOS DEZ-24 SERV'!$B$2:$F$7984),2,FALSE) -> ARMAÇÃO DE PILAR OU VIGA DE ESTRUTURA CONVENCIONAL DE CONCRETO ARMADO UTILIZANDO AÇO CA-50 DE 8,0 MM - MONTAGEM. AF_06/2022 | J92: =VLOOKUP($G92,IF(LEFT($G92,3)="AMM",COMPOSIÇÕES!$B$1:$E$4233,'BANCO DE DADOS DEZ-24 SERV'!$B$2:$F$7984),3,FALSE) -> KG | K92: =21+48 -> 69 | L92: =VLOOKUP($G92,IF(LEFT($G92,3)="AMM",COMPOSIÇÕES!$B$1:$E$4233,'BANCO DE DADOS DEZ-24 SERV'!$B$2:$F$7984),4,FALSE) -> 13.5 | M92: 16.5 | N92: 1138.5 | P92: CONFORME PROJETO ESTRUTURAL | Q92: 6.4
A93: 6 | B93: =IF(OR(C93=1,D93=1),SUMIF($A$25:A93,A93,$C$25:C93),"") -> 5 | C93: 1 | F93: 6.5 | G93: 92762 | H93: SINAPI | I93: =VLOOKUP($G93,IF(LEFT($G93,3)="AMM",COMPOSIÇÕES!$B$1:$E$4233,'BANCO DE DADOS DEZ-24 SERV'!$B$2:$F$7984),2,FALSE) -> ARMAÇÃO DE PILAR OU VIGA DE ESTRUTURA CONVENCIONAL DE CONCRETO ARMADO UTILIZANDO AÇO CA-50 DE 10,0 MM - MONTAGEM. AF_06/2022 | J93: =VLOOKUP($G93,IF(LEFT($G93,3)="AMM",COMPOSIÇÕES!$B$1:$E$4233,'BANCO DE DADOS DEZ-24 SERV'!$B$2:$F$7984),3,FALSE) -> KG | K93: =106+128 -> 234 | L93: =VLOOKUP($G93,IF(LEFT($G93,3)="AMM",COMPOSIÇÕES!$B$1:$E$4233,'BANCO DE DADOS DEZ-24 SERV'!$B$2:$F$7984),4,FALSE) -> 12.14 | M93: 14.83 | N93: 3470.22 | P93: CONFORME PROJETO ESTRUTURAL | Q93: 6.5
A94: 6 | B94: =IF(OR(C94=1,D94=1),SUMIF($A$25:A94,A94,$C$25:C94),"") -> 6 | C94: 1 | F94: 6.6 | G94: 92763 | H94: SINAPI | I94: =VLOOKUP($G94,IF(LEFT($G94,3)="AMM",COMPOSIÇÕES!$B$1:$E$4233,'BANCO DE DADOS DEZ-24 SERV'!$B$2:$F$7984),2,FALSE) -> ARMAÇÃO DE PILAR OU VIGA DE ESTRUTURA CONVENCIONAL DE CONCRETO ARMADO UTILIZANDO AÇO CA-50 DE 12,5 MM - MONTAGEM. AF_06/2022 | J94: =VLOOKUP($G94,IF(LEFT($G94,3)="AMM",COMPOSIÇÕES!$B$1:$E$4233,'BANCO DE DADOS DEZ-24 SERV'!$B$2:$F$7984),3,FALSE) -> KG | K94: =33 -> 33 | L94: =VLOOKUP($G94,IF(LEFT($G94,3)="AMM",COMPOSIÇÕES!$B$1:$E$4233,'BANCO DE DADOS DEZ-24 SERV'!$B$2:$F$7984),4,FALSE) -> 10.25 | M94: 12.52 | N94: 413.16 | P94: CONFORME PROJETO ESTRUTURAL | Q94: 6.6
A95: 6 | B95: =IF(OR(C95=1,D95=1),SUMIF($A$25:A95,A95,$C$25:C95),"") -> 7 | C95: 1 | F95: 6.7 | G95: 92759 | H95: SINAPI | I95: =VLOOKUP($G95,IF(LEFT($G95,3)="AMM",COMPOSIÇÕES!$B$1:$E$4233,'BANCO DE DADOS DEZ-24 SERV'!$B$2:$F$7984),2,FALSE) -> ARMAÇÃO DE PILAR OU VIGA DE ESTRUTURA CONVENCIONAL DE CONCRETO ARMADO UTILIZANDO AÇO CA-60 DE 5,0 MM - MONTAGEM. AF_06/2022 | J95: =VLOOKUP($G95,IF(LEFT($G95,3)="AMM",COMPOSIÇÕES!$B$1:$E$4233,'BANCO DE DADOS DEZ-24 SERV'!$B$2:$F$7984),3,FALSE) -> KG | K95: =37+56 -> 93 | L95: =VLOOKUP($G95,IF(LEFT($G95,3)="AMM",COMPOSIÇÕES!$B$1:$E$4233,'BANCO DE DADOS DEZ-24 SERV'!$B$2:$F$7984),4,FALSE) -> 14.78 | M95: 18.06 | N95: 1679.58 | P95: CONFORME PROJETO ESTRUTURAL | Q95: 6.7
A96: 6 | B96: =IF(OR(C96=1,D96=1),SUMIF($A$25:A96,A96,$C$25:C96),"") ->  | I96: PILAR
A97: 6 | B97: =IF(OR(C97=1,D97=1),SUMIF($A$25:A97,A97,$C$25:C97),"") -> 8 | C97: 1 | F97: =IF(B97<>"",A97&"."&B97,"") -> 6.8 | G97: 103669 | H97: =IF(G97>="AMM","PRÓPRIO","SINAPI") -> SINAPI | I97: =VLOOKUP($G97,IF(LEFT($G97,3)="AMM",COMPOSIÇÕES!$B$1:$E$4233,'BANCO DE DADOS DEZ-24 SERV'!$B$2:$F$7984),2,FALSE) -> CONCRETAGEM DE PILARES, FCK = 25 MPA, COM USO DE BALDES - LANÇAMENTO, ADENSAMENTO E ACABAMENTO. AF_02/2022 | J97: =VLOOKUP($G97,IF(LEFT($G97,3)="AMM",COMPOSIÇÕES!$B$1:$E$4233,'BANCO DE DADOS DEZ-24 SERV'!$B$2:$F$7984),3,FALSE) -> M3 | K97: =2.76+3.33+0.72+0.93 -> 7.74 | L97: =VLOOKUP($G97,IF(LEFT($G97,3)="AMM",COMPOSIÇÕES!$B$1:$E$4233,'BANCO DE DADOS DEZ-24 SERV'!$B$2:$F$7984),4,FALSE) -> 1173.45 | M97: =IF($Q$2="OUTROS",TRUNC(L97*(1+$N$7),2),ROUND(L97*(1+$N$7),2)) -> 1434.3 | N97: =IF($Q$2="OUTROS",TRUNC(M97*K97,2),ROUND(M97*K97,2)) -> 11101.48 | P97: CONFORME PROJETO ESTRUTURAL | Q97: =F97 -> 6.8
A98: 6 | B98: =IF(OR(C98=1,D98=1),SUMIF($A$25:A98,A98,$C$25:C98),"") -> 9 | C98: 1 | F98: 6.9 | G98: 92427 | H98: SINAPI | I98: =VLOOKUP($G98,IF(LEFT($G98,3)="AMM",COMPOSIÇÕES!$B$1:$E$4233,'BANCO DE DADOS DEZ-24 SERV'!$B$2:$F$7984),2,FALSE) -> MONTAGEM E DESMONTAGEM DE FÔRMA DE PILARES RETANGULARES E ESTRUTURAS SIMILARES, PÉ-DIREITO SIMPLES, EM CHAPA DE MADEIRA COMPENSADA RESINADA, 8 UTILIZAÇÕES. AF_09/2020 | J98: =VLOOKUP($G98,IF(LEFT($G98,3)="AMM",COMPOSIÇÕES!$B$1:$E$4233,'BANCO DE DADOS DEZ-24 SERV'!$B$2:$F$7984),3,FALSE) -> M2 | K98: =50.6+59.86+12.8+16.68 -> 139.94 | L98: =VLOOKUP($G98,IF(LEFT($G98,3)="AMM",COMPOSIÇÕES!$B$1:$E$4233,'BANCO DE DADOS DEZ-24 SERV'!$B$2:$F$7984),4,FALSE) -> 76.79 | M98: 93.86 | N98: 13134.76 | P98: CONFORME PROJETO ESTRUTURAL | Q98: 6.9
A99: =IF(LEN(D99),OFFSET(A99,-1,0)+1,OFFSET(A99,-1,0)) -> 6 | B99: =IF(OR(C99=1,D99=1),SUMIF($A$25:A99,A99,$C$25:C99),"") -> 10 | C99: =IF(G99>0,1,"") -> 1 | D99: =IF(AND(CONCATENATE(G99,I99,J99,K99,L99,M99,N99)=I99&N99,CONCATENATE(G99,I99,J99,K99,L99,M99,N99)<>"",N99<>""),1,"") ->  | F99: 6.10 | G99: 92762 | H99: SINAPI | I99: =VLOOKUP($G99,IF(LEFT($G99,3)="AMM",COMPOSIÇÕES!$B$1:$E$4233,'BANCO DE DADOS DEZ-24 SERV'!$B$2:$F$7984),2,FALSE) -> ARMAÇÃO DE PILAR OU VIGA DE ESTRUTURA CONVENCIONAL DE CONCRETO ARMADO UTILIZANDO AÇO CA-50 DE 10,0 MM - MONTAGEM. AF_06/2022 | J99: =VLOOKUP($G99,IF(LEFT($G99,3)="AMM",COMPOSIÇÕES!$B$1:$E$4233,'BANCO DE DADOS DEZ-24 SERV'!$B$2:$F$7984),3,FALSE) -> KG | K99: =348+12 -> 360 | L99: =VLOOKUP($G99,IF(LEFT($G99,3)="AMM",COMPOSIÇÕES!$B$1:$E$4233,'BANCO DE DADOS DEZ-24 SERV'!$B$2:$F$7984),4,FALSE) -> 12.14 | M99: 14.83 | N99: 5338.8 | P99: CONFORME PROJETO ESTRUTURAL | Q99: 6.10
A100: 6 | B100: =IF(OR(C100=1,D100=1),SUMIF($A$25:A100,A100,$C$25:C100),"") -> 11 | C100: 1 | F100: 6.11 | G100: 92763 | H100: SINAPI | I100: =VLOOKUP($G100,IF(LEFT($G100,3)="AMM",COMPOSIÇÕES!$B$1:$E$4233,'BANCO DE DADOS DEZ-24 SERV'!$B$2:$F$7984),2,FALSE) -> ARMAÇÃO DE PILAR OU VIGA DE ESTRUTURA CONVENCIONAL DE CONCRETO ARMADO UTILIZANDO AÇO CA-50 DE 12,5 MM - MONTAGEM. AF_06/2022 | J100: =VLOOKUP($G100,IF(LEFT($G100,3)="AMM",COMPOSIÇÕES!$B$1:$E$4233,'BANCO DE DADOS DEZ-24 SERV'!$B$2:$F$7984),3,FALSE) -> KG | K100: 481 | L100: =VLOOKUP($G100,IF(LEFT($G100,3)="AMM",COMPOSIÇÕES!$B$1:$E$4233,'BANCO DE DADOS DEZ-24 SERV'!$B$2:$F$7984),4,FALSE) -> 10.25 | M100: 12.52 | N100: 6022.12 | P100: CONFORME PROJETO ESTRUTURAL | Q100: 6.11
A101: =IF(LEN(D101),OFFSET(A101,-1,0)+1,OFFSET(A101,-1,0)) -> 6 | B101: =IF(OR(C101=1,D101=1),SUMIF($A$25:A101,A101,$C$25:C101),"") -> 12 | C101: =IF(G101>0,1,"") -> 1 | D101: =IF(AND(CONCATENATE(G101,I101,J101,K101,L101,M101,N101)=I101&N101,CONCATENATE(G101,I101,J101,K101,L101,M101,N101)<>"",N101<>""),1,"") ->  | F101: =IF(B101<>"",A101&"."&B101,"") -> 6.12 | G101: 92759 | H101: =IF(G101>="AMM","PRÓPRIO","SINAPI") -> SINAPI | I101: =VLOOKUP($G101,IF(LEFT($G101,3)="AMM",COMPOSIÇÕES!$B$1:$E$4233,'BANCO DE DADOS DEZ-24 SERV'!$B$2:$F$7984),2,FALSE) -> ARMAÇÃO DE PILAR OU VIGA DE ESTRUTURA CONVENCIONAL DE CONCRETO ARMADO UTILIZANDO AÇO CA-60 DE 5,0 MM - MONTAGEM. AF_06/2022 | J101: =VLOOKUP($G101,IF(LEFT($G101,3)="AMM",COMPOSIÇÕES!$B$1:$E$4233,'BANCO DE DADOS DEZ-24 SERV'!$B$2:$F$7984),3,FALSE) -> KG | K101: =133+4 -> 137 | L101: =VLOOKUP($G101,IF(LEFT($G101,3)="AMM",COMPOSIÇÕES!$B$1:$E$4233,'BANCO DE DADOS DEZ-24 SERV'!$B$2:$F$7984),4,FALSE) -> 14.78 | M101: =IF($Q$2="OUTROS",TRUNC(L101*(1+$N$7),2),ROUND(L101*(1+$N$7),2)) -> 18.06 | N101: =IF($Q$2="OUTROS",TRUNC(M101*K101,2),ROUND(M101*K101,2)) -> 2474.22 | P101: CONFORME PROJETO ESTRUTURAL | Q101: =F101 -> 6.12
A102: 6 | B102: =IF(OR(C102=1,D102=1),SUMIF($A$25:A102,A102,$C$25:C102),"") -> 13 | C102: 1 | F102: 6.13 | G102: 92760 | H102: SINAPI | I102: =VLOOKUP($G102,IF(LEFT($G102,3)="AMM",COMPOSIÇÕES!$B$1:$E$4233,'BANCO DE DADOS DEZ-24 SERV'!$B$2:$F$7984),2,FALSE) -> ARMAÇÃO DE PILAR OU VIGA DE ESTRUTURA CONVENCIONAL DE CONCRETO ARMADO UTILIZANDO AÇO CA-50 DE 6,3 MM - MONTAGEM. AF_06/2022 | J102: =VLOOKUP($G102,IF(LEFT($G102,3)="AMM",COMPOSIÇÕES!$B$1:$E$4233,'BANCO DE DADOS DEZ-24 SERV'!$B$2:$F$7984),3,FALSE) -> KG | K102: 115 | L102: =VLOOKUP($G102,IF(LEFT($G102,3)="AMM",COMPOSIÇÕES!$B$1:$E$4233,'BANCO DE DADOS DEZ-24 SERV'!$B$2:$F$7984),4,FALSE) -> 14.19 | M102: 17.34 | N102: 1994.1 | P102: CONFORME PROJETO ESTRUTURAL | Q102: 6.13
A103: =IF(LEN(D103),OFFSET(A103,-1,0)+1,OFFSET(A103,-1,0)) -> 6 | B103: =IF(OR(C103=1,D103=1),SUMIF($A$25:A103,A103,$C$25:C103),"") ->  | C103: =IF(G103>0,1,"") ->  | D103: =IF(AND(CONCATENATE(G103,I103,J103,K103,L103,M103,N103)=I103&N103,CONCATENATE(G103,I103,J103,K103,L103,M103,N103)<>"",N103<>""),1,"") ->  | F103: =IF(B103<>"",A103&"."&B103,"") ->  | I103: ESCADA
A104: 6 | B104: =IF(OR(C104=1,D104=1),SUMIF($A$25:A104,A104,$C$25:C104),"") -> 14 | C104: 1 | F104: 6.14 | G104: 94965 | H104: =IF(G104>="AMM","PRÓPRIO","SINAPI") -> SINAPI | I104: =VLOOKUP($G104,IF(LEFT($G104,3)="AMM",COMPOSIÇÕES!$B$1:$E$4233,'BANCO DE DADOS DEZ-24 SERV'!$B$2:$F$7984),2,FALSE) -> CONCRETO FCK = 25MPA, TRAÇO 1:2,3:2,7 (EM MASSA SECA DE CIMENTO/ AREIA MÉDIA/ BRITA 1) - PREPARO MECÂNICO COM BETONEIRA 400 L. AF_05/2021 | J104: =VLOOKUP($G104,IF(LEFT($G104,3)="AMM",COMPOSIÇÕES!$B$1:$E$4233,'BANCO DE DADOS DEZ-24 SERV'!$B$2:$F$7984),3,FALSE) -> M3 | K104: 0.84 | L104: =VLOOKUP($G104,IF(LEFT($G104,3)="AMM",COMPOSIÇÕES!$B$1:$E$4233,'BANCO DE DADOS DEZ-24 SERV'!$B$2:$F$7984),4,FALSE) -> 609.8 | M104: =IF($Q$2="OUTROS",TRUNC(L104*(1+$N$7),2),ROUND(L104*(1+$N$7),2)) -> 745.35 | N104: =IF($Q$2="OUTROS",TRUNC(M104*K104,2),ROUND(M104*K104,2)) -> 626.09 | P104: CONFORME PROJETO ESTRUTURAL | Q104: =F104 -> 6.14
A105: 6 | B105: =IF(OR(C105=1,D105=1),SUMIF($A$25:A105,A105,$C$25:C105),"") -> 15 | C105: 1 | F105: 6.15 | G105: 103670 | H105: SINAPI | I105: =VLOOKUP($G105,IF(LEFT($G105,3)="AMM",COMPOSIÇÕES!$B$1:$E$4233,'BANCO DE DADOS DEZ-24 SERV'!$B$2:$F$7984),2,FALSE) -> LANÇAMENTO COM USO DE BALDES, ADENSAMENTO E ACABAMENTO DE CONCRETO EM ESTRUTURAS. AF_02/2022 | J105: =VLOOKUP($G105,IF(LEFT($G105,3)="AMM",COMPOSIÇÕES!$B$1:$E$4233,'BANCO DE DADOS DEZ-24 SERV'!$B$2:$F$7984),3,FALSE) -> M3 | K105: =K104 -> 0.84 | L105: =VLOOKUP($G105,IF(LEFT($G105,3)="AMM",COMPOSIÇÕES!$B$1:$E$4233,'BANCO DE DADOS DEZ-24 SERV'!$B$2:$F$7984),4,FALSE) -> 277.21 | M105: 338.83 | N105: 284.61 | P105: CONFORME PROJETO ESTRUTURAL | Q105: =F105 -> 6.15
A106: 6 | B106: =IF(OR(C106=1,D106=1),SUMIF($A$25:A106,A106,$C$25:C106),"") -> 16 | C106: 1 | F106: 6.16 | G106: 102044 | H106: SINAPI | I106: =VLOOKUP($G106,IF(LEFT($G106,3)="AMM",COMPOSIÇÕES!$B$1:$E$4233,'BANCO DE DADOS DEZ-24 SERV'!$B$2:$F$7984),2,FALSE) -> MONTAGEM E DESMONTAGEM DE FÔRMA PARA ESCADAS, COM 1 LANCE E LAJE PLANA, EM CHAPA DE MADEIRA COMPENSADA PLASTIFICADA, 8 UTILIZAÇÕES. AF_11/2020 | J106: =VLOOKUP($G106,IF(LEFT($G106,3)="AMM",COMPOSIÇÕES!$B$1:$E$4233,'BANCO DE DADOS DEZ-24 SERV'!$B$2:$F$7984),3,FALSE) -> M2 | K106: 4.46 | L106: =VLOOKUP($G106,IF(LEFT($G106,3)="AMM",COMPOSIÇÕES!$B$1:$E$4233,'BANCO DE DADOS DEZ-24 SERV'!$B$2:$F$7984),4,FALSE) -> 253.48 | M106: 309.82 | N106: 1381.79 | P106: CONFORME PROJETO ESTRUTURAL | Q106: 6.16
A107: 6 | B107: =IF(OR(C107=1,D107=1),SUMIF($A$25:A107,A107,$C$25:C107),"") -> 17 | C107: 1 | F107: 6.17 | G107: 95944 | H107: SINAPI | I107: =VLOOKUP($G107,IF(LEFT($G107,3)="AMM",COMPOSIÇÕES!$B$1:$E$4233,'BANCO DE DADOS DEZ-24 SERV'!$B$2:$F$7984),2,FALSE) -> ARMAÇÃO DE ESCADA, DE UMA ESTRUTURA CONVENCIONAL DE CONCRETO ARMADO UTILIZANDO AÇO CA-50 DE 6,3 MM - MONTAGEM. AF_11/2020 | J107: =VLOOKUP($G107,IF(LEFT($G107,3)="AMM",COMPOSIÇÕES!$B$1:$E$4233,'BANCO DE DADOS DEZ-24 SERV'!$B$2:$F$7984),3,FALSE) -> KG | K107: 9 | L107: =VLOOKUP($G107,IF(LEFT($G107,3)="AMM",COMPOSIÇÕES!$B$1:$E$4233,'BANCO DE DADOS DEZ-24 SERV'!$B$2:$F$7984),4,FALSE) -> 20.44 | M107: 24.98 | N107: 224.82 | P107: CONFORME PROJETO ESTRUTURAL | Q107: 6.17
A108: 6 | B108: =IF(OR(C108=1,D108=1),SUMIF($A$25:A108,A108,$C$25:C108),"") -> 18 | C108: 1 | F108: 6.18 | G108: 95946 | H108: SINAPI | I108: =VLOOKUP($G108,IF(LEFT($G108,3)="AMM",COMPOSIÇÕES!$B$1:$E$4233,'BANCO DE DADOS DEZ-24 SERV'!$B$2:$F$7984),2,FALSE) -> ARMAÇÃO DE ESCADA, DE UMA ESTRUTURA CONVENCIONAL DE CONCRETO ARMADO UTILIZANDO AÇO CA-50 DE 10,0 MM - MONTAGEM. AF_11/2020 | J108: =VLOOKUP($G108,IF(LEFT($G108,3)="AMM",COMPOSIÇÕES!$B$1:$E$4233,'BANCO DE DADOS DEZ-24 SERV'!$B$2:$F$7984),3,FALSE) -> KG | K108: 16 | L108: =VLOOKUP($G108,IF(LEFT($G108,3)="AMM",COMPOSIÇÕES!$B$1:$E$4233,'BANCO DE DADOS DEZ-24 SERV'!$B$2:$F$7984),4,FALSE) -> 13.7 | M108: 16.74 | N108: 267.84 | P108: CONFORME PROJETO ESTRUTURAL | Q108: 6.18
A109: 6 | B109: =IF(OR(C109=1,D109=1),SUMIF($A$25:A109,A109,$C$25:C109),"") ->  | I109: LAJE MACIÇA
A110: 6 | B110: =IF(OR(C110=1,D110=1),SUMIF($A$25:A110,A110,$C$25:C110),"") -> 19 | C110: 1 | F110: 6.19 | G110: 103675 | H110: =IF(G110>="AMM","PRÓPRIO","SINAPI") -> SINAPI | I110: =VLOOKUP($G110,IF(LEFT($G110,3)="AMM",COMPOSIÇÕES!$B$1:$E$4233,'BANCO DE DADOS DEZ-24 SERV'!$B$2:$F$7984),2,FALSE) -> CONCRETAGEM DE VIGAS E LAJES, FCK=25 MPA, PARA LAJES MACIÇAS OU NERVURADAS COM USO DE BOMBA - LANÇAMENTO, ADENSAMENTO E ACABAMENTO. AF_02/2022_PS | J110: =VLOOKUP($G110,IF(LEFT($G110,3)="AMM",COMPOSIÇÕES!$B$1:$E$4233,'BANCO DE DADOS DEZ-24 SERV'!$B$2:$F$7984),3,FALSE) -> M3 | K110: 2.09 | L110: =VLOOKUP($G110,IF(LEFT($G110,3)="AMM",COMPOSIÇÕES!$B$1:$E$4233,'BANCO DE DADOS DEZ-24 SERV'!$B$2:$F$7984),4,FALSE) -> 884.09 | M110: =IF($Q$2="OUTROS",TRUNC(L110*(1+$N$7),2),ROUND(L110*(1+$N$7),2)) -> 1080.62 | N110: =IF($Q$2="OUTROS",TRUNC(M110*K110,2),ROUND(M110*K110,2)) -> 2258.49 | P110: CONFORME PROJETO ESTRUTURAL | Q110: =F110 -> 6.19
A111: 6 | B111: =IF(OR(C111=1,D111=1),SUMIF($A$25:A111,A111,$C$25:C111),"") -> 20 | C111: 1 | F111: 6.20 | G111: 92522 | H111: SINAPI | I111: =VLOOKUP($G111,IF(LEFT($G111,3)="AMM",COMPOSIÇÕES!$B$1:$E$4233,'BANCO DE DADOS DEZ-24 SERV'!$B$2:$F$7984),2,FALSE) -> MONTAGEM E DESMONTAGEM DE FÔRMA DE LAJE MACIÇA, PÉ-DIREITO SIMPLES, EM CHAPA DE MADEIRA COMPENSADA RESINADA, 8 UTILIZAÇÕES. AF_09/2020 | J111: =VLOOKUP($G111,IF(LEFT($G111,3)="AMM",COMPOSIÇÕES!$B$1:$E$4233,'BANCO DE DADOS DEZ-24 SERV'!$B$2:$F$7984),3,FALSE) -> M2 | K111: 17.43 | L111: =VLOOKUP($G111,IF(LEFT($G111,3)="AMM",COMPOSIÇÕES!$B$1:$E$4233,'BANCO DE DADOS DEZ-24 SERV'!$B$2:$F$7984),4,FALSE) -> 47.98 | M111: 58.64 | N111: 1022.09 | P111: CONFORME PROJETO ESTRUTURAL | Q111: =F111 -> 6.20
A112: 6 | B112: =IF(OR(C112=1,D112=1),SUMIF($A$25:A112,A112,$C$25:C112),"") -> 21 | C112: 1 | F112: 6.21 | G112: 92769 | H112: SINAPI | I112: =VLOOKUP($G112,IF(LEFT($G112,3)="AMM",COMPOSIÇÕES!$B$1:$E$4233,'BANCO DE DADOS DEZ-24 SERV'!$B$2:$F$7984),2,FALSE) -> ARMAÇÃO DE LAJE DE ESTRUTURA CONVENCIONAL DE CONCRETO ARMADO UTILIZANDO AÇO CA-50 DE 6,3 MM - MONTAGEM. AF_06/2022 | J112: =VLOOKUP($G112,IF(LEFT($G112,3)="AMM",COMPOSIÇÕES!$B$1:$E$4233,'BANCO DE DADOS DEZ-24 SERV'!$B$2:$F$7984),3,FALSE) -> KG | K112: 77 | L112: =VLOOKUP($G112,IF(LEFT($G112,3)="AMM",COMPOSIÇÕES!$B$1:$E$4233,'BANCO DE DADOS DEZ-24 SERV'!$B$2:$F$7984),4,FALSE) -> 13.72 | M112: 16.76 | N112: 1290.52 | P112: CONFORME PROJETO ESTRUTURAL | Q112: 6.21
A113: 6 | B113: =IF(OR(C113=1,D113=1),SUMIF($A$25:A113,A113,$C$25:C113),"") ->  | F113: =IF(B113<>"",A113&"."&B113,"") -> 
A114: 7 | B114: =IF(OR(C114=1,D114=1),SUMIF($A$25:A114,A114,$C$25:C114),"") -> 0 | D114: 1 | F114: 7.0 | I114: IMPERMEABILIZAÇÃO | N114: =SUM(N116:N118) -> 6967.13
A115: =IF(LEN(D115),OFFSET(A115,-1,0)+1,OFFSET(A115,-1,0)) -> 7 | B115: =IF(OR(C115=1,D115=1),SUMIF($A$25:A115,A115,$C$25:C115),"") ->  | C115: =IF(G115>0,1,"") ->  | D115: =IF(AND(CONCATENATE(G115,I115,J115,K115,L115,M115,N115)=I115&N115,CONCATENATE(G115,I115,J115,K115,L115,M115,N115)<>"",N115<>""),1,"") ->  | F115: =IF(B115<>"",A115&"."&B115,"") ->  | I115: VIGAS BALDRAMES
A116: 7 | B116: =IF(OR(C116=1,D116=1),SUMIF($A$25:A116,A116,$C$25:C116),"") -> 1 | C116: 1 | F116: 7.1 | G116: 98562 | H116: =IF(G116>="AMM","PRÓPRIO","SINAPI") -> SINAPI | I116: =VLOOKUP($G116,IF(LEFT($G116,3)="AMM",COMPOSIÇÕES!$B$1:$E$4233,'BANCO DE DADOS DEZ-24 SERV'!$B$2:$F$7984),2,FALSE) -> IMPERMEABILIZAÇÃO DE SUPERFÍCIE COM ARGAMASSA DE CIMENTO E AREIA, COM ADITIVO IMPERMEABILIZANTE, E = 1,5CM. AF_09/2023 | J116: =VLOOKUP($G116,IF(LEFT($G116,3)="AMM",COMPOSIÇÕES!$B$1:$E$4233,'BANCO DE DADOS DEZ-24 SERV'!$B$2:$F$7984),3,FALSE) -> M2 | K116: =K80 -> 102.26 | L116: =VLOOKUP($G116,IF(LEFT($G116,3)="AMM",COMPOSIÇÕES!$B$1:$E$4233,'BANCO DE DADOS DEZ-24 SERV'!$B$2:$F$7984),4,FALSE) -> 49.11 | M116: =IF($Q$2="OUTROS",TRUNC(L116*(1+$N$7),2),ROUND(L116*(1+$N$7),2)) -> 60.02 | N116: =IF($Q$2="OUTROS",TRUNC(M116*K116,2),ROUND(M116*K116,2)) -> 6137.64 | P116: CONFORME ÁREA DE FÔRMA DAS VIGAS BALDRAMES | Q116: =F116 -> 7.1
A117: 7 | B117: =IF(OR(C117=1,D117=1),SUMIF($A$25:A117,A117,$C$25:C117),"") ->  | I117: LAJE
A118: 7 | B118: =IF(OR(C118=1,D118=1),SUMIF($A$25:A118,A118,$C$25:C118),"") -> 2 | C118: 1 | F118: 7.2 | G118: 98557 | H118: =IF(G118>="AMM","PRÓPRIO","SINAPI") -> SINAPI | I118: =VLOOKUP($G118,IF(LEFT($G118,3)="AMM",COMPOSIÇÕES!$B$1:$E$4233,'BANCO DE DADOS DEZ-24 SERV'!$B$2:$F$7984),2,FALSE) -> IMPERMEABILIZAÇÃO DE SUPERFÍCIE COM EMULSÃO ASFÁLTICA, 2 DEMÃOS. AF_09/2023 | J118: =VLOOKUP($G118,IF(LEFT($G118,3)="AMM",COMPOSIÇÕES!$B$1:$E$4233,'BANCO DE DADOS DEZ-24 SERV'!$B$2:$F$7984),3,FALSE) -> M2 | K118: =K111 -> 17.43 | L118: =VLOOKUP($G118,IF(LEFT($G118,3)="AMM",COMPOSIÇÕES!$B$1:$E$4233,'BANCO DE DADOS DEZ-24 SERV'!$B$2:$F$7984),4,FALSE) -> 38.94 | M118: =IF($Q$2="OUTROS",TRUNC(L118*(1+$N$7),2),ROUND(L118*(1+$N$7),2)) -> 47.59 | N118: =IF($Q$2="OUTROS",TRUNC(M118*K118,2),ROUND(M118*K118,2)) -> 829.49 | P118: CONFORME ÁREA DE FÔRMA DAS LAJES | Q118: =F118 -> 7.2
A119: 7 | B119: =IF(OR(C119=1,D119=1),SUMIF($A$25:A119,A119,$C$25:C119),"") -> 
A120: 8 | B120: =IF(OR(C120=1,D120=1),SUMIF($A$25:A120,A120,$C$25:C120),"") -> 0 | D120: 1 | F120: 8.0 | I120: ALVENARIA, FECHAMENTOS E DIVISÓRIAS | N120: =SUM(N122:N135) -> 42373.38
A121: =IF(LEN(D121),OFFSET(A121,-1,0)+1,OFFSET(A121,-1,0)) -> 8 | B121: =IF(OR(C121=1,D121=1),SUMIF($A$25:A121,A121,$C$25:C121),"") ->  | C121: =IF(G121>0,1,"") ->  | D121: =IF(AND(CONCATENATE(G121,I121,J121,K121,L121,M121,N121)=I121&N121,CONCATENATE(G121,I121,J121,K121,L121,M121,N121)<>"",N121<>""),1,"") ->  | I121: ALVENARIA
A122: 8 | B122: =IF(OR(C122=1,D122=1),SUMIF($A$25:A122,A122,$C$25:C122),"") -> 1 | C122: 1 | F122: 8.1 | G122: 103328 | H122: =IF(G122>="AMM","PRÓPRIO","SINAPI") -> SINAPI | I122: =VLOOKUP($G122,IF(LEFT($G122,3)="AMM",COMPOSIÇÕES!$B$1:$E$4233,'BANCO DE DADOS DEZ-24 SERV'!$B$2:$F$7984),2,FALSE) -> ALVENARIA DE VEDAÇÃO DE BLOCOS CERÂMICOS FURADOS NA HORIZONTAL DE 9X19X19 CM (ESPESSURA 9 CM) E ARGAMASSA DE ASSENTAMENTO COM PREPARO EM BETONEIRA. AF_12/2021 | J122: =VLOOKUP($G122,IF(LEFT($G122,3)="AMM",COMPOSIÇÕES!$B$1:$E$4233,'BANCO DE DADOS DEZ-24 SERV'!$B$2:$F$7984),3,FALSE) -> M2 | K122: 202.34 | L122: =VLOOKUP($G122,IF(LEFT($G122,3)="AMM",COMPOSIÇÕES!$B$1:$E$4233,'BANCO DE DADOS DEZ-24 SERV'!$B$2:$F$7984),4,FALSE) -> 95.71 | M122: =IF($Q$2="OUTROS",TRUNC(L122*(1+$N$7),2),ROUND(L122*(1+$N$7),2)) -> 116.98 | N122: =IF($Q$2="OUTROS",TRUNC(M122*K122,2),ROUND(M122*K122,2)) -> 23669.73 | P122: CONFORME PROJETO ARQUITETÔNICO | Q122: =F122 -> 8.1
A123: =IF(LEN(D123),OFFSET(A123,-1,0)+1,OFFSET(A123,-1,0)) -> 8 | B123: =IF(OR(C123=1,D123=1),SUMIF($A$25:A123,A123,$C$25:C123),"") ->  | C123: =IF(G123>0,1,"") ->  | D123: =IF(AND(CONCATENATE(G123,I123,J123,K123,L123,M123,N123)=I123&N123,CONCATENATE(G123,I123,J123,K123,L123,M123,N123)<>"",N123<>""),1,"") ->  | F123: =IF(B123<>"",A123&"."&B123,"") ->  | I123: ALVENARIA - COMPLEMENTAÇÃO DO MURO
A124: 8 | B124: =IF(OR(C124=1,D124=1),SUMIF($A$25:A124,A124,$C$25:C124),"") -> 2 | C124: 1 | F124: =IF(B124<>"",A124&"."&B124,"") -> 8.2 | G124: 103328 | H124: =IF(G124>="AMM","PRÓPRIO","SINAPI") -> SINAPI | I124: =VLOOKUP($G124,IF(LEFT($G124,3)="AMM",COMPOSIÇÕES!$B$1:$E$4233,'BANCO DE DADOS DEZ-24 SERV'!$B$2:$F$7984),2,FALSE) -> ALVENARIA DE VEDAÇÃO DE BLOCOS CERÂMICOS FURADOS NA HORIZONTAL DE 9X19X19 CM (ESPESSURA 9 CM) E ARGAMASSA DE ASSENTAMENTO COM PREPARO EM BETONEIRA. AF_12/2021 | J124: =VLOOKUP($G124,IF(LEFT($G124,3)="AMM",COMPOSIÇÕES!$B$1:$E$4233,'BANCO DE DADOS DEZ-24 SERV'!$B$2:$F$7984),3,FALSE) -> M2 | K124: 70.4 | L124: =VLOOKUP($G124,IF(LEFT($G124,3)="AMM",COMPOSIÇÕES!$B$1:$E$4233,'BANCO DE DADOS DEZ-24 SERV'!$B$2:$F$7984),4,FALSE) -> 95.71 | M124: =IF($Q$2="OUTROS",TRUNC(L124*(1+$N$7),2),ROUND(L124*(1+$N$7),2)) -> 116.98 | N124: =IF($Q$2="OUTROS",TRUNC(M124*K124,2),ROUND(M124*K124,2)) -> 8235.39 | P124: ALVENARIA PARA COMPLEMENTO DA ALTURA DO MURO - CONFORME PROJETO ARQUITETÔNICO | Q124: =F124 -> 8.2
A125: 8 | B125: =IF(OR(C125=1,D125=1),SUMIF($A$25:A125,A125,$C$25:C125),"") ->  | I125: ALVENARIA - FOSSO
A126: =IF(LEN(D126),OFFSET(A126,-1,0)+1,OFFSET(A126,-1,0)) -> 8 | B126: =IF(OR(C126=1,D126=1),SUMIF($A$25:A126,A126,$C$25:C126),"") -> 3 | C126: =IF(G126>0,1,"") -> 1 | D126: =IF(AND(CONCATENATE(G126,I126,J126,K126,L126,M126,N126)=I126&N126,CONCATENATE(G126,I126,J126,K126,L126,M126,N126)<>"",N126<>""),1,"") ->  | F126: =IF(B126<>"",A126&"."&B126,"") -> 8.3 | G126: 89480 | H126: =IF(G126>="AMM","PRÓPRIO","SINAPI") -> SINAPI | I126: =VLOOKUP($G126,IF(LEFT($G126,3)="AMM",COMPOSIÇÕES!$B$1:$E$4233,'BANCO DE DADOS DEZ-24 SERV'!$B$2:$F$7984),2,FALSE) -> ALVENARIA DE BLOCOS DE CONCRETO ESTRUTURAL 14X19X29 CM (ESPESSURA 14 CM), FBK = 14 MPA, UTILIZANDO COLHER DE PEDREIRO. AF_10/2022 | J126: =VLOOKUP($G126,IF(LEFT($G126,3)="AMM",COMPOSIÇÕES!$B$1:$E$4233,'BANCO DE DADOS DEZ-24 SERV'!$B$2:$F$7984),3,FALSE) -> M2 | K126: =TRUNC((1.68*3.48+(0.28*(1.52+1.35+1.17+1+0.82+0.65+0.48+0.3+0.13)))*2+(0.7*1.68),2) -> 17.02 | L126: =VLOOKUP($G126,IF(LEFT($G126,3)="AMM",COMPOSIÇÕES!$B$1:$E$4233,'BANCO DE DADOS DEZ-24 SERV'!$B$2:$F$7984),4,FALSE) -> 162.38 | M126: =IF($Q$2="OUTROS",TRUNC(L126*(1+$N$7),2),ROUND(L126*(1+$N$7),2)) -> 198.47 | N126: =IF($Q$2="OUTROS",TRUNC(M126*K126,2),ROUND(M126*K126,2)) -> 3377.95 | P126: (1,68*3,48+(0,28*(1,52+1,35+1,17+1+0,82+0,65+0,48+0,3+0,13)))*2+(0,7*1,68) | Q126: =F126 -> 8.3
A127: 8 | B127: =IF(OR(C127=1,D127=1),SUMIF($A$25:A127,A127,$C$25:C127),"") ->  | F127: =IF(B127<>"",A127&"."&B127,"") ->  | I127: ENCUNHAMENTO DE ALVENARIA
A128: 8 | B128: =IF(OR(C128=1,D128=1),SUMIF($A$25:A128,A128,$C$25:C128),"") -> 4 | C128: 1 | F128: 8.4 | G128: 93200 | H128: =IF(G128>="AMM","PRÓPRIO","SINAPI") -> SINAPI | I128: =VLOOKUP($G128,IF(LEFT($G128,3)="AMM",COMPOSIÇÕES!$B$1:$E$4233,'BANCO DE DADOS DEZ-24 SERV'!$B$2:$F$7984),2,FALSE) -> FIXAÇÃO (ENCUNHAMENTO) DE ALVENARIA DE VEDAÇÃO COM ARGAMASSA APLICADA COM BISNAGA. AF_03/2024 | J128: =VLOOKUP($G128,IF(LEFT($G128,3)="AMM",COMPOSIÇÕES!$B$1:$E$4233,'BANCO DE DADOS DEZ-24 SERV'!$B$2:$F$7984),3,FALSE) -> M | K128: =TRUNC(3.05*2+3.75*2+4*2+4+1.85+4.05,2) -> 31.5 | L128: =VLOOKUP($G128,IF(LEFT($G128,3)="AMM",COMPOSIÇÕES!$B$1:$E$4233,'BANCO DE DADOS DEZ-24 SERV'!$B$2:$F$7984),4,FALSE) -> 10.85 | M128: =IF($Q$2="OUTROS",TRUNC(L128*(1+$N$7),2),ROUND(L128*(1+$N$7),2)) -> 13.26 | N128: =IF($Q$2="OUTROS",TRUNC(M128*K128,2),ROUND(M128*K128,2)) -> 417.69 | P128: 3,05*2+3,75*2+4*2+4+1,85+4,05 **Encunhamento das paredes a construir | Q128: =F128 -> 8.4
A129: 8 | B129: =IF(OR(C129=1,D129=1),SUMIF($A$25:A129,A129,$C$25:C129),"") ->  | I129: VERGAS E CONTRAVERGAS
A130: 8 | B130: =IF(OR(C130=1,D130=1),SUMIF($A$25:A130,A130,$C$25:C130),"") -> 5 | C130: 1 | F130: 8.5 | G130: 105023 | H130: =IF(G130>="AMM","PRÓPRIO","SINAPI") -> SINAPI | I130: =VLOOKUP($G130,IF(LEFT($G130,3)="AMM",COMPOSIÇÕES!$B$1:$E$4233,'BANCO DE DADOS DEZ-24 SERV'!$B$2:$F$7984),2,FALSE) -> VERGA MOLDADA IN LOCO EM CONCRETO, ESPESSURA DE *15* CM. AF_03/2024 | J130: =VLOOKUP($G130,IF(LEFT($G130,3)="AMM",COMPOSIÇÕES!$B$1:$E$4233,'BANCO DE DADOS DEZ-24 SERV'!$B$2:$F$7984),3,FALSE) -> M | K130: =TRUNC(((1.5+0.5)*2)+((2+0.5)*2)+((0.9+0.5)*3)+(1+0.5),2) -> 14.7 | L130: =VLOOKUP($G130,IF(LEFT($G130,3)="AMM",COMPOSIÇÕES!$B$1:$E$4233,'BANCO DE DADOS DEZ-24 SERV'!$B$2:$F$7984),4,FALSE) -> 65.3 | M130: =IF($Q$2="OUTROS",TRUNC(L130*(1+$N$7),2),ROUND(L130*(1+$N$7),2)) -> 79.81 | N130: =IF($Q$2="OUTROS",TRUNC(M130*K130,2),ROUND(M130*K130,2)) -> 1173.2 | P130: ((1,5+0,5)*2)+((2+0,5)*2)+((0,9+0,5)*3)+(1+0,5) **INCLUSO APENAS ESQUADRIAS ONDE TERÁ PAREDES NOVAS (2J10+2P15+1P5+1P14+2P5) | Q130: =F130 -> 8.5
A131: 8 | B131: =IF(OR(C131=1,D131=1),SUMIF($A$25:A131,A131,$C$25:C131),"") -> 6 | C131: 1 | F131: 8.6 | G131: 105029 | H131: SINAPI | I131: =VLOOKUP($G131,IF(LEFT($G131,3)="AMM",COMPOSIÇÕES!$B$1:$E$4233,'BANCO DE DADOS DEZ-24 SERV'!$B$2:$F$7984),2,FALSE) -> CONTRAVERGA MOLDADA IN LOCO EM CONCRETO, ESPESSURA DE *15* CM. AF_03/2024 | J131: =VLOOKUP($G131,IF(LEFT($G131,3)="AMM",COMPOSIÇÕES!$B$1:$E$4233,'BANCO DE DADOS DEZ-24 SERV'!$B$2:$F$7984),3,FALSE) -> M | K131: =TRUNC((1.5+0.5)*2,2) -> 4 | L131: =VLOOKUP($G131,IF(LEFT($G131,3)="AMM",COMPOSIÇÕES!$B$1:$E$4233,'BANCO DE DADOS DEZ-24 SERV'!$B$2:$F$7984),4,FALSE) -> 50.46 | M131: =IF($Q$2="OUTROS",TRUNC(L131*(1+$N$7),2),ROUND(L131*(1+$N$7),2)) -> 61.67 | N131: 246.68 | P131: ((1,5+0,5)*2) **INCLUSO APENAS ESQUADRIAS ONDE TERÁ PAREDES NOVAS (2J10) | Q131: 8.6
A132: 8 | B132: =IF(OR(C132=1,D132=1),SUMIF($A$25:A132,A132,$C$25:C132),"") ->  | I132: DIVISÓRIAS
A133: 8 | B133: =IF(OR(C133=1,D133=1),SUMIF($A$25:A133,A133,$C$25:C133),"") -> 7 | C133: 1 | F133: 8.7 | G133: ='COMPOSIÇÃO CIVIL'!B49 -> CIV 004 | H133: =IF(G133>="AMM","PRÓPRIO","SINAPI") -> PRÓPRIO | I133: ='COMPOSIÇÃO CIVIL'!C49 -> PLACA CIMENTÍCIA E =6MM, PARA FECHAMENTO DA FACHADA (1 LADO/FACE), JUNTAS APARENTES, FIXADA EM ESTRUTURA METÁLICA, EXCLUSIVE ESTA (FORNECIMENTO E ASSENTAMENTO) | J133: ='COMPOSIÇÃO CIVIL'!G49 -> M2 | K133: 6.11 | L133: ='COMPOSIÇÃO CIVIL'!G59 -> 78.75 | M133: =IF($Q$2="OUTROS",TRUNC(L133*(1+$N$7),2),ROUND(L133*(1+$N$7),2)) -> 96.25 | N133: =IF($Q$2="OUTROS",TRUNC(M133*K133,2),ROUND(M133*K133,2)) -> 588.08 | P133: CONFORME PROJETO ARQUITETÔNICO | Q133: =F133 -> 8.7
A134: =IF(LEN(D134),OFFSET(A134,-1,0)+1,OFFSET(A134,-1,0)) -> 8 | B134: =IF(OR(C134=1,D134=1),SUMIF($A$25:A134,A134,$C$25:C134),"") ->  | C134: =IF(G134>0,1,"") ->  | D134: =IF(AND(CONCATENATE(G134,I134,J134,K134,L134,M134,N134)=I134&N134,CONCATENATE(G134,I134,J134,K134,L134,M134,N134)<>"",N134<>""),1,"") ->  | F134: =IF(B134<>"",A134&"."&B134,"") ->  | I134: ACM
A135: 8 | B135: =IF(OR(C135=1,D135=1),SUMIF($A$25:A135,A135,$C$25:C135),"") -> 8 | C135: 1 | F135: 8.8 | G135: ='COMPOSIÇÃO CIVIL'!B65 -> CIV 005 | H135: =IF(G135>="AMM","PRÓPRIO","SINAPI") -> PRÓPRIO | I135: ='COMPOSIÇÃO CIVIL'!C65 -> FORNECIMENTO E INSTALAÇÃO DE REVESTIMENTO EM CHAPA DE ACM | J135: ='COMPOSIÇÃO CIVIL'!G65 -> M2 | K135: 6.18 | L135: ='COMPOSIÇÃO CIVIL'!G77 -> 617.53 | M135: =IF($Q$2="OUTROS",TRUNC(L135*(1+$N$7),2),ROUND(L135*(1+$N$7),2)) -> 754.8 | N135: =IF($Q$2="OUTROS",TRUNC(M135*K135,2),ROUND(M135*K135,2)) -> 4664.66 | P135: CONFORME PROJETO ARQUITETÔNICO | Q135: =F135 -> 8.8
A136: 8 | B136: =IF(OR(C136=1,D136=1),SUMIF($A$25:A136,A136,$C$25:C136),"") -> 
A137: 9 | B137: =IF(OR(C137=1,D137=1),SUMIF($A$25:A137,A137,$C$25:C137),"") -> 0 | D137: 1 | F137: 9.0 | I137: ESQUADRIAS | N137: =SUM(N139:N164) -> 79636.8
A138: 9 | B138: =IF(OR(C138=1,D138=1),SUMIF($A$25:A138,A138,$C$25:C138),"") ->  | F138: =IF(B138<>"",A138&"."&B138,"") ->  | I138: CONTRAMARCO
A139: 9 | B139: =IF(OR(C139=1,D139=1),SUMIF($A$25:A139,A139,$C$25:C139),"") -> 1 | C139: 1 | F139: =IF(B139<>"",A139&"."&B139,"") -> 9.1 | G139: 94589 | H139: =IF(G139>="AMM","PRÓPRIO","SINAPI") -> SINAPI | I139: =VLOOKUP($G139,IF(LEFT($G139,3)="AMM",COMPOSIÇÕES!$B$1:$E$4233,'BANCO DE DADOS DEZ-24 SERV'!$B$2:$F$7984),2,FALSE) -> CONTRAMARCO DE ALUMÍNIO, FIXAÇÃO COM ARGAMASSA - FORNECIMENTO E INSTALAÇÃO. AF_11/2024 | J139: =VLOOKUP($G139,IF(LEFT($G139,3)="AMM",COMPOSIÇÕES!$B$1:$E$4233,'BANCO DE DADOS DEZ-24 SERV'!$B$2:$F$7984),3,FALSE) -> M | K139: =TRUNC(1.5*4+1.2*4,2) -> 10.8 | L139: =VLOOKUP($G139,IF(LEFT($G139,3)="AMM",COMPOSIÇÕES!$B$1:$E$4233,'BANCO DE DADOS DEZ-24 SERV'!$B$2:$F$7984),4,FALSE) -> 19.26 | M139: =IF($Q$2="OUTROS",TRUNC(L139*(1+$N$7),2),ROUND(L139*(1+$N$7),2)) -> 23.54 | N139: =IF($Q$2="OUTROS",TRUNC(M139*K139,2),ROUND(M139*K139,2)) -> 254.23 | P139: 1,5*4+1,2*4 **2 JANELAS J10 | Q139: =F139 -> 9.1
A140: 9 | B140: =IF(OR(C140=1,D140=1),SUMIF($A$25:A140,A140,$C$25:C140),"") ->  | F140: =IF(B140<>"",A140&"."&B140,"") ->  | I140: JANELAS EM ALUMÍNIO
A141: 9 | B141: =IF(OR(C141=1,D141=1),SUMIF($A$25:A141,A141,$C$25:C141),"") -> 2 | C141: 1 | F141: 9.2 | G141: 94569 | H141: =IF(G141>="AMM","PRÓPRIO","SINAPI") -> SINAPI | I141: =VLOOKUP($G141,IF(LEFT($G141,3)="AMM",COMPOSIÇÕES!$B$1:$E$4233,'BANCO DE DADOS DEZ-24 SERV'!$B$2:$F$7984),2,FALSE) -> JANELA DE ALUMÍNIO TIPO MAXIM-AR, COM VIDROS, BATENTE E FERRAGENS, EXCLUSIVE ALIZAR, ACABAMENTO E CONTRAMARCO, FIXAÇÃO COM PARAFUSO. FORNECIMENTO E INSTALAÇÃO. AF_11/2024 | J141: =VLOOKUP($G141,IF(LEFT($G141,3)="AMM",COMPOSIÇÕES!$B$1:$E$4233,'BANCO DE DADOS DEZ-24 SERV'!$B$2:$F$7984),3,FALSE) -> M2 | K141: =TRUNC(0.72+0.36*7+1.1,2) -> 4.34 | L141: =VLOOKUP($G141,IF(LEFT($G141,3)="AMM",COMPOSIÇÕES!$B$1:$E$4233,'BANCO DE DADOS DEZ-24 SERV'!$B$2:$F$7984),4,FALSE) -> 628.75 | M141: =IF($Q$2="OUTROS",TRUNC(L141*(1+$N$7),2),ROUND(L141*(1+$N$7),2)) -> 768.52 | N141: =IF($Q$2="OUTROS",TRUNC(M141*K141,2),ROUND(M141*K141,2)) -> 3335.37 | P141: 1 UNIDADE DE J7 + 7 UNIDADES DE J8 + 1 UNIDADE DE J9 | Q141: =F141 -> 9.2
A142: 9 | B142: =IF(OR(C142=1,D142=1),SUMIF($A$25:A142,A142,$C$25:C142),"") ->  | I142: JANELA EM VIDRO
A143: 9 | B143: =IF(OR(C143=1,D143=1),SUMIF($A$25:A143,A143,$C$25:C143),"") -> 3 | C143: 1 | F143: 9.3 | G143: ='COMPOSIÇÃO CIVIL'!B100 -> CIV 006 | H143: =IF(G143>="AMM","PRÓPRIO","SINAPI") -> PRÓPRIO | I143: ='COMPOSIÇÃO CIVIL'!C100 -> JANELA EM VIDRO TEMPERADO 8 MM, DE CORRER COM ESTRUTURA EM ALUMÍNIO | J143: ='COMPOSIÇÃO CIVIL'!G100 -> M2 | K143: =TRUNC(2*3+1.8*2+3,2) -> 12.6 | L143: ='COMPOSIÇÃO CIVIL'!G107 -> 692.41 | M143: =IF($Q$2="OUTROS",TRUNC(L143*(1+$N$7),2),ROUND(L143*(1+$N$7),2)) -> 846.33 | N143: =IF($Q$2="OUTROS",TRUNC(M143*K143,2),ROUND(M143*K143,2)) -> 10663.75 | P143: 3 UNIDADES DE J6 + 2 UNIDADES DE J10 + 1 UNIDADE DE J11 | Q143: =F143 -> 9.3
A144: 9 | B144: =IF(OR(C144=1,D144=1),SUMIF($A$25:A144,A144,$C$25:C144),"") ->  | I144: PORTAS EM MADEIRA
A145: 9 | B145: =IF(OR(C145=1,D145=1),SUMIF($A$25:A145,A145,$C$25:C145),"") -> 4 | C145: 1 | F145: 9.4 | G145: 91312 | H145: =IF(G145>="AMM","PRÓPRIO","SINAPI") -> SINAPI | I145: =VLOOKUP($G145,IF(LEFT($G145,3)="AMM",COMPOSIÇÕES!$B$1:$E$4233,'BANCO DE DADOS DEZ-24 SERV'!$B$2:$F$7984),2,FALSE) -> KIT DE PORTA DE MADEIRA PARA PINTURA, SEMI-OCA (LEVE OU MÉDIA), PADRÃO POPULAR, 60X210CM, ESPESSURA DE 3,5CM, ITENS INCLUSOS: DOBRADIÇAS, MONTAGEM E INSTALAÇÃO DO BATENTE, FECHADURA COM EXECUÇÃO DO FURO - FORNECIMENTO E INSTALAÇÃO. AF_12/2019 | J145: =VLOOKUP($G145,IF(LEFT($G145,3)="AMM",COMPOSIÇÕES!$B$1:$E$4233,'BANCO DE DADOS DEZ-24 SERV'!$B$2:$F$7984),3,FALSE) -> UN | K145: 1 | L145: =VLOOKUP($G145,IF(LEFT($G145,3)="AMM",COMPOSIÇÕES!$B$1:$E$4233,'BANCO DE DADOS DEZ-24 SERV'!$B$2:$F$7984),4,FALSE) -> 870.15 | M145: =IF($Q$2="OUTROS",TRUNC(L145*(1+$N$7),2),ROUND(L145*(1+$N$7),2)) -> 1063.58 | N145: =IF($Q$2="OUTROS",TRUNC(M145*K145,2),ROUND(M145*K145,2)) -> 1063.58 | P145: 1 UNIDADE PORTA P1 | Q145: =F145 -> 9.4
A146: =IF(LEN(D146),OFFSET(A146,-1,0)+1,OFFSET(A146,-1,0)) -> 9 | B146: =IF(OR(C146=1,D146=1),SUMIF($A$25:A146,A146,$C$25:C146),"") -> 5 | C146: =IF(G146>0,1,"") -> 1 | D146: =IF(AND(CONCATENATE(G146,I146,J146,K146,L146,M146,N146)=I146&N146,CONCATENATE(G146,I146,J146,K146,L146,M146,N146)<>"",N146<>""),1,"") ->  | F146: 9.5 | G146: 91315 | H146: SINAPI | I146: =VLOOKUP($G146,IF(LEFT($G146,3)="AMM",COMPOSIÇÕES!$B$1:$E$4233,'BANCO DE DADOS DEZ-24 SERV'!$B$2:$F$7984),2,FALSE) -> KIT DE PORTA DE MADEIRA PARA PINTURA, SEMI-OCA (LEVE OU MÉDIA), PADRÃO POPULAR, 90X210CM, ESPESSURA DE 3,5CM, ITENS INCLUSOS: DOBRADIÇAS, MONTAGEM E INSTALAÇÃO DO BATENTE, FECHADURA COM EXECUÇÃO DO FURO - FORNECIMENTO E INSTALAÇÃO. AF_12/2019 | J146: =VLOOKUP($G146,IF(LEFT($G146,3)="AMM",COMPOSIÇÕES!$B$1:$E$4233,'BANCO DE DADOS DEZ-24 SERV'!$B$2:$F$7984),3,FALSE) -> UN | K146: 7 | L146: =VLOOKUP($G146,IF(LEFT($G146,3)="AMM",COMPOSIÇÕES!$B$1:$E$4233,'BANCO DE DADOS DEZ-24 SERV'!$B$2:$F$7984),4,FALSE) -> 992.03 | M146: =IF($Q$2="OUTROS",TRUNC(L146*(1+$N$7),2),ROUND(L146*(1+$N$7),2)) -> 1212.55 | N146: 8487.85 | P146: 7 UNIDADES - PORTA P13 | Q146: 9.5
A147: 9 | B147: =IF(OR(C147=1,D147=1),SUMIF($A$25:A147,A147,$C$25:C147),"") -> 6 | C147: 1 | F147: 9.6 | G147: ='COMPOSIÇÃO CIVIL'!B110 -> CIV 007 | H147: PRÓPRIO | I147: ='COMPOSIÇÃO CIVIL'!C110 -> KIT DE PORTA DE MADEIRA PARA PINTURA, SEMI-OCA (LEVE OU MÉDIA), PADRÃO POPULAR, 90X210CM, ESPESSURA DE 3,5CM, ITENS INCLUSOS: DOBRADIÇAS, MONTAGEM E INSTALAÇÃO DO BATENTE, FECHADURA COM EXECUÇÃO DO FURO - FORNECIMENTO E INSTALAÇÃO. AF_08/2015 - ADAPTADA PARA PNE | J147: ='COMPOSIÇÃO CIVIL'!G110 -> UN | K147: 4 | L147: ='COMPOSIÇÃO CIVIL'!G118 -> 1341.83 | M147: =IF($Q$2="OUTROS",TRUNC(L147*(1+$N$7),2),ROUND(L147*(1+$N$7),2)) -> 1640.11 | N147: 6560.44 | P147: 4 UNIDADES - PORTA P5 | Q147: 9.6
A148: 9 | B148: =IF(OR(C148=1,D148=1),SUMIF($A$25:A148,A148,$C$25:C148),"") -> 7 | C148: 1 | F148: 9.7 | G148: ='COMPOSIÇÃO CIVIL'!B137 -> CIV 008 | H148: PRÓPRIO | I148: ='COMPOSIÇÃO CIVIL'!C137 -> KIT DE PORTA DE MADEIRA PARA PINTURA, SEMI-OCA (LEVE OU MÉDIA), PADRÃO POPULAR, 100X210CM, ESPESSURA DE 3,5CM, ITENS INCLUSOS: DOBRADIÇAS, MONTAGEM E INSTALAÇÃO DO BATENTE, FECHADURA COM EXECUÇÃO DO FURO - FORNECIMENTO E INSTALAÇÃO. AF_08/2015 | J148: ='COMPOSIÇÃO CIVIL'!G137 -> UN | K148: 1 | L148: ='COMPOSIÇÃO CIVIL'!G144 -> 1029.74 | M148: =IF($Q$2="OUTROS",TRUNC(L148*(1+$N$7),2),ROUND(L148*(1+$N$7),2)) -> 1258.65 | N148: 1258.65 | P148: 1 UNIDADE - PORTA P14 | Q148: 9.7
A149: 9 | B149: =IF(OR(C149=1,D149=1),SUMIF($A$25:A149,A149,$C$25:C149),"") ->  | I149: PORTAS EM AÇO
A150: 9 | B150: =IF(OR(C150=1,D150=1),SUMIF($A$25:A150,A150,$C$25:C150),"") -> 8 | C150: 1 | F150: 9.8 | G150: ='COMPOSIÇÃO CIVIL'!B287 -> CIV 015 | H150: =IF(G150>="AMM","PRÓPRIO","SINAPI") -> PRÓPRIO | I150: ='COMPOSIÇÃO CIVIL'!C287 -> PORTA EM AÇO DE ABRIR, 100X210CM - FORNECIMENTO E INSTALAÇÃO | J150: ='COMPOSIÇÃO CIVIL'!G287 -> M2 | K150: 1 | L150: ='COMPOSIÇÃO CIVIL'!G295 -> 1060.4 | M150: =IF($Q$2="OUTROS",TRUNC(L150*(1+$N$7),2),ROUND(L150*(1+$N$7),2)) -> 1296.12 | N150: =IF($Q$2="OUTROS",TRUNC(M150*K150,2),ROUND(M150*K150,2)) -> 1296.12 | P150: 1 UNIDADE - PORTA P6 | Q150: =F150 -> 9.8
A151: 9 | B151: =IF(OR(C151=1,D151=1),SUMIF($A$25:A151,A151,$C$25:C151),"") -> 9 | C151: 1 | F151: 9.9 | G151: 94807 | H151: =IF(G151>="AMM","PRÓPRIO","SINAPI") -> SINAPI | I151: =VLOOKUP($G151,IF(LEFT($G151,3)="AMM",COMPOSIÇÕES!$B$1:$E$4233,'BANCO DE DADOS DEZ-24 SERV'!$B$2:$F$7984),2,FALSE) -> PORTA EM AÇO DE ABRIR TIPO VENEZIANA SEM GUARNIÇÃO, 87X210CM, FIXAÇÃO COM PARAFUSOS - FORNECIMENTO E INSTALAÇÃO. AF_12/2019 | J151: =VLOOKUP($G151,IF(LEFT($G151,3)="AMM",COMPOSIÇÕES!$B$1:$E$4233,'BANCO DE DADOS DEZ-24 SERV'!$B$2:$F$7984),3,FALSE) -> UN | K151: 1 | L151: =VLOOKUP($G151,IF(LEFT($G151,3)="AMM",COMPOSIÇÕES!$B$1:$E$4233,'BANCO DE DADOS DEZ-24 SERV'!$B$2:$F$7984),4,FALSE) -> 797.02 | M151: =IF($Q$2="OUTROS",TRUNC(L151*(1+$N$7),2),ROUND(L151*(1+$N$7),2)) -> 974.19 | N151: =IF($Q$2="OUTROS",TRUNC(M151*K151,2),ROUND(M151*K151,2)) -> 974.19 | P151: 1 UNIDADE - PORTA P2 | Q151: =F151 -> 9.9
A152: 9 | B152: =IF(OR(C152=1,D152=1),SUMIF($A$25:A152,A152,$C$25:C152),"") ->  | I152: PORTAS EM VIDRO
A153: 9 | B153: =IF(OR(C153=1,D153=1),SUMIF($A$25:A153,A153,$C$25:C153),"") -> 10 | C153: 1 | F153: 9.10 | G153: ='COMPOSIÇÃO CIVIL'!B204 -> CIV 009 | H153: =IF(G153>="AMM","PRÓPRIO","SINAPI") -> PRÓPRIO | I153: ='COMPOSIÇÃO CIVIL'!C204 -> PORTA DE CORRER EM VIDRO TEMPERADO COM ESTRUTURA DE ALUMÍNIO | J153: ='COMPOSIÇÃO CIVIL'!G204 -> M2 | K153: =TRUNC(2*2.1*2+4*2.1*1,2) -> 16.8 | L153: ='COMPOSIÇÃO CIVIL'!G211 -> 803.48 | M153: =IF($Q$2="OUTROS",TRUNC(L153*(1+$N$7),2),ROUND(L153*(1+$N$7),2)) -> 982.09 | N153: =IF($Q$2="OUTROS",TRUNC(M153*K153,2),ROUND(M153*K153,2)) -> 16499.11 | P153: 2 UNIDADES - PORTA P15 + 1 UNIDADE - PORTA P10 | Q153: =F153 -> 9.10
A154: 9 | B154: =IF(OR(C154=1,D154=1),SUMIF($A$25:A154,A154,$C$25:C154),"") ->  | I154: PORTÕES E GRADILS
A155: 9 | B155: =IF(OR(C155=1,D155=1),SUMIF($A$25:A155,A155,$C$25:C155),"") -> 11 | C155: 1 | F155: =IF(B155<>"",A155&"."&B155,"") -> 9.11 | G155: ='COMPOSIÇÃO CIVIL'!B263 -> CIV 013 | H155: =IF(G155>="AMM","PRÓPRIO","SINAPI") -> PRÓPRIO | I155: ='COMPOSIÇÃO CIVIL'!C263 -> PORTÃO EM TUBO DE AÇO GALVANIZADO COM QUADRO DE DN 1 1/4", E BARRAS VERTICAIS DE DN 1" A CADA 10CM | J155: ='COMPOSIÇÃO CIVIL'!G263 -> M2 | K155: =10.49+2.1+7.4 -> 19.99 | L155: ='COMPOSIÇÃO CIVIL'!G275 -> 541.06 | M155: =IF($Q$2="OUTROS",TRUNC(L155*(1+$N$7),2),ROUND(L155*(1+$N$7),2)) -> 661.33 | N155: =IF($Q$2="OUTROS",TRUNC(M155*K155,2),ROUND(M155*K155,2)) -> 13219.98 | P155: PORTÃO P9 + P11 E P12 | Q155: =F155 -> 9.11
A156: 9 | B156: =IF(OR(C156=1,D156=1),SUMIF($A$25:A156,A156,$C$25:C156),"") ->  | I156: FECHADURAS
A157: 9 | B157: =IF(OR(C157=1,D157=1),SUMIF($A$25:A157,A157,$C$25:C157),"") -> 12 | C157: 1 | F157: 9.12 | G157: 91305 | H157: =IF(G157>="AMM","PRÓPRIO","SINAPI") -> SINAPI | I157: =VLOOKUP($G157,IF(LEFT($G157,3)="AMM",COMPOSIÇÕES!$B$1:$E$4233,'BANCO DE DADOS DEZ-24 SERV'!$B$2:$F$7984),2,FALSE) -> FECHADURA DE EMBUTIR PARA PORTA DE BANHEIRO, COMPLETA, ACABAMENTO PADRÃO POPULAR, INCLUSO EXECUÇÃO DE FURO - FORNECIMENTO E INSTALAÇÃO. AF_12/2019 | J157: =VLOOKUP($G157,IF(LEFT($G157,3)="AMM",COMPOSIÇÕES!$B$1:$E$4233,'BANCO DE DADOS DEZ-24 SERV'!$B$2:$F$7984),3,FALSE) -> UN | K157: =2+2+1+2 -> 7 | L157: =VLOOKUP($G157,IF(LEFT($G157,3)="AMM",COMPOSIÇÕES!$B$1:$E$4233,'BANCO DE DADOS DEZ-24 SERV'!$B$2:$F$7984),4,FALSE) -> 112.25 | M157: =IF($Q$2="OUTROS",TRUNC(L157*(1+$N$7),2),ROUND(L157*(1+$N$7),2)) -> 137.2 | N157: =IF($Q$2="OUTROS",TRUNC(M157*K157,2),ROUND(M157*K157,2)) -> 960.4 | P157: 2P5+2P13+P1+2P5 | Q157: =F157 -> 9.12
A158: 9 | B158: =IF(OR(C158=1,D158=1),SUMIF($A$25:A158,A158,$C$25:C158),"") -> 13 | C158: 1 | F158: 9.13 | G158: 91306 | H158: SINAPI | I158: =VLOOKUP($G158,IF(LEFT($G158,3)="AMM",COMPOSIÇÕES!$B$1:$E$4233,'BANCO DE DADOS DEZ-24 SERV'!$B$2:$F$7984),2,FALSE) -> FECHADURA DE EMBUTIR PARA PORTAS INTERNAS, COMPLETA, ACABAMENTO PADRÃO MÉDIO, COM EXECUÇÃO DE FURO - FORNECIMENTO E INSTALAÇÃO. AF_12/2019 | J158: =VLOOKUP($G158,IF(LEFT($G158,3)="AMM",COMPOSIÇÕES!$B$1:$E$4233,'BANCO DE DADOS DEZ-24 SERV'!$B$2:$F$7984),3,FALSE) -> UN | K158: =1+2+1+1+5+1+1 -> 12 | L158: =VLOOKUP($G158,IF(LEFT($G158,3)="AMM",COMPOSIÇÕES!$B$1:$E$4233,'BANCO DE DADOS DEZ-24 SERV'!$B$2:$F$7984),4,FALSE) -> 163.92 | M158: =IF($Q$2="OUTROS",TRUNC(L158*(1+$N$7),2),ROUND(L158*(1+$N$7),2)) -> 200.35 | N158: 2404.2 | P158: P2+2P5+P6+P10+5P13+P14+P15 | Q158: 9.13
A159: =IF(LEN(D159),OFFSET(A159,-1,0)+1,OFFSET(A159,-1,0)) -> 9 | B159: =IF(OR(C159=1,D159=1),SUMIF($A$25:A159,A159,$C$25:C159),"") ->  | C159: =IF(G159>0,1,"") ->  | D159: =IF(AND(CONCATENATE(G159,I159,J159,K159,L159,M159,N159)=I159&N159,CONCATENATE(G159,I159,J159,K159,L159,M159,N159)<>"",N159<>""),1,"") ->  | F159: =IF(B159<>"",A159&"."&B159,"") ->  | I159: GRADIL METÁLICO
A160: 9 | B160: =IF(OR(C160=1,D160=1),SUMIF($A$25:A160,A160,$C$25:C160),"") -> 14 | C160: 1 | F160: 9.14 | G160: ='COMPOSIÇÃO CIVIL'!B213 -> CIV 010 | H160: =IF(G160>="AMM","PRÓPRIO","SINAPI") -> PRÓPRIO | I160: ='COMPOSIÇÃO CIVIL'!C213 -> GRADIL NYLOFOR3D, MALHA 20X5CM, Ø 5MM 250X203 CM, BELGO OU SIMILAR, INCLUSIVE POSTES (SECÇÃO 60X40MM E H=2,60M) E ACESSÓRIOS | J160: ='COMPOSIÇÃO CIVIL'!G213 -> M2 | K160: =TRUNC(2.1+9.1+15.71,2) -> 26.91 | L160: ='COMPOSIÇÃO CIVIL'!G222 -> 182.47 | M160: =IF($Q$2="OUTROS",TRUNC(L160*(1+$N$7),2),ROUND(L160*(1+$N$7),2)) -> 223.03 | N160: =IF($Q$2="OUTROS",TRUNC(M160*K160,2),ROUND(M160*K160,2)) -> 6001.73 | P160: 2,1+9,1+15,71 | Q160: =F160 -> 9.14
A161: =IF(LEN(D161),OFFSET(A161,-1,0)+1,OFFSET(A161,-1,0)) -> 9 | B161: =IF(OR(C161=1,D161=1),SUMIF($A$25:A161,A161,$C$25:C161),"") ->  | C161: =IF(G161>0,1,"") ->  | D161: =IF(AND(CONCATENATE(G161,I161,J161,K161,L161,M161,N161)=I161&N161,CONCATENATE(G161,I161,J161,K161,L161,M161,N161)<>"",N161<>""),1,"") ->  | F161: =IF(B161<>"",A161&"."&B161,"") ->  | I161: SOLEIRA
A162: 9 | B162: =IF(OR(C162=1,D162=1),SUMIF($A$25:A162,A162,$C$25:C162),"") -> 15 | C162: 1 | F162: 9.15 | G162: 98689 | H162: =IF(G162>="AMM","PRÓPRIO","SINAPI") -> SINAPI | I162: =VLOOKUP($G162,IF(LEFT($G162,3)="AMM",COMPOSIÇÕES!$B$1:$E$4233,'BANCO DE DADOS DEZ-24 SERV'!$B$2:$F$7984),2,FALSE) -> SOLEIRA EM GRANITO, LARGURA 15 CM, ESPESSURA 2,0 CM. AF_09/2020 | J162: =VLOOKUP($G162,IF(LEFT($G162,3)="AMM",COMPOSIÇÕES!$B$1:$E$4233,'BANCO DE DADOS DEZ-24 SERV'!$B$2:$F$7984),3,FALSE) -> M | K162: =TRUNC(0.6+0.7+0.9*4+1+4+0.9*7+1+2*2+0.7,2) -> 21.9 | L162: =VLOOKUP($G162,IF(LEFT($G162,3)="AMM",COMPOSIÇÕES!$B$1:$E$4233,'BANCO DE DADOS DEZ-24 SERV'!$B$2:$F$7984),4,FALSE) -> 134.63 | M162: =IF($Q$2="OUTROS",TRUNC(L162*(1+$N$7),2),ROUND(L162*(1+$N$7),2)) -> 164.55 | N162: =IF($Q$2="OUTROS",TRUNC(M162*K162,2),ROUND(M162*K162,2)) -> 3603.64 | P162: P1+P2+P5*4+P6+P10+P13*7+P14+P15*2+SERV1 **CALCULADO O COMPRIMENTO DA SOLEIRA DE CADA UMA DAS PORTAS | Q162: =F162 -> 9.15
A163: =IF(LEN(D163),OFFSET(A163,-1,0)+1,OFFSET(A163,-1,0)) -> 9 | B163: =IF(OR(C163=1,D163=1),SUMIF($A$25:A163,A163,$C$25:C163),"") ->  | C163: =IF(G163>0,1,"") ->  | D163: =IF(AND(CONCATENATE(G163,I163,J163,K163,L163,M163,N163)=I163&N163,CONCATENATE(G163,I163,J163,K163,L163,M163,N163)<>"",N163<>""),1,"") ->  | F163: =IF(B163<>"",A163&"."&B163,"") ->  | I163: PINGADEIRA
A164: 9 | B164: =IF(OR(C164=1,D164=1),SUMIF($A$25:A164,A164,$C$25:C164),"") -> 16 | C164: 1 | F164: 9.16 | G164: 101965 | H164: =IF(G164>="AMM","PRÓPRIO","SINAPI") -> SINAPI | I164: =VLOOKUP($G164,IF(LEFT($G164,3)="AMM",COMPOSIÇÕES!$B$1:$E$4233,'BANCO DE DADOS DEZ-24 SERV'!$B$2:$F$7984),2,FALSE) -> PEITORIL LINEAR EM GRANITO OU MÁRMORE, L = 15CM, COMPRIMENTO DE ATÉ 2M, ASSENTADO COM ARGAMASSA 1:6 COM ADITIVO. AF_11/2020 | J164: =VLOOKUP($G164,IF(LEFT($G164,3)="AMM",COMPOSIÇÕES!$B$1:$E$4233,'BANCO DE DADOS DEZ-24 SERV'!$B$2:$F$7984),3,FALSE) -> M | K164: =TRUNC(2*3+1.2+0.6*7+1+1.5*2+2.5,2) -> 17.9 | L164: =VLOOKUP($G164,IF(LEFT($G164,3)="AMM",COMPOSIÇÕES!$B$1:$E$4233,'BANCO DE DADOS DEZ-24 SERV'!$B$2:$F$7984),4,FALSE) -> 139.57 | M164: =IF($Q$2="OUTROS",TRUNC(L164*(1+$N$7),2),ROUND(L164*(1+$N$7),2)) -> 170.59 | N164: =IF($Q$2="OUTROS",TRUNC(M164*K164,2),ROUND(M164*K164,2)) -> 3053.56 | P164: J6*3+J7+J8*7+J9+J10*2+J11 **CALCULADO O COMPRIMENTO DA PINGADEIRA DE CADA UMA DAS JANELAS | Q164: =F164 -> 9.16
A165: 9 | B165: =IF(OR(C165=1,D165=1),SUMIF($A$25:A165,A165,$C$25:C165),"") ->  | F165: =IF(B165<>"",A165&"."&B165,"") -> 
A166: 10 | B166: =IF(OR(C166=1,D166=1),SUMIF($A$25:A166,A166,$C$25:C166),"") -> 0 | D166: 1 | F166: =IF(B166<>"",A166&"."&B166,"") -> 10.0 | I166: COBERTURA | N166: =SUM(N167:N173) -> 128017.41
A167: 10 | B167: =IF(OR(C167=1,D167=1),SUMIF($A$25:A167,A167,$C$25:C167),"") ->  | F167: =IF(B167<>"",A167&"."&B167,"") ->  | I167: ESTRUTURA METÁLICA
A168: 10 | B168: =IF(OR(C168=1,D168=1),SUMIF($A$25:A168,A168,$C$25:C168),"") -> 1 | C168: 1 | F168: 10.1 | G168: 92580 | H168: =IF(G168>="AMM","PRÓPRIO","SINAPI") -> SINAPI | I168: =VLOOKUP($G168,IF(LEFT($G168,3)="AMM",COMPOSIÇÕES!$B$1:$E$4233,'BANCO DE DADOS DEZ-24 SERV'!$B$2:$F$7984),2,FALSE) -> TRAMA DE AÇO COMPOSTA POR TERÇAS PARA TELHADOS DE ATÉ 2 ÁGUAS PARA TELHA ONDULADA DE FIBROCIMENTO, METÁLICA, PLÁSTICA OU TERMOACÚSTICA, INCLUSO TRANSPORTE VERTICAL. AF_07/2019 | J168: =VLOOKUP($G168,IF(LEFT($G168,3)="AMM",COMPOSIÇÕES!$B$1:$E$4233,'BANCO DE DADOS DEZ-24 SERV'!$B$2:$F$7984),3,FALSE) -> M2 | K168: =TRUNC(11.25*13.85+11.25*17.15+2.36*3.84,2) -> 357.81 | L168: =VLOOKUP($G168,IF(LEFT($G168,3)="AMM",COMPOSIÇÕES!$B$1:$E$4233,'BANCO DE DADOS DEZ-24 SERV'!$B$2:$F$7984),4,FALSE) -> 46.12 | M168: =IF($Q$2="OUTROS",TRUNC(L168*(1+$N$7),2),ROUND(L168*(1+$N$7),2)) -> 56.37 | N168: =IF($Q$2="OUTROS",TRUNC(M168*K168,2),ROUND(M168*K168,2)) -> 20169.74 | P168: 11,25m*13,85m+11,25m*17,15m+2,36m*3,84m | Q168: =F168 -> 10.1
A169: 10 | B169: =IF(OR(C169=1,D169=1),SUMIF($A$25:A169,A169,$C$25:C169),"") -> 2 | C169: 1 | F169: 10.2 | G169: 92618 | H169: SINAPI | I169: =VLOOKUP($G169,IF(LEFT($G169,3)="AMM",COMPOSIÇÕES!$B$1:$E$4233,'BANCO DE DADOS DEZ-24 SERV'!$B$2:$F$7984),2,FALSE) -> FABRICAÇÃO E INSTALAÇÃO DE TESOURA INTEIRA EM AÇO, VÃO DE 11 M, PARA TELHA ONDULADA DE FIBROCIMENTO, METÁLICA, PLÁSTICA OU TERMOACÚSTICA, INCLUSO IÇAMENTO. AF_07/2019 | J169: =VLOOKUP($G169,IF(LEFT($G169,3)="AMM",COMPOSIÇÕES!$B$1:$E$4233,'BANCO DE DADOS DEZ-24 SERV'!$B$2:$F$7984),3,FALSE) -> UN | K169: =5+6 -> 11 | L169: =VLOOKUP($G169,IF(LEFT($G169,3)="AMM",COMPOSIÇÕES!$B$1:$E$4233,'BANCO DE DADOS DEZ-24 SERV'!$B$2:$F$7984),4,FALSE) -> 1869.43 | M169: =IF($Q$2="OUTROS",TRUNC(L169*(1+$N$7),2),ROUND(L169*(1+$N$7),2)) -> 2285 | N169: 25135 | P169: 11 TESOURAS INTEIRAS DE 11M DE COMPRIMENTO | Q169: 10.2
A170: =IF(LEN(D170),OFFSET(A170,-1,0)+1,OFFSET(A170,-1,0)) -> 10 | B170: =IF(OR(C170=1,D170=1),SUMIF($A$25:A170,A170,$C$25:C170),"") ->  | C170: =IF(G170>0,1,"") ->  | D170: =IF(AND(CONCATENATE(G170,I170,J170,K170,L170,M170,N170)=I170&N170,CONCATENATE(G170,I170,J170,K170,L170,M170,N170)<>"",N170<>""),1,"") ->  | I170: COBERTURA COM TELHA DE AÇO/ALUMÍNIO
A171: 10 | B171: =IF(OR(C171=1,D171=1),SUMIF($A$25:A171,A171,$C$25:C171),"") -> 3 | C171: 1 | F171: 10.3 | G171: 94213 | H171: =IF(G171>="AMM","PRÓPRIO","SINAPI") -> SINAPI | I171: =VLOOKUP($G171,IF(LEFT($G171,3)="AMM",COMPOSIÇÕES!$B$1:$E$4233,'BANCO DE DADOS DEZ-24 SERV'!$B$2:$F$7984),2,FALSE) -> TELHAMENTO COM TELHA DE AÇO/ALUMÍNIO E = 0,5 MM, COM ATÉ 2 ÁGUAS, INCLUSO IÇAMENTO. AF_07/2019 | J171: =VLOOKUP($G171,IF(LEFT($G171,3)="AMM",COMPOSIÇÕES!$B$1:$E$4233,'BANCO DE DADOS DEZ-24 SERV'!$B$2:$F$7984),3,FALSE) -> M2 | K171: =TRUNC(5.8*2.2,2) -> 12.76 | L171: =VLOOKUP($G171,IF(LEFT($G171,3)="AMM",COMPOSIÇÕES!$B$1:$E$4233,'BANCO DE DADOS DEZ-24 SERV'!$B$2:$F$7984),4,FALSE) -> 66.62 | M171: =IF($Q$2="OUTROS",TRUNC(L171*(1+$N$7),2),ROUND(L171*(1+$N$7),2)) -> 81.42 | N171: =IF($Q$2="OUTROS",TRUNC(M171*K171,2),ROUND(M171*K171,2)) -> 1038.91 | P171: 5,80*2,20 | Q171: =F171 -> 10.3
A172: 10 | B172: =IF(OR(C172=1,D172=1),SUMIF($A$25:A172,A172,$C$25:C172),"") ->  | I172: COBERTURA EM TELHA TERMOACUSTICA
A173: 10 | B173: =IF(OR(C173=1,D173=1),SUMIF($A$25:A173,A173,$C$25:C173),"") -> 4 | C173: 1 | F173: 10.4 | G173: 94216 | H173: =IF(G173>="AMM","PRÓPRIO","SINAPI") -> SINAPI | I173: =VLOOKUP($G173,IF(LEFT($G173,3)="AMM",COMPOSIÇÕES!$B$1:$E$4233,'BANCO DE DADOS DEZ-24 SERV'!$B$2:$F$7984),2,FALSE) -> TELHAMENTO COM TELHA METÁLICA TERMOACÚSTICA E = 30 MM, COM ATÉ 2 ÁGUAS, INCLUSO IÇAMENTO. AF_07/2019 | J173: =VLOOKUP($G173,IF(LEFT($G173,3)="AMM",COMPOSIÇÕES!$B$1:$E$4233,'BANCO DE DADOS DEZ-24 SERV'!$B$2:$F$7984),3,FALSE) -> M2 | K173: =TRUNC(((10.65+0.6)*13.85)+((10.65+0.6)*17.15),2) -> 348.75 | L173: =VLOOKUP($G173,IF(LEFT($G173,3)="AMM",COMPOSIÇÕES!$B$1:$E$4233,'BANCO DE DADOS DEZ-24 SERV'!$B$2:$F$7984),4,FALSE) -> 191.6 | M173: =IF($Q$2="OUTROS",TRUNC(L173*(1+$N$7),2),ROUND(L173*(1+$N$7),2)) -> 234.19 | N173: =IF($Q$2="OUTROS",TRUNC(M173*K173,2),ROUND(M173*K173,2)) -> 81673.76 | P173: ((10,65+0,60)*13,85)+((10,65+0,60)*17,15) | Q173: =F173 -> 10.4
A174: 10 | B174: =IF(OR(C174=1,D174=1),SUMIF($A$25:A174,A174,$C$25:C174),"") -> 
A175: 11 | B175: =IF(OR(C175=1,D175=1),SUMIF($A$25:A175,A175,$C$25:C175),"") -> 0 | D175: 1 | F175: 11.0 | I175: REVESTIMENTO | N175: =SUM(N177:N185) -> 50531.5
A176: 11 | B176: =IF(OR(C176=1,D176=1),SUMIF($A$25:A176,A176,$C$25:C176),"") ->  | I176: PAREDE
A177: 11 | B177: =IF(OR(C177=1,D177=1),SUMIF($A$25:A177,A177,$C$25:C177),"") -> 1 | C177: 1 | F177: 11.1 | G177: 87879 | H177: =IF(G177>="AMM","PRÓPRIO","SINAPI") -> SINAPI | I177: =VLOOKUP($G177,IF(LEFT($G177,3)="AMM",COMPOSIÇÕES!$B$1:$E$4233,'BANCO DE DADOS DEZ-24 SERV'!$B$2:$F$7984),2,FALSE) -> CHAPISCO APLICADO EM ALVENARIAS E ESTRUTURAS DE CONCRETO INTERNAS, COM COLHER DE PEDREIRO. ARGAMASSA TRAÇO 1:3 COM PREPARO EM BETONEIRA 400L. AF_10/2022 | J177: =VLOOKUP($G177,IF(LEFT($G177,3)="AMM",COMPOSIÇÕES!$B$1:$E$4233,'BANCO DE DADOS DEZ-24 SERV'!$B$2:$F$7984),3,FALSE) -> M2 | K177: =K122*2 -> 404.68 | L177: =VLOOKUP($G177,IF(LEFT($G177,3)="AMM",COMPOSIÇÕES!$B$1:$E$4233,'BANCO DE DADOS DEZ-24 SERV'!$B$2:$F$7984),4,FALSE) -> 4.52 | M177: =IF($Q$2="OUTROS",TRUNC(L177*(1+$N$7),2),ROUND(L177*(1+$N$7),2)) -> 5.52 | N177: =IF($Q$2="OUTROS",TRUNC(M177*K177,2),ROUND(M177*K177,2)) -> 2233.83 | P177: 202,34 M2 DE ALVENARIA X 2 LADOS | Q177: =F177 -> 11.1
A178: 11 | B178: =IF(OR(C178=1,D178=1),SUMIF($A$25:A178,A178,$C$25:C178),"") -> 2 | C178: 1 | F178: 11.2 | G178: 87529 | H178: SINAPI | I178: =VLOOKUP($G178,IF(LEFT($G178,3)="AMM",COMPOSIÇÕES!$B$1:$E$4233,'BANCO DE DADOS DEZ-24 SERV'!$B$2:$F$7984),2,FALSE) -> MASSA ÚNICA, EM ARGAMASSA TRAÇO 1:2:8, PREPARO MECÂNICO, APLICADA MANUALMENTE EM PAREDES INTERNAS DE AMBIENTES COM ÁREA ENTRE 5M² E 10M², E = 17,5MM, COM TALISCAS. AF_03/2024 | J178: =VLOOKUP($G178,IF(LEFT($G178,3)="AMM",COMPOSIÇÕES!$B$1:$E$4233,'BANCO DE DADOS DEZ-24 SERV'!$B$2:$F$7984),3,FALSE) -> M2 | K178: =K177 -> 404.68 | L178: =VLOOKUP($G178,IF(LEFT($G178,3)="AMM",COMPOSIÇÕES!$B$1:$E$4233,'BANCO DE DADOS DEZ-24 SERV'!$B$2:$F$7984),4,FALSE) -> 35.15 | M178: =IF($Q$2="OUTROS",TRUNC(L178*(1+$N$7),2),ROUND(L178*(1+$N$7),2)) -> 42.96 | N178: 17385.05 | P178: =P177 -> 202,34 M2 DE ALVENARIA X 2 LADOS | Q178: 11.2
A179: 11 | B179: =IF(OR(C179=1,D179=1),SUMIF($A$25:A179,A179,$C$25:C179),"") -> 3 | C179: 1 | F179: 11.3 | G179: ='COMPOSIÇÃO CIVIL'!B304 -> CIV 016 | H179: PRÓPRIO | I179: ='COMPOSIÇÃO CIVIL'!C304 -> REVESTIMENTO CERÂMICO PARA PAREDES INTERNAS COM PLACAS TIPO ESMALTADA EXTRA DE DIMENSÕES 40X60 CM APLICADAS NA ALTURA INTEIRA DAS PAREDES. | J179: ='COMPOSIÇÃO CIVIL'!G304 -> M2 | K179: 172.61 | L179: ='COMPOSIÇÃO CIVIL'!G313 -> 106.35 | M179: =IF($Q$2="OUTROS",TRUNC(L179*(1+$N$7),2),ROUND(L179*(1+$N$7),2)) -> 129.99 | N179: 22437.57 | P179: CONFORME PROJETO ARQUITETÔNICO | Q179: 11.3
A180: =IF(LEN(D180),OFFSET(A180,-1,0)+1,OFFSET(A180,-1,0)) -> 11 | B180: =IF(OR(C180=1,D180=1),SUMIF($A$25:A180,A180,$C$25:C180),"") ->  | C180: =IF(G180>0,1,"") ->  | D180: =IF(AND(CONCATENATE(G180,I180,J180,K180,L180,M180,N180)=I180&N180,CONCATENATE(G180,I180,J180,K180,L180,M180,N180)<>"",N180<>""),1,"") ->  | F180: =IF(B180<>"",A180&"."&B180,"") ->  | I180: MURO
A181: 11 | B181: =IF(OR(C181=1,D181=1),SUMIF($A$25:A181,A181,$C$25:C181),"") -> 4 | C181: 1 | F181: 11.4 | G181: 87894 | H181: =IF(G181>="AMM","PRÓPRIO","SINAPI") -> SINAPI | I181: =VLOOKUP($G181,IF(LEFT($G181,3)="AMM",COMPOSIÇÕES!$B$1:$E$4233,'BANCO DE DADOS DEZ-24 SERV'!$B$2:$F$7984),2,FALSE) -> CHAPISCO APLICADO EM ALVENARIA (SEM PRESENÇA DE VÃOS) E ESTRUTURAS DE CONCRETO DE FACHADA, COM COLHER DE PEDREIRO. ARGAMASSA TRAÇO 1:3 COM PREPARO EM BETONEIRA 400L. AF_10/2022 | J181: =VLOOKUP($G181,IF(LEFT($G181,3)="AMM",COMPOSIÇÕES!$B$1:$E$4233,'BANCO DE DADOS DEZ-24 SERV'!$B$2:$F$7984),3,FALSE) -> M2 | K181: =K124*2 -> 140.8 | L181: =VLOOKUP($G181,IF(LEFT($G181,3)="AMM",COMPOSIÇÕES!$B$1:$E$4233,'BANCO DE DADOS DEZ-24 SERV'!$B$2:$F$7984),4,FALSE) -> 6.78 | M181: =IF($Q$2="OUTROS",TRUNC(L181*(1+$N$7),2),ROUND(L181*(1+$N$7),2)) -> 8.28 | N181: =IF($Q$2="OUTROS",TRUNC(M181*K181,2),ROUND(M181*K181,2)) -> 1165.82 | P181: 70,40 M2 DE ALVENARIA X 2 LADOS | Q181: =F181 -> 11.4
A182: =IF(LEN(D182),OFFSET(A182,-1,0)+1,OFFSET(A182,-1,0)) -> 11 | B182: =IF(OR(C182=1,D182=1),SUMIF($A$25:A182,A182,$C$25:C182),"") -> 5 | C182: =IF(G182>0,1,"") -> 1 | D182: =IF(AND(CONCATENATE(G182,I182,J182,K182,L182,M182,N182)=I182&N182,CONCATENATE(G182,I182,J182,K182,L182,M182,N182)<>"",N182<>""),1,"") ->  | F182: =IF(B182<>"",A182&"."&B182,"") -> 11.5 | G182: 87792 | H182: =IF(G182>="AMM","PRÓPRIO","SINAPI") -> SINAPI | I182: =VLOOKUP($G182,IF(LEFT($G182,3)="AMM",COMPOSIÇÕES!$B$1:$E$4233,'BANCO DE DADOS DEZ-24 SERV'!$B$2:$F$7984),2,FALSE) -> EMBOÇO OU MASSA ÚNICA EM ARGAMASSA TRAÇO 1:2:8, PREPARO MECÂNICO COM BETONEIRA 400 L, APLICADA MANUALMENTE EM PANOS CEGOS DE FACHADA (SEM PRESENÇA DE VÃOS), ESPESSURA DE 25 MM. AF_08/2022 | J182: =VLOOKUP($G182,IF(LEFT($G182,3)="AMM",COMPOSIÇÕES!$B$1:$E$4233,'BANCO DE DADOS DEZ-24 SERV'!$B$2:$F$7984),3,FALSE) -> M2 | K182: =K181 -> 140.8 | L182: =VLOOKUP($G182,IF(LEFT($G182,3)="AMM",COMPOSIÇÕES!$B$1:$E$4233,'BANCO DE DADOS DEZ-24 SERV'!$B$2:$F$7984),4,FALSE) -> 39.96 | M182: =IF($Q$2="OUTROS",TRUNC(L182*(1+$N$7),2),ROUND(L182*(1+$N$7),2)) -> 48.84 | N182: =IF($Q$2="OUTROS",TRUNC(M182*K182,2),ROUND(M182*K182,2)) -> 6876.67 | P182: =P181 -> 70,40 M2 DE ALVENARIA X 2 LADOS | Q182: =F182 -> 11.5
A183: 11 | B183: =IF(OR(C183=1,D183=1),SUMIF($A$25:A183,A183,$C$25:C183),"") ->  | I183: TETO
A184: 11 | B184: =IF(OR(C184=1,D184=1),SUMIF($A$25:A184,A184,$C$25:C184),"") -> 6 | C184: 1 | F184: 11.6 | G184: 87884 | H184: =IF(G184>="AMM","PRÓPRIO","SINAPI") -> SINAPI | I184: =VLOOKUP($G184,IF(LEFT($G184,3)="AMM",COMPOSIÇÕES!$B$1:$E$4233,'BANCO DE DADOS DEZ-24 SERV'!$B$2:$F$7984),2,FALSE) -> CHAPISCO APLICADO NO TETO OU EM ALVENARIA E ESTRUTURA, COM ROLO PARA TEXTURA ACRÍLICA. ARGAMASSA INDUSTRIALIZADA COM PREPARO MANUAL. AF_10/2022 | J184: =VLOOKUP($G184,IF(LEFT($G184,3)="AMM",COMPOSIÇÕES!$B$1:$E$4233,'BANCO DE DADOS DEZ-24 SERV'!$B$2:$F$7984),3,FALSE) -> M2 | K184: 8 | L184: =VLOOKUP($G184,IF(LEFT($G184,3)="AMM",COMPOSIÇÕES!$B$1:$E$4233,'BANCO DE DADOS DEZ-24 SERV'!$B$2:$F$7984),4,FALSE) -> 13.55 | M184: =IF($Q$2="OUTROS",TRUNC(L184*(1+$N$7),2),ROUND(L184*(1+$N$7),2)) -> 16.56 | N184: =IF($Q$2="OUTROS",TRUNC(M184*K184,2),ROUND(M184*K184,2)) -> 132.48 | P184: CONFORME PROJETO ARQUITETÔNICO | Q184: =F184 -> 11.6
A185: =IF(LEN(D185),OFFSET(A185,-1,0)+1,OFFSET(A185,-1,0)) -> 11 | B185: =IF(OR(C185=1,D185=1),SUMIF($A$25:A185,A185,$C$25:C185),"") -> 7 | C185: =IF(G185>0,1,"") -> 1 | D185: =IF(AND(CONCATENATE(G185,I185,J185,K185,L185,M185,N185)=I185&N185,CONCATENATE(G185,I185,J185,K185,L185,M185,N185)<>"",N185<>""),1,"") ->  | F185: =IF(B185<>"",A185&"."&B185,"") -> 11.7 | G185: 90408 | H185: =IF(G185>="AMM","PRÓPRIO","SINAPI") -> SINAPI | I185: =VLOOKUP($G185,IF(LEFT($G185,3)="AMM",COMPOSIÇÕES!$B$1:$E$4233,'BANCO DE DADOS DEZ-24 SERV'!$B$2:$F$7984),2,FALSE) -> MASSA ÚNICA, EM ARGAMASSA TRAÇO 1:2:8, PREPARO MECÂNICO, APLICADA MANUALMENTE EM TETO, E = 10MM, COM TALISCAS. AF_03/2024 | J185: =VLOOKUP($G185,IF(LEFT($G185,3)="AMM",COMPOSIÇÕES!$B$1:$E$4233,'BANCO DE DADOS DEZ-24 SERV'!$B$2:$F$7984),3,FALSE) -> M2 | K185: 8 | L185: =VLOOKUP($G185,IF(LEFT($G185,3)="AMM",COMPOSIÇÕES!$B$1:$E$4233,'BANCO DE DADOS DEZ-24 SERV'!$B$2:$F$7984),4,FALSE) -> 30.69 | M185: =IF($Q$2="OUTROS",TRUNC(L185*(1+$N$7),2),ROUND(L185*(1+$N$7),2)) -> 37.51 | N185: =IF($Q$2="OUTROS",TRUNC(M185*K185,2),ROUND(M185*K185,2)) -> 300.08 | P185: CONFORME PROJETO ARQUITETÔNICO | Q185: =F185 -> 11.7
A186: 11 | B186: =IF(OR(C186=1,D186=1),SUMIF($A$25:A186,A186,$C$25:C186),"") -> 
A187: 12 | B187: =IF(OR(C187=1,D187=1),SUMIF($A$25:A187,A187,$C$25:C187),"") -> 0 | D187: 1 | F187: 12.0 | I187: PISOS | N187: =SUM(N188:N198) -> 212854.72
A188: 12 | B188: =IF(OR(C188=1,D188=1),SUMIF($A$25:A188,A188,$C$25:C188),"") -> 1 | C188: 1 | F188: =IF(B188<>"",A188&"."&B188,"") -> 12.1 | G188: ='COMPOSIÇÃO CIVIL'!B246 -> CIV 011 | H188: =IF(G188>="AMM","PRÓPRIO","SINAPI") -> PRÓPRIO | I188: ='COMPOSIÇÃO CIVIL'!C246 -> REGULARIZAÇÃO MANUAL | J188: ='COMPOSIÇÃO CIVIL'!G246 -> M2 | K188: =TRUNC(310.22+657.43,2) -> 967.65 | L188: ='COMPOSIÇÃO CIVIL'!G250 -> 6.09 | M188: =IF($Q$2="OUTROS",TRUNC(L188*(1+$N$7),2),ROUND(L188*(1+$N$7),2)) -> 7.44 | N188: =IF($Q$2="OUTROS",TRUNC(M188*K188,2),ROUND(M188*K188,2)) -> 7199.31 | P188: REGULARIZAÇÃO E CAOMPACTAÇÃO PARA A CALÇADA EXTERNA E PARA O LASTRO DE CONCRETO | Q188: =F188 -> 12.1
A189: 12 | B189: =IF(OR(C189=1,D189=1),SUMIF($A$25:A189,A189,$C$25:C189),"") -> 2 | C189: 1 | F189: 12.2 | G189: 97084 | H189: SINAPI | I189: =VLOOKUP($G189,IF(LEFT($G189,3)="AMM",COMPOSIÇÕES!$B$1:$E$4233,'BANCO DE DADOS DEZ-24 SERV'!$B$2:$F$7984),2,FALSE) -> COMPACTAÇÃO MECÂNICA DE SOLO PARA EXECUÇÃO DE RADIER, PISO DE CONCRETO OU LAJE SOBRE SOLO, COM COMPACTADOR DE SOLOS TIPO PLACA VIBRATÓRIA. AF_09/2021 | J189: =VLOOKUP($G189,IF(LEFT($G189,3)="AMM",COMPOSIÇÕES!$B$1:$E$4233,'BANCO DE DADOS DEZ-24 SERV'!$B$2:$F$7984),3,FALSE) -> M2 | K189: =K188 -> 967.65 | L189: =VLOOKUP($G189,IF(LEFT($G189,3)="AMM",COMPOSIÇÕES!$B$1:$E$4233,'BANCO DE DADOS DEZ-24 SERV'!$B$2:$F$7984),4,FALSE) -> 0.66 | M189: 0.8 | N189: 774.12 | P189: =P188 -> REGULARIZAÇÃO E CAOMPACTAÇÃO PARA A CALÇADA EXTERNA E PARA O LASTRO DE CONCRETO | Q189: 12.2
A190: =IF(LEN(D190),OFFSET(A190,-1,0)+1,OFFSET(A190,-1,0)) -> 12 | B190: =IF(OR(C190=1,D190=1),SUMIF($A$25:A190,A190,$C$25:C190),"") -> 3 | C190: =IF(G190>0,1,"") -> 1 | D190: =IF(AND(CONCATENATE(G190,I190,J190,K190,L190,M190,N190)=I190&N190,CONCATENATE(G190,I190,J190,K190,L190,M190,N190)<>"",N190<>""),1,"") ->  | F190: 12.3 | G190: ='COMPOSIÇÃO CIVIL'!B277 -> CIV 014 | H190: PRÓPRIO | I190: ='COMPOSIÇÃO CIVIL'!C277 -> REGULARIZAÇÃO DE PISO- FAROFA (1:3) E = 2 CM | J190: ='COMPOSIÇÃO CIVIL'!G277 -> M2 | K190: =K191+K192+K193 -> 202.25 | L190: ='COMPOSIÇÃO CIVIL'!G285 -> 27.44 | M190: 33.53 | N190: 6781.44 | P190: **AMBIENTES COM TROCA DE PISO | Q190: 12.3
A191: 12 | B191: =IF(OR(C191=1,D191=1),SUMIF($A$25:A191,A191,$C$25:C191),"") -> 4 | C191: 1 | F191: =IF(B191<>"",A191&"."&B191,"") -> 12.4 | G191: 104596 | H191: =IF(G191>="AMM","PRÓPRIO","SINAPI") -> SINAPI | I191: =VLOOKUP($G191,IF(LEFT($G191,3)="AMM",COMPOSIÇÕES!$B$1:$E$4233,'BANCO DE DADOS DEZ-24 SERV'!$B$2:$F$7984),2,FALSE) -> REVESTIMENTO CERÂMICO PARA PISO COM PLACAS TIPO PORCELANATO DE DIMENSÕES 80X80 CM APLICADA EM AMBIENTES DE ÁREA MENOR QUE 5 M². AF_02/2023_PE | J191: =VLOOKUP($G191,IF(LEFT($G191,3)="AMM",COMPOSIÇÕES!$B$1:$E$4233,'BANCO DE DADOS DEZ-24 SERV'!$B$2:$F$7984),3,FALSE) -> M2 | K191: =3.66*2+2.45+4.14*2+1.59+3.45*2+3.48 -> 30.02 | L191: =VLOOKUP($G191,IF(LEFT($G191,3)="AMM",COMPOSIÇÕES!$B$1:$E$4233,'BANCO DE DADOS DEZ-24 SERV'!$B$2:$F$7984),4,FALSE) -> 165.41 | M191: 202.18 | N191: =IF($Q$2="OUTROS",TRUNC(M191*K191,2),ROUND(M191*K191,2)) -> 6069.44 | P191: 3,66*2+2,45+4,14*2+1,59+3,45*2+3,48 | Q191: =F191 -> 12.4
A192: 12 | B192: =IF(OR(C192=1,D192=1),SUMIF($A$25:A192,A192,$C$25:C192),"") -> 5 | C192: 1 | F192: 12.5 | G192: 104597 | H192: SINAPI | I192: =VLOOKUP($G192,IF(LEFT($G192,3)="AMM",COMPOSIÇÕES!$B$1:$E$4233,'BANCO DE DADOS DEZ-24 SERV'!$B$2:$F$7984),2,FALSE) -> REVESTIMENTO CERÂMICO PARA PISO COM PLACAS TIPO PORCELANATO DE DIMENSÕES 80X80 CM APLICADA EM AMBIENTES DE ÁREA ENTRE 5 M² E 10 M². AF_02/2023_PE | J192: =VLOOKUP($G192,IF(LEFT($G192,3)="AMM",COMPOSIÇÕES!$B$1:$E$4233,'BANCO DE DADOS DEZ-24 SERV'!$B$2:$F$7984),3,FALSE) -> M2 | K192: =8.72+5.79+9.29 -> 23.8 | L192: =VLOOKUP($G192,IF(LEFT($G192,3)="AMM",COMPOSIÇÕES!$B$1:$E$4233,'BANCO DE DADOS DEZ-24 SERV'!$B$2:$F$7984),4,FALSE) -> 151.25 | M192: 184.87 | N192: 4399.9 | P192: 8,72+5,79+9,29 | Q192: 12.5
A193: =IF(LEN(D193),OFFSET(A193,-1,0)+1,OFFSET(A193,-1,0)) -> 12 | B193: =IF(OR(C193=1,D193=1),SUMIF($A$25:A193,A193,$C$25:C193),"") -> 6 | C193: =IF(G193>0,1,"") -> 1 | D193: =IF(AND(CONCATENATE(G193,I193,J193,K193,L193,M193,N193)=I193&N193,CONCATENATE(G193,I193,J193,K193,L193,M193,N193)<>"",N193<>""),1,"") ->  | F193: =IF(B193<>"",A193&"."&B193,"") -> 12.6 | G193: 104598 | H193: SINAPI | I193: =VLOOKUP($G193,IF(LEFT($G193,3)="AMM",COMPOSIÇÕES!$B$1:$E$4233,'BANCO DE DADOS DEZ-24 SERV'!$B$2:$F$7984),2,FALSE) -> REVESTIMENTO CERÂMICO PARA PISO COM PLACAS TIPO PORCELANATO DE DIMENSÕES 80X80 CM APLICADA EM AMBIENTES DE ÁREA MAIOR QUE 10 M². AF_02/2023_PE | J193: =VLOOKUP($G193,IF(LEFT($G193,3)="AMM",COMPOSIÇÕES!$B$1:$E$4233,'BANCO DE DADOS DEZ-24 SERV'!$B$2:$F$7984),3,FALSE) -> M2 | K193: =TRUNC(14.17+15.39+14.53+52.44+11.2+11.2+19.2+10.3,2) -> 148.43 | L193: =VLOOKUP($G193,IF(LEFT($G193,3)="AMM",COMPOSIÇÕES!$B$1:$E$4233,'BANCO DE DADOS DEZ-24 SERV'!$B$2:$F$7984),4,FALSE) -> 139.87 | M193: 170.96 | N193: =IF($Q$2="OUTROS",TRUNC(M193*K193,2),ROUND(M193*K193,2)) -> 25375.59 | P193: 14,17+15,39+14,53+52,44+11,2+11,2+19,2+10,3 | Q193: 12.6
A194: 12 | B194: =IF(OR(C194=1,D194=1),SUMIF($A$25:A194,A194,$C$25:C194),"") -> 7 | C194: 1 | F194: =IF(B194<>"",A194&"."&B194,"") -> 12.7 | G194: ='COMPOSIÇÃO CIVIL'!B252 -> CIV 012 | H194: =IF(G194>="AMM","PRÓPRIO","SINAPI") -> PRÓPRIO | I194: ='COMPOSIÇÃO CIVIL'!C252 -> RODAPÉ EM PORCELANATO DE 7CM DE ALTURA DE DIMENSÕES 80X80CM | J194: ='COMPOSIÇÃO CIVIL'!G252 -> M | K194: =TRUNC((4.05*2+3.5*2+4.05*2+3.8*2+4.05+2.9+1.51+0.33+0.96+2.3+4.1+4.8*2+4*2+4*2+2.8*2+6.3+4.78+4.15+4.15+8.3+1.35+17.15+1.25*2+6*2+2.75*2+4.35+0.95*2)-(0.9*2+0.6+0.9*3+1+0.9*2+1.5+4+1.5+1+1+0.9*6+2*2+0.9*2),2) -> 122.48 | L194: ='COMPOSIÇÃO CIVIL'!G261 -> 23.9 | M194: 29.21 | N194: =IF($Q$2="OUTROS",TRUNC(M194*K194,2),ROUND(M194*K194,2)) -> 3577.64 | P194: (4,05*2+3,5*2+4,05*2+3,8*2+4,05+2,9+1,51+0,33+0,96+2,3+4,1+4,8*2+4*2+4*2+2,8*2+6,3+4,78+4,15+4,15+8,3+1,35+17,15+1,25*2+6*2+2,75*2+4,35+0,95*2)-(0,9*2+0,6+0,9*3+1+0,9*2+1,5+4+1,5+1+1+0,9*6+2*2+0,9*2) | Q194: =F194 -> 12.7
A195: 12 | B195: =IF(OR(C195=1,D195=1),SUMIF($A$25:A195,A195,$C$25:C195),"") -> 8 | C195: 1 | F195: 12.8 | G195: 94994 | H195: SINAPI | I195: =VLOOKUP($G195,IF(LEFT($G195,3)="AMM",COMPOSIÇÕES!$B$1:$E$4233,'BANCO DE DADOS DEZ-24 SERV'!$B$2:$F$7984),2,FALSE) -> EXECUÇÃO DE PASSEIO (CALÇADA) OU PISO DE CONCRETO COM CONCRETO MOLDADO IN LOCO, FEITO EM OBRA, ACABAMENTO CONVENCIONAL, ESPESSURA 8 CM, ARMADO. AF_08/2022 | J195: =VLOOKUP($G195,IF(LEFT($G195,3)="AMM",COMPOSIÇÕES!$B$1:$E$4233,'BANCO DE DADOS DEZ-24 SERV'!$B$2:$F$7984),3,FALSE) -> M2 | K195: =K188 -> 967.65 | L195: =VLOOKUP($G195,IF(LEFT($G195,3)="AMM",COMPOSIÇÕES!$B$1:$E$4233,'BANCO DE DADOS DEZ-24 SERV'!$B$2:$F$7984),4,FALSE) -> 112.63 | M195: 137.66 | N195: 133206.69 | P195: CALÇADA EXTERNA + LASTRO DE CONCRETO DE 8CM | Q195: 12.8
A196: =IF(LEN(D196),OFFSET(A196,-1,0)+1,OFFSET(A196,-1,0)) -> 12 | B196: =IF(OR(C196=1,D196=1),SUMIF($A$25:A196,A196,$C$25:C196),"") ->  | C196: =IF(G196>0,1,"") ->  | D196: =IF(AND(CONCATENATE(G196,I196,J196,K196,L196,M196,N196)=I196&N196,CONCATENATE(G196,I196,J196,K196,L196,M196,N196)<>"",N196<>""),1,"") ->  | F196: =IF(B196<>"",A196&"."&B196,"") ->  | I196: MEIO-FIO
A197: 12 | B197: =IF(OR(C197=1,D197=1),SUMIF($A$25:A197,A197,$C$25:C197),"") -> 9 | C197: 1 | F197: =IF(B197<>"",A197&"."&B197,"") -> 12.9 | G197: 94266 | H197: =IF(G197>="AMM","PRÓPRIO","SINAPI") -> SINAPI | I197: =VLOOKUP($G197,IF(LEFT($G197,3)="AMM",COMPOSIÇÕES!$B$1:$E$4233,'BANCO DE DADOS DEZ-24 SERV'!$B$2:$F$7984),2,FALSE) -> GUIA (MEIO-FIO) CONCRETO, MOLDADA IN LOCO EM TRECHO CURVO COM EXTRUSORA, 15 CM BASE X 30 CM ALTURA. AF_01/2024 | J197: =VLOOKUP($G197,IF(LEFT($G197,3)="AMM",COMPOSIÇÕES!$B$1:$E$4233,'BANCO DE DADOS DEZ-24 SERV'!$B$2:$F$7984),3,FALSE) -> M | K197: =TRUNC(4.06/0.15,2) -> 27.06 | L197: =VLOOKUP($G197,IF(LEFT($G197,3)="AMM",COMPOSIÇÕES!$B$1:$E$4233,'BANCO DE DADOS DEZ-24 SERV'!$B$2:$F$7984),4,FALSE) -> 61.07 | M197: =IF($Q$2="OUTROS",TRUNC(L197*(1+$N$7),2),ROUND(L197*(1+$N$7),2)) -> 74.64 | N197: =IF($Q$2="OUTROS",TRUNC(M197*K197,2),ROUND(M197*K197,2)) -> 2019.75 | P197: 4,06/0,15 **METRO LINEAR DO MEIO-FIO | Q197: =F197 -> 12.9
A198: 12 | B198: =IF(OR(C198=1,D198=1),SUMIF($A$25:A198,A198,$C$25:C198),"") -> 10 | C198: 1 | F198: 12.10 | G198: 94265 | H198: SINAPI | I198: =VLOOKUP($G198,IF(LEFT($G198,3)="AMM",COMPOSIÇÕES!$B$1:$E$4233,'BANCO DE DADOS DEZ-24 SERV'!$B$2:$F$7984),2,FALSE) -> GUIA (MEIO-FIO) CONCRETO, MOLDADA IN LOCO EM TRECHO RETO COM EXTRUSORA, 15 CM BASE X 30 CM ALTURA. AF_01/2024 | J198: =VLOOKUP($G198,IF(LEFT($G198,3)="AMM",COMPOSIÇÕES!$B$1:$E$4233,'BANCO DE DADOS DEZ-24 SERV'!$B$2:$F$7984),3,FALSE) -> M | K198: =TRUNC(51.24/0.15,2) -> 341.6 | L198: =VLOOKUP($G198,IF(LEFT($G198,3)="AMM",COMPOSIÇÕES!$B$1:$E$4233,'BANCO DE DADOS DEZ-24 SERV'!$B$2:$F$7984),4,FALSE) -> 56.17 | M198: =IF($Q$2="OUTROS",TRUNC(L198*(1+$N$7),2),ROUND(L198*(1+$N$7),2)) -> 68.65 | N198: =IF($Q$2="OUTROS",TRUNC(M198*K198,2),ROUND(M198*K198,2)) -> 23450.84 | P198: 51,24/0,15 **METRO LINEAR DO MEIO-FIO | Q198: =F198 -> 12.10
A199: 12 | B199: =IF(OR(C199=1,D199=1),SUMIF($A$25:A199,A199,$C$25:C199),"") ->  | F199: =IF(B199<>"",A199&"."&B199,"") -> 
A200: 13 | B200: =IF(OR(C200=1,D200=1),SUMIF($A$25:A200,A200,$C$25:C200),"") -> 0 | D200: 1 | F200: 13.0 | I200: FORRO | N200: =SUM(N201:N202) -> 20298.92
A201: 13 | B201: =IF(OR(C201=1,D201=1),SUMIF($A$25:A201,A201,$C$25:C201),"") -> 1 | C201: 1 | F201: 13.1 | G201: 96113 | H201: =IF(G201>="AMM","PRÓPRIO","SINAPI") -> SINAPI | I201: =VLOOKUP($G201,IF(LEFT($G201,3)="AMM",COMPOSIÇÕES!$B$1:$E$4233,'BANCO DE DADOS DEZ-24 SERV'!$B$2:$F$7984),2,FALSE) -> FORRO EM PLACAS DE GESSO, PARA AMBIENTES COMERCIAIS. AF_08/2023_PS | J201: =VLOOKUP($G201,IF(LEFT($G201,3)="AMM",COMPOSIÇÕES!$B$1:$E$4233,'BANCO DE DADOS DEZ-24 SERV'!$B$2:$F$7984),3,FALSE) -> M2 | K201: =TRUNC(3.66*2+3.48+5.79+10.3+8.72+4.14*2+1.59+14.53+15.39+14.17+11.2+52.44+11.2+19.2+3.45*2,2) -> 190.51 | L201: =VLOOKUP($G201,IF(LEFT($G201,3)="AMM",COMPOSIÇÕES!$B$1:$E$4233,'BANCO DE DADOS DEZ-24 SERV'!$B$2:$F$7984),4,FALSE) -> 45.97 | M201: =IF($Q$2="OUTROS",TRUNC(L201*(1+$N$7),2),ROUND(L201*(1+$N$7),2)) -> 56.18 | N201: =IF($Q$2="OUTROS",TRUNC(M201*K201,2),ROUND(M201*K201,2)) -> 10702.85 | P201: 3,66*2+3,48+5,79+10,3+8,72+4,14*2+1,59+14,53+15,39+14,17+11,2+52,44+11,2+19,2+3,45*2 | Q201: =F201 -> 13.1
A202: 13 | B202: =IF(OR(C202=1,D202=1),SUMIF($A$25:A202,A202,$C$25:C202),"") -> 2 | C202: 1 | F202: 13.2 | G202: 96116 | H202: SINAPI | I202: =VLOOKUP($G202,IF(LEFT($G202,3)="AMM",COMPOSIÇÕES!$B$1:$E$4233,'BANCO DE DADOS DEZ-24 SERV'!$B$2:$F$7984),2,FALSE) -> FORRO EM RÉGUAS DE PVC, FRISADO, PARA AMBIENTES COMERCIAIS, INCLUSIVE ESTRUTURA BIDIRECIONAL DE FIXAÇÃO. AF_08/2023_PS | J202: =VLOOKUP($G202,IF(LEFT($G202,3)="AMM",COMPOSIÇÕES!$B$1:$E$4233,'BANCO DE DADOS DEZ-24 SERV'!$B$2:$F$7984),3,FALSE) -> M2 | K202: =TRUNC(54.53+62.97+2.45+9.29,2) -> 129.24 | L202: =VLOOKUP($G202,IF(LEFT($G202,3)="AMM",COMPOSIÇÕES!$B$1:$E$4233,'BANCO DE DADOS DEZ-24 SERV'!$B$2:$F$7984),4,FALSE) -> 60.75 | M202: =IF($Q$2="OUTROS",TRUNC(L202*(1+$N$7),2),ROUND(L202*(1+$N$7),2)) -> 74.25 | N202: 9596.07 | P202: 54,53+62,97+2,45+9,29 | Q202: 13.2
A203: 13 | B203: =IF(OR(C203=1,D203=1),SUMIF($A$25:A203,A203,$C$25:C203),"") -> 
A204: 14 | B204: =IF(OR(C204=1,D204=1),SUMIF($A$25:A204,A204,$C$25:C204),"") -> 0 | D204: 1 | F204: 14.0 | I204: INSTALAÇÕES HIDROSSANITÁRIAS | N204: =SUM(N205:N311) -> 95691.28 | O204: VER ITENS QUE VAI SER COTADO COM MÃO DE OBRA E COLOCAR BDI DIF
A205: 14 | B205: =IF(OR(C205=1,D205=1),SUMIF($A$25:A205,A205,$C$25:C205),"") ->  | I205: INSTALAÇÕES DE ÁGUA FRIA
A206: 14 | B206: =IF(OR(C206=1,D206=1),SUMIF($A$25:A206,A206,$C$25:C206),"") ->  | I206: ALIMENTAÇÃO
A207: 14 | B207: =IF(OR(C207=1,D207=1),SUMIF($A$25:A207,A207,$C$25:C207),"") -> 1 | C207: 1 | F207: 14.1 | G207: 95675 | H207: =IF(G207>="AMM","PRÓPRIO","SINAPI") -> SINAPI | I207: =VLOOKUP($G207,IF(LEFT($G207,3)="AMM",COMPOSIÇÕES!$B$1:$E$4233,'BANCO DE DADOS DEZ-24 SERV'!$B$2:$F$7984),2,FALSE) -> HIDRÔMETRO DN 3/4", 5,0 M3/H - FORNECIMENTO E INSTALAÇÃO. AF_03/2024 | J207: =VLOOKUP($G207,IF(LEFT($G207,3)="AMM",COMPOSIÇÕES!$B$1:$E$4233,'BANCO DE DADOS DEZ-24 SERV'!$B$2:$F$7984),3,FALSE) -> UN | K207: 1 | L207: =VLOOKUP($G207,IF(LEFT($G207,3)="AMM",COMPOSIÇÕES!$B$1:$E$4233,'BANCO DE DADOS DEZ-24 SERV'!$B$2:$F$7984),4,FALSE) -> 146.98 | M207: =IF($Q$2="OUTROS",TRUNC(L207*(1+$N$7),2),ROUND(L207*(1+$N$7),2)) -> 179.65 | N207: =IF($Q$2="OUTROS",TRUNC(M207*K207,2),ROUND(M207*K207,2)) -> 179.65
... 331 more rows

Sheet COMPOSIÇÃO CIVIL
B4: R.N.DIAS CONSULTORIA E PROJETO ME
B5: CNPJ: 40.600.695/0001-67
B9: DADOS DA OBRA
B10: Objeto: “REFORMA E AMPLIAÇÃO CIRETRAN PEDRA PRETA - MT" | F10: BDI: | G10: 22,23%
B11: Endereço: RUA AMAMBAL, S/N - PEDRA PRETA - MT | F11: DATA: | G11: =TODAY() -> 2025-01-28
B12: Cidade: PEDRA PRETA - MT
B14: ='PLANILHA ORÇAMENTÁRIA'!F20 -> FONTE SINAPI DEZEMBRO/2024 SEM DESONERAÇÃO
B15: COMPOSIÇÃO DE CUSTOS UNITÁRIOS - CIVIL
B17: CIV 001 | C17: ADMINISTRAÇÃO LOCAL | G17: UN | H17: =G25 -> 42981.9
B18: SINAPI ou Cot. De Mercado | C18: COMPONENTES | D18: UN | E18: Quantidade | F18: Custos Unit. (R$) | G18: Custos Total (R$)
B19: MÃO DE OBRA
A20: SERVIÇO | B20: 100289 | C20: =IF($A20="INSUMO",VLOOKUP($B20,'BANCO DE DADOS DEZ-24 INS'!$A:$D,2,FALSE),VLOOKUP($B20,'BANCO DE DADOS DEZ-24 SERV'!$B:$E,2,FALSE)) -> VIGIA DIURNO COM ENCARGOS COMPLEMENTARES | D20: =IF($A20="INSUMO",VLOOKUP($B20,'BANCO DE DADOS DEZ-24 INS'!$A:$D,3,FALSE),VLOOKUP($B20,'BANCO DE DADOS DEZ-24 SERV'!$B:$E,3,FALSE)) -> H | E20: =8*2*4*6 -> 384 | F20: =IF($A20="INSUMO",VLOOKUP($B20,'BANCO DE DADOS DEZ-24 INS'!$A:$D,4,FALSE),VLOOKUP($B20,'BANCO DE DADOS DEZ-24 SERV'!$B:$E,4,FALSE)) -> 20.59 | G20: =TRUNC(E20*F20,2) -> 7906.56
A21: SERVIÇO | B21: 90776 | C21: =IF($A21="INSUMO",VLOOKUP($B21,'BANCO DE DADOS DEZ-24 INS'!$A:$D,2,FALSE),VLOOKUP($B21,'BANCO DE DADOS DEZ-24 SERV'!$B:$E,2,FALSE)) -> ENCARREGADO GERAL COM ENCARGOS COMPLEMENTARES | D21: =IF($A21="INSUMO",VLOOKUP($B21,'BANCO DE DADOS DEZ-24 INS'!$A:$D,3,FALSE),VLOOKUP($B21,'BANCO DE DADOS DEZ-24 SERV'!$B:$E,3,FALSE)) -> H | E21: =8*4*4*6 -> 768 | F21: =IF($A21="INSUMO",VLOOKUP($B21,'BANCO DE DADOS DEZ-24 INS'!$A:$D,4,FALSE),VLOOKUP($B21,'BANCO DE DADOS DEZ-24 SERV'!$B:$E,4,FALSE)) -> 29.84 | G21: 22917.12
A22: SERVIÇO | B22: 100309 | C22: =IF($A22="INSUMO",VLOOKUP($B22,'BANCO DE DADOS DEZ-24 INS'!$A:$D,2,FALSE),VLOOKUP($B22,'BANCO DE DADOS DEZ-24 SERV'!$B:$E,2,FALSE)) -> TÉCNICO EM SEGURANÇA DO TRABALHO COM ENCARGOS COMPLEMENTARES | D22: =IF($A22="INSUMO",VLOOKUP($B22,'BANCO DE DADOS DEZ-24 INS'!$A:$D,3,FALSE),VLOOKUP($B22,'BANCO DE DADOS DEZ-24 SERV'!$B:$E,3,FALSE)) -> H | E22: =1*1*3*6 -> 18 | F22: =IF($A22="INSUMO",VLOOKUP($B22,'BANCO DE DADOS DEZ-24 INS'!$A:$D,4,FALSE),VLOOKUP($B22,'BANCO DE DADOS DEZ-24 SERV'!$B:$E,4,FALSE)) -> 29.71 | G22: 534.78
A23: SERVIÇO | B23: 90780 | C23: =IF($A23="INSUMO",VLOOKUP($B23,'BANCO DE DADOS DEZ-24 INS'!$A:$D,2,FALSE),VLOOKUP($B23,'BANCO DE DADOS DEZ-24 SERV'!$B:$E,2,FALSE)) -> MESTRE DE OBRAS COM ENCARGOS COMPLEMENTARES | D23: =IF($A23="INSUMO",VLOOKUP($B23,'BANCO DE DADOS DEZ-24 INS'!$A:$D,3,FALSE),VLOOKUP($B23,'BANCO DE DADOS DEZ-24 SERV'!$B:$E,3,FALSE)) -> H | E23: =2*3*4*6 -> 144 | F23: =IF($A23="INSUMO",VLOOKUP($B23,'BANCO DE DADOS DEZ-24 INS'!$A:$D,4,FALSE),VLOOKUP($B23,'BANCO DE DADOS DEZ-24 SERV'!$B:$E,4,FALSE)) -> 61.24 | G23: =TRUNC(E23*F23,2) -> 8818.56
A24: SERVIÇO | B24: 90777 | C24: =IF($A24="INSUMO",VLOOKUP($B24,'BANCO DE DADOS DEZ-24 INS'!$A:$D,2,FALSE),VLOOKUP($B24,'BANCO DE DADOS DEZ-24 SERV'!$B:$E,2,FALSE)) -> ENGENHEIRO CIVIL DE OBRA JUNIOR COM ENCARGOS COMPLEMENTARES | D24: =IF($A24="INSUMO",VLOOKUP($B24,'BANCO DE DADOS DEZ-24 INS'!$A:$D,3,FALSE),VLOOKUP($B24,'BANCO DE DADOS DEZ-24 SERV'!$B:$E,3,FALSE)) -> H | E24: =1*1*4*6 -> 24 | F24: =IF($A24="INSUMO",VLOOKUP($B24,'BANCO DE DADOS DEZ-24 INS'!$A:$D,4,FALSE),VLOOKUP($B24,'BANCO DE DADOS DEZ-24 SERV'!$B:$E,4,FALSE)) -> 116.87 | G24: =TRUNC(E24*F24,2) -> 2804.88
F25: Total | G25: =SUM(G20:G24) -> 42981.9
B27: MEMÓRIA DE CÁLCULO - ADMINISTRAÇÃO LOCAL
B28: COMPONENTES | D28: UN | E28: CÁLCULO
B29: M A T E R I A L
B30: =C20 -> VIGIA DIURNO COM ENCARGOS COMPLEMENTARES | E30: 8HR*2DIAS*4SEMANAS*6MESES | H30: =CONCATENATE(B30,":"," ",E30," ",B31,":"," ",E31," ",B32,":"," ",E32," ",B33,":"," ",E33," ",B34,":"," ",E34) -> VIGIA DIURNO COM ENCARGOS COMPLEMENTARES: 8HR*2DIAS*4SEMANAS*6MESES ENCARREGADO GERAL COM ENCARGOS COMPLEMENTARES: 8HR*4DIAS*4SEMANAS*6MESES TÉCNICO EM SEGURANÇA DO TRABALHO COM ENCARGOS COMPLEMENTARES: 1HR*1DIAS*3SEMANAS*6MESES MESTRE DE OBRAS COM ENCARGOS COMPLEMENTARES: 2HR*3DIAS*4SEMANAS*6MESES ENGENHEIRO CIVIL DE OBRA JUNIOR COM ENCARGOS COMPLEMENTARES: 1HR*1DIAS*4SEMANAS*6MESES
B31: =C21 -> ENCARREGADO GERAL COM ENCARGOS COMPLEMENTARES | E31: 8HR*4DIAS*4SEMANAS*6MESES
B32: =C22 -> TÉCNICO EM SEGURANÇA DO TRABALHO COM ENCARGOS COMPLEMENTARES | E32: 1HR*1DIAS*3SEMANAS*6MESES
B33: =C23 -> MESTRE DE OBRAS COM ENCARGOS COMPLEMENTARES | E33: 2HR*3DIAS*4SEMANAS*6MESES
B34: =C24 -> ENGENHEIRO CIVIL DE OBRA JUNIOR COM ENCARGOS COMPLEMENTARES | E34: 1HR*1DIAS*4SEMANAS*6MESES
B36: CIV 002 | C36: DEMOLIÇÃO DE PISO DE ALTA RESISTÊNCIA | G36: M2 | H36: =G41 -> 22.88
B37: SINAPI ou Cot. De Mercado | C37: COMPONENTES | D37: UN | E37: Quantidade | F37: Custos Unit. (R$) | G37: Custos Total (R$)
B38: M Ã O D E O B R A
A39: SERVIÇO | B39: 88309 | C39: =IF($A39="INSUMO",VLOOKUP($B39,'BANCO DE DADOS DEZ-24 INS'!$A:$D,2,FALSE),VLOOKUP($B39,'BANCO DE DADOS DEZ-24 SERV'!$B:$E,2,FALSE)) -> PEDREIRO COM ENCARGOS COMPLEMENTARES | D39: =IF($A39="INSUMO",VLOOKUP($B39,'BANCO DE DADOS DEZ-24 INS'!$A:$D,3,FALSE),VLOOKUP($B39,'BANCO DE DADOS DEZ-24 SERV'!$B:$E,3,FALSE)) -> H | E39: 0.1 | F39: =IF($A39="INSUMO",VLOOKUP($B39,'BANCO DE DADOS DEZ-24 INS'!$A:$D,4,FALSE),VLOOKUP($B39,'BANCO DE DADOS DEZ-24 SERV'!$B:$E,4,FALSE)) -> 25.62 | G39: =F39*E39 -> 2.562
A40: SERVIÇO | B40: 88316 | C40: =IF($A40="INSUMO",VLOOKUP($B40,'BANCO DE DADOS DEZ-24 INS'!$A:$D,2,FALSE),VLOOKUP($B40,'BANCO DE DADOS DEZ-24 SERV'!$B:$E,2,FALSE)) -> SERVENTE COM ENCARGOS COMPLEMENTARES | D40: =IF($A40="INSUMO",VLOOKUP($B40,'BANCO DE DADOS DEZ-24 INS'!$A:$D,3,FALSE),VLOOKUP($B40,'BANCO DE DADOS DEZ-24 SERV'!$B:$E,3,FALSE)) -> H | E40: 1 | F40: =IF($A40="INSUMO",VLOOKUP($B40,'BANCO DE DADOS DEZ-24 INS'!$A:$D,4,FALSE),VLOOKUP($B40,'BANCO DE DADOS DEZ-24 SERV'!$B:$E,4,FALSE)) -> 20.32 | G40: =F40*E40 -> 20.32
B41: **COMPOSIÇÃO BASEADA NA TABELA ORSE - CÓDIGO 3240 - (NOVEMBRO/2023) | F41: TOTAL | G41: =TRUNC(SUM(G38:G40),2) -> 22.88
B43: CIV 003 | C43: REMOÇÃO DE ESTRUTURA METÁLICA CHUMBADA EM CONCRETO (ALAMBRADO, GUARDA-CORPO) | G43: M2 | H43: =G47 -> 60.96
B44: SINAPI ou Cot. De Mercado | C44: COMPONENTES | D44: UN | E44: Quantidade | F44: Custos Unit. (R$) | G44: Custos Total (R$)
B45: MÃO DE OBRA
A46: SERVIÇO | B46: 88316 | C46: =IF($A46="INSUMO",VLOOKUP($B46,'BANCO DE DADOS DEZ-24 INS'!$A:$D,2,FALSE),VLOOKUP($B46,'BANCO DE DADOS DEZ-24 SERV'!$B:$E,2,FALSE)) -> SERVENTE COM ENCARGOS COMPLEMENTARES | D46: =IF($A46="INSUMO",VLOOKUP($B46,'BANCO DE DADOS DEZ-24 INS'!$A:$D,3,FALSE),VLOOKUP($B46,'BANCO DE DADOS DEZ-24 SERV'!$B:$E,3,FALSE)) -> H | E46: 3 | F46: =IF($A46="INSUMO",VLOOKUP($B46,'BANCO DE DADOS DEZ-24 INS'!$A:$D,4,FALSE),VLOOKUP($B46,'BANCO DE DADOS DEZ-24 SERV'!$B:$E,4,FALSE)) -> 20.32 | G46: =TRUNC(E46*F46,2) -> 60.96
B47: **COMPOSIÇÃO BASEADA NA TABELA ORSE - CÓDIGO 00227 - (NOVEMBRO/2023) | F47: Total | G47: =TRUNC(SUM(G45:G46),2) -> 60.96
B49: CIV 004 | C49: PLACA CIMENTÍCIA E =6MM, PARA FECHAMENTO DA FACHADA (1 LADO/FACE), JUNTAS APARENTES, FIXADA EM ESTRUTURA METÁLICA, EXCLUSIVE ESTA (FORNECIMENTO E ASSENTAMENTO) | G49: M2 | H49: =G59 -> 78.75
B50: SINAPI ou Cot. De Mercado | C50: COMPONENTES | D50: UN | E50: Quantidade | F50: Custos Unit. (R$) | G50: Custos Total (R$)
B51: MATERIAIS
A52: INSUMO | B52: 40547 | C52: =IF($A52="INSUMO",VLOOKUP($B52,'BANCO DE DADOS DEZ-24 INS'!$A:$D,2,FALSE),VLOOKUP($B52,'BANCO DE DADOS DEZ-24 SERV'!$B:$E,2,FALSE)) -> PARAFUSO ZINCADO, AUTOBROCANTE, FLANGEADO, 4,2 MM X 19 MM | D52: =IF($A52="INSUMO",VLOOKUP($B52,'BANCO DE DADOS DEZ-24 INS'!$A:$D,3,FALSE),VLOOKUP($B52,'BANCO DE DADOS DEZ-24 SERV'!$B:$E,3,FALSE)) -> CENTO | E52: 0.15 | F52: =IF($A52="INSUMO",VLOOKUP($B52,'BANCO DE DADOS DEZ-24 INS'!$A:$D,4,FALSE),VLOOKUP($B52,'BANCO DE DADOS DEZ-24 SERV'!$B:$E,4,FALSE)) -> 28.03 | G52: =TRUNC(E52*F52,2) -> 4.2
A53: INSUMO | B53: 44073 | C53: =IF($A53="INSUMO",VLOOKUP($B53,'BANCO DE DADOS DEZ-24 INS'!$A:$D,2,FALSE),VLOOKUP($B53,'BANCO DE DADOS DEZ-24 SERV'!$B:$E,2,FALSE)) -> TARUGO DELIMITADOR DE PROFUNDIDADE EM ESPUMA DE POLIETILENO DE BAIXA DENSIDADE 10 MM, CINZA | D53: =IF($A53="INSUMO",VLOOKUP($B53,'BANCO DE DADOS DEZ-24 INS'!$A:$D,3,FALSE),VLOOKUP($B53,'BANCO DE DADOS DEZ-24 SERV'!$B:$E,3,FALSE)) -> M | E53: 1.23 | F53: =IF($A53="INSUMO",VLOOKUP($B53,'BANCO DE DADOS DEZ-24 INS'!$A:$D,4,FALSE),VLOOKUP($B53,'BANCO DE DADOS DEZ-24 SERV'!$B:$E,4,FALSE)) -> 0.72 | G53: =TRUNC(E53*F53,2) -> 0.88
A54: INSUMO | B54: 142 | C54: =IF($A54="INSUMO",VLOOKUP($B54,'BANCO DE DADOS DEZ-24 INS'!$A:$D,2,FALSE),VLOOKUP($B54,'BANCO DE DADOS DEZ-24 SERV'!$B:$E,2,FALSE)) -> SELANTE ELASTICO MONOCOMPONENTE A BASE DE POLIURETANO (PU) PARA JUNTAS DIVERSAS | D54: =IF($A54="INSUMO",VLOOKUP($B54,'BANCO DE DADOS DEZ-24 INS'!$A:$D,3,FALSE),VLOOKUP($B54,'BANCO DE DADOS DEZ-24 SERV'!$B:$E,3,FALSE)) -> 310ML | E54: 0.1226 | F54: =IF($A54="INSUMO",VLOOKUP($B54,'BANCO DE DADOS DEZ-24 INS'!$A:$D,4,FALSE),VLOOKUP($B54,'BANCO DE DADOS DEZ-24 SERV'!$B:$E,4,FALSE)) -> 36.4 | G54: =TRUNC(E54*F54,2) -> 4.46
A55: INSUMO | B55: 11063 | C55: =IF($A55="INSUMO",VLOOKUP($B55,'BANCO DE DADOS DEZ-24 INS'!$A:$D,2,FALSE),VLOOKUP($B55,'BANCO DE DADOS DEZ-24 SERV'!$B:$E,2,FALSE)) -> PLACA CIMENTICIA LISA E = 6 MM, DE 1,20 X *2,50* M (SEM AMIANTO) | D55: =IF($A55="INSUMO",VLOOKUP($B55,'BANCO DE DADOS DEZ-24 INS'!$A:$D,3,FALSE),VLOOKUP($B55,'BANCO DE DADOS DEZ-24 SERV'!$B:$E,3,FALSE)) -> M2 | E55: 1.05 | F55: =IF($A55="INSUMO",VLOOKUP($B55,'BANCO DE DADOS DEZ-24 INS'!$A:$D,4,FALSE),VLOOKUP($B55,'BANCO DE DADOS DEZ-24 SERV'!$B:$E,4,FALSE)) -> 32.75 | G55: =TRUNC(E55*F55,2) -> 34.38
B56: MÃO DE OBRA
A57: SERVIÇO | B57: 88309 | C57: =IF($A57="INSUMO",VLOOKUP($B57,'BANCO DE DADOS DEZ-24 INS'!$A:$D,2,FALSE),VLOOKUP($B57,'BANCO DE DADOS DEZ-24 SERV'!$B:$E,2,FALSE)) -> PEDREIRO COM ENCARGOS COMPLEMENTARES | D57: =IF($A57="INSUMO",VLOOKUP($B57,'BANCO DE DADOS DEZ-24 INS'!$A:$D,3,FALSE),VLOOKUP($B57,'BANCO DE DADOS DEZ-24 SERV'!$B:$E,3,FALSE)) -> H | E57: 0.7 | F57: =IF($A57="INSUMO",VLOOKUP($B57,'BANCO DE DADOS DEZ-24 INS'!$A:$D,4,FALSE),VLOOKUP($B57,'BANCO DE DADOS DEZ-24 SERV'!$B:$E,4,FALSE)) -> 25.62 | G57: =TRUNC(E57*F57,2) -> 17.93
A58: SERVIÇO | B58: 88261 | C58: =IF($A58="INSUMO",VLOOKUP($B58,'BANCO DE DADOS DEZ-24 INS'!$A:$D,2,FALSE),VLOOKUP($B58,'BANCO DE DADOS DEZ-24 SERV'!$B:$E,2,FALSE)) -> CARPINTEIRO DE ESQUADRIA COM ENCARGOS COMPLEMENTARES | D58: =IF($A58="INSUMO",VLOOKUP($B58,'BANCO DE DADOS DEZ-24 INS'!$A:$D,3,FALSE),VLOOKUP($B58,'BANCO DE DADOS DEZ-24 SERV'!$B:$E,3,FALSE)) -> H | E58: 0.7 | F58: =IF($A58="INSUMO",VLOOKUP($B58,'BANCO DE DADOS DEZ-24 INS'!$A:$D,4,FALSE),VLOOKUP($B58,'BANCO DE DADOS DEZ-24 SERV'!$B:$E,4,FALSE)) -> 24.15 | G58: =TRUNC(E58*F58,2) -> 16.9
B59: **COMPOSIÇÃO BASEADA NA TABELA ORSE CÓDIGO 12828 - (NOVEMBRO/2023) | F59: Total | G59: =TRUNC(SUM(G52:G58),2) -> 78.75
B60: O INSUMO DE CÓDIGO 40547 (PARAFUSO ZINCADO) POSSUI UNIDADE DE MEDIDA DIFERENTE DA REFERÊNCIA UTILIZADA PARA ELABORAÇÃO DESTA COMPOSIÇÃO, PORTANTO SE FAZ NECESSÁRIA A CONVERSÃO DE UNIDADES CONFORME APRESENTADO NO CÁLCULO ABAIXO.
B61: 1 CENTO ----------- 100UN X -------------- 15UN x: 0,15 CENTO
B62: O INSUMO DE CÓDIGO 142 (SELANTE ELASTICO) POSSUI UNIDADE DE MEDIDA DIFERENTE DA REFERÊNCIA UTILIZADA PARA ELABORAÇÃO DESTA COMPOSIÇÃO, PORTANTO SE FAZ NECESSÁRIA A CONVERSÃO DE UNIDADES CONFORME APRESENTADO NO CÁLCULO ABAIXO.
B63: 1 KG ----------- 1000 ML 0,038 KG -------------- X X: 38 ML 310 ML ----------- 1 UND 38 ML ---------- X X: 0,1226 UND
B65: CIV 005 | C65: FORNECIMENTO E INSTALAÇÃO DE REVESTIMENTO EM CHAPA DE ACM | G65: M2 | H65: =G77 -> 617.53
B66: SINAPI ou Cot. De Mercado | C66: COMPONENTES | D66: UN | E66: Quantidade | F66: Custos Unit. (R$) | G66: Custos Total (R$)
B67: M A T E R I A L
A68: INSUMO | B68: COTAÇÃO | C68: =C79 -> PARAFUSO AUTOBROCANTE 12X38MM COM ARRUELA DE VEDAÇÃO | D68: =G79 -> UN | E68: 6.2725 | F68: =D84 -> 0.321076 | G68: =TRUNC(E68*F68,2) -> 2.01
A69: INSUMO | B69: 5104 | C69: =IF($A69="INSUMO",VLOOKUP($B69,'BANCO DE DADOS DEZ-24 INS'!$A:$D,2,FALSE),VLOOKUP($B69,'BANCO DE DADOS DEZ-24 SERV'!$B:$E,2,FALSE)) -> REBITE DE REPUXO EM ALUMINIO VAZADO, DIAMETRO 3,2 X 8 MM DE COMPRIMENTO (1KG = 1025 UNIDADES) | D69: =IF($A69="INSUMO",VLOOKUP($B69,'BANCO DE DADOS DEZ-24 INS'!$A:$D,3,FALSE),VLOOKUP($B69,'BANCO DE DADOS DEZ-24 SERV'!$B:$E,3,FALSE)) -> KG | E69: 1.5054 | F69: =IF($A69="INSUMO",VLOOKUP($B69,'BANCO DE DADOS DEZ-24 INS'!$A:$D,4,FALSE),VLOOKUP($B69,'BANCO DE DADOS DEZ-24 SERV'!$B:$E,4,FALSE)) -> 71.89 | G69: 108.22
A70: INSUMO | B70: 39961 | C70: =IF($A70="INSUMO",VLOOKUP($B70,'BANCO DE DADOS DEZ-24 INS'!$A:$D,2,FALSE),VLOOKUP($B70,'BANCO DE DADOS DEZ-24 SERV'!$B:$E,2,FALSE)) -> SILICONE ACETICO USO GERAL INCOLOR 280 G | D70: =IF($A70="INSUMO",VLOOKUP($B70,'BANCO DE DADOS DEZ-24 INS'!$A:$D,3,FALSE),VLOOKUP($B70,'BANCO DE DADOS DEZ-24 SERV'!$B:$E,3,FALSE)) -> UN | E70: 2.12495 | F70: =IF($A70="INSUMO",VLOOKUP($B70,'BANCO DE DADOS DEZ-24 INS'!$A:$D,4,FALSE),VLOOKUP($B70,'BANCO DE DADOS DEZ-24 SERV'!$B:$E,4,FALSE)) -> 24.05 | G70: 51.1
A71: INSUMO | B71: 44073 | C71: =IF($A71="INSUMO",VLOOKUP($B71,'BANCO DE DADOS DEZ-24 INS'!$A:$D,2,FALSE),VLOOKUP($B71,'BANCO DE DADOS DEZ-24 SERV'!$B:$E,2,FALSE)) -> TARUGO DELIMITADOR DE PROFUNDIDADE EM ESPUMA DE POLIETILENO DE BAIXA DENSIDADE 10 MM, CINZA | D71: =IF($A71="INSUMO",VLOOKUP($B71,'BANCO DE DADOS DEZ-24 INS'!$A:$D,3,FALSE),VLOOKUP($B71,'BANCO DE DADOS DEZ-24 SERV'!$B:$E,3,FALSE)) -> M | E71: 1.275 | F71: =IF($A71="INSUMO",VLOOKUP($B71,'BANCO DE DADOS DEZ-24 INS'!$A:$D,4,FALSE),VLOOKUP($B71,'BANCO DE DADOS DEZ-24 SERV'!$B:$E,4,FALSE)) -> 0.72 | G71: 0.91
A72: INSUMO | B72: =B93 -> COTAÇÃO | C72: =C93 -> PLACA EM ACM (POR M2) | D72: =G93 -> M2 | E72: 1.3 | F72: =D98 -> 62.29508197 | G72: 80.98
A73: INSUMO | B73: 592 | C73: =IF($A73="INSUMO",VLOOKUP($B73,'BANCO DE DADOS DEZ-24 INS'!$A:$D,2,FALSE),VLOOKUP($B73,'BANCO DE DADOS DEZ-24 SERV'!$B:$E,2,FALSE)) -> CANTONEIRA EM ALUMINIO, ABAS IGUAIS, LARGURA DE 25,40 MM (1"), ESPESSURA DE 3,17 MM (1/8") E PESO LINEAR DE APROXIMADAMENTE 0,408 KG/M | D73: =IF($A73="INSUMO",VLOOKUP($B73,'BANCO DE DADOS DEZ-24 INS'!$A:$D,3,FALSE),VLOOKUP($B73,'BANCO DE DADOS DEZ-24 SERV'!$B:$E,3,FALSE)) -> KG | E73: 2.4835 | F73: =IF($A73="INSUMO",VLOOKUP($B73,'BANCO DE DADOS DEZ-24 INS'!$A:$D,4,FALSE),VLOOKUP($B73,'BANCO DE DADOS DEZ-24 SERV'!$B:$E,4,FALSE)) -> 37.8 | G73: 93.87
B74: MÃO DE OBRA
A75: SERVIÇO | B75: 88315 | C75: =IF($A75="INSUMO",VLOOKUP($B75,'BANCO DE DADOS DEZ-24 INS'!$A:$D,2,FALSE),VLOOKUP($B75,'BANCO DE DADOS DEZ-24 SERV'!$B:$E,2,FALSE)) -> SERRALHEIRO COM ENCARGOS COMPLEMENTARES | D75: =IF($A75="INSUMO",VLOOKUP($B75,'BANCO DE DADOS DEZ-24 INS'!$A:$D,3,FALSE),VLOOKUP($B75,'BANCO DE DADOS DEZ-24 SERV'!$B:$E,3,FALSE)) -> H | E75: 2.5175 | F75: =IF($A75="INSUMO",VLOOKUP($B75,'BANCO DE DADOS DEZ-24 INS'!$A:$D,4,FALSE),VLOOKUP($B75,'BANCO DE DADOS DEZ-24 SERV'!$B:$E,4,FALSE)) -> 25.4 | G75: =TRUNC(E75*F75,2) -> 63.94
A76: SERVIÇO | B76: 88251 | C76: =IF($A76="INSUMO",VLOOKUP($B76,'BANCO DE DADOS DEZ-24 INS'!$A:$D,2,FALSE),VLOOKUP($B76,'BANCO DE DADOS DEZ-24 SERV'!$B:$E,2,FALSE)) -> AUXILIAR DE SERRALHEIRO COM ENCARGOS COMPLEMENTARES | D76: =IF($A76="INSUMO",VLOOKUP($B76,'BANCO DE DADOS DEZ-24 INS'!$A:$D,3,FALSE),VLOOKUP($B76,'BANCO DE DADOS DEZ-24 SERV'!$B:$E,3,FALSE)) -> H | E76: 10.0699 | F76: =IF($A76="INSUMO",VLOOKUP($B76,'BANCO DE DADOS DEZ-24 INS'!$A:$D,4,FALSE),VLOOKUP($B76,'BANCO DE DADOS DEZ-24 SERV'!$B:$E,4,FALSE)) -> 21.5 | G76: =TRUNC(E76*F76,2) -> 216.5
B77: *COMPOSIÇÃO BASEADA NA TABELA CPOS (MAIO/2023), CÓDIGO21.03.151 | F77: TOTAL | G77: =SUM(G67:G76) -> 617.53
B79: COTAÇÃO | C79: PARAFUSO AUTOBROCANTE 12X38MM COM ARRUELA DE VEDAÇÃO | G79: UN
B80: DATA | C80: NOME DA EMPRESA FORNECEDORA | D80: VALOR COTADO | E80: CNPJ | F80: TELEFONE | G80: CONTATO
B81: 2024-08-15 | C81: TONINHO PARAFUSOS | D81: 0.32 | E81: 02.900.216/0001-39 | F81: (65)3027-1606 | G81: HOBERT
B82: 2024-08-16 | C82: FERMAT | D82: 0.3658 | E82: 03.658.692/0005-81 | F82: (65) 3644-5555 | G82: CLEBERSON
B83: 2024-08-20 | C83: MOTTA | D83: 0.321076 | E83: 01.390.442/0007-40 | F83: (65) 3316-3000 | G83: JULIO
C84: VALOR ACATADO MEDIANA | D84: =IF(COUNT(D80:D83)=3,MEDIAN(D81:D83),SMALL(D81:D83,1)) -> 0.321076
B86: COTAÇÃO | C86: PLACA EM ACM 1,22 M X 5,00 M | G86: UN
B87: DATA | C87: NOME DA EMPRESA FORNECEDORA | D87: VALOR COTADO | E87: CNPJ | F87: TELEFONE | G87: CONTATO
B88: 2024-07-31 | C88: UNITRAMA | D88: 380 | E88: 15.502.632/0005-54 | F88: (65) 3023-9727 | G88: MARCELO
B89: 2024-08-08 | C89: NOVO TEMPO DIGITAL | D89: 426.16 | E89: 09.386.637/0002-13 | F89: (65) 4052-9910 | G89: DAIANE
B90: 2024-07-31 | C90: BRASLUM | D90: 380 | E90: 08.626.189/0001-34 | F90: (65) 3622-2433 | G90: RAFAEL
C91: VALOR ACATADO MEDIANA | D91: =IF(COUNT(D87:D90)=3,MEDIAN(D88:D90),SMALL(D88:D90,1)) -> 380
B93: COTAÇÃO | C93: PLACA EM ACM (POR M2) | G93: M2
B94: DATA | C94: NOME DA EMPRESA FORNECEDORA | D94: VALOR COTADO | E94: CNPJ | F94: TELEFONE | G94: CONTATO
B95: =B88 -> 2024-07-31 | C95: =C88 -> UNITRAMA | D95: =D88/(1.22*5) -> 62.29508197 | E95: =E88 -> 15.502.632/0005-54 | F95: =F88 -> (65) 3023-9727 | G95: MARCELO
B96: =B89 -> 2024-08-08 | C96: NOVO TEMPO DIGITAL | E96: =E89 -> 09.386.637/0002-13 | F96: (65) 4052-9910 | G96: DAIANE
B97: 2024-07-31 | C97: BRASLUM | E97: 08.626.189/0001-34 | F97: (65) 3622-2433 | G97: RAFAEL
C98: VALOR ACATADO MEDIANA | D98: =IF(COUNT(D94:D97)=3,MEDIAN(D95:D97),SMALL(D95:D97,1)) -> 62.29508197
B100: CIV 006 | C100: JANELA EM VIDRO TEMPERADO 8 MM, DE CORRER COM ESTRUTURA EM ALUMÍNIO | G100: M2 | H100: =G107 -> 692.41
B101: SINAPI ou Cot. De Mercado | C101: COMPONENTES | D101: UN | E101: Quantidade | F101: Custos Unit. (R$) | G101: Custos Total (R$)
B102: MATERIAIS
A103: SERVIÇO | B103: 102180 | C103: =IF($A103="INSUMO",VLOOKUP($B103,'BANCO DE DADOS DEZ-24 INS'!$A:$D,2,FALSE),VLOOKUP($B103,'BANCO DE DADOS DEZ-24 SERV'!$B:$E,2,FALSE)) -> INSTALAÇÃO DE VIDRO TEMPERADO, E = 8 MM, ENCAIXADO EM PERFIL U. AF_01/2021_PS | D103: =IF($A103="INSUMO",VLOOKUP($B103,'BANCO DE DADOS DEZ-24 INS'!$A:$D,3,FALSE),VLOOKUP($B103,'BANCO DE DADOS DEZ-24 SERV'!$B:$E,3,FALSE)) -> M2 | E103: 1.05 | F103: =IF($A103="INSUMO",VLOOKUP($B103,'BANCO DE DADOS DEZ-24 INS'!$A:$D,4,FALSE),VLOOKUP($B103,'BANCO DE DADOS DEZ-24 SERV'!$B:$E,4,FALSE)) -> 506.31 | G103: =TRUNC(E103*F103,2) -> 531.62
A105: SERVIÇO | B105: 88309 | C105: =IF($A105="INSUMO",VLOOKUP($B105,'BANCO DE DADOS DEZ-24 INS'!$A:$D,2,FALSE),VLOOKUP($B105,'BANCO DE DADOS DEZ-24 SERV'!$B:$E,2,FALSE)) -> PEDREIRO COM ENCARGOS COMPLEMENTARES | D105: =IF($A105="INSUMO",VLOOKUP($B105,'BANCO DE DADOS DEZ-24 INS'!$A:$D,3,FALSE),VLOOKUP($B105,'BANCO DE DADOS DEZ-24 SERV'!$B:$E,3,FALSE)) -> H | E105: 3.5 | F105: =IF($A105="INSUMO",VLOOKUP($B105,'BANCO DE DADOS DEZ-24 INS'!$A:$D,4,FALSE),VLOOKUP($B105,'BANCO DE DADOS DEZ-24 SERV'!$B:$E,4,FALSE)) -> 25.62 | G105: =TRUNC(E105*F105,2) -> 89.67
A106: SERVIÇO | B106: 88316 | C106: =IF($A106="INSUMO",VLOOKUP($B106,'BANCO DE DADOS DEZ-24 INS'!$A:$D,2,FALSE),VLOOKUP($B106,'BANCO DE DADOS DEZ-24 SERV'!$B:$E,2,FALSE)) -> SERVENTE COM ENCARGOS COMPLEMENTARES | D106: =IF($A106="INSUMO",VLOOKUP($B106,'BANCO DE DADOS DEZ-24 INS'!$A:$D,3,FALSE),VLOOKUP($B106,'BANCO DE DADOS DEZ-24 SERV'!$B:$E,3,FALSE)) -> H | E106: 3.5 | F106: =IF($A106="INSUMO",VLOOKUP($B106,'BANCO DE DADOS DEZ-24 INS'!$A:$D,4,FALSE),VLOOKUP($B106,'BANCO DE DADOS DEZ-24 SERV'!$B:$E,4,FALSE)) -> 20.32 | G106: =TRUNC(E106*F106,2) -> 71.12
B107: **COMPOSIÇÃO BASEADA NA TCPO - CÓDIGO 08.820.8.3.3 - ESTA COMPOSIÇÃO VISA SUPRIR A IMPOSSIBILIDADE DE ELABORAÇÃO DE COMPOSIÇÃO EXATA PARA TODAS AS DIMENSÕES POSSÍVEIS PARA ESSE SERVIÇO, AUXILIANDO ASSIM O ORÇAMENTISTA A ESTIMAR O CUSTO PARA QUALQUER DIMENSÃO DE ESQUADRIA DESEJADA. | F107: Total | G107: =TRUNC(SUM(G103:G106),2) -> 692.41
B110: CIV 007 | C110: KIT DE PORTA DE MADEIRA PARA PINTURA, SEMI-OCA (LEVE OU MÉDIA), PADRÃO POPULAR, 90X210CM, ESPESSURA DE 3,5CM, ITENS INCLUSOS: DOBRADIÇAS, MONTAGEM E INSTALAÇÃO DO BATENTE, FECHADURA COM EXECUÇÃO DO FURO - FORNECIMENTO E INSTALAÇÃO. AF_08/2015 - ADAPTADA PARA PNE | G110: UN | H110: =G118 -> 1341.83
B111: SINAPI ou Cot. De Mercado | C111: COMPONENTES | D111: UN | E111: Quantidade | F111: Custos Unit. (R$) | G111: Custos Total (R$)
B112: MATERIAIS
A113: SERVIÇO | B113: 90823 | C113: =IF($A113="INSUMO",VLOOKUP($B113,'BANCO DE DADOS DEZ-24 INS'!$A:$D,2,FALSE),VLOOKUP($B113,'BANCO DE DADOS DEZ-24 SERV'!$B:$E,2,FALSE)) -> PORTA DE MADEIRA PARA PINTURA, SEMI-OCA (LEVE OU MÉDIA), 90X210CM, ESPESSURA DE 3,5CM, INCLUSO DOBRADIÇAS - FORNECIMENTO E INSTALAÇÃO. AF_12/2019 | D113: =IF($A113="INSUMO",VLOOKUP($B113,'BANCO DE DADOS DEZ-24 INS'!$A:$D,3,FALSE),VLOOKUP($B113,'BANCO DE DADOS DEZ-24 SERV'!$B:$E,3,FALSE)) -> UN | E113: 1 | F113: =IF($A113="INSUMO",VLOOKUP($B113,'BANCO DE DADOS DEZ-24 INS'!$A:$D,4,FALSE),VLOOKUP($B113,'BANCO DE DADOS DEZ-24 SERV'!$B:$E,4,FALSE)) -> 454.7 | G113: =TRUNC(E113*F113,2) -> 454.7
A114: SERVIÇO | B114: 91292 | C114: =IF($A114="INSUMO",VLOOKUP($B114,'BANCO DE DADOS DEZ-24 INS'!$A:$D,2,FALSE),VLOOKUP($B114,'BANCO DE DADOS DEZ-24 SERV'!$B:$E,2,FALSE)) -> BATENTE PARA PORTA DE MADEIRA, FIXAÇÃO COM ARGAMASSA, PADRÃO POPULAR. FORNECIMENTO E INSTALAÇÃO. AF_12/2019 | D114: =IF($A114="INSUMO",VLOOKUP($B114,'BANCO DE DADOS DEZ-24 INS'!$A:$D,3,FALSE),VLOOKUP($B114,'BANCO DE DADOS DEZ-24 SERV'!$B:$E,3,FALSE)) -> UN | E114: 1 | F114: =IF($A114="INSUMO",VLOOKUP($B114,'BANCO DE DADOS DEZ-24 INS'!$A:$D,4,FALSE),VLOOKUP($B114,'BANCO DE DADOS DEZ-24 SERV'!$B:$E,4,FALSE)) -> 337.88 | G114: =TRUNC(E114*F114,2) -> 337.88
A115: SERVIÇO | B115: 91304 | C115: =IF($A115="INSUMO",VLOOKUP($B115,'BANCO DE DADOS DEZ-24 INS'!$A:$D,2,FALSE),VLOOKUP($B115,'BANCO DE DADOS DEZ-24 SERV'!$B:$E,2,FALSE)) -> FECHADURA DE EMBUTIR COM CILINDRO, EXTERNA, COMPLETA, ACABAMENTO PADRÃO POPULAR, INCLUSO EXECUÇÃO DE FURO - FORNECIMENTO E INSTALAÇÃO. AF_12/2019 | D115: =IF($A115="INSUMO",VLOOKUP($B115,'BANCO DE DADOS DEZ-24 INS'!$A:$D,3,FALSE),VLOOKUP($B115,'BANCO DE DADOS DEZ-24 SERV'!$B:$E,3,FALSE)) -> UN | E115: 1 | F115: =IF($A115="INSUMO",VLOOKUP($B115,'BANCO DE DADOS DEZ-24 INS'!$A:$D,4,FALSE),VLOOKUP($B115,'BANCO DE DADOS DEZ-24 SERV'!$B:$E,4,FALSE)) -> 111.12 | G115: =TRUNC(E115*F115,2) -> 111.12
A116: SERVIÇO | B116: 100660 | C116: =IF($A116="INSUMO",VLOOKUP($B116,'BANCO DE DADOS DEZ-24 INS'!$A:$D,2,FALSE),VLOOKUP($B116,'BANCO DE DADOS DEZ-24 SERV'!$B:$E,2,FALSE)) -> ALIZAR DE 5X1,5CM PARA PORTA FIXADO COM PREGOS, PADRÃO POPULAR - FORNECIMENTO E INSTALAÇÃO. AF_12/2019 | D116: =IF($A116="INSUMO",VLOOKUP($B116,'BANCO DE DADOS DEZ-24 INS'!$A:$D,3,FALSE),VLOOKUP($B116,'BANCO DE DADOS DEZ-24 SERV'!$B:$E,3,FALSE)) -> M | E116: 10.2 | F116: =IF($A116="INSUMO",VLOOKUP($B116,'BANCO DE DADOS DEZ-24 INS'!$A:$D,4,FALSE),VLOOKUP($B116,'BANCO DE DADOS DEZ-24 SERV'!$B:$E,4,FALSE)) -> 8.66 | G116: =TRUNC(E116*F116,2) -> 88.33
A117: INSUMO | B117: =B120 -> COMP 01 | C117: =C120 -> PUXADOR PARA PCD, FIXADO NA PORTA - FORNECIMENTO E INSTALAÇÃO - LARGURA 40CM | D117: =G120 -> UN | E117: 1 | F117: =G128 -> 349.8 | G117: =TRUNC(E117*F117,2) -> 349.8
B118: **COMPOSIÇÃO BASEADA NA TABELA SINAPI, CÓDIGO 91315 - (NOVEMBRO/2023) (PORTA) E ADICIONADO A COMP 01 PARA A BARRA DE APOIO | F118: Total | G118: =SUM(G113:G117) -> 1341.83
B120: COMP 01 | C120: PUXADOR PARA PCD, FIXADO NA PORTA - FORNECIMENTO E INSTALAÇÃO - LARGURA 40CM | G120: UN
B121: SINAPI/SINFRA ou Cot. De Mercado | C121: COMPONENTES | D121: UN | E121: Quantidade | F121: Custos Unit. (R$) | G121: Custos Total (R$)
B122: MATERIAIS
A123: INSUMO | B123: 4351 | C123: =IF($A123="INSUMO",VLOOKUP($B123,'BANCO DE DADOS DEZ-24 INS'!$A:$D,2,FALSE),VLOOKUP($B123,'BANCO DE DADOS DEZ-24 SERV'!$B:$E,2,FALSE)) -> PARAFUSO NIQUELADO 3 1/2" COM ACABAMENTO CROMADO PARA FIXAR PECA SANITARIA, INCLUI PORCA CEGA, ARRUELA E BUCHA DE NYLON TAMANHO S-8 | D123: =IF($A123="INSUMO",VLOOKUP($B123,'BANCO DE DADOS DEZ-24 INS'!$A:$D,3,FALSE),VLOOKUP($B123,'BANCO DE DADOS DEZ-24 SERV'!$B:$E,3,FALSE)) -> UN | E123: 6 | F123: =IF($A123="INSUMO",VLOOKUP($B123,'BANCO DE DADOS DEZ-24 INS'!$A:$D,4,FALSE),VLOOKUP($B123,'BANCO DE DADOS DEZ-24 SERV'!$B:$E,4,FALSE)) -> 17.1 | G123: =TRUNC(E123*F123,2) -> 102.6
A124: INSUMO | B124: COTAÇÃO | C124: =C130 -> BARRA DE APOIO RETA, COMPRIMENTO 40CM, DIAMETRO MINIMO 3 CM | D124: =G130 -> UN | E124: 1 | F124: =D135 -> 216.9 | G124: =TRUNC(E124*F124,2) -> 216.9
B125: MÃO DE OBRA
A126: SERVIÇO | B126: 88267 | C126: =IF($A126="INSUMO",VLOOKUP($B126,'BANCO DE DADOS DEZ-24 INS'!$A:$D,2,FALSE),VLOOKUP($B126,'BANCO DE DADOS DEZ-24 SERV'!$B:$E,2,FALSE)) -> ENCANADOR OU BOMBEIRO HIDRÁULICO COM ENCARGOS COMPLEMENTARES | D126: =IF($A126="INSUMO",VLOOKUP($B126,'BANCO DE DADOS DEZ-24 INS'!$A:$D,3,FALSE),VLOOKUP($B126,'BANCO DE DADOS DEZ-24 SERV'!$B:$E,3,FALSE)) -> H | E126: 0.9485 | F126: =IF($A126="INSUMO",VLOOKUP($B126,'BANCO DE DADOS DEZ-24 INS'!$A:$D,4,FALSE),VLOOKUP($B126,'BANCO DE DADOS DEZ-24 SERV'!$B:$E,4,FALSE)) -> 25.55 | G126: =TRUNC(E126*F126,2) -> 24.23
A127: SERVIÇO | B127: 88316 | C127: =IF($A127="INSUMO",VLOOKUP($B127,'BANCO DE DADOS DEZ-24 INS'!$A:$D,2,FALSE),VLOOKUP($B127,'BANCO DE DADOS DEZ-24 SERV'!$B:$E,2,FALSE)) -> SERVENTE COM ENCARGOS COMPLEMENTARES | D127: =IF($A127="INSUMO",VLOOKUP($B127,'BANCO DE DADOS DEZ-24 INS'!$A:$D,3,FALSE),VLOOKUP($B127,'BANCO DE DADOS DEZ-24 SERV'!$B:$E,3,FALSE)) -> H | E127: 0.2988 | F127: =IF($A127="INSUMO",VLOOKUP($B127,'BANCO DE DADOS DEZ-24 INS'!$A:$D,4,FALSE),VLOOKUP($B127,'BANCO DE DADOS DEZ-24 SERV'!$B:$E,4,FALSE)) -> 20.32 | G127: =TRUNC(E127*F127,2) -> 6.07
B128: **COMPOSIÇÃO BASEADA NA TABELA SINAPI CÓD 100874 - (NOVEMBRO/2023) FOI ALTERADO A BARRA PARA 40 CM CONFORME NORMA | F128: Total | G128: =SUM(G123:G127) -> 349.8
B130: COTAÇÃO | C130: BARRA DE APOIO RETA, COMPRIMENTO 40CM, DIAMETRO MINIMO 3 CM | G130: UN
B131: DATA | C131: NOME DA EMPRESA FORNECEDORA | D131: VALOR COTADO | E131: CNPJ | F131: TELEFONE | G131: CONTATO
B132: 2024-07-25 | C132: BEIRA RIO | D132: 333.9 | E132: 20.939.127/0002-69 | F132: (65) 3028-3000 | G132: KETHYLE
B133: 2024-07-22 | C133: CASTELO | D133: 216.9 | E133: 02.623.245/0001-09 | F133: (65) 3688-3500 | G133: ADILSON
B134: 2024-07-23 | C134: CASTELLI | D134: 126.5 | E134: 11.000.062/0001-10 | F134: (65) 3614-3500 | G134: KATIA
C135: VALOR ACATADO MEDIANA | D135: =IF(COUNT(D131:D134)=3,MEDIAN(D132:D134),SMALL(D132:D134,1)) -> 216.9
B137: CIV 008 | C137: KIT DE PORTA DE MADEIRA PARA PINTURA, SEMI-OCA (LEVE OU MÉDIA), PADRÃO POPULAR, 100X210CM, ESPESSURA DE 3,5CM, ITENS INCLUSOS: DOBRADIÇAS, MONTAGEM E INSTALAÇÃO DO BATENTE, FECHADURA COM EXECUÇÃO DO FURO - FORNECIMENTO E INSTALAÇÃO. AF_08/2015 | G137: UN | H137: =G144 -> 1029.74
B138: SINAPI ou Cot. De Mercado | C138: COMPONENTES | D138: UN | E138: Quantidade | F138: Custos Unit. (R$) | G138: Custos Total (R$)
B139: MATERIAIS
A140: SERVIÇO | B140: =B146 -> COMP 01 | C140: =C146 -> PORTA DE MADEIRA PARA PINTURA, SEMI-OCA (LEVE OU MÉDIA), 100X210CM, ESPESSURA DE 3,5CM, INCLUSO DOBRADIÇAS - FORNECIMENTO E INSTALAÇÃO. AF_08/2015 | D140: =G146 -> UN | E140: 1 | F140: =G155 -> 473.5 | G140: =TRUNC(E140*F140,2) -> 473.5
A141: SERVIÇO | B141: =B163 -> COMP 02 | C141: =C163 -> BATENTE PARA PORTA DE MADEIRA, FIXAÇÃO COM ARGAMASSA, PADRÃO POPULAR. FORNECIMENTO E INSTALAÇÃO. AF_12/2019_P | D141: =G163 -> UN | E141: 1 | F141: =G174 -> 347.31 | G141: =TRUNC(E141*F141,2) -> 347.31
A142: SERVIÇO | B142: =B186 -> COMP 03 | C142: =C186 -> ALIZAR / GUARNIÇÃO DE 5X1,5CM PARA PORTA DE 100X210CM FIXADO COM PREGOS, PADRÃO POPULAR - FORNECIMENTO E INSTALAÇÃO. AF_08/2015_P | D142: =G186 -> M | E142: 10.2 | F142: =G194 -> 9.59 | G142: =TRUNC(E142*F142,2) -> 97.81
A143: SERVIÇO | B143: 91304 | C143: =IF($A143="INSUMO",VLOOKUP($B143,'BANCO DE DADOS DEZ-24 INS'!$A:$D,2,FALSE),VLOOKUP($B143,'BANCO DE DADOS DEZ-24 SERV'!$B:$E,2,FALSE)) -> FECHADURA DE EMBUTIR COM CILINDRO, EXTERNA, COMPLETA, ACABAMENTO PADRÃO POPULAR, INCLUSO EXECUÇÃO DE FURO - FORNECIMENTO E INSTALAÇÃO. AF_12/2019 | D143: =IF($A143="INSUMO",VLOOKUP($B143,'BANCO DE DADOS DEZ-24 INS'!$A:$D,3,FALSE),VLOOKUP($B143,'BANCO DE DADOS DEZ-24 SERV'!$B:$E,3,FALSE)) -> UN | E143: 1 | F143: =IF($A143="INSUMO",VLOOKUP($B143,'BANCO DE DADOS DEZ-24 INS'!$A:$D,4,FALSE),VLOOKUP($B143,'BANCO DE DADOS DEZ-24 SERV'!$B:$E,4,FALSE)) -> 111.12 | G143: =TRUNC(E143*F143,2) -> 111.12
B144: **COMPOSIÇÃO BASEADA NA TABELA SINAPI, (NOVEMBRO/2023) - CÓDIGO 91315 | F144: Total | G144: =SUM(G140:G143) -> 1029.74
B146: COMP 01 | C146: PORTA DE MADEIRA PARA PINTURA, SEMI-OCA (LEVE OU MÉDIA), 100X210CM, ESPESSURA DE 3,5CM, INCLUSO DOBRADIÇAS - FORNECIMENTO E INSTALAÇÃO. AF_08/2015 | G146: UN
B147: SINAPI ou Cot. De Mercado | C147: COMPONENTES | D147: UN | E147: Quantidade | F147: Custos Unit. (R$) | G147: Custos Total (R$)
B148: MATERIAIS
A149: INSUMO | B149: 2432 | C149: =IF($A149="INSUMO",VLOOKUP($B149,'BANCO DE DADOS DEZ-24 INS'!$A:$D,2,FALSE),VLOOKUP($B149,'BANCO DE DADOS DEZ-24 SERV'!$B:$E,2,FALSE)) -> DOBRADICA EM ACO/FERRO, 3 1/2" X 3", E= 1,9 A 2 MM, COM ANEL, CROMADO OU ZINCADO, TAMPA BOLA, COM PARAFUSOS | D149: =IF($A149="INSUMO",VLOOKUP($B149,'BANCO DE DADOS DEZ-24 INS'!$A:$D,3,FALSE),VLOOKUP($B149,'BANCO DE DADOS DEZ-24 SERV'!$B:$E,3,FALSE)) -> UN | E149: 3 | F149: =IF($A149="INSUMO",VLOOKUP($B149,'BANCO DE DADOS DEZ-24 INS'!$A:$D,4,FALSE),VLOOKUP($B149,'BANCO DE DADOS DEZ-24 SERV'!$B:$E,4,FALSE)) -> 22.18 | G149: =TRUNC(E149*F149,2) -> 66.54
A150: INSUMO | B150: 4982 | C150: =IF($A150="INSUMO",VLOOKUP($B150,'BANCO DE DADOS DEZ-24 INS'!$A:$D,2,FALSE),VLOOKUP($B150,'BANCO DE DADOS DEZ-24 SERV'!$B:$E,2,FALSE)) -> PORTA DE ABRIR / GIRO, DE MADEIRA FOLHA MEDIA (NBR 15930) DE 1000 X 2100 MM, DE 35 MM A 40 MM DE ESPESSURA, NUCLEO SEMI-SOLIDO (SARRAFEADO), CAPA LISA EM HDF, ACABAMENTO EM PRIMER PARA PINTURA | D150: =IF($A150="INSUMO",VLOOKUP($B150,'BANCO DE DADOS DEZ-24 INS'!$A:$D,3,FALSE),VLOOKUP($B150,'BANCO DE DADOS DEZ-24 SERV'!$B:$E,3,FALSE)) -> UN | E150: 1 | F150: =IF($A150="INSUMO",VLOOKUP($B150,'BANCO DE DADOS DEZ-24 INS'!$A:$D,4,FALSE),VLOOKUP($B150,'BANCO DE DADOS DEZ-24 SERV'!$B:$E,4,FALSE)) -> 341.84 | G150: =TRUNC(E150*F150,2) -> 341.84
A151: INSUMO | B151: 11055 | C151: =IF($A151="INSUMO",VLOOKUP($B151,'BANCO DE DADOS DEZ-24 INS'!$A:$D,2,FALSE),VLOOKUP($B151,'BANCO DE DADOS DEZ-24 SERV'!$B:$E,2,FALSE)) -> PARAFUSO ROSCA SOBERBA ZINCADO CABECA CHATA FENDA SIMPLES 3,5 X 25 MM (1 ") | D151: =IF($A151="INSUMO",VLOOKUP($B151,'BANCO DE DADOS DEZ-24 INS'!$A:$D,3,FALSE),VLOOKUP($B151,'BANCO DE DADOS DEZ-24 SERV'!$B:$E,3,FALSE)) -> UN | E151: 19.8 | F151: =IF($A151="INSUMO",VLOOKUP($B151,'BANCO DE DADOS DEZ-24 INS'!$A:$D,4,FALSE),VLOOKUP($B151,'BANCO DE DADOS DEZ-24 SERV'!$B:$E,4,FALSE)) -> 0.06 | G151: =TRUNC(E151*F151,2) -> 1.18
B152: MÃO DE OBRA
A153: SERVIÇO | B153: 88261 | C153: =IF($A153="INSUMO",VLOOKUP($B153,'BANCO DE DADOS DEZ-24 INS'!$A:$D,2,FALSE),VLOOKUP($B153,'BANCO DE DADOS DEZ-24 SERV'!$B:$E,2,FALSE)) -> CARPINTEIRO DE ESQUADRIA COM ENCARGOS COMPLEMENTARES | D153: =IF($A153="INSUMO",VLOOKUP($B153,'BANCO DE DADOS DEZ-24 INS'!$A:$D,3,FALSE),VLOOKUP($B153,'BANCO DE DADOS DEZ-24 SERV'!$B:$E,3,FALSE)) -> H | E153: =E160 -> 1.864 | F153: =IF($A153="INSUMO",VLOOKUP($B153,'BANCO DE DADOS DEZ-24 INS'!$A:$D,4,FALSE),VLOOKUP($B153,'BANCO DE DADOS DEZ-24 SERV'!$B:$E,4,FALSE)) -> 24.15 | G153: =TRUNC(E153*F153,2) -> 45.01
A154: SERVIÇO | B154: 88316 | C154: =IF($A154="INSUMO",VLOOKUP($B154,'BANCO DE DADOS DEZ-24 INS'!$A:$D,2,FALSE),VLOOKUP($B154,'BANCO DE DADOS DEZ-24 SERV'!$B:$E,2,FALSE)) -> SERVENTE COM ENCARGOS COMPLEMENTARES | D154: =IF($A154="INSUMO",VLOOKUP($B154,'BANCO DE DADOS DEZ-24 INS'!$A:$D,3,FALSE),VLOOKUP($B154,'BANCO DE DADOS DEZ-24 SERV'!$B:$E,3,FALSE)) -> H | E154: =E161 -> 0.932 | F154: =IF($A154="INSUMO",VLOOKUP($B154,'BANCO DE DADOS DEZ-24 INS'!$A:$D,4,FALSE),VLOOKUP($B154,'BANCO DE DADOS DEZ-24 SERV'!$B:$E,4,FALSE)) -> 20.32 | G154: =TRUNC(E154*F154,2) -> 18.93
B155: **COMPOSIÇÃO BASEADA NA TABELA SINAPI, (NOVEMBRO/2023) - CÓDIGO 90823. CONFORME MEMORIAL DE CÁLCULO ABAIXO. | F155: Total | G155: =SUM(G149:G154) -> 473.5
B157: MEMÓRIA DE CÁLCULO - PORTA DE MADEIRA PARA PINTURA, SEMI-OCA (LEVE OU MÉDIA), 100X210CM
B158: MATERIAIS E SERVIÇOS ADUELA / MARCO / BATENTE PARA PORTA DE 90X210CM (90819) | D158: MATERIAIS E SERVIÇOS ADUELA / MARCO / BATENTE PARA PORTA
B159: M2 (120*210) | C159: =90*210 -> 18900 | D159: M2 (100*210) | E159: =100*210 -> 21000
B160: PEDREIRO | C160: 1.678 | D160: =B160 -> PEDREIRO | E160: =TRUNC(($E$159*C160)/$C$159,3) -> 1.864
B161: SERVENTE | C161: 0.839 | D161: =B160 -> PEDREIRO | E161: =TRUNC(($E$159*C161)/$C$159,3) -> 0.932
B163: COMP 02 | C163: BATENTE PARA PORTA DE MADEIRA, FIXAÇÃO COM ARGAMASSA, PADRÃO POPULAR. FORNECIMENTO E INSTALAÇÃO. AF_12/2019_P | G163: UN
B164: SINAPI ou Cot. De Mercado | C164: COMPONENTES | D164: UN | E164: Quantidade | F164: Custos Unit. (R$) | G164: Custos Total (R$)
B165: MATERIAIS
A166: INSUMO | B166: 39027 | C166: =IF($A166="INSUMO",VLOOKUP($B166,'BANCO DE DADOS DEZ-24 INS'!$A:$D,2,FALSE),VLOOKUP($B166,'BANCO DE DADOS DEZ-24 SERV'!$B:$E,2,FALSE)) -> PREGO DE ACO POLIDO COM CABECA 19 X 36 (3 1/4 X 9) | D166: =IF($A166="INSUMO",VLOOKUP($B166,'BANCO DE DADOS DEZ-24 INS'!$A:$D,3,FALSE),VLOOKUP($B166,'BANCO DE DADOS DEZ-24 SERV'!$B:$E,3,FALSE)) -> KG | E166: =E179 -> 0.222 | F166: =IF($A166="INSUMO",VLOOKUP($B166,'BANCO DE DADOS DEZ-24 INS'!$A:$D,4,FALSE),VLOOKUP($B166,'BANCO DE DADOS DEZ-24 SERV'!$B:$E,4,FALSE)) -> 19.16 | G166: =TRUNC(E166*F166,2) -> 4.25
A167: INSUMO | B167: 7319 | C167: =IF($A167="INSUMO",VLOOKUP($B167,'BANCO DE DADOS DEZ-24 INS'!$A:$D,2,FALSE),VLOOKUP($B167,'BANCO DE DADOS DEZ-24 SERV'!$B:$E,2,FALSE)) -> TINTA ASFALTICA IMPERMEABILIZANTE DISPERSA EM AGUA, PARA MATERIAIS CIMENTICIOS | D167: =IF($A167="INSUMO",VLOOKUP($B167,'BANCO DE DADOS DEZ-24 INS'!$A:$D,3,FALSE),VLOOKUP($B167,'BANCO DE DADOS DEZ-24 SERV'!$B:$E,3,FALSE)) -> L | E167: =E180 -> 0.185 | F167: =IF($A167="INSUMO",VLOOKUP($B167,'BANCO DE DADOS DEZ-24 INS'!$A:$D,4,FALSE),VLOOKUP($B167,'BANCO DE DADOS DEZ-24 SERV'!$B:$E,4,FALSE)) -> 11.44 | G167: =TRUNC(E167*F167,2) -> 2.11
A168: SERVIÇO | B168: 88629 | C168: =IF($A168="INSUMO",VLOOKUP($B168,'BANCO DE DADOS DEZ-24 INS'!$A:$D,2,FALSE),VLOOKUP($B168,'BANCO DE DADOS DEZ-24 SERV'!$B:$E,2,FALSE)) -> ARGAMASSA TRAÇO 1:3 (EM VOLUME DE CIMENTO E AREIA MÉDIA ÚMIDA), PREPARO MANUAL. AF_08/2019 | D168: =IF($A168="INSUMO",VLOOKUP($B168,'BANCO DE DADOS DEZ-24 INS'!$A:$D,3,FALSE),VLOOKUP($B168,'BANCO DE DADOS DEZ-24 SERV'!$B:$E,3,FALSE)) -> M3 | E168: =E181 -> 0.024 | F168: =IF($A168="INSUMO",VLOOKUP($B168,'BANCO DE DADOS DEZ-24 INS'!$A:$D,4,FALSE),VLOOKUP($B168,'BANCO DE DADOS DEZ-24 SERV'!$B:$E,4,FALSE)) -> 767.22 | G168: =TRUNC(E168*F168,2) -> 18.41
A169: SERVIÇO | B169: 91287 | C169: =IF($A169="INSUMO",VLOOKUP($B169,'BANCO DE DADOS DEZ-24 INS'!$A:$D,2,FALSE),VLOOKUP($B169,'BANCO DE DADOS DEZ-24 SERV'!$B:$E,2,FALSE)) -> BATENTE PARA PORTA DE MADEIRA, PADRÃO POPULAR - FORNECIMENTO E MONTAGEM. AF_12/2019 | D169: =IF($A169="INSUMO",VLOOKUP($B169,'BANCO DE DADOS DEZ-24 INS'!$A:$D,3,FALSE),VLOOKUP($B169,'BANCO DE DADOS DEZ-24 SERV'!$B:$E,3,FALSE)) -> UN | E169: 1 | F169: =IF($A169="INSUMO",VLOOKUP($B169,'BANCO DE DADOS DEZ-24 INS'!$A:$D,4,FALSE),VLOOKUP($B169,'BANCO DE DADOS DEZ-24 SERV'!$B:$E,4,FALSE)) -> 247.38 | G169: =TRUNC(E169*F169,2) -> 247.38
B170: MÃO DE OBRA
A171: SERVIÇO | B171: 88261 | C171: =IF($A171="INSUMO",VLOOKUP($B171,'BANCO DE DADOS DEZ-24 INS'!$A:$D,2,FALSE),VLOOKUP($B171,'BANCO DE DADOS DEZ-24 SERV'!$B:$E,2,FALSE)) -> CARPINTEIRO DE ESQUADRIA COM ENCARGOS COMPLEMENTARES | D171: =IF($A171="INSUMO",VLOOKUP($B171,'BANCO DE DADOS DEZ-24 INS'!$A:$D,3,FALSE),VLOOKUP($B171,'BANCO DE DADOS DEZ-24 SERV'!$B:$E,3,FALSE)) -> H | E171: =E182 -> 0.613 | F171: =IF($A171="INSUMO",VLOOKUP($B171,'BANCO DE DADOS DEZ-24 INS'!$A:$D,4,FALSE),VLOOKUP($B171,'BANCO DE DADOS DEZ-24 SERV'!$B:$E,4,FALSE)) -> 24.15 | G171: =TRUNC(E171*F171,2) -> 14.8
A172: SERVIÇO | B172: 88309 | C172: =IF($A172="INSUMO",VLOOKUP($B172,'BANCO DE DADOS DEZ-24 INS'!$A:$D,2,FALSE),VLOOKUP($B172,'BANCO DE DADOS DEZ-24 SERV'!$B:$E,2,FALSE)) -> PEDREIRO COM ENCARGOS COMPLEMENTARES | D172: =IF($A172="INSUMO",VLOOKUP($B172,'BANCO DE DADOS DEZ-24 INS'!$A:$D,3,FALSE),VLOOKUP($B172,'BANCO DE DADOS DEZ-24 SERV'!$B:$E,3,FALSE)) -> H | E172: =E183 -> 1.513 | F172: =IF($A172="INSUMO",VLOOKUP($B172,'BANCO DE DADOS DEZ-24 INS'!$A:$D,4,FALSE),VLOOKUP($B172,'BANCO DE DADOS DEZ-24 SERV'!$B:$E,4,FALSE)) -> 25.62 | G172: =TRUNC(E172*F172,2) -> 38.76
A173: SERVIÇO | B173: 88316 | C173: =IF($A173="INSUMO",VLOOKUP($B173,'BANCO DE DADOS DEZ-24 INS'!$A:$D,2,FALSE),VLOOKUP($B173,'BANCO DE DADOS DEZ-24 SERV'!$B:$E,2,FALSE)) -> SERVENTE COM ENCARGOS COMPLEMENTARES | D173: =IF($A173="INSUMO",VLOOKUP($B173,'BANCO DE DADOS DEZ-24 INS'!$A:$D,3,FALSE),VLOOKUP($B173,'BANCO DE DADOS DEZ-24 SERV'!$B:$E,3,FALSE)) -> H | E173: =E184 -> 1.063 | F173: =IF($A173="INSUMO",VLOOKUP($B173,'BANCO DE DADOS DEZ-24 INS'!$A:$D,4,FALSE),VLOOKUP($B173,'BANCO DE DADOS DEZ-24 SERV'!$B:$E,4,FALSE)) -> 20.32 | G173: =TRUNC(E173*F173,2) -> 21.6
B174: **COMPOSIÇÃO BASEADA NA TABELA SINAPI, (NOVEMBRO/2023) - CÓDIGO 91292,CONFORME MEMORIAL DE CÁLCULO ABAIXO. | F174: Total | G174: =SUM(G166:G173) -> 347.31
B176: MEMÓRIA DE CÁLCULO - ADUELA / MARCO / BATENTE PARA PORTA DE 100X210CM, PADRÃO POPULAR - FORNECIMENTO E MONTAGEM
B177: MATERIAIS E SERVIÇOS ADUELA / MARCO / BATENTE PARA PORTA DE 90X210CM (90819) | D177: MATERIAIS E SERVIÇOS ADUELA / MARCO / BATENTE PARA PORTA
B178: M2 (120*210) | C178: =90*210 -> 18900 | D178: M2 (100*210) | E178: =100*210 -> 21000
B179: PREGO | C179: 0.2 | D179: =B179 -> PREGO | E179: =TRUNC(($E$178*C179)/$C$178,3) -> 0.222
B180: TINTA ASFALTICA | C180: 0.1671 | D180: TINTA ASFALTICA | E180: 0.185
B181: ARGAMASSA | C181: 0.0223 | D181: ARGAMASSA | E181: 0.024
B182: CARPINTEIRO | C182: 0.552 | D182: CARPINTEIRO | E182: 0.613
B183: PEDREIRO | C183: 1.362 | D183: PEDREIRO | E183: 1.513
B184: SERVENTE | C184: 0.957 | D184: SERVENTE | E184: 1.063
B186: COMP 03 | C186: ALIZAR / GUARNIÇÃO DE 5X1,5CM PARA PORTA DE 100X210CM FIXADO COM PREGOS, PADRÃO POPULAR - FORNECIMENTO E INSTALAÇÃO. AF_08/2015_P | G186: M
B187: SINAPI ou Cot. De Mercado | C187: COMPONENTES | D187: UN | E187: Quantidade | F187: Custos Unit. (R$) | G187: Custos Total (R$)
B188: MATERIAIS
A189: INSUMO | B189: 20007 | C189: =IF($A189="INSUMO",VLOOKUP($B189,'BANCO DE DADOS DEZ-24 INS'!$A:$D,2,FALSE),VLOOKUP($B189,'BANCO DE DADOS DEZ-24 SERV'!$B:$E,2,FALSE)) -> GUARNICAO / ALIZAR / VISTA LISA EM MADEIRA MACICA, PARA PORTA, E = *1* CM, L = *5* CM, PINUS /EUCALIPTO / VIROLA OU EQUIVALENTE DA REGIAO | D189: =IF($A189="INSUMO",VLOOKUP($B189,'BANCO DE DADOS DEZ-24 INS'!$A:$D,3,FALSE),VLOOKUP($B189,'BANCO DE DADOS DEZ-24 SERV'!$B:$E,3,FALSE)) -> M | E189: =E199 -> 1.292 | F189: =IF($A189="INSUMO",VLOOKUP($B189,'BANCO DE DADOS DEZ-24 INS'!$A:$D,4,FALSE),VLOOKUP($B189,'BANCO DE DADOS DEZ-24 SERV'!$B:$E,4,FALSE)) -> 5.34 | G189: =TRUNC(E189*F189,2) -> 6.89
A190: INSUMO | B190: 39026 | C190: =IF($A190="INSUMO",VLOOKUP($B190,'BANCO DE DADOS DEZ-24 INS'!$A:$D,2,FALSE),VLOOKUP($B190,'BANCO DE DADOS DEZ-24 SERV'!$B:$E,2,FALSE)) -> PREGO DE ACO POLIDO SEM CABECA 15 X 15 (1 1/4 X 13) | D190: =IF($A190="INSUMO",VLOOKUP($B190,'BANCO DE DADOS DEZ-24 INS'!$A:$D,3,FALSE),VLOOKUP($B190,'BANCO DE DADOS DEZ-24 SERV'!$B:$E,3,FALSE)) -> KG | E190: =E200 -> 0.00666 | F190: =IF($A190="INSUMO",VLOOKUP($B190,'BANCO DE DADOS DEZ-24 INS'!$A:$D,4,FALSE),VLOOKUP($B190,'BANCO DE DADOS DEZ-24 SERV'!$B:$E,4,FALSE)) -> 21.56 | G190: =TRUNC(E190*F190,2) -> 0.14
B191: MÃO DE OBRA
A192: SERVIÇO | B192: 88261 | C192: =IF($A192="INSUMO",VLOOKUP($B192,'BANCO DE DADOS DEZ-24 INS'!$A:$D,2,FALSE),VLOOKUP($B192,'BANCO DE DADOS DEZ-24 SERV'!$B:$E,2,FALSE)) -> CARPINTEIRO DE ESQUADRIA COM ENCARGOS COMPLEMENTARES | D192: =IF($A192="INSUMO",VLOOKUP($B192,'BANCO DE DADOS DEZ-24 INS'!$A:$D,3,FALSE),VLOOKUP($B192,'BANCO DE DADOS DEZ-24 SERV'!$B:$E,3,FALSE)) -> H | E192: =E201 -> 0.075 | F192: =IF($A192="INSUMO",VLOOKUP($B192,'BANCO DE DADOS DEZ-24 INS'!$A:$D,4,FALSE),VLOOKUP($B192,'BANCO DE DADOS DEZ-24 SERV'!$B:$E,4,FALSE)) -> 24.15 | G192: =TRUNC(E192*F192,2) -> 1.81
A193: SERVIÇO | B193: 88316 | C193: =IF($A193="INSUMO",VLOOKUP($B193,'BANCO DE DADOS DEZ-24 INS'!$A:$D,2,FALSE),VLOOKUP($B193,'BANCO DE DADOS DEZ-24 SERV'!$B:$E,2,FALSE)) -> SERVENTE COM ENCARGOS COMPLEMENTARES | D193: =IF($A193="INSUMO",VLOOKUP($B193,'BANCO DE DADOS DEZ-24 INS'!$A:$D,3,FALSE),VLOOKUP($B193,'BANCO DE DADOS DEZ-24 SERV'!$B:$E,3,FALSE)) -> H | E193: =E202 -> 0.037 | F193: =IF($A193="INSUMO",VLOOKUP($B193,'BANCO DE DADOS DEZ-24 INS'!$A:$D,4,FALSE),VLOOKUP($B193,'BANCO DE DADOS DEZ-24 SERV'!$B:$E,4,FALSE)) -> 20.32 | G193: =TRUNC(E193*F193,2) -> 0.75
B194: **COMPOSIÇÃO BASEADA NA TABELA SINAPI, (NOVEMBRO/2023) - CÓDIGO 100660 ,CONFORME MEMORIAL DE CÁLCULO ABAIXO. | F194: Total | G194: =SUM(G189:G193) -> 9.59
B196: MEMÓRIA DE CÁLCULO - ALIZAR / GUARNIÇÃO DE 5X1,5CM PARA PORTA DE 100X210CM FIXADO COM PREGOS
B197: MATERIAIS E SERVIÇOS ADUELA / MARCO / BATENTE PARA PORTA DE 90X210CM | D197: MATERIAIS E SERVIÇOS ADUELA / MARCO / BATENTE PARA PORTA
B198: M2 (90*210) | C198: =90*210 -> 18900 | D198: M2 (100*210) | E198: =100*210 -> 21000
B199: GUARNIÇÃO | C199: 1.163 | D199: =B199 -> GUARNIÇÃO | E199: =TRUNC(($E$198*C199)/$C$198,3) -> 1.292
B200: PREGO 18 X 27 | C200: 0.006 | D200: =B200 -> PREGO 18 X 27 | E200: =TRUNC(($E$198*C200)/$C$198,5) -> 0.00666
B201: CARPINTEIRO | C201: 0.068 | D201: =B201 -> CARPINTEIRO | E201: =TRUNC(($E$198*C201)/$C$198,3) -> 0.075
B202: SERVENTE | C202: 0.034 | D202: =B202 -> SERVENTE | E202: =TRUNC(($E$198*C202)/$C$198,3) -> 0.037
B204: CIV 009 | C204: PORTA DE CORRER EM VIDRO TEMPERADO COM ESTRUTURA DE ALUMÍNIO | G204: M2 | H204: =G211 -> 803.48
B205: SINAPI ou Cot. De Mercado | C205: COMPONENTES | D205: UN | E205: Quantidade | F205: Custos Unit. (R$) | G205: Custos Total (R$)
B206: MATERIAIS
A207: SERVIÇO | B207: 102181 | C207: =IF($A207="INSUMO",VLOOKUP($B207,'BANCO DE DADOS DEZ-24 INS'!$A:$D,2,FALSE),VLOOKUP($B207,'BANCO DE DADOS DEZ-24 SERV'!$B:$E,2,FALSE)) -> INSTALAÇÃO DE VIDRO TEMPERADO, E = 10 MM, ENCAIXADO EM PERFIL U. AF_01/2021_PS | D207: =IF($A207="INSUMO",VLOOKUP($B207,'BANCO DE DADOS DEZ-24 INS'!$A:$D,3,FALSE),VLOOKUP($B207,'BANCO DE DADOS DEZ-24 SERV'!$B:$E,3,FALSE)) -> M2 | E207: 1.05 | F207: =IF($A207="INSUMO",VLOOKUP($B207,'BANCO DE DADOS DEZ-24 INS'!$A:$D,4,FALSE),VLOOKUP($B207,'BANCO DE DADOS DEZ-24 SERV'!$B:$E,4,FALSE)) -> 612.09 | G207: =TRUNC(E207*F207,2) -> 642.69
B208: MÃO DE OBRA
A209: SERVIÇO | B209: 88309 | C209: =IF($A209="INSUMO",VLOOKUP($B209,'BANCO DE DADOS DEZ-24 INS'!$A:$D,2,FALSE),VLOOKUP($B209,'BANCO DE DADOS DEZ-24 SERV'!$B:$E,2,FALSE)) -> PEDREIRO COM ENCARGOS COMPLEMENTARES | D209: =IF($A209="INSUMO",VLOOKUP($B209,'BANCO DE DADOS DEZ-24 INS'!$A:$D,3,FALSE),VLOOKUP($B209,'BANCO DE DADOS DEZ-24 SERV'!$B:$E,3,FALSE)) -> H | E209: 3.5 | F209: =IF($A209="INSUMO",VLOOKUP($B209,'BANCO DE DADOS DEZ-24 INS'!$A:$D,4,FALSE),VLOOKUP($B209,'BANCO DE DADOS DEZ-24 SERV'!$B:$E,4,FALSE)) -> 25.62 | G209: =TRUNC(E209*F209,2) -> 89.67
A210: SERVIÇO | B210: 88316 | C210: =IF($A210="INSUMO",VLOOKUP($B210,'BANCO DE DADOS DEZ-24 INS'!$A:$D,2,FALSE),VLOOKUP($B210,'BANCO DE DADOS DEZ-24 SERV'!$B:$E,2,FALSE)) -> SERVENTE COM ENCARGOS COMPLEMENTARES | D210: =IF($A210="INSUMO",VLOOKUP($B210,'BANCO DE DADOS DEZ-24 INS'!$A:$D,3,FALSE),VLOOKUP($B210,'BANCO DE DADOS DEZ-24 SERV'!$B:$E,3,FALSE)) -> H | E210: 3.5 | F210: =IF($A210="INSUMO",VLOOKUP($B210,'BANCO DE DADOS DEZ-24 INS'!$A:$D,4,FALSE),VLOOKUP($B210,'BANCO DE DADOS DEZ-24 SERV'!$B:$E,4,FALSE)) -> 20.32 | G210: =TRUNC(E210*F210,2) -> 71.12
B211: **COMPOSIÇÃO BASEADA NA TCPO 13ª EDIÇÃO - CÓDIGO 08 820.8.3.3. ESTA COMPOSIÇÃO VISA SUPRIR A IMPOSSIBILIDADE DE ELABORAÇÃO DE COMPOSIÇÃO EXATA PARA TODAS AS DIMENSÕES POSSÍVEIS PARA ESTE SERVIÇO, AUXILIANDO ASSIM O ORÇAMENTISTA A ESTIMAR O CUSTO PARA QUALQUER DIMENSÃO DE ESQUADRIA DESEJADA. | F211: Total | G211: =SUM(G207:G210) -> 803.48
B213: CIV 010 | C213: GRADIL NYLOFOR3D, MALHA 20X5CM, Ø 5MM 250X203 CM, BELGO OU SIMILAR, INCLUSIVE POSTES (SECÇÃO 60X40MM E H=2,60M) E ACESSÓRIOS | G213: M2 | H213: =G222 -> 182.47
B214: SINAPI ou Cot. De Mercado | C214: COMPONENTES | D214: UN | E214: Quantidade | F214: Custos Unit. (R$) | G214: Custos Total (R$)
B215: MATERIAIS
A216: SERVIÇO | B216: COTAÇÃO | C216: =C224 -> GRADIL NYLOFOR3D, MALHA 20X5CM, Ø 5MM 250X203 CM, BELGO OU SIMILAR | D216: PÇ | E216: 0.197 | F216: =D229 -> 425.453 | G216: =TRUNC(E216*F216,2) -> 83.81
A217: SERVIÇO | B217: COTAÇÃO | C217: =C231 -> POSTE DE GRADIL NYLOFOR 3D COM TAMPA, H=2,60M, SEÇÃO DE 40X60MM, BELGO OU SIMILAR | D217: PÇ | E217: 0.2463 | F217: =D236 -> 178.28 | G217: =TRUNC(E217*F217,2) -> 43.91
A218: SERVIÇO | B218: COTAÇÃO | C218: =C239 -> FIXADOR POLIAMIDA 40 X 60MM, PARA POSTE NYLOFOR, BELGO OU SIMILAR | D218: PÇ | E218: 1.5 | F218: =D244 -> 5.877 | G218: =TRUNC(E218*F218,2) -> 8.81
B219: MÃO DE OBRA
A220: SERVIÇO | B220: 88309 | C220: =IF($A220="INSUMO",VLOOKUP($B220,'BANCO DE DADOS DEZ-24 INS'!$A:$D,2,FALSE),VLOOKUP($B220,'BANCO DE DADOS DEZ-24 SERV'!$B:$E,2,FALSE)) -> PEDREIRO COM ENCARGOS COMPLEMENTARES | D220: =IF($A220="INSUMO",VLOOKUP($B220,'BANCO DE DADOS DEZ-24 INS'!$A:$D,3,FALSE),VLOOKUP($B220,'BANCO DE DADOS DEZ-24 SERV'!$B:$E,3,FALSE)) -> H | E220: 1 | F220: =IF($A220="INSUMO",VLOOKUP($B220,'BANCO DE DADOS DEZ-24 INS'!$A:$D,4,FALSE),VLOOKUP($B220,'BANCO DE DADOS DEZ-24 SERV'!$B:$E,4,FALSE)) -> 25.62 | G220: =TRUNC(E220*F220,2) -> 25.62
A221: SERVIÇO | B221: 88316 | C221: =IF($A221="INSUMO",VLOOKUP($B221,'BANCO DE DADOS DEZ-24 INS'!$A:$D,2,FALSE),VLOOKUP($B221,'BANCO DE DADOS DEZ-24 SERV'!$B:$E,2,FALSE)) -> SERVENTE COM ENCARGOS COMPLEMENTARES | D221: =IF($A221="INSUMO",VLOOKUP($B221,'BANCO DE DADOS DEZ-24 INS'!$A:$D,3,FALSE),VLOOKUP($B221,'BANCO DE DADOS DEZ-24 SERV'!$B:$E,3,FALSE)) -> H | E221: 1 | F221: =IF($A221="INSUMO",VLOOKUP($B221,'BANCO DE DADOS DEZ-24 INS'!$A:$D,4,FALSE),VLOOKUP($B221,'BANCO DE DADOS DEZ-24 SERV'!$B:$E,4,FALSE)) -> 20.32 | G221: =TRUNC(E221*F221,2) -> 20.32
B222: **COMPOSIÇÃO BASEADA NO ORSE, CÓD. 10812 - (NOVEMBRO/2023) | F222: Total | G222: =SUM(G216:G221) -> 182.47
B224: COTAÇÃO | C224: GRADIL NYLOFOR3D, MALHA 20X5CM, Ø 5MM 250X203 CM, BELGO OU SIMILAR | G224: PÇ
B225: DATA | C225: NOME DA EMPRESA FORNECEDORA | D225: VALOR COTADO | E225: CNPJ | F225: TELEFONE | G225: CONTATO
B226: 2024-08-20 | C226: AÇOFER | D226: 405.23 | E226: 03.989.217/0013-06 | F226: (65) 3646-4422 | G226: SARA
B227: 2024-08-23 | C227: PERFILADOS MILTIAÇO | D227: 425.453 | E227: 02.019.067/0001-65 | F227: (65)3634-3050 | G227: GRASIELE
B228: 2024-08-20 | C228: BELGO CERCAS | D228: 452.37 | E228: 09.356.111/0001-00 | F228: (65) 3025-7130 | G228: DOUGLAS
C229: VALOR ACATADO MEDIANA | D229: =IF(COUNT(D226:D228)=3,MEDIAN(D226:D228),SMALL(D226:D228,1)) -> 425.453
B231: COTAÇÃO | C231: POSTE DE GRADIL NYLOFOR 3D COM TAMPA, H=2,60M, SEÇÃO DE 40X60MM, BELGO OU SIMILAR | G231: PÇ
B232: DATA | C232: NOME DA EMPRESA FORNECEDORA | D232: VALOR COTADO | E232: CNPJ | F232: TELEFONE | G232: CONTATO
B233: 2024-08-20 | C233: AÇOFER | D233: 120.23 | E233: 03.989.217/0013-06 | F233: (65) 3646-4422 | G233: SARA
... 85 more rows

Sheet BANCO DE DADOS DEZ-24 SERV (hidden)
B1: Código | C1: Descrição | D1: Unidade | E1: Preço | H1: DESONERADO | I1: NÃO DESONERADO
B2: 97141 | C2: ASSENTAMENTO DE TUBO DE FERRO FUNDIDO PARA REDE DE ÁGUA, DN 80 MM, JUNTA ELÁSTICA, INSTALADO EM LOCAL COM NÍVEL ALTO DE INTERFERÊNCIAS (NÃO INCLUI FORNECIMENTO). AF_05/2024 | D2: M | E2: =IF($K$2=$H$1,H2,I2) -> 4.07 | F2: =IF(LEN($B2)=7,CONCATENATE(MID($B2,1,6),"00",RIGHT($B2,1)),IF(LEN($B2)=8,CONCATENATE(MID($B2,1,6),"0",RIGHT($B2,2)),$B2)) -> 97141 | H2: 3.84 | I2: 4.07 | K2: ='PLANILHA ORÇAMENTÁRIA'!M6 -> NÃO DESONERADO
B3: 97142 | C3: ASSENTAMENTO DE TUBO DE FERRO FUNDIDO PARA REDE DE ÁGUA, DN 100 MM, JUNTA ELÁSTICA, INSTALADO EM LOCAL COM NÍVEL ALTO DE INTERFERÊNCIAS (NÃO INCLUI FORNECIMENTO). AF_05/2024 | D3: M | E3: =IF($K$2=$H$1,H3,I3) -> 4.67 | F3: =IF(LEN($B3)=7,CONCATENATE(MID($B3,1,6),"00",RIGHT($B3,1)),IF(LEN($B3)=8,CONCATENATE(MID($B3,1,6),"0",RIGHT($B3,2)),$B3)) -> 97142 | H3: 4.41 | I3: 4.67
B4: 97143 | C4: ASSENTAMENTO DE TUBO DE FERRO FUNDIDO PARA REDE DE ÁGUA, DN 150 MM, JUNTA ELÁSTICA, INSTALADO EM LOCAL COM NÍVEL ALTO DE INTERFERÊNCIAS (NÃO INCLUI FORNECIMENTO). AF_05/2024 | D4: M | E4: 6.13 | F4: 97143 | H4: 5.76 | I4: 6.13
B5: 97144 | C5: ASSENTAMENTO DE TUBO DE FERRO FUNDIDO PARA REDE DE ÁGUA, DN 200 MM, JUNTA ELÁSTICA, INSTALADO EM LOCAL COM NÍVEL ALTO DE INTERFERÊNCIAS (NÃO INCLUI FORNECIMENTO). AF_05/2024 | D5: M | E5: 7.6 | F5: 97144 | H5: 7.13 | I5: 7.6
B6: 97145 | C6: ASSENTAMENTO DE TUBO DE FERRO FUNDIDO PARA REDE DE ÁGUA, DN 250 MM, JUNTA ELÁSTICA, INSTALADO EM LOCAL COM NÍVEL ALTO DE INTERFERÊNCIAS (NÃO INCLUI FORNECIMENTO). AF_05/2024 | D6: M | E6: 9.08 | F6: 97145 | H6: 8.52 | I6: 9.08
B7: 97146 | C7: ASSENTAMENTO DE TUBO DE FERRO FUNDIDO PARA REDE DE ÁGUA, DN 300 MM, JUNTA ELÁSTICA, INSTALADO EM LOCAL COM NÍVEL ALTO DE INTERFERÊNCIAS (NÃO INCLUI FORNECIMENTO). AF_05/2024 | D7: M | E7: 10.59 | F7: 97146 | H7: 9.9 | I7: 10.59
B8: 97147 | C8: ASSENTAMENTO DE TUBO DE FERRO FUNDIDO PARA REDE DE ÁGUA, DN 350 MM, JUNTA ELÁSTICA, INSTALADO EM LOCAL COM NÍVEL ALTO DE INTERFERÊNCIAS (NÃO INCLUI FORNECIMENTO). AF_05/2024 | D8: M | E8: 12.08 | F8: 97147 | H8: 11.3 | I8: 12.08
B9: 97148 | C9: ASSENTAMENTO DE TUBO DE FERRO FUNDIDO PARA REDE DE ÁGUA, DN 400 MM, JUNTA ELÁSTICA, INSTALADO EM LOCAL COM NÍVEL ALTO DE INTERFERÊNCIAS (NÃO INCLUI FORNECIMENTO). AF_05/2024 | D9: M | E9: 13.57 | F9: 97148 | H9: 12.68 | I9: 13.57
B10: 97149 | C10: ASSENTAMENTO DE TUBO DE FERRO FUNDIDO PARA REDE DE ÁGUA, DN 450 MM, JUNTA ELÁSTICA, INSTALADO EM LOCAL COM NÍVEL ALTO DE INTERFERÊNCIAS (NÃO INCLUI FORNECIMENTO). AF_05/2024 | D10: M | E10: 15.09 | F10: 97149 | H10: 14.11 | I10: 15.09
B11: 97150 | C11: ASSENTAMENTO DE TUBO DE FERRO FUNDIDO PARA REDE DE ÁGUA, DN 500 MM, JUNTA ELÁSTICA, INSTALADO EM LOCAL COM NÍVEL ALTO DE INTERFERÊNCIAS (NÃO INCLUI FORNECIMENTO). AF_05/2024 | D11: M | E11: 19.91 | F11: 97150 | H11: 18.82 | I11: 19.91
B12: 97151 | C12: ASSENTAMENTO DE TUBO DE FERRO FUNDIDO PARA REDE DE ÁGUA, DN 600 MM, JUNTA ELÁSTICA, INSTALADO EM LOCAL COM NÍVEL ALTO DE INTERFERÊNCIAS (NÃO INCLUI FORNECIMENTO). AF_05/2024 | D12: M | E12: 23.45 | F12: 97151 | H12: 22.15 | I12: 23.45
B13: 97152 | C13: ASSENTAMENTO DE TUBO DE FERRO FUNDIDO PARA REDE DE ÁGUA, DN 700 MM, JUNTA ELÁSTICA, INSTALADO EM LOCAL COM NÍVEL ALTO DE INTERFERÊNCIAS (NÃO INCLUI FORNECIMENTO). AF_05/2024 | D13: M | E13: 26.67 | F13: 97152 | H13: 25.17 | I13: 26.67
B14: 97153 | C14: ASSENTAMENTO DE TUBO DE FERRO FUNDIDO PARA REDE DE ÁGUA, DN 800 MM, JUNTA ELÁSTICA, INSTALADO EM LOCAL COM NÍVEL ALTO DE INTERFERÊNCIAS (NÃO INCLUI FORNECIMENTO). AF_05/2024 | D14: M | E14: 30.1 | F14: 97153 | H14: 28.38 | I14: 30.1
B15: 97154 | C15: ASSENTAMENTO DE TUBO DE FERRO FUNDIDO PARA REDE DE ÁGUA, DN 900 MM, JUNTA ELÁSTICA, INSTALADO EM LOCAL COM NÍVEL ALTO DE INTERFERÊNCIAS (NÃO INCLUI FORNECIMENTO). AF_05/2024 | D15: M | E15: 33.57 | F15: 97154 | H15: 31.63 | I15: 33.57
B16: 97155 | C16: ASSENTAMENTO DE TUBO DE FERRO FUNDIDO PARA REDE DE ÁGUA, DN 1000 MM, JUNTA ELÁSTICA, INSTALADO EM LOCAL COM NÍVEL ALTO DE INTERFERÊNCIAS (NÃO INCLUI FORNECIMENTO). AF_05/2024 | D16: M | E16: 37.05 | F16: 97155 | H16: 34.92 | I16: 37.05
B17: 97156 | C17: ASSENTAMENTO DE TUBO DE FERRO FUNDIDO PARA REDE DE ÁGUA, DN 1200 MM, JUNTA ELÁSTICA, INSTALADO EM LOCAL COM NÍVEL ALTO DE INTERFERÊNCIAS (NÃO INCLUI FORNECIMENTO). AF_05/2024 | D17: M | E17: 44.47 | F17: 97156 | H17: 41.92 | I17: 44.47
B18: 97157 | C18: ASSENTAMENTO DE TUBO DE FERRO FUNDIDO PARA REDE DE ÁGUA, DN 80 MM, JUNTA ELÁSTICA, INSTALADO EM LOCAL COM NÍVEL BAIXO DE INTERFERÊNCIAS (NÃO INCLUI FORNECIMENTO). AF_05/2024 | D18: M | E18: 3.09 | F18: 97157 | H18: 2.92 | I18: 3.09
B19: 97158 | C19: ASSENTAMENTO DE TUBO DE FERRO FUNDIDO PARA REDE DE ÁGUA, DN 100 MM, JUNTA ELÁSTICA, INSTALADO EM LOCAL COM NÍVEL BAIXO DE INTERFERÊNCIAS (NÃO INCLUI FORNECIMENTO). AF_05/2024 | D19: M | E19: 3.59 | F19: 97158 | H19: 3.37 | I19: 3.59
B20: 97159 | C20: ASSENTAMENTO DE TUBO DE FERRO FUNDIDO PARA REDE DE ÁGUA, DN 150 MM, JUNTA ELÁSTICA, INSTALADO EM LOCAL COM NÍVEL BAIXO DE INTERFERÊNCIAS (NÃO INCLUI FORNECIMENTO). AF_05/2024 | D20: M | E20: 4.8 | F20: 97159 | H20: 4.49 | I20: 4.8
B21: 97160 | C21: ASSENTAMENTO DE TUBO DE FERRO FUNDIDO PARA REDE DE ÁGUA, DN 200 MM, JUNTA ELÁSTICA, INSTALADO EM LOCAL COM NÍVEL BAIXO DE INTERFERÊNCIAS (NÃO INCLUI FORNECIMENTO). AF_05/2024 | D21: M | E21: 6 | F21: 97160 | H21: 5.62 | I21: 6
B22: 97161 | C22: ASSENTAMENTO DE TUBO DE FERRO FUNDIDO PARA REDE DE ÁGUA, DN 250 MM, JUNTA ELÁSTICA, INSTALADO EM LOCAL COM NÍVEL BAIXO DE INTERFERÊNCIAS (NÃO INCLUI FORNECIMENTO). AF_05/2024 | D22: M | E22: 7.22 | F22: 97161 | H22: 6.77 | I22: 7.22
B23: 97162 | C23: ASSENTAMENTO DE TUBO DE FERRO FUNDIDO PARA REDE DE ÁGUA, DN 300 MM, JUNTA ELÁSTICA, INSTALADO EM LOCAL COM NÍVEL BAIXO DE INTERFERÊNCIAS (NÃO INCLUI FORNECIMENTO). AF_05/2024 | D23: M | E23: 8.46 | F23: 97162 | H23: 7.91 | I23: 8.46
B24: 97163 | C24: ASSENTAMENTO DE TUBO DE FERRO FUNDIDO PARA REDE DE ÁGUA, DN 350 MM, JUNTA ELÁSTICA, INSTALADO EM LOCAL COM NÍVEL BAIXO DE INTERFERÊNCIAS (NÃO INCLUI FORNECIMENTO). AF_05/2024 | D24: M | E24: 9.69 | F24: 97163 | H24: 9.05 | I24: 9.69
B25: 97164 | C25: ASSENTAMENTO DE TUBO DE FERRO FUNDIDO PARA REDE DE ÁGUA, DN 400 MM, JUNTA ELÁSTICA, INSTALADO EM LOCAL COM NÍVEL BAIXO DE INTERFERÊNCIAS (NÃO INCLUI FORNECIMENTO). AF_05/2024 | D25: M | E25: 10.94 | F25: 97164 | H25: 10.21 | I25: 10.94
B26: 97165 | C26: ASSENTAMENTO DE TUBO DE FERRO FUNDIDO PARA REDE DE ÁGUA, DN 450 MM, JUNTA ELÁSTICA, INSTALADO EM LOCAL COM NÍVEL BAIXO DE INTERFERÊNCIAS (NÃO INCLUI FORNECIMENTO). AF_05/2024 | D26: M | E26: 12.2 | F26: 97165 | H26: 11.38 | I26: 12.2
B27: 97166 | C27: ASSENTAMENTO DE TUBO DE FERRO FUNDIDO PARA REDE DE ÁGUA, DN 500 MM, JUNTA ELÁSTICA, INSTALADO EM LOCAL COM NÍVEL BAIXO DE INTERFERÊNCIAS (NÃO INCLUI FORNECIMENTO). AF_05/2024 | D27: M | E27: 15.67 | F27: 97166 | H27: 14.76 | I27: 15.67
B28: 97167 | C28: ASSENTAMENTO DE TUBO DE FERRO FUNDIDO PARA REDE DE ÁGUA, DN 600 MM, JUNTA ELÁSTICA, INSTALADO EM LOCAL COM NÍVEL BAIXO DE INTERFERÊNCIAS (NÃO INCLUI FORNECIMENTO). AF_05/2024 | D28: M | E28: 18.53 | F28: 97167 | H28: 17.44 | I28: 18.53
B29: 97168 | C29: ASSENTAMENTO DE TUBO DE FERRO FUNDIDO PARA REDE DE ÁGUA, DN 700 MM, JUNTA ELÁSTICA, INSTALADO EM LOCAL COM NÍVEL BAIXO DE INTERFERÊNCIAS (NÃO INCLUI FORNECIMENTO). AF_05/2024 | D29: M | E29: 21.08 | F29: 97168 | H29: 19.82 | I29: 21.08
B30: 97169 | C30: ASSENTAMENTO DE TUBO DE FERRO FUNDIDO PARA REDE DE ÁGUA, DN 800 MM, JUNTA ELÁSTICA, INSTALADO EM LOCAL COM NÍVEL BAIXO DE INTERFERÊNCIAS (NÃO INCLUI FORNECIMENTO). AF_05/2024 | D30: M | E30: 23.81 | F30: 97169 | H30: 22.39 | I30: 23.81
B31: 97170 | C31: ASSENTAMENTO DE TUBO DE FERRO FUNDIDO PARA REDE DE ÁGUA, DN 900 MM, JUNTA ELÁSTICA, INSTALADO EM LOCAL COM NÍVEL BAIXO DE INTERFERÊNCIAS (NÃO INCLUI FORNECIMENTO). AF_05/2024 | D31: M | E31: 26.6 | F31: 97170 | H31: 24.99 | I31: 26.6
B32: 97171 | C32: ASSENTAMENTO DE TUBO DE FERRO FUNDIDO PARA REDE DE ÁGUA, DN 1000 MM, JUNTA ELÁSTICA, INSTALADO EM LOCAL COM NÍVEL BAIXO DE INTERFERÊNCIAS (NÃO INCLUI FORNECIMENTO). AF_05/2024 | D32: M | E32: 29.4 | F32: 97171 | H32: 27.61 | I32: 29.4
B33: 97172 | C33: ASSENTAMENTO DE TUBO DE FERRO FUNDIDO PARA REDE DE ÁGUA, DN 1200 MM, JUNTA ELÁSTICA, INSTALADO EM LOCAL COM NÍVEL BAIXO DE INTERFERÊNCIAS (NÃO INCLUI FORNECIMENTO). AF_05/2024 | D33: M | E33: 35.47 | F33: 97172 | H33: 33.33 | I33: 35.47
B34: 105249 | C34: ASSENTAMENTO DE CONEXÃO 2 ACESSOS ALINHADOS DE FERRO FUNDIDO PARA REDE DE ÁGUA, DN 1200, JUNTA ELÁSTICA, INSTALADO EM LOCAL COM NÍVEL ALTO DE INTERFERÊNCIAS (NÃO INCLUI FORNECIMENTO). AF_05/2024 | D34: UN | E34: 101.41 | F34: 105249 | H34: 96.18 | I34: 101.41
B35: 105250 | C35: ASSENTAMENTO DE CONEXÃO 2 ACESSOS INCLINADOS DE FERRO FUNDIDO PARA REDE DE ÁGUA, DN 80, JUNTA ELÁSTICA, INSTALADO EM LOCAL COM NÍVEL ALTO DE INTERFERÊNCIAS (NÃO INCLUI FORNECIMENTO). AF_05/2024 | D35: UN | E35: 13.02 | F35: 105250 | H35: 12.33 | I35: 13.02
B36: 105251 | C36: ASSENTAMENTO DE CONEXÃO 2 ACESSOS INCLINADOS DE FERRO FUNDIDO PARA REDE DE ÁGUA, DN 100, JUNTA ELÁSTICA, INSTALADO EM LOCAL COM NÍVEL ALTO DE INTERFERÊNCIAS (NÃO INCLUI FORNECIMENTO). AF_05/2024 | D36: UN | E36: 14.91 | F36: 105251 | H36: 14.09 | I36: 14.91
B37: 105252 | C37: ASSENTAMENTO DE CONEXÃO 2 ACESSOS INCLINADOS DE FERRO FUNDIDO PARA REDE DE ÁGUA, DN 150, JUNTA ELÁSTICA, INSTALADO EM LOCAL COM NÍVEL ALTO DE INTERFERÊNCIAS (NÃO INCLUI FORNECIMENTO). AF_05/2024 | D37: UN | E37: 19.57 | F37: 105252 | H37: 18.44 | I37: 19.57
B38: 105253 | C38: ASSENTAMENTO DE CONEXÃO 2 ACESSOS INCLINADOS DE FERRO FUNDIDO PARA REDE DE ÁGUA, DN 200, JUNTA ELÁSTICA, INSTALADO EM LOCAL COM NÍVEL ALTO DE INTERFERÊNCIAS (NÃO INCLUI FORNECIMENTO). AF_05/2024 | D38: UN | E38: 24.24 | F38: 105253 | H38: 22.78 | I38: 24.24
B39: 105254 | C39: ASSENTAMENTO DE CONEXÃO 2 ACESSOS INCLINADOS DE FERRO FUNDIDO PARA REDE DE ÁGUA, DN 250, JUNTA ELÁSTICA, INSTALADO EM LOCAL COM NÍVEL ALTO DE INTERFERÊNCIAS (NÃO INCLUI FORNECIMENTO). AF_05/2024 | D39: UN | E39: 29.08 | F39: 105254 | H39: 27.31 | I39: 29.08
B40: 105255 | C40: ASSENTAMENTO DE CONEXÃO 2 ACESSOS INCLINADOS DE FERRO FUNDIDO PARA REDE DE ÁGUA, DN 300, JUNTA ELÁSTICA, INSTALADO EM LOCAL COM NÍVEL ALTO DE INTERFERÊNCIAS (NÃO INCLUI FORNECIMENTO). AF_05/2024 | D40: UN | E40: 33.92 | F40: 105255 | H40: 31.82 | I40: 33.92
B41: 105256 | C41: ASSENTAMENTO DE CONEXÃO 2 ACESSOS INCLINADOS DE FERRO FUNDIDO PARA REDE DE ÁGUA, DN 350, JUNTA ELÁSTICA, INSTALADO EM LOCAL COM NÍVEL ALTO DE INTERFERÊNCIAS (NÃO INCLUI FORNECIMENTO). AF_05/2024 | D41: UN | E41: 38.73 | F41: 105256 | H41: 36.31 | I41: 38.73
B42: 105257 | C42: ASSENTAMENTO DE CONEXÃO 2 ACESSOS INCLINADOS DE FERRO FUNDIDO PARA REDE DE ÁGUA, DN 400, JUNTA ELÁSTICA, INSTALADO EM LOCAL COM NÍVEL ALTO DE INTERFERÊNCIAS (NÃO INCLUI FORNECIMENTO). AF_05/2024 | D42: UN | E42: 43.54 | F42: 105257 | H42: 40.81 | I42: 43.54
B43: 105258 | C43: ASSENTAMENTO DE CONEXÃO 2 ACESSOS ALINHADOS DE FERRO FUNDIDO PARA REDE DE ÁGUA, DN 400, JUNTA ELÁSTICA, INSTALADO EM LOCAL COM NÍVEL BAIXO DE INTERFERÊNCIAS (NÃO INCLUI FORNECIMENTO). AF_05/2024 | D43: UN | F43: 105258 | H43: 23.31 | I43: 24.81
B44: 105259 | C44: ASSENTAMENTO DE CONEXÃO 3 ACESSOS DE FERRO FUNDIDO PARA REDE DE ÁGUA, DN 100, JUNTA ELÁSTICA, INSTALADO EM LOCAL COM NÍVEL BAIXO DE INTERFERÊNCIAS (NÃO INCLUI FORNECIMENTO). AF_05/2024 | D44: UN | E44: 16.14 | F44: 105259 | H44: 15.28 | I44: 16.14
B45: 105261 | C45: ASSENTAMENTO DE CONEXÃO 2 ACESSOS ALINHADOS DE FERRO FUNDIDO PARA REDE DE ÁGUA, DN 450, JUNTA ELÁSTICA, INSTALADO EM LOCAL COM NÍVEL BAIXO DE INTERFERÊNCIAS (NÃO INCLUI FORNECIMENTO). AF_05/2024 | D45: UN | E45: 27.79 | F45: 105261 | H45: 26.11 | I45: 27.79
B46: 105262 | C46: ASSENTAMENTO DE CONEXÃO 2 ACESSOS ALINHADOS DE FERRO FUNDIDO PARA REDE DE ÁGUA, DN 500, JUNTA ELÁSTICA, INSTALADO EM LOCAL COM NÍVEL BAIXO DE INTERFERÊNCIAS (NÃO INCLUI FORNECIMENTO). AF_05/2024 | D46: UN | E46: 35.29 | F46: 105262 | H46: 33.42 | I46: 35.29
B47: 105263 | C47: ASSENTAMENTO DE CONEXÃO 2 ACESSOS ALINHADOS DE FERRO FUNDIDO PARA REDE DE ÁGUA, DN 600, JUNTA ELÁSTICA, INSTALADO EM LOCAL COM NÍVEL BAIXO DE INTERFERÊNCIAS (NÃO INCLUI FORNECIMENTO). AF_05/2024 | D47: UN | E47: 41.94 | F47: 105263 | H47: 39.72 | I47: 41.94
B48: 105264 | C48: ASSENTAMENTO DE CONEXÃO 2 ACESSOS ALINHADOS DE FERRO FUNDIDO PARA REDE DE ÁGUA, DN 700, JUNTA ELÁSTICA, INSTALADO EM LOCAL COM NÍVEL BAIXO DE INTERFERÊNCIAS (NÃO INCLUI FORNECIMENTO). AF_05/2024 | D48: UN | E48: 47.73 | F48: 105264 | H48: 45.14 | I48: 47.73
B49: 105265 | C49: ASSENTAMENTO DE CONEXÃO 2 ACESSOS ALINHADOS DE FERRO FUNDIDO PARA REDE DE ÁGUA, DN 800, JUNTA ELÁSTICA, INSTALADO EM LOCAL COM NÍVEL BAIXO DE INTERFERÊNCIAS (NÃO INCLUI FORNECIMENTO). AF_05/2024 | D49: UN | E49: 53.83 | F49: 105265 | H49: 50.89 | I49: 53.83
B50: 105266 | C50: ASSENTAMENTO DE CONEXÃO 2 ACESSOS ALINHADOS DE FERRO FUNDIDO PARA REDE DE ÁGUA, DN 900, JUNTA ELÁSTICA, INSTALADO EM LOCAL COM NÍVEL BAIXO DE INTERFERÊNCIAS (NÃO INCLUI FORNECIMENTO). AF_05/2024 | D50: UN | E50: 60.18 | F50: 105266 | H50: 56.89 | I50: 60.18
B51: 105267 | C51: ASSENTAMENTO DE CONEXÃO 2 ACESSOS ALINHADOS DE FERRO FUNDIDO PARA REDE DE ÁGUA, DN 1000, JUNTA ELÁSTICA, INSTALADO EM LOCAL COM NÍVEL BAIXO DE INTERFERÊNCIAS (NÃO INCLUI FORNECIMENTO). AF_05/2024 | D51: UN | E51: 66.65 | F51: 105267 | H51: 63 | I51: 66.65
B52: 105268 | C52: ASSENTAMENTO DE CONEXÃO 2 ACESSOS ALINHADOS DE FERRO FUNDIDO PARA REDE DE ÁGUA, DN 1200, JUNTA ELÁSTICA, INSTALADO EM LOCAL COM NÍVEL BAIXO DE INTERFERÊNCIAS (NÃO INCLUI FORNECIMENTO). AF_05/2024 | D52: UN | E52: 82.92 | F52: 105268 | H52: 78.55 | I52: 82.92
B53: 105269 | C53: ASSENTAMENTO DE CONEXÃO 2 ACESSOS INCLINADOS DE FERRO FUNDIDO PARA REDE DE ÁGUA, DN 80, JUNTA ELÁSTICA, INSTALADO EM LOCAL COM NÍVEL BAIXO DE INTERFERÊNCIAS (NÃO INCLUI FORNECIMENTO). AF_05/2024 | D53: UN | E53: 10 | F53: 105269 | H53: 9.48 | I53: 10
B54: 105270 | C54: ASSENTAMENTO DE CONEXÃO 2 ACESSOS INCLINADOS DE FERRO FUNDIDO PARA REDE DE ÁGUA, DN 450, JUNTA ELÁSTICA, INSTALADO EM LOCAL COM NÍVEL ALTO DE INTERFERÊNCIAS (NÃO INCLUI FORNECIMENTO). AF_05/2024 | D54: UN | E54: 48.52 | F54: 105270 | H54: 45.46 | I54: 48.52
B55: 105271 | C55: ASSENTAMENTO DE CONEXÃO 2 ACESSOS INCLINADOS DE FERRO FUNDIDO PARA REDE DE ÁGUA, DN 500, JUNTA ELÁSTICA, INSTALADO EM LOCAL COM NÍVEL ALTO DE INTERFERÊNCIAS (NÃO INCLUI FORNECIMENTO). AF_05/2024 | D55: UN | E55: 63.61 | F55: 105271 | H55: 60.25 | I55: 63.61
B56: 105272 | C56: ASSENTAMENTO DE CONEXÃO 2 ACESSOS INCLINADOS DE FERRO FUNDIDO PARA REDE DE ÁGUA, DN 600, JUNTA ELÁSTICA, INSTALADO EM LOCAL COM NÍVEL ALTO DE INTERFERÊNCIAS (NÃO INCLUI FORNECIMENTO). AF_05/2024 | D56: UN | E56: 75.08 | F56: 105272 | H56: 71.07 | I56: 75.08
B57: 105273 | C57: ASSENTAMENTO DE CONEXÃO 2 ACESSOS INCLINADOS DE FERRO FUNDIDO PARA REDE DE ÁGUA, DN 700, JUNTA ELÁSTICA, INSTALADO EM LOCAL COM NÍVEL ALTO DE INTERFERÊNCIAS (NÃO INCLUI FORNECIMENTO). AF_05/2024 | D57: UN | E57: 85.66 | F57: 105273 | H57: 81.02 | I57: 85.66
B58: 105274 | C58: ASSENTAMENTO DE CONEXÃO 2 ACESSOS INCLINADOS DE FERRO FUNDIDO PARA REDE DE ÁGUA, DN 800, JUNTA ELÁSTICA, INSTALADO EM LOCAL COM NÍVEL ALTO DE INTERFERÊNCIAS (NÃO INCLUI FORNECIMENTO). AF_05/2024 | D58: UN | E58: 96.59 | F58: 105274 | H58: 91.31 | I58: 96.59
B59: 105275 | C59: ASSENTAMENTO DE CONEXÃO 2 ACESSOS INCLINADOS DE FERRO FUNDIDO PARA REDE DE ÁGUA, DN 900, JUNTA ELÁSTICA, INSTALADO EM LOCAL COM NÍVEL ALTO DE INTERFERÊNCIAS (NÃO INCLUI FORNECIMENTO). AF_05/2024 | D59: UN | E59: 107.73 | F59: 105275 | H59: 101.83 | I59: 107.73
B60: 105276 | C60: ASSENTAMENTO DE CONEXÃO 2 ACESSOS INCLINADOS DE FERRO FUNDIDO PARA REDE DE ÁGUA, DN 1000, JUNTA ELÁSTICA, INSTALADO EM LOCAL COM NÍVEL ALTO DE INTERFERÊNCIAS (NÃO INCLUI FORNECIMENTO). AF_05/2024 | D60: UN | E60: 119.03 | F60: 105276 | H60: 112.48 | I60: 119.03
B61: 105277 | C61: ASSENTAMENTO DE CONEXÃO 2 ACESSOS INCLINADOS DE FERRO FUNDIDO PARA REDE DE ÁGUA, DN 1200, JUNTA ELÁSTICA, INSTALADO EM LOCAL COM NÍVEL ALTO DE INTERFERÊNCIAS (NÃO INCLUI FORNECIMENTO). AF_05/2024 | D61: UN | E61: 144.92 | F61: 105277 | H61: 137.07 | I61: 144.92
B62: 105278 | C62: ASSENTAMENTO DE CONEXÃO 3 ACESSOS DE FERRO FUNDIDO PARA REDE DE ÁGUA, DN 80, JUNTA ELÁSTICA, INSTALADO EM LOCAL COM NÍVEL ALTO DE INTERFERÊNCIAS (NÃO INCLUI FORNECIMENTO). AF_05/2024 | D62: UN | E62: 17.94 | F62: 105278 | H62: 17.02 | I62: 17.94
B63: 105279 | C63: ASSENTAMENTO DE CONEXÃO 3 ACESSOS DE FERRO FUNDIDO PARA REDE DE ÁGUA, DN 100, JUNTA ELÁSTICA, INSTALADO EM LOCAL COM NÍVEL ALTO DE INTERFERÊNCIAS (NÃO INCLUI FORNECIMENTO). AF_05/2024 | D63: UN | E63: 20.58 | F63: 105279 | H63: 19.49 | I63: 20.58
B64: 105280 | C64: ASSENTAMENTO DE CONEXÃO 3 ACESSOS DE FERRO FUNDIDO PARA REDE DE ÁGUA, DN 150, JUNTA ELÁSTICA, INSTALADO EM LOCAL COM NÍVEL ALTO DE INTERFERÊNCIAS (NÃO INCLUI FORNECIMENTO). AF_05/2024 | D64: UN | E64: 27.01 | F64: 105280 | H64: 25.48 | I64: 27.01
B65: 105281 | C65: ASSENTAMENTO DE CONEXÃO 3 ACESSOS DE FERRO FUNDIDO PARA REDE DE ÁGUA, DN 200, JUNTA ELÁSTICA, INSTALADO EM LOCAL COM NÍVEL ALTO DE INTERFERÊNCIAS (NÃO INCLUI FORNECIMENTO). AF_05/2024 | D65: UN | E65: 33.44 | F65: 105281 | H65: 31.49 | I65: 33.44
B66: 105282 | C66: ASSENTAMENTO DE CONEXÃO 2 ACESSOS INCLINADOS DE FERRO FUNDIDO PARA REDE DE ÁGUA, DN 100, JUNTA ELÁSTICA, INSTALADO EM LOCAL COM NÍVEL BAIXO DE INTERFERÊNCIAS (NÃO INCLUI FORNECIMENTO). AF_05/2024 | D66: UN | E66: 11.58 | F66: 105282 | H66: 10.94 | I66: 11.58
B67: 105283 | C67: ASSENTAMENTO DE CONEXÃO 3 ACESSOS DE FERRO FUNDIDO PARA REDE DE ÁGUA, DN 150, JUNTA ELÁSTICA, INSTALADO EM LOCAL COM NÍVEL BAIXO DE INTERFERÊNCIAS (NÃO INCLUI FORNECIMENTO). AF_05/2024 | D67: UN | E67: =IF($K$2=$H$1,H67,I67) -> 21.5 | F67: =IF(LEN($B67)=7,CONCATENATE(MID($B67,1,6),"00",RIGHT($B67,1)),IF(LEN($B67)=8,CONCATENATE(MID($B67,1,6),"0",RIGHT($B67,2)),$B67)) -> 105283 | H67: 20.29 | I67: 21.5
B68: 105284 | C68: ASSENTAMENTO DE CONEXÃO 3 ACESSOS DE FERRO FUNDIDO PARA REDE DE ÁGUA, DN 250, JUNTA ELÁSTICA, INSTALADO EM LOCAL COM NÍVEL ALTO DE INTERFERÊNCIAS (NÃO INCLUI FORNECIMENTO). AF_05/2024 | D68: UN | E68: 40.22 | F68: 105284 | H68: 37.85 | I68: 40.22
B69: 105297 | C69: ASSENTAMENTO DE CONEXÃO 2 ACESSOS ALINHADOS DE FERRO FUNDIDO PARA REDE DE ÁGUA, DN 80, JUNTA ELÁSTICA, INSTALADO EM LOCAL COM NÍVEL ALTO DE INTERFERÊNCIAS (NÃO INCLUI FORNECIMENTO). AF_05/2024 | D69: UN | E69: 8.96 | F69: 105297 | H69: 8.5 | I69: 8.96
B70: 105298 | C70: ASSENTAMENTO DE CONEXÃO 2 ACESSOS INCLINADOS DE FERRO FUNDIDO PARA REDE DE ÁGUA, DN 150, JUNTA ELÁSTICA, INSTALADO EM LOCAL COM NÍVEL BAIXO DE INTERFERÊNCIAS (NÃO INCLUI FORNECIMENTO). AF_05/2024 | D70: UN | E70: 15.43 | F70: 105298 | H70: 14.51 | I70: 15.43
B71: 105299 | C71: ASSENTAMENTO DE CONEXÃO 2 ACESSOS INCLINADOS DE FERRO FUNDIDO PARA REDE DE ÁGUA, DN 200, JUNTA ELÁSTICA, INSTALADO EM LOCAL COM NÍVEL BAIXO DE INTERFERÊNCIAS (NÃO INCLUI FORNECIMENTO). AF_05/2024 | D71: UN | E71: 19.31 | F71: 105299 | H71: 18.13 | I71: 19.31
B72: 105300 | C72: ASSENTAMENTO DE CONEXÃO 2 ACESSOS INCLINADOS DE FERRO FUNDIDO PARA REDE DE ÁGUA, DN 250, JUNTA ELÁSTICA, INSTALADO EM LOCAL COM NÍVEL BAIXO DE INTERFERÊNCIAS (NÃO INCLUI FORNECIMENTO). AF_05/2024 | D72: UN | E72: 23.34 | F72: 105300 | H72: 21.9 | I72: 23.34
B73: 105301 | C73: ASSENTAMENTO DE CONEXÃO 2 ACESSOS INCLINADOS DE FERRO FUNDIDO PARA REDE DE ÁGUA, DN 300, JUNTA ELÁSTICA, INSTALADO EM LOCAL COM NÍVEL BAIXO DE INTERFERÊNCIAS (NÃO INCLUI FORNECIMENTO). AF_05/2024 | D73: UN | E73: 27.38 | F73: 105301 | H73: 25.66 | I73: 27.38
B74: 105302 | C74: ASSENTAMENTO DE CONEXÃO 2 ACESSOS INCLINADOS DE FERRO FUNDIDO PARA REDE DE ÁGUA, DN 350, JUNTA ELÁSTICA, INSTALADO EM LOCAL COM NÍVEL BAIXO DE INTERFERÊNCIAS (NÃO INCLUI FORNECIMENTO). AF_05/2024 | D74: UN | E74: 31.41 | F74: 105302 | H74: 29.41 | I74: 31.41
B75: 105303 | C75: ASSENTAMENTO DE CONEXÃO 2 ACESSOS INCLINADOS DE FERRO FUNDIDO PARA REDE DE ÁGUA, DN 400, JUNTA ELÁSTICA, INSTALADO EM LOCAL COM NÍVEL BAIXO DE INTERFERÊNCIAS (NÃO INCLUI FORNECIMENTO). AF_05/2024 | D75: UN | E75: 35.42 | F75: 105303 | H75: 33.16 | I75: 35.42
B76: 105304 | C76: ASSENTAMENTO DE CONEXÃO 2 ACESSOS INCLINADOS DE FERRO FUNDIDO PARA REDE DE ÁGUA, DN 450, JUNTA ELÁSTICA, INSTALADO EM LOCAL COM NÍVEL BAIXO DE INTERFERÊNCIAS (NÃO INCLUI FORNECIMENTO). AF_05/2024 | D76: UN | E76: 39.6 | F76: 105304 | H76: 37.07 | I76: 39.6
B77: 105305 | C77: ASSENTAMENTO DE CONEXÃO 2 ACESSOS INCLINADOS DE FERRO FUNDIDO PARA REDE DE ÁGUA, DN 500, JUNTA ELÁSTICA, INSTALADO EM LOCAL COM NÍVEL BAIXO DE INTERFERÊNCIAS (NÃO INCLUI FORNECIMENTO). AF_05/2024 | D77: UN | E77: 50.58 | F77: 105305 | H77: 47.79 | I77: 50.58
B78: 105306 | C78: ASSENTAMENTO DE CONEXÃO 2 ACESSOS INCLINADOS DE FERRO FUNDIDO PARA REDE DE ÁGUA, DN 600, JUNTA ELÁSTICA, INSTALADO EM LOCAL COM NÍVEL BAIXO DE INTERFERÊNCIAS (NÃO INCLUI FORNECIMENTO). AF_05/2024 | D78: UN | E78: 59.93 | F78: 105306 | H78: 56.61 | I78: 59.93
B79: 105307 | C79: ASSENTAMENTO DE CONEXÃO 2 ACESSOS INCLINADOS DE FERRO FUNDIDO PARA REDE DE ÁGUA, DN 700, JUNTA ELÁSTICA, INSTALADO EM LOCAL COM NÍVEL BAIXO DE INTERFERÊNCIAS (NÃO INCLUI FORNECIMENTO). AF_05/2024 | D79: UN | E79: 68.43 | F79: 105307 | H79: 64.57 | I79: 68.43
B80: 105317 | C80: ASSENTAMENTO DE CONEXÃO 2 ACESSOS ALINHADOS DE FERRO FUNDIDO PARA REDE DE ÁGUA, DN 300, JUNTA ELÁSTICA, INSTALADO EM LOCAL COM NÍVEL BAIXO DE INTERFERÊNCIAS (NÃO INCLUI FORNECIMENTO). AF_05/2024 | D80: UN | E80: 19.12 | F80: 105317 | H80: 17.98 | I80: 19.12
B81: 105318 | C81: ASSENTAMENTO DE CONEXÃO 2 ACESSOS ALINHADOS DE FERRO FUNDIDO PARA REDE DE ÁGUA, DN 350, JUNTA ELÁSTICA, INSTALADO EM LOCAL COM NÍVEL BAIXO DE INTERFERÊNCIAS (NÃO INCLUI FORNECIMENTO). AF_05/2024 | D81: UN | E81: 21.96 | F81: 105318 | H81: 20.63 | I81: 21.96
B82: 105319 | C82: ASSENTAMENTO DE CONEXÃO 3 ACESSOS DE FERRO FUNDIDO PARA REDE DE ÁGUA, DN 200, JUNTA ELÁSTICA, INSTALADO EM LOCAL COM NÍVEL BAIXO DE INTERFERÊNCIAS (NÃO INCLUI FORNECIMENTO). AF_05/2024 | D82: UN | E82: 26.86 | F82: 105319 | H82: 25.28 | I82: 26.86
B83: 105320 | C83: ASSENTAMENTO DE CONEXÃO 3 ACESSOS DE FERRO FUNDIDO PARA REDE DE ÁGUA, DN 250, JUNTA ELÁSTICA, INSTALADO EM LOCAL COM NÍVEL BAIXO DE INTERFERÊNCIAS (NÃO INCLUI FORNECIMENTO). AF_05/2024 | D83: UN | E83: 32.59 | F83: 105320 | H83: 30.66 | I83: 32.59
B84: 105321 | C84: ASSENTAMENTO DE CONEXÃO 3 ACESSOS DE FERRO FUNDIDO PARA REDE DE ÁGUA, DN 300, JUNTA ELÁSTICA, INSTALADO EM LOCAL COM NÍVEL BAIXO DE INTERFERÊNCIAS (NÃO INCLUI FORNECIMENTO). AF_05/2024 | D84: UN | E84: 38.28 | F84: 105321 | H84: 35.99 | I84: 38.28
B85: 105322 | C85: ASSENTAMENTO DE CONEXÃO 3 ACESSOS DE FERRO FUNDIDO PARA REDE DE ÁGUA, DN 350, JUNTA ELÁSTICA, INSTALADO EM LOCAL COM NÍVEL BAIXO DE INTERFERÊNCIAS (NÃO INCLUI FORNECIMENTO). AF_05/2024 | D85: UN | E85: 43.95 | F85: 105322 | H85: 41.3 | I85: 43.95
B86: 105323 | C86: ASSENTAMENTO DE CONEXÃO 3 ACESSOS DE FERRO FUNDIDO PARA REDE DE ÁGUA, DN 400, JUNTA ELÁSTICA, INSTALADO EM LOCAL COM NÍVEL BAIXO DE INTERFERÊNCIAS (NÃO INCLUI FORNECIMENTO). AF_05/2024 | D86: UN | E86: 49.62 | F86: 105323 | H86: 46.62 | I86: 49.62
B87: 105324 | C87: ASSENTAMENTO DE CONEXÃO 3 ACESSOS DE FERRO FUNDIDO PARA REDE DE ÁGUA, DN 450, JUNTA ELÁSTICA, INSTALADO EM LOCAL COM NÍVEL BAIXO DE INTERFERÊNCIAS (NÃO INCLUI FORNECIMENTO). AF_05/2024 | D87: UN | E87: 55.6 | F87: 105324 | H87: 52.25 | I87: 55.6
B88: 105325 | C88: ASSENTAMENTO DE CONEXÃO 3 ACESSOS DE FERRO FUNDIDO PARA REDE DE ÁGUA, DN 500, JUNTA ELÁSTICA, INSTALADO EM LOCAL COM NÍVEL BAIXO DE INTERFERÊNCIAS (NÃO INCLUI FORNECIMENTO). AF_05/2024 | D88: UN | E88: 70.58 | F88: 105325 | H88: 66.86 | I88: 70.58
B89: 105326 | C89: ASSENTAMENTO DE CONEXÃO 3 ACESSOS DE FERRO FUNDIDO PARA REDE DE ÁGUA, DN 600, JUNTA ELÁSTICA, INSTALADO EM LOCAL COM NÍVEL BAIXO DE INTERFERÊNCIAS (NÃO INCLUI FORNECIMENTO). AF_05/2024 | D89: UN | E89: 83.9 | F89: 105326 | H89: 79.47 | I89: 83.9
B90: 105340 | C90: ASSENTAMENTO DE CONEXÃO 2 ACESSOS INCLINADOS DE FERRO FUNDIDO PARA REDE DE ÁGUA, DN 800, JUNTA ELÁSTICA, INSTALADO EM LOCAL COM NÍVEL BAIXO DE INTERFERÊNCIAS (NÃO INCLUI FORNECIMENTO). AF_05/2024 | D90: UN | E90: 77.26 | F90: 105340 | H90: 72.84 | I90: 77.26
B91: 105341 | C91: ASSENTAMENTO DE CONEXÃO 2 ACESSOS INCLINADOS DE FERRO FUNDIDO PARA REDE DE ÁGUA, DN 1000, JUNTA ELÁSTICA, INSTALADO EM LOCAL COM NÍVEL BAIXO DE INTERFERÊNCIAS (NÃO INCLUI FORNECIMENTO). AF_05/2024 | D91: UN | E91: 95.51 | F91: 105341 | H91: 90.03 | I91: 95.51
B92: 105342 | C92: ASSENTAMENTO DE CONEXÃO 2 ACESSOS INCLINADOS DE FERRO FUNDIDO PARA REDE DE ÁGUA, DN 1200, JUNTA ELÁSTICA, INSTALADO EM LOCAL COM NÍVEL BAIXO DE INTERFERÊNCIAS (NÃO INCLUI FORNECIMENTO). AF_05/2024 | D92: UN | E92: 117.2 | F92: 105342 | H92: 110.64 | I92: 117.2
B93: 105343 | C93: ASSENTAMENTO DE CONEXÃO 3 ACESSOS DE FERRO FUNDIDO PARA REDE DE ÁGUA, DN 80, JUNTA ELÁSTICA, INSTALADO EM LOCAL COM NÍVEL BAIXO DE INTERFERÊNCIAS (NÃO INCLUI FORNECIMENTO). AF_05/2024 | D93: UN | E93: 13.91 | F93: 105343 | H93: 13.2 | I93: 13.91
B94: 105344 | C94: ASSENTAMENTO DE CONEXÃO 3 ACESSOS DE FERRO FUNDIDO PARA REDE DE ÁGUA, DN 700, JUNTA ELÁSTICA, INSTALADO EM LOCAL COM NÍVEL BAIXO DE INTERFERÊNCIAS (NÃO INCLUI FORNECIMENTO). AF_05/2024 | D94: UN | E94: 95.46 | F94: 105344 | H94: 90.3 | I94: 95.46
B95: 105345 | C95: ASSENTAMENTO DE CONEXÃO 3 ACESSOS DE FERRO FUNDIDO PARA REDE DE ÁGUA, DN 900, JUNTA ELÁSTICA, INSTALADO EM LOCAL COM NÍVEL BAIXO DE INTERFERÊNCIAS (NÃO INCLUI FORNECIMENTO). AF_05/2024 | D95: UN | E95: 120.36 | F95: 105345 | H95: 113.77 | I95: 120.36
B96: 105346 | C96: ASSENTAMENTO DE CONEXÃO 3 ACESSOS DE FERRO FUNDIDO PARA REDE DE ÁGUA, DN 1000, JUNTA ELÁSTICA, INSTALADO EM LOCAL COM NÍVEL BAIXO DE INTERFERÊNCIAS (NÃO INCLUI FORNECIMENTO). AF_05/2024 | D96: UN | E96: 133.32 | F96: 105346 | H96: 126.02 | I96: 133.32
B97: 105347 | C97: ASSENTAMENTO DE CONEXÃO 3 ACESSOS DE FERRO FUNDIDO PARA REDE DE ÁGUA, DN 1200, JUNTA ELÁSTICA, INSTALADO EM LOCAL COM NÍVEL BAIXO DE INTERFERÊNCIAS (NÃO INCLUI FORNECIMENTO). AF_05/2024 | D97: UN | E97: 165.85 | F97: 105347 | H97: 157.12 | I97: 165.85
B98: 105348 | C98: ASSENTAMENTO DE CONEXÃO 3 ACESSOS DE FERRO FUNDIDO PARA REDE DE ÁGUA, DN 300, JUNTA ELÁSTICA, INSTALADO EM LOCAL COM NÍVEL ALTO DE INTERFERÊNCIAS (NÃO INCLUI FORNECIMENTO). AF_05/2024 | D98: UN | E98: 46.98 | F98: 105348 | H98: 44.19 | I98: 46.98
B99: 105349 | C99: ASSENTAMENTO DE CONEXÃO 3 ACESSOS DE FERRO FUNDIDO PARA REDE DE ÁGUA, DN 350, JUNTA ELÁSTICA, INSTALADO EM LOCAL COM NÍVEL ALTO DE INTERFERÊNCIAS (NÃO INCLUI FORNECIMENTO). AF_05/2024 | D99: UN | E99: 53.72 | F99: 105349 | H99: 50.5 | I99: 53.72
B100: 105350 | C100: ASSENTAMENTO DE CONEXÃO 3 ACESSOS DE FERRO FUNDIDO PARA REDE DE ÁGUA, DN 400, JUNTA ELÁSTICA, INSTALADO EM LOCAL COM NÍVEL ALTO DE INTERFERÊNCIAS (NÃO INCLUI FORNECIMENTO). AF_05/2024 | D100: UN | E100: 60.46 | F100: 105350 | H100: 56.82 | I100: 60.46
B101: 105351 | C101: ASSENTAMENTO DE CONEXÃO 3 ACESSOS DE FERRO FUNDIDO PARA REDE DE ÁGUA, DN 450, JUNTA ELÁSTICA, INSTALADO EM LOCAL COM NÍVEL ALTO DE INTERFERÊNCIAS (NÃO INCLUI FORNECIMENTO). AF_05/2024 | D101: UN | E101: 67.51 | F101: 105351 | H101: 63.44 | I101: 67.51
B102: 105352 | C102: ASSENTAMENTO DE CONEXÃO 3 ACESSOS DE FERRO FUNDIDO PARA REDE DE ÁGUA, DN 500, JUNTA ELÁSTICA, INSTALADO EM LOCAL COM NÍVEL ALTO DE INTERFERÊNCIAS (NÃO INCLUI FORNECIMENTO). AF_05/2024 | D102: UN | E102: 87.97 | F102: 105352 | H102: 83.49 | I102: 87.97
B103: 105353 | C103: ASSENTAMENTO DE CONEXÃO 3 ACESSOS DE FERRO FUNDIDO PARA REDE DE ÁGUA, DN 600, JUNTA ELÁSTICA, INSTALADO EM LOCAL COM NÍVEL ALTO DE INTERFERÊNCIAS (NÃO INCLUI FORNECIMENTO). AF_05/2024 | D103: UN | E103: 104.09 | F103: 105353 | H103: 98.75 | I103: 104.09
B104: 105354 | C104: ASSENTAMENTO DE CONEXÃO 3 ACESSOS DE FERRO FUNDIDO PARA REDE DE ÁGUA, DN 700, JUNTA ELÁSTICA, INSTALADO EM LOCAL COM NÍVEL ALTO DE INTERFERÊNCIAS (NÃO INCLUI FORNECIMENTO). AF_05/2024 | D104: UN | E104: 118.45 | F104: 105354 | H104: 112.25 | I104: 118.45
B105: 105355 | C105: ASSENTAMENTO DE CONEXÃO 3 ACESSOS DE FERRO FUNDIDO PARA REDE DE ÁGUA, DN 800, JUNTA ELÁSTICA, INSTALADO EM LOCAL COM NÍVEL ALTO DE INTERFERÊNCIAS (NÃO INCLUI FORNECIMENTO). AF_05/2024 | D105: UN | E105: 133.46 | F105: 105355 | H105: 126.41 | I105: 133.46
B106: 105356 | C106: ASSENTAMENTO DE CONEXÃO 3 ACESSOS DE FERRO FUNDIDO PARA REDE DE ÁGUA, DN 900, JUNTA ELÁSTICA, INSTALADO EM LOCAL COM NÍVEL ALTO DE INTERFERÊNCIAS (NÃO INCLUI FORNECIMENTO). AF_05/2024 | D106: UN | E106: 148.94 | F106: 105356 | H106: 141.04 | I106: 148.94
B107: 105357 | C107: ASSENTAMENTO DE CONEXÃO 3 ACESSOS DE FERRO FUNDIDO PARA REDE DE ÁGUA, DN 1000, JUNTA ELÁSTICA, INSTALADO EM LOCAL COM NÍVEL ALTO DE INTERFERÊNCIAS (NÃO INCLUI FORNECIMENTO). AF_05/2024 | D107: UN | E107: 164.7 | F107: 105357 | H107: 155.95 | I107: 164.7
B108: 105358 | C108: ASSENTAMENTO DE CONEXÃO 3 ACESSOS DE FERRO FUNDIDO PARA REDE DE ÁGUA, DN 1200, JUNTA ELÁSTICA, INSTALADO EM LOCAL COM NÍVEL ALTO DE INTERFERÊNCIAS (NÃO INCLUI FORNECIMENTO). AF_05/2024 | D108: UN | E108: 202.82 | F108: 105358 | H108: 192.38 | I108: 202.82
B109: 105369 | C109: FORNECIMENTO E ASSENTAMENTO DE TE RANHURADO EM FERRO FUNDIDO, DN 80 (3") PARA REDE DE ÁGUA, INSTALADO EM LOCAL COM NÍVEL ALTO DE INTERFERÊNCIAS (INCLUI FORNECIMENTO). AF_05/2024 | D109: UN | E109: 71.82 | F109: 105369 | H109: 70.9 | I109: 71.82
B110: 105377 | C110: FORNECIMENTO E ASSENTAMENTO DE CURVA 45 GRAUS RANHURADA EM FERRO FUNDIDO, DN 80 MM (3") PARA REDE DE ÁGUA, INSTALADO EM LOCAL COM NÍVEL ALTO DE INTERFERÊNCIAS (INCLUI FORNECIMENTO). AF_05/2024 | D110: UN | E110: 45.16 | F110: 105377 | H110: 44.47 | I110: 45.16
B111: 105378 | C111: ASSENTAMENTO DE CONEXÃO 2 ACESSOS ALINHADOS DE FERRO FUNDIDO PARA REDE DE ÁGUA, DN 100, JUNTA ELÁSTICA, INSTALADO EM LOCAL COM NÍVEL ALTO DE INTERFERÊNCIAS (NÃO INCLUI FORNECIMENTO). AF_05/2024 | D111: UN | E111: 10.28 | F111: 105378 | H111: 9.74 | I111: 10.28
B112: 105379 | C112: ASSENTAMENTO DE CONEXÃO 2 ACESSOS ALINHADOS DE FERRO FUNDIDO PARA REDE DE ÁGUA, DN 150, JUNTA ELÁSTICA, INSTALADO EM LOCAL COM NÍVEL ALTO DE INTERFERÊNCIAS (NÃO INCLUI FORNECIMENTO). AF_05/2024 | D112: UN | E112: 13.48 | F112: 105379 | H112: 12.73 | I112: 13.48
B113: 105380 | C113: ASSENTAMENTO DE CONEXÃO 2 ACESSOS ALINHADOS DE FERRO FUNDIDO PARA REDE DE ÁGUA, DN 1000, JUNTA ELÁSTICA, INSTALADO EM LOCAL COM NÍVEL ALTO DE INTERFERÊNCIAS (NÃO INCLUI FORNECIMENTO). AF_05/2024 | D113: UN | E113: 82.34 | F113: 105380 | H113: 77.96 | I113: 82.34
B114: 105388 | C114: ASSENTAMENTO DE CONEXÃO 2 ACESSOS ALINHADOS DE FERRO FUNDIDO PARA REDE DE ÁGUA, DN 150, JUNTA ELÁSTICA, INSTALADO EM LOCAL COM NÍVEL BAIXO DE INTERFERÊNCIAS (NÃO INCLUI FORNECIMENTO). AF_05/2024 | D114: UN | E114: 10.73 | F114: 105388 | H114: 10.13 | I114: 10.73
B115: 105389 | C115: ASSENTAMENTO DE CONEXÃO 2 ACESSOS ALINHADOS DE FERRO FUNDIDO PARA REDE DE ÁGUA, DN 200, JUNTA ELÁSTICA, INSTALADO EM LOCAL COM NÍVEL BAIXO DE INTERFERÊNCIAS (NÃO INCLUI FORNECIMENTO). AF_05/2024 | D115: UN | E115: 13.41 | F115: 105389 | H115: 12.62 | I115: 13.41
B116: 105390 | C116: ASSENTAMENTO DE CONEXÃO 2 ACESSOS INCLINADOS DE FERRO FUNDIDO PARA REDE DE ÁGUA, DN 900, JUNTA ELÁSTICA, INSTALADO EM LOCAL COM NÍVEL BAIXO DE INTERFERÊNCIAS (NÃO INCLUI FORNECIMENTO). AF_05/2024 | D116: UN | E116: 86.31 | F116: 105390 | H116: 81.36 | I116: 86.31
B117: 105391 | C117: ASSENTAMENTO DE CONEXÃO 3 ACESSOS DE FERRO FUNDIDO PARA REDE DE ÁGUA, DN 800, JUNTA ELÁSTICA, INSTALADO EM LOCAL COM NÍVEL BAIXO DE INTERFERÊNCIAS (NÃO INCLUI FORNECIMENTO). AF_05/2024 | D117: UN | E117: 107.67 | F117: 105391 | H117: 101.8 | I117: 107.67
B118: 105392 | C118: ASSENTAMENTO DE CONEXÃO 2 ACESSOS ALINHADOS DE FERRO FUNDIDO PARA REDE DE ÁGUA, DN 200, JUNTA ELÁSTICA, INSTALADO EM LOCAL COM NÍVEL ALTO DE INTERFERÊNCIAS (NÃO INCLUI FORNECIMENTO). AF_05/2024 | D118: UN | E118: 16.71 | F118: 105392 | H118: 15.73 | I118: 16.71
B119: 105393 | C119: ASSENTAMENTO DE CONEXÃO 2 ACESSOS ALINHADOS DE FERRO FUNDIDO PARA REDE DE ÁGUA, DN 250, JUNTA ELÁSTICA, INSTALADO EM LOCAL COM NÍVEL ALTO DE INTERFERÊNCIAS (NÃO INCLUI FORNECIMENTO). AF_05/2024 | D119: UN | E119: 20.11 | F119: 105393 | H119: 18.92 | I119: 20.11
B120: 105394 | C120: ASSENTAMENTO DE CONEXÃO 2 ACESSOS ALINHADOS DE FERRO FUNDIDO PARA REDE DE ÁGUA, DN 300, JUNTA ELÁSTICA, INSTALADO EM LOCAL COM NÍVEL ALTO DE INTERFERÊNCIAS (NÃO INCLUI FORNECIMENTO). AF_05/2024 | D120: UN | E120: 23.47 | F120: 105394 | H120: 22.08 | I120: 23.47
B121: 105395 | C121: ASSENTAMENTO DE CONEXÃO 2 ACESSOS ALINHADOS DE FERRO FUNDIDO PARA REDE DE ÁGUA, DN 350, JUNTA ELÁSTICA, INSTALADO EM LOCAL COM NÍVEL ALTO DE INTERFERÊNCIAS (NÃO INCLUI FORNECIMENTO). AF_05/2024 | D121: UN | E121: 26.84 | F121: 105395 | H121: 25.23 | I121: 26.84
B122: 105396 | C122: ASSENTAMENTO DE CONEXÃO 2 ACESSOS ALINHADOS DE FERRO FUNDIDO PARA REDE DE ÁGUA, DN 400, JUNTA ELÁSTICA, INSTALADO EM LOCAL COM NÍVEL ALTO DE INTERFERÊNCIAS (NÃO INCLUI FORNECIMENTO). AF_05/2024 | D122: UN | E122: 30.23 | F122: 105396 | H122: 28.4 | I122: 30.23
B123: 105397 | C123: ASSENTAMENTO DE CONEXÃO 2 ACESSOS ALINHADOS DE FERRO FUNDIDO PARA REDE DE ÁGUA, DN 450, JUNTA ELÁSTICA, INSTALADO EM LOCAL COM NÍVEL ALTO DE INTERFERÊNCIAS (NÃO INCLUI FORNECIMENTO). AF_05/2024 | D123: UN | E123: 33.74 | F123: 105397 | H123: 31.71 | I123: 33.74
B124: 105398 | C124: ASSENTAMENTO DE CONEXÃO 2 ACESSOS ALINHADOS DE FERRO FUNDIDO PARA REDE DE ÁGUA, DN 500, JUNTA ELÁSTICA, INSTALADO EM LOCAL COM NÍVEL ALTO DE INTERFERÊNCIAS (NÃO INCLUI FORNECIMENTO). AF_05/2024 | D124: UN | E124: 43.98 | F124: 105398 | H124: 41.73 | I124: 43.98
B125: 105399 | C125: ASSENTAMENTO DE CONEXÃO 2 ACESSOS ALINHADOS DE FERRO FUNDIDO PARA REDE DE ÁGUA, DN 600, JUNTA ELÁSTICA, INSTALADO EM LOCAL COM NÍVEL ALTO DE INTERFERÊNCIAS (NÃO INCLUI FORNECIMENTO). AF_05/2024 | D125: UN | E125: 52.02 | F125: 105399 | H125: 49.36 | I125: 52.02
B126: 105400 | C126: ASSENTAMENTO DE CONEXÃO 2 ACESSOS ALINHADOS DE FERRO FUNDIDO PARA REDE DE ÁGUA, DN 700, JUNTA ELÁSTICA, INSTALADO EM LOCAL COM NÍVEL ALTO DE INTERFERÊNCIAS (NÃO INCLUI FORNECIMENTO). AF_05/2024 | D126: UN | E126: 59.21 | F126: 105400 | H126: 56.13 | I126: 59.21
B127: 105401 | C127: ASSENTAMENTO DE CONEXÃO 2 ACESSOS ALINHADOS DE FERRO FUNDIDO PARA REDE DE ÁGUA, DN 800, JUNTA ELÁSTICA, INSTALADO EM LOCAL COM NÍVEL ALTO DE INTERFERÊNCIAS (NÃO INCLUI FORNECIMENTO). AF_05/2024 | D127: UN | E127: 66.71 | F127: 105401 | H127: 63.2 | I127: 66.71
B128: 105402 | C128: ASSENTAMENTO DE CONEXÃO 2 ACESSOS ALINHADOS DE FERRO FUNDIDO PARA REDE DE ÁGUA, DN 900, JUNTA ELÁSTICA, INSTALADO EM LOCAL COM NÍVEL ALTO DE INTERFERÊNCIAS (NÃO INCLUI FORNECIMENTO). AF_05/2024 | D128: UN | E128: 74.46 | F128: 105402 | H128: 70.52 | I128: 74.46
B129: 97173 | C129: ASSENTAMENTO DE TUBO DE AÇO CARBONO PARA REDE DE ÁGUA, DN 600 MM (24"), JUNTA SOLDADA, INSTALADO EM LOCAL COM NÍVEL ALTO DE INTERFERÊNCIAS (NÃO INCLUI FORNECIMENTO). AF_05/2024 | D129: M | E129: 37.94 | F129: 97173 | H129: 35.75 | I129: 37.94
B130: 97174 | C130: ASSENTAMENTO DE TUBO DE AÇO CARBONO PARA REDE DE ÁGUA, DN 700 MM (28"), JUNTA SOLDADA, INSTALADO EM LOCAL COM NÍVEL ALTO DE INTERFERÊNCIAS (NÃO INCLUI FORNECIMENTO). AF_05/2024 | D130: M | E130: 44.98 | F130: 97174 | H130: 42.33 | I130: 44.98
B131: 97175 | C131: ASSENTAMENTO DE TUBO DE AÇO CARBONO PARA REDE DE ÁGUA, DN 800 MM (32"), JUNTA SOLDADA, INSTALADO EM LOCAL COM NÍVEL ALTO DE INTERFERÊNCIAS (NÃO INCLUI FORNECIMENTO). AF_05/2024 | D131: M | E131: =IF($K$2=$H$1,H131,I131) -> 52.03 | F131: =IF(LEN($B131)=7,CONCATENATE(MID($B131,1,6),"00",RIGHT($B131,1)),IF(LEN($B131)=8,CONCATENATE(MID($B131,1,6),"0",RIGHT($B131,2)),$B131)) -> 97175 | H131: 48.92 | I131: 52.03
B132: 97176 | C132: ASSENTAMENTO DE TUBO DE AÇO CARBONO PARA REDE DE ÁGUA, DN 900 MM (36"), JUNTA SOLDADA, INSTALADO EM LOCAL COM NÍVEL ALTO DE INTERFERÊNCIAS (NÃO INCLUI FORNECIMENTO). AF_05/2024 | D132: M | E132: 59.1 | F132: 97176 | H132: 55.51 | I132: 59.1
B133: 97177 | C133: ASSENTAMENTO DE TUBO DE AÇO CARBONO PARA REDE DE ÁGUA, DN 1000 MM (40") OU DN 1100 MM (44"), JUNTA SOLDADA, INSTALADO EM LOCAL COM NÍVEL ALTO DE INTERFERÊNCIAS (NÃO INCLUI FORNECIMENTO). AF_05/2024 | D133: M | E133: 66.14 | F133: 97177 | H133: 62.13 | I133: 66.14
B134: 97178 | C134: ASSENTAMENTO DE TUBO DE AÇO CARBONO PARA REDE DE ÁGUA, DN 1200 MM (48") OU DN 1300 MM (52"), JUNTA SOLDADA, INSTALADO EM LOCAL COM NÍVEL ALTO DE INTERFERÊNCIAS (NÃO INCLUI FORNECIMENTO). AF_05/2024 | D134: M | E134: 80.25 | F134: 97178 | H134: 75.32 | I134: 80.25
B135: 97179 | C135: ASSENTAMENTO DE TUBO DE AÇO CARBONO PARA REDE DE ÁGUA, DN 1400 MM (56'') OU DN 1500 MM (60"), JUNTA SOLDADA, INSTALADO EM LOCAL COM NÍVEL ALTO DE INTERFERÊNCIAS (NÃO INCLUI FORNECIMENTO). AF_05/2024 | D135: M | E135: 94.36 | F135: 97179 | H135: 88.52 | I135: 94.36
B136: 97180 | C136: ASSENTAMENTO DE TUBO DE AÇO CARBONO PARA REDE DE ÁGUA, DN 1600 MM (64") OU DN 1700 MM (68"), JUNTA SOLDADA, INSTALADO EM LOCAL COM NÍVEL ALTO DE INTERFERÊNCIAS (NÃO INCLUI FORNECIMENTO). AF_05/2024 | D136: M | E136: 108.47 | F136: 97180 | H136: 101.72 | I136: 108.47
B137: 97181 | C137: ASSENTAMENTO DE TUBO DE AÇO CARBONO PARA REDE DE ÁGUA, DN 1800 MM (72") OU DN 1900 MM (76"), JUNTA SOLDADA, INSTALADO EM LOCAL COM NÍVEL ALTO DE INTERFERÊNCIAS (NÃO INCLUI FORNECIMENTO). AF_05/2024 | D137: M | E137: 122.59 | F137: 97181 | H137: 114.92 | I137: 122.59
B138: 97182 | C138: ASSENTAMENTO DE TUBO DE AÇO CARBONO PARA REDE DE ÁGUA, DN 2000 MM (80") OU DN 2100 MM (84"), JUNTA SOLDADA, INSTALADO EM LOCAL COM NÍVEL ALTO DE INTERFERÊNCIAS (NÃO INCLUI FORNECIMENTO). AF_05/2024 | D138: M | E138: 141.01 | F138: 97182 | H138: 132.44 | I138: 141.01
B139: 97183 | C139: ASSENTAMENTO DE TUBO DE AÇO CARBONO PARA REDE DE ÁGUA, DN 600 MM (24"), JUNTA SOLDADA, INSTALADO EM LOCAL COM NÍVEL BAIXO DE INTERFERÊNCIAS (NÃO INCLUI FORNECIMENTO). AF_05/2024 | D139: M | E139: 33.89 | F139: 97183 | H139: 31.84 | I139: 33.89
B140: 97184 | C140: ASSENTAMENTO DE TUBO DE AÇO CARBONO PARA REDE DE ÁGUA, DN 700 MM (28"), JUNTA SOLDADA, INSTALADO EM LOCAL COM NÍVEL BAIXO DE INTERFERÊNCIAS (NÃO INCLUI FORNECIMENTO). AF_05/2024 | D140: M | E140: 40.24 | F140: 97184 | H140: 37.78 | I140: 40.24
B141: 97185 | C141: ASSENTAMENTO DE TUBO DE AÇO CARBONO PARA REDE DE ÁGUA, DN 800 MM (32"), JUNTA SOLDADA, INSTALADO EM LOCAL COM NÍVEL BAIXO DE INTERFERÊNCIAS (NÃO INCLUI FORNECIMENTO). AF_05/2024 | D141: M | E141: 46.63 | F141: 97185 | H141: 43.73 | I141: 46.63
B142: 97186 | C142: ASSENTAMENTO DE TUBO DE AÇO CARBONO PARA REDE DE ÁGUA, DN 900 MM (36"), JUNTA SOLDADA, INSTALADO EM LOCAL COM NÍVEL BAIXO DE INTERFERÊNCIAS (NÃO INCLUI FORNECIMENTO). AF_05/2024 | D142: M | E142: 53 | F142: 97186 | H142: 49.68 | I142: 53
B143: 97187 | C143: ASSENTAMENTO DE TUBO DE AÇO CARBONO PARA REDE DE ÁGUA, DN 1000 MM (40") OU DN 1100 MM (44"), JUNTA SOLDADA, INSTALADO EM LOCAL COM NÍVEL BAIXO DE INTERFERÊNCIAS (NÃO INCLUI FORNECIMENTO). AF_05/2024 | D143: M | E143: 59.36 | F143: 97187 | H143: 55.63 | I143: 59.36
B144: 97188 | C144: ASSENTAMENTO DE TUBO DE AÇO CARBONO PARA REDE DE ÁGUA, DN 1200 MM (48") OU DN 1300 MM (52"), JUNTA SOLDADA, INSTALADO EM LOCAL COM NÍVEL BAIXO DE INTERFERÊNCIAS (NÃO INCLUI FORNECIMENTO). AF_05/2024 | D144: M | E144: 72.12 | F144: 97188 | H144: 67.54 | I144: 72.12
B145: 97189 | C145: ASSENTAMENTO DE TUBO DE AÇO CARBONO PARA REDE DE ÁGUA, DN 1400 MM (56'') OU DN 1500 MM (60"), JUNTA SOLDADA, INSTALADO EM LOCAL COM NÍVEL BAIXO DE INTERFERÊNCIAS (NÃO INCLUI FORNECIMENTO). AF_05/2024 | D145: M | E145: 84.87 | F145: 97189 | H145: 79.44 | I145: 84.87
B146: 97190 | C146: ASSENTAMENTO DE TUBO DE AÇO CARBONO PARA REDE DE ÁGUA, DN 1600 MM (64") OU DN 1700 MM (68"), JUNTA SOLDADA, INSTALADO EM LOCAL COM NÍVEL BAIXO DE INTERFERÊNCIAS (NÃO INCLUI FORNECIMENTO). AF_05/2024 | D146: M | E146: 97.6 | F146: 97190 | H146: 91.34 | I146: 97.6
B147: 97191 | C147: ASSENTAMENTO DE TUBO DE AÇO CARBONO PARA REDE DE ÁGUA, DN 1800 MM (72") OU DN 1900 MM (76"), JUNTA SOLDADA, INSTALADO EM LOCAL COM NÍVEL BAIXO DE INTERFERÊNCIAS (NÃO INCLUI FORNECIMENTO). AF_05/2024 | D147: M | E147: 110.35 | F147: 97191 | H147: 103.24 | I147: 110.35
B148: 97192 | C148: ASSENTAMENTO DE TUBO DE AÇO CARBONO PARA REDE DE ÁGUA, DN 2000 MM (80") OU DN 2100 MM (84"), JUNTA SOLDADA, INSTALADO EM LOCAL COM NÍVEL BAIXO DE INTERFERÊNCIAS (NÃO INCLUI FORNECIMENTO). AF_05/2024 | D148: M | E148: 126.42 | F148: 97192 | H148: 118.46 | I148: 126.42
B149: 90694 | C149: TUBO DE PVC PARA REDE COLETORA DE ESGOTO DE PAREDE MACIÇA, DN 100 MM, JUNTA ELÁSTICA - FORNECIMENTO E ASSENTAMENTO. AF_01/2021 | D149: M | E149: 45.31 | F149: 90694 | H149: 45.06 | I149: 45.31
B150: 90695 | C150: TUBO DE PVC PARA REDE COLETORA DE ESGOTO DE PAREDE MACIÇA, DN 150 MM, JUNTA ELÁSTICA - FORNECIMENTO E ASSENTAMENTO. AF_01/2021 | D150: M | E150: 86.67 | F150: 90695 | H150: 86.37 | I150: 86.67
B151: 90696 | C151: TUBO DE PVC PARA REDE COLETORA DE ESGOTO DE PAREDE MACIÇA, DN 200 MM, JUNTA ELÁSTICA - FORNECIMENTO E ASSENTAMENTO. AF_01/2021 | D151: M | E151: 145.27 | F151: 90696 | H151: 144.92 | I151: 145.27
B152: 90697 | C152: TUBO DE PVC PARA REDE COLETORA DE ESGOTO DE PAREDE MACIÇA, DN 250 MM, JUNTA ELÁSTICA - FORNECIMENTO E ASSENTAMENTO. AF_01/2021 | D152: M | E152: 225.83 | F152: 90697 | H152: 225.44 | I152: 225.83
B153: 90698 | C153: TUBO DE PVC PARA REDE COLETORA DE ESGOTO DE PAREDE MACIÇA, DN 300 MM, JUNTA ELÁSTICA, FORNECIMENTO E ASSENTAMENTO. AF_01/2021 | D153: M | E153: 345.66 | F153: 90698 | H153: 345.22 | I153: 345.66
B154: 90699 | C154: TUBO DE PVC PARA REDE COLETORA DE ESGOTO DE PAREDE MACIÇA, DN 350 MM, JUNTA ELÁSTICA - FORNECIMENTO E ASSENTAMENTO. AF_01/2021 | D154: M | E154: 486.93 | F154: 90699 | H154: 486.44 | I154: 486.93
B155: 90700 | C155: TUBO DE PVC PARA REDE COLETORA DE ESGOTO DE PAREDE MACIÇA, DN 400 MM, JUNTA ELÁSTICA FORNECIMENTO E ASSENTAMENTO. AF_01/2021 | D155: M | E155: 569.23 | F155: 90700 | H155: 568.83 | I155: 569.23
B156: 90701 | C156: TUBO DE PVC CORRUGADO DE DUPLA PAREDE PARA REDE COLETORA DE ESGOTO, DN 150 MM, JUNTA ELÁSTICA - FORNECIMENTO E ASSENTAMENTO. AF_01/2021 | D156: M | E156: 67.96 | F156: 90701 | H156: 67.63 | I156: 67.96
B157: 90702 | C157: TUBO DE PVC CORRUGADO DE DUPLA PAREDE PARA REDE COLETORA DE ESGOTO, DN 200 MM, JUNTA ELÁSTICA - FORNECIMENTO E ASSENTAMENTO. AF_01/2021 | D157: M | E157: 113.02 | F157: 90702 | H157: 112.64 | I157: 113.02
B158: 90703 | C158: TUBO DE PVC CORRUGADO DE DUPLA PAREDE PARA REDE COLETORA DE ESGOTO, DN 250 MM, JUNTA ELÁSTICA - FORNECIMENTO E ASSENTAMENTO. AF_01/2021 | D158: M | E158: 177.81 | F158: 90703 | H158: 177.39 | I158: 177.81
B159: 90704 | C159: TUBO DE PVC CORRUGADO DE DUPLA PAREDE PARA REDE COLETORA DE ESGOTO, DN 300 MM, JUNTA ELÁSTICA - FORNECIMENTO E ASSENTAMENTO. AF_01/2021 | D159: M | E159: 265.3 | F159: 90704 | H159: 264.83 | I159: 265.3
B160: 90705 | C160: TUBO DE PVC CORRUGADO DE DUPLA PAREDE PARA REDE COLETORA DE ESGOTO, DN 350 MM, JUNTA ELÁSTICA - FORNECIMENTO E ASSENTAMENTO. AF_01/2021 | D160: M | E160: 346.12 | F160: 90705 | H160: 345.61 | I160: 346.12
B161: 90706 | C161: TUBO DE PVC CORRUGADO DE DUPLA PAREDE PARA REDE COLETORA DE ESGOTO, DN 400 MM, JUNTA ELÁSTICA - FORNECIMENTO E ASSENTAMENTO. AF_01/2021 | D161: M | E161: 459.67 | F161: 90706 | H161: 459.21 | I161: 459.67
B162: 90708 | C162: TUBO DE PEAD CORRUGADO DE DUPLA PAREDE PARA REDE COLETORA DE ESGOTO, DN 600 MM, JUNTA ELÁSTICA INTEGRADA - FORNECIMENTO E ASSENTAMENTO. AF_01/2021 | D162: M | E162: 667.29 | F162: 90708 | H162: 666.68 | I162: 667.29
B163: 90724 | C163: JUNTA ARGAMASSADA ENTRE TUBO DN 100 MM E O POÇO DE VISITA/ CAIXA DE CONCRETO OU ALVENARIA EM REDES DE ESGOTO. AF_01/2021 | D163: UN | E163: 18.98 | F163: 90724 | H163: 17.26 | I163: 18.98
B164: 90725 | C164: JUNTA ARGAMASSADA ENTRE TUBO DN 150 MM E O POÇO DE VISITA/ CAIXA DE CONCRETO OU ALVENARIA EM REDES DE ESGOTO. AF_01/2021 | D164: UN | E164: 23.43 | F164: 90725 | H164: 21.33 | I164: 23.43
B165: 90726 | C165: JUNTA ARGAMASSADA ENTRE TUBO DN 200 MM E O POÇO/ CAIXA DE CONCRETO OU ALVENARIA EM REDES DE ESGOTO. AF_01/2021 | D165: UN | E165: 27.97 | F165: 90726 | H165: 25.47 | I165: 27.97
B166: 90727 | C166: JUNTA ARGAMASSADA ENTRE TUBO DN 250 MM E O POÇO DE VISITA/ CAIXA DE CONCRETO OU ALVENARIA EM REDES DE ESGOTO. AF_01/2021 | D166: UN | E166: 32.41 | F166: 90727 | H166: 29.54 | I166: 32.41
B167: 90728 | C167: JUNTA ARGAMASSADA ENTRE TUBO DN 300 MM E O POÇO DE VISITA/ CAIXA DE CONCRETO OU ALVENARIA EM REDES DE ESGOTO. AF_01/2021 | D167: UN | E167: 36.87 | F167: 90728 | H167: 33.6 | I167: 36.87
B168: 90729 | C168: JUNTA ARGAMASSADA ENTRE TUBO DN 350 MM E O POÇO DE VISITA/ CAIXA DE CONCRETO OU ALVENARIA EM REDES DE ESGOTO. AF_01/2021 | D168: UN | E168: 41.33 | F168: 90729 | H168: 37.67 | I168: 41.33
B169: 90730 | C169: JUNTA ARGAMASSADA ENTRE TUBO DN 400 MM E O POÇO DE VISITA/ CAIXA DE CONCRETO OU ALVENARIA EM REDES DE ESGOTO. AF_01/2021 | D169: UN | E169: 45.78 | F169: 90730 | H169: 41.73 | I169: 45.78
B170: 90731 | C170: JUNTA ARGAMASSADA ENTRE TUBO DN 450 MM E O POÇO DE VISITA/ CAIXA DE CONCRETO OU ALVENARIA EM REDES DE ESGOTO. AF_01/2021 | D170: UN | E170: 50.23 | F170: 90731 | H170: 45.8 | I170: 50.23
B171: 90732 | C171: JUNTA ARGAMASSADA ENTRE TUBO DN 600 MM E O POÇO DE VISITA/ CAIXA DE CONCRETO OU ALVENARIA EM REDES DE ESGOTO. AF_01/2021 | D171: UN | E171: 63.59 | F171: 90732 | H171: 58 | I171: 63.59
B172: 90733 | C172: ASSENTAMENTO DE TUBO DE PVC PARA REDE COLETORA DE ESGOTO DE PAREDE MACIÇA, DN 100 MM, JUNTA ELÁSTICA (NÃO INCLUI FORNECIMENTO). AF_01/2021 | D172: M | E172: 2.6 | F172: 90733 | H172: 2.35 | I172: 2.6
B173: 90734 | C173: ASSENTAMENTO DE TUBO DE PVC PARA REDE COLETORA DE ESGOTO DE PAREDE MACIÇA, DN 150 MM, JUNTA ELÁSTICA, (NÃO INCLUI FORNECIMENTO). AF_01/2021 | D173: M | E173: 3.08 | F173: 90734 | H173: 2.78 | I173: 3.08
B174: 90735 | C174: ASSENTAMENTO DE TUBO DE PVC PARA REDE COLETORA DE ESGOTO DE PAREDE MACIÇA, DN 200 MM, JUNTA ELÁSTICA (NÃO INCLUI FORNECIMENTO). AF_01/2021 | D174: M | E174: 3.56 | F174: 90735 | H174: 3.21 | I174: 3.56
B175: 90736 | C175: ASSENTAMENTO DE TUBO DE PVC PARA REDE COLETORA DE ESGOTO DE PAREDE MACIÇA, DN 250 MM, JUNTA ELÁSTICA (NÃO INCLUI FORNECIMENTO). AF_01/2021 | D175: M | E175: 4.04 | F175: 90736 | H175: 3.65 | I175: 4.04
B176: 90737 | C176: ASSENTAMENTO DE TUBO DE PVC PARA REDE COLETORA DE ESGOTO DE PAREDE MACIÇA, DN 300 MM, JUNTA ELÁSTICA (NÃO INCLUI FORNECIMENTO). AF_01/2021 | D176: M | E176: 4.52 | F176: 90737 | H176: 4.08 | I176: 4.52
B177: 90738 | C177: ASSENTAMENTO DE TUBO DE PVC PARA REDE COLETORA DE ESGOTO DE PAREDE MACIÇA, DN 350 MM, JUNTA ELÁSTICA (NÃO INCLUI FORNECIMENTO). AF_01/2021 | D177: M | E177: 5.01 | F177: 90738 | H177: 4.52 | I177: 5.01
B178: 90739 | C178: ASSENTAMENTO DE TUBO DE PVC PARA REDE COLETORA DE ESGOTO DE PAREDE MACIÇA, DN 400 MM, JUNTA ELÁSTICA (NÃO INCLUI FORNECIMENTO). AF_01/2021 | D178: M | E178: 8 | F178: 90739 | H178: 7.6 | I178: 8
B179: 90740 | C179: ASSENTAMENTO DE TUBO DE PVC CORRUGADO DE DUPLA PAREDE PARA REDE COLETORA DE ESGOTO, DN 150 MM, JUNTA ELÁSTICA (NÃO INCLUI FORNECIMENTO). AF_01/2021 | D179: M | E179: 3.43 | F179: 90740 | H179: 3.1 | I179: 3.43
B180: 90741 | C180: ASSENTAMENTO DE TUBO DE PVC CORRUGADO DE DUPLA PAREDE PARA REDE COLETORA DE ESGOTO, DN 200 MM, JUNTA ELÁSTICA (NÃO INCLUI FORNECIMENTO). AF_01/2021 | D180: M | E180: 3.91 | F180: 90741 | H180: 3.53 | I180: 3.91
B181: 90742 | C181: ASSENTAMENTO DE TUBO DE PVC CORRUGADO DE DUPLA PAREDE PARA REDE COLETORA DE ESGOTO, DN 250 MM, JUNTA ELÁSTICA (NÃO INCLUI FORNECIMENTO). AF_01/2021 | D181: M | E181: 4.39 | F181: 90742 | H181: 3.97 | I181: 4.39
B182: 90743 | C182: ASSENTAMENTO DE TUBO DE PVC CORRUGADO DE DUPLA PAREDE PARA REDE COLETORA DE ESGOTO, DN 300 MM, JUNTA ELÁSTICA (NÃO INCLUI FORNECIMENTO). AF_01/2021 | D182: M | E182: 4.87 | F182: 90743 | H182: 4.4 | I182: 4.87
B183: 90744 | C183: ASSENTAMENTO DE TUBO DE PVC CORRUGADO DE DUPLA PAREDE PARA REDE COLETORA DE ESGOTO, DN 350 MM, JUNTA ELÁSTICA (NÃO INCLUI FORNECIMENTO). AF_01/2021 | D183: M | E183: 5.35 | F183: 90744 | H183: 4.84 | I183: 5.35
B184: 90745 | C184: ASSENTAMENTO DE TUBO DE PVC CORRUGADO DE DUPLA PAREDE PARA REDE COLETORA DE ESGOTO, DN 400 MM, JUNTA ELÁSTICA (NÃO INCLUI FORNECIMENTO). AF_01/2021 | D184: M | E184: 8.94 | F184: 90745 | H184: 8.48 | I184: 8.94
B185: 90746 | C185: ASSENTAMENTO DE TUBO DE PEAD CORRUGADO DE DUPLA PAREDE PARA REDE COLETORA DE ESGOTO, DN 450 MM, JUNTA ELÁSTICA INTEGRADA (NÃO INCLUI FORNECIMENTO). AF_01/2021 | D185: M | E185: 2.81 | F185: 90746 | H185: 2.54 | I185: 2.81
B186: 90747 | C186: ASSENTAMENTO DE TUBO DE PEAD CORRUGADO DE DUPLA PAREDE PARA REDE COLETORA DE ESGOTO, DN 600 MM, JUNTA ELÁSTICA INTEGRADA (NÃO INCLUI FORNECIMENTO). AF_01/2021 | D186: M | E186: 15.43 | F186: 90747 | H186: 14.82 | I186: 15.43
B187: 94869 | C187: TUBO DE PEAD CORRUGADO DE DUPLA PAREDE PARA REDE COLETORA DE ESGOTO, DN 250 MM, JUNTA ELÁSTICA INTEGRADA - FORNECIMENTO E ASSENTAMENTO. AF_01/2021 | D187: M | E187: 117.64 | F187: 94869 | H187: 117.57 | I187: 117.64
B188: 94870 | C188: ASSENTAMENTO DE TUBO DE PEAD CORRUGADO DE DUPLA PAREDE PARA REDE COLETORA DE ESGOTO, DN 250 MM, JUNTA ELÁSTICA INTEGRADA (NÃO INCLUI FORNECIMENTO). AF_01/2021 | D188: M | E188: 1.88 | F188: 94870 | H188: 1.81 | I188: 1.88
B189: 94871 | C189: TUBO DE PEAD CORRUGADO DE DUPLA PAREDE PARA REDE COLETORA DE ESGOTO, DN 300 MM, JUNTA ELÁSTICA INTEGRADA - FORNECIMENTO E ASSENTAMENTO. AF_01/2021 | D189: M | E189: 183.86 | F189: 94871 | H189: 183.76 | I189: 183.86
B190: 94872 | C190: ASSENTAMENTO DE TUBO DE PEAD CORRUGADO DE DUPLA PAREDE PARA REDE COLETORA DE ESGOTO, DN 300 MM, JUNTA ELÁSTICA INTEGRADA (NÃO INCLUI FORNECIMENTO). AF_01/2021 | D190: M | E190: 2.51 | F190: 94872 | H190: 2.41 | I190: 2.51
B191: 94875 | C191: TUBO DE PEAD CORRUGADO DE DUPLA PAREDE PARA REDE COLETORA DE ESGOTO, DN 800 MM, JUNTA ELÁSTICA INTEGRADA - FORNECIMENTO E ASSENTAMENTO. AF_01/2021 | D191: M | E191: 1083.35 | F191: 94875 | H191: 1082.43 | I191: 1083.35
B192: 94876 | C192: ASSENTAMENTO DE TUBO DE PEAD CORRUGADO DE DUPLA PAREDE PARA REDE COLETORA DE ESGOTO, DN 800 MM, JUNTA ELÁSTICA INTEGRADA (NÃO INCLUI FORNECIMENTO). AF_01/2021 | D192: M | E192: 26.65 | F192: 94876 | H192: 25.73 | I192: 26.65
B193: 94878 | C193: ASSENTAMENTO DE TUBO DE PEAD CORRUGADO DE DUPLA PAREDE PARA REDE COLETORA DE ESGOTO, DN 900 MM, JUNTA ELÁSTICA INTEGRADA (NÃO INCLUI FORNECIMENTO). AF_01/2021 | D193: M | E193: 30.71 | F193: 94878 | H193: 29.62 | I193: 30.71
B194: 94879 | C194: TUBO DE PEAD CORRUGADO DE DUPLA PAREDE PARA REDE COLETORA DE ESGOTO, DN 1000 MM, JUNTA ELÁSTICA INTEGRADA - FORNECIMENTO E ASSENTAMENTO. AF_01/2021 | D194: M | E194: 1668.02 | F194: 94879 | H194: 1666.69 | I194: 1668.02
B195: 94880 | C195: ASSENTAMENTO DE TUBO DE PEAD CORRUGADO DE DUPLA PAREDE PARA REDE COLETORA DE ESGOTO, DN 1000 MM, JUNTA ELÁSTICA INTEGRADA (NÃO INCLUI FORNECIMENTO). AF_01/2021 | D195: M | E195: =IF($K$2=$H$1,H195,I195) -> 40.18 | F195: =IF(LEN($B195)=7,CONCATENATE(MID($B195,1,6),"00",RIGHT($B195,1)),IF(LEN($B195)=8,CONCATENATE(MID($B195,1,6),"0",RIGHT($B195,2)),$B195)) -> 94880 | H195: 38.85 | I195: 40.18
B196: 94881 | C196: TUBO DE PEAD CORRUGADO DE DUPLA PAREDE PARA REDE COLETORA DE ESGOTO, DN 1200 MM, JUNTA ELÁSTICA INTEGRADA - FORNECIMENTO E ASSENTAMENTO. AF_01/2021 | D196: M | E196: 2296.21 | F196: 94881 | H196: 2294.63 | I196: 2296.21
B197: 94882 | C197: ASSENTAMENTO DE TUBO DE PEAD CORRUGADO DE DUPLA PAREDE PARA REDE COLETORA DE ESGOTO, DN 1200 MM, JUNTA ELÁSTICA INTEGRADA (NÃO INCLUI FORNECIMENTO). AF_01/2021 | D197: M | E197: 46.43 | F197: 94882 | H197: 44.85 | I197: 46.43
B198: 94884 | C198: ASSENTAMENTO DE TUBO DE PEAD CORRUGADO DE DUPLA PAREDE PARA REDE COLETORA DE ESGOTO, DN 1500 MM, JUNTA ELÁSTICA INTEGRADA (NÃO INCLUI FORNECIMENTO). AF_01/2021 | D198: M | E198: 59.11 | F198: 94884 | H198: 57.03 | I198: 59.11
B199: 97121 | C199: ASSENTAMENTO DE TUBO DE PVC PBA PARA REDE DE ÁGUA, DN 50 MM, JUNTA ELÁSTICA INTEGRADA, INSTALADO EM LOCAL COM NÍVEL ALTO DE INTERFERÊNCIAS (NÃO INCLUI FORNECIMENTO). AF_05/2024 | D199: M | E199: 2.34 | F199: 97121 | H199: 2.13 | I199: 2.34
B200: 97122 | C200: ASSENTAMENTO DE TUBO DE PVC PBA PARA REDE DE ÁGUA, DN 75 MM, JUNTA ELÁSTICA INTEGRADA, INSTALADO EM LOCAL COM NÍVEL ALTO DE INTERFERÊNCIAS (NÃO INCLUI FORNECIMENTO). AF_05/2024 | D200: M | E200: 2.84 | F200: 97122 | H200: 2.59 | I200: 2.84
... 7630 more rows

Sheet BANCO DE DADOS DEZ-24 INS (hidden)
A1: CODIGO | B1: DESCRICAO DO INSUMO | C1: UNIDADE | D1: Preço | F1: DESONERADO | G1: NÃO DESONERADO
A2: 11270 | B2: ABRACADEIRA DE LATAO PARA FIXACAO DE CABO PARA-RAIO, DIMENSOES 32 X 24 X 24 MM | C2: UN | D2: =IF($J$2=$F$1,F2,G2) -> 2.66 | F2: 2.66 | G2: 2.66 | H2: =F2=G2 -> TRUE | J2: ='PLANILHA ORÇAMENTÁRIA'!M6 -> NÃO DESONERADO
A3: 412 | B3: ABRACADEIRA DE NYLON PARA AMARRACAO DE CABOS, COMPRIMENTO DE *230* X *7,6* MM | C3: UN | D3: =IF($J$2=$F$1,F3,G3) -> 1.64 | F3: 1.64 | G3: 1.64 | H3: =F3=G3 -> TRUE
A4: 414 | B4: ABRACADEIRA DE NYLON PARA AMARRACAO DE CABOS, COMPRIMENTO DE 100 X 2,5 MM | C4: UN | D4: 0.1 | F4: 0.1 | G4: 0.1 | H4: TRUE
A5: 410 | B5: ABRACADEIRA DE NYLON PARA AMARRACAO DE CABOS, COMPRIMENTO DE 150 X *3,6* MM | C5: UN | D5: 0.25 | F5: 0.25 | G5: 0.25 | H5: TRUE
A6: 411 | B6: ABRACADEIRA DE NYLON PARA AMARRACAO DE CABOS, COMPRIMENTO DE 200 X *4,6* MM | C6: UN | D6: 0.32 | F6: 0.32 | G6: 0.32 | H6: TRUE
A7: 408 | B7: ABRACADEIRA DE NYLON PARA AMARRACAO DE CABOS, COMPRIMENTO DE 390 X *4,6* MM | C7: UN | D7: 1.58 | F7: 1.58 | G7: 1.58 | H7: TRUE
A8: 39131 | B8: ABRACADEIRA EM ACO PARA AMARRACAO DE ELETRODUTOS, TIPO D, COM 1 1/2" E CUNHA DE FIXACAO | C8: UN | D8: 4.18 | F8: 4.18 | G8: 4.18 | H8: TRUE
A9: 394 | B9: ABRACADEIRA EM ACO PARA AMARRACAO DE ELETRODUTOS, TIPO D, COM 1 1/2" E PARAFUSO DE FIXACAO | C9: UN | D9: 4.23 | F9: 4.23 | G9: 4.23 | H9: TRUE
A10: 39130 | B10: ABRACADEIRA EM ACO PARA AMARRACAO DE ELETRODUTOS, TIPO D, COM 1 1/4" E CUNHA DE FIXACAO | C10: UN | D10: 3.82 | F10: 3.82 | G10: 3.82 | H10: TRUE
A11: 395 | B11: ABRACADEIRA EM ACO PARA AMARRACAO DE ELETRODUTOS, TIPO D, COM 1 1/4" E PARAFUSO DE FIXACAO | C11: UN | D11: 4.08 | F11: 4.08 | G11: 4.08 | H11: TRUE
A12: 39127 | B12: ABRACADEIRA EM ACO PARA AMARRACAO DE ELETRODUTOS, TIPO D, COM 1/2" E CUNHA DE FIXACAO | C12: UN | D12: 2.01 | F12: 2.01 | G12: 2.01 | H12: TRUE
A13: 392 | B13: ABRACADEIRA EM ACO PARA AMARRACAO DE ELETRODUTOS, TIPO D, COM 1/2" E PARAFUSO DE FIXACAO | C13: UN | D13: 2.06 | F13: 2.06 | G13: 2.06 | H13: TRUE
A14: 39129 | B14: ABRACADEIRA EM ACO PARA AMARRACAO DE ELETRODUTOS, TIPO D, COM 1" E CUNHA DE FIXACAO | C14: UN | D14: 2.35 | F14: 2.35 | G14: 2.35 | H14: TRUE
A15: 393 | B15: ABRACADEIRA EM ACO PARA AMARRACAO DE ELETRODUTOS, TIPO D, COM 1" E PARAFUSO DE FIXACAO | C15: UN | D15: 2.46 | F15: 2.46 | G15: 2.46 | H15: TRUE
A16: 39133 | B16: ABRACADEIRA EM ACO PARA AMARRACAO DE ELETRODUTOS, TIPO D, COM 2 1/2" E CUNHA DE FIXACAO | C16: UN | D16: 5.49 | F16: 5.49 | G16: 5.49 | H16: TRUE
A17: 397 | B17: ABRACADEIRA EM ACO PARA AMARRACAO DE ELETRODUTOS, TIPO D, COM 2 1/2" E PARAFUSO DE FIXACAO | C17: UN | D17: 6.07 | F17: 6.07 | G17: 6.07 | H17: TRUE
A18: 39132 | B18: ABRACADEIRA EM ACO PARA AMARRACAO DE ELETRODUTOS, TIPO D, COM 2" E CUNHA DE FIXACAO | C18: UN | D18: 4.39 | F18: 4.39 | G18: 4.39 | H18: TRUE
A19: 396 | B19: ABRACADEIRA EM ACO PARA AMARRACAO DE ELETRODUTOS, TIPO D, COM 2" E PARAFUSO DE FIXACAO | C19: UN | D19: 4.71 | F19: 4.71 | G19: 4.71 | H19: TRUE
A20: 39135 | B20: ABRACADEIRA EM ACO PARA AMARRACAO DE ELETRODUTOS, TIPO D, COM 3 1/2" E CUNHA DE FIXACAO | C20: UN | D20: 8.79 | F20: 8.79 | G20: 8.79 | H20: TRUE
A21: 39128 | B21: ABRACADEIRA EM ACO PARA AMARRACAO DE ELETRODUTOS, TIPO D, COM 3/4" E CUNHA DE FIXACAO | C21: UN | D21: 2.19 | F21: 2.19 | G21: 2.19 | H21: TRUE
A22: 400 | B22: ABRACADEIRA EM ACO PARA AMARRACAO DE ELETRODUTOS, TIPO D, COM 3/4" E PARAFUSO DE FIXACAO | C22: UN | D22: 2.14 | F22: 2.14 | G22: 2.14 | H22: TRUE
A23: 39125 | B23: ABRACADEIRA EM ACO PARA AMARRACAO DE ELETRODUTOS, TIPO D, COM 3/8" E PARAFUSO DE FIXACAO | C23: UN | D23: 2.19 | F23: 2.19 | G23: 2.19 | H23: TRUE
A24: 39134 | B24: ABRACADEIRA EM ACO PARA AMARRACAO DE ELETRODUTOS, TIPO D, COM 3" E CUNHA DE FIXACAO | C24: UN | D24: 7.32 | F24: 7.32 | G24: 7.32 | H24: TRUE
A25: 398 | B25: ABRACADEIRA EM ACO PARA AMARRACAO DE ELETRODUTOS, TIPO D, COM 3" E PARAFUSO DE FIXACAO | C25: UN | D25: 6.75 | F25: 6.75 | G25: 6.75 | H25: TRUE
A26: 39126 | B26: ABRACADEIRA EM ACO PARA AMARRACAO DE ELETRODUTOS, TIPO D, COM 4" E CUNHA DE FIXACAO | C26: UN | D26: 9.89 | F26: 9.89 | G26: 9.89 | H26: TRUE
A27: 399 | B27: ABRACADEIRA EM ACO PARA AMARRACAO DE ELETRODUTOS, TIPO D, COM 4" E PARAFUSO DE FIXACAO | C27: UN | D27: 8.71 | F27: 8.71 | G27: 8.71 | H27: TRUE
A28: 39158 | B28: ABRACADEIRA EM ACO PARA AMARRACAO DE ELETRODUTOS, TIPO ECONOMICA (GOTA), COM 8" | C28: UN | D28: 23.39 | F28: 23.39 | G28: 23.39 | H28: TRUE
A29: 39141 | B29: ABRACADEIRA EM ACO PARA AMARRACAO DE ELETRODUTOS, TIPO U SIMPLES, COM 1 1/2" | C29: UN | D29: 1.7 | F29: 1.7 | G29: 1.7 | H29: TRUE
A30: 39140 | B30: ABRACADEIRA EM ACO PARA AMARRACAO DE ELETRODUTOS, TIPO U SIMPLES, COM 1 1/4" | C30: UN | D30: 1.54 | F30: 1.54 | G30: 1.54 | H30: TRUE
A31: 39137 | B31: ABRACADEIRA EM ACO PARA AMARRACAO DE ELETRODUTOS, TIPO U SIMPLES, COM 1/2" | C31: UN | D31: 0.88 | F31: 0.88 | G31: 0.88 | H31: TRUE
A32: 39139 | B32: ABRACADEIRA EM ACO PARA AMARRACAO DE ELETRODUTOS, TIPO U SIMPLES, COM 1" | C32: UN | D32: 1.28 | F32: 1.28 | G32: 1.28 | H32: TRUE
A33: 39143 | B33: ABRACADEIRA EM ACO PARA AMARRACAO DE ELETRODUTOS, TIPO U SIMPLES, COM 2 1/2" | C33: UN | D33: 3.5 | F33: 3.5 | G33: 3.5 | H33: TRUE
A34: 39142 | B34: ABRACADEIRA EM ACO PARA AMARRACAO DE ELETRODUTOS, TIPO U SIMPLES, COM 2" | C34: UN | D34: 2.51 | F34: 2.51 | G34: 2.51 | H34: TRUE
A35: 39138 | B35: ABRACADEIRA EM ACO PARA AMARRACAO DE ELETRODUTOS, TIPO U SIMPLES, COM 3/4" | C35: UN | D35: 0.94 | F35: 0.94 | G35: 0.94 | H35: TRUE
A36: 39136 | B36: ABRACADEIRA EM ACO PARA AMARRACAO DE ELETRODUTOS, TIPO U SIMPLES, COM 3/8" | C36: UN | D36: 0.62 | F36: 0.62 | G36: 0.62 | H36: TRUE
A37: 39144 | B37: ABRACADEIRA EM ACO PARA AMARRACAO DE ELETRODUTOS, TIPO U SIMPLES, COM 3" | C37: UN | D37: 4.08 | F37: 4.08 | G37: 4.08 | H37: TRUE
A38: 39145 | B38: ABRACADEIRA EM ACO PARA AMARRACAO DE ELETRODUTOS, TIPO U SIMPLES, COM 4" | C38: UN | D38: 6.72 | F38: 6.72 | G38: 6.72 | H38: TRUE
A39: 12615 | B39: ABRACADEIRA PVC, PARA CALHA PLUVIAL, DIAMETRO ENTRE *80 E 100* MM, PARA DRENAGEM PLUVIAL PREDIAL | C39: UN | D39: 12.58 | F39: 12.58 | G39: 12.58 | H39: TRUE
A40: 11927 | B40: ABRACADEIRA, GALVANIZADA/ZINCADA, ROSCA SEM FIM, PARAFUSO INOX, LARGURA FITA *12,6 A *14 MM, D = 2" A 2 1/2" | C40: UN | D40: 7.95 | F40: 7.95 | G40: 7.95 | H40: TRUE
A41: 11928 | B41: ABRACADEIRA, GALVANIZADA/ZINCADA, ROSCA SEM FIM, PARAFUSO INOX, LARGURA FITA *12,6 A *14 MM, D = 3" A 3 3/4" | C41: UN | D41: 9.11 | F41: 9.11 | G41: 9.11 | H41: TRUE
A42: 11929 | B42: ABRACADEIRA, GALVANIZADA/ZINCADA, ROSCA SEM FIM, PARAFUSO INOX, LARGURA FITA *12,6 A *14 MM, D = 4" A 4 3/4" | C42: UN | D42: 14.09 | F42: 14.09 | G42: 14.09 | H42: TRUE
A43: 36801 | B43: ACABAMENTO DE METAL CROMADO PARA REGISTRO PEQUENO, DE PAREDE, 1/2" OU 3/4" | C43: UN | D43: 38.17 | F43: 38.17 | G43: 38.17 | H43: TRUE
A44: 36246 | B44: ACABAMENTO SIMPLES/CONVENCIONAL PARA FORRO PVC, TIPO "U" OU "C", COR BRANCA, COMPRIMENTO 6 M | C44: M | D44: 4.06 | F44: 4.06 | G44: 4.06 | H44: TRUE
A45: 37600 | B45: ACESSORIO DE LIGACAO NAO ELETRICO PARA CARGAS EXPLOSIVAS, TUBO DE 6 M | C45: UN | D45: 99.44 | F45: 99.44 | G45: 99.44 | H45: TRUE
A46: 37599 | B46: ACESSORIO INICIADOR NAO ELETRICO, TUBO DE 6 M, TEMPO DE RETARDO DE *160* MS | C46: UN | D46: 92.56 | F46: 92.56 | G46: 92.56 | H46: TRUE
A47: 1 | B47: ACETILENO (RECARGA DE GAS ACETILENO PARA CILINDRO DE CONJUNTO OXICORTE GRANDE) NAO INCLUI TROCA/MANUTENCAO DO CILINDRO | C47: KG | D47: 130 | F47: 130 | G47: 130 | H47: TRUE
A48: 3 | B48: ACIDO CLORIDRICO / ACIDO MURIATICO, DILUICAO 10% A 12% PARA USO EM LIMPEZA | C48: L | D48: 15.58 | F48: 15.58 | G48: 15.58 | H48: TRUE
A49: 43054 | B49: ACO CA-25, 10,0 MM, OU 12,5 MM, OU 16,0 MM, OU 20,0 MM, OU 25,0 MM, VERGALHAO | C49: KG | D49: 9.79 | F49: 9.79 | G49: 9.79 | H49: TRUE
A50: 42402 | B50: ACO CA-25, 16,0 MM, BARRA DE TRANSFERENCIA | C50: KG | D50: 9.35 | F50: 9.35 | G50: 9.35 | H50: TRUE
A51: 42403 | B51: ACO CA-25, 20,0 MM, BARRA DE TRANSFERENCIA | C51: KG | D51: 12 | F51: 12 | G51: 12 | H51: TRUE
A52: 42404 | B52: ACO CA-25, 25,0 MM, BARRA DE TRANSFERENCIA | C52: KG | D52: 11.93 | F52: 11.93 | G52: 11.93 | H52: TRUE
A53: 42405 | B53: ACO CA-25, 32,0 MM, BARRA DE TRANSFERENCIA | C53: KG | D53: 12.71 | F53: 12.71 | G53: 12.71 | H53: TRUE
A54: 34341 | B54: ACO CA-25, 32,0 MM, VERGALHAO | C54: KG | D54: 11.03 | F54: 11.03 | G54: 11.03 | H54: TRUE
A55: 43053 | B55: ACO CA-25, 6,3 MM OU 8,0 MM, VERGALHAO | C55: KG | D55: 8.74 | F55: 8.74 | G55: 8.74 | H55: TRUE
A56: 43058 | B56: ACO CA-50, 10,0 MM, OU 12,5 MM, OU 16,0 MM, OU 20,0 MM, DOBRADO E CORTADO | C56: KG | D56: 9.06 | F56: 9.06 | G56: 9.06 | H56: TRUE
A57: 34 | B57: ACO CA-50, 10,0 MM, VERGALHAO | C57: KG | D57: 9.11 | F57: 9.11 | G57: 9.11 | H57: TRUE
A58: 43055 | B58: ACO CA-50, 12,5 MM OU 16,0 MM, VERGALHAO | C58: KG | D58: 7.89 | F58: 7.89 | G58: 7.89 | H58: TRUE
A59: 43056 | B59: ACO CA-50, 20,0 MM OU 25,0 MM, VERGALHAO | C59: KG | D59: 9.1 | F59: 9.1 | G59: 9.1 | H59: TRUE
A60: 43057 | B60: ACO CA-50, 32,0 MM, VERGALHAO | C60: KG | D60: 10 | F60: 10 | G60: 10 | H60: TRUE
A61: 34449 | B61: ACO CA-50, 6,3 MM, DOBRADO E CORTADO | C61: KG | D61: 10.69 | F61: 10.69 | G61: 10.69 | H61: TRUE
A62: 32 | B62: ACO CA-50, 6,3 MM, VERGALHAO | C62: KG | D62: 9.61 | F62: 9.61 | G62: 9.61 | H62: TRUE
A63: 33 | B63: ACO CA-50, 8,0 MM, VERGALHAO | C63: KG | D63: 9.66 | F63: 9.66 | G63: 9.66 | H63: TRUE
A64: 43061 | B64: ACO CA-60, 4,2 MM OU 5,0 MM, DOBRADO E CORTADO | C64: KG | D64: 9.03 | F64: 9.03 | G64: 9.03 | H64: TRUE
A65: 43059 | B65: ACO CA-60, 4,2 MM, OU 5,0 MM, OU 6,0 MM, OU 7,0 MM, VERGALHAO | C65: KG | D65: 8.62 | F65: 8.62 | G65: 8.62 | H65: TRUE
A66: 43062 | B66: ACO CA-60, 6,0 MM OU 7,0 MM, DOBRADO E CORTADO | C66: KG | D66: 9.55 | F66: 9.55 | G66: 9.55 | H66: TRUE
A67: 43060 | B67: ACO CA-60, 8,0 MM OU 9,5 MM, VERGALHAO | C67: KG | D67: =IF($J$2=$F$1,F67,G67) -> 7.51 | F67: 7.51 | G67: 7.51 | H67: =F67=G67 -> TRUE
A68: 40410 | B68: ACOPLAMENTO RIGIDO EM FERRO FUNDIDO PARA SISTEMA DE TUBULACAO RANHURADA, DN 50 MM (2") | C68: UN | D68: 22.27 | F68: 22.27 | G68: 22.27 | H68: TRUE
A69: 40411 | B69: ACOPLAMENTO RIGIDO EM FERRO FUNDIDO PARA SISTEMA DE TUBULACAO RANHURADA, DN 65 MM (2 1/2") | C69: UN | D69: 24.17 | F69: 24.17 | G69: 24.17 | H69: TRUE
A70: 40412 | B70: ACOPLAMENTO RIGIDO EM FERRO FUNDIDO PARA SISTEMA DE TUBULACAO RANHURADA, DN 80 MM (3") | C70: UN | D70: 27.12 | F70: 27.12 | G70: 27.12 | H70: TRUE
A71: 44254 | B71: ADAPTADOR CPVC, ROSCAVEL, COM FLANGES E ANEL DE VEDACAO, 15 MM, CAIXA D'AGUA PARA AGUA QUENTE | C71: UN | D71: 30.04 | F71: 30.04 | G71: 30.04 | H71: TRUE
A72: 44255 | B72: ADAPTADOR CPVC, ROSCAVEL, COM FLANGES E ANEL DE VEDACAO, 22 MM, CAIXA D'AGUA PARA AGUA QUENTE | C72: UN | D72: 33.29 | F72: 33.29 | G72: 33.29 | H72: TRUE
A73: 44256 | B73: ADAPTADOR CPVC, ROSCAVEL, COM FLANGES E ANEL DE VEDACAO, 28 MM, CAIXA D'AGUA PARA AGUA QUENTE | C73: UN | D73: 37.6 | F73: 37.6 | G73: 37.6 | H73: TRUE
A74: 44257 | B74: ADAPTADOR CPVC, ROSCAVEL, COM FLANGES E ANEL DE VEDACAO, 35 MM, CAIXA D'AGUA PARA AGUA QUENTE | C74: UN | D74: 59.49 | F74: 59.49 | G74: 59.49 | H74: TRUE
A75: 44258 | B75: ADAPTADOR CPVC, ROSCAVEL, COM FLANGES E ANEL DE VEDACAO, 42 MM, CAIXA D'AGUA PARA AGUA QUENTE | C75: UN | D75: 67.99 | F75: 67.99 | G75: 67.99 | H75: TRUE
A76: 44259 | B76: ADAPTADOR CPVC, ROSCAVEL, COM FLANGES E ANEL DE VEDACAO, 54 MM, CAIXA D'AGUA PARA AGUA QUENTE | C76: UN | D76: 93.33 | F76: 93.33 | G76: 93.33 | H76: TRUE
A77: 37997 | B77: ADAPTADOR CPVC, SOLDAVEL, 15 MM, PARA AGUA QUENTE | C77: UN | D77: 17.9 | F77: 17.9 | G77: 17.9 | H77: TRUE
A78: 37998 | B78: ADAPTADOR CPVC, SOLDAVEL, 22 MM, PARA AGUA QUENTE | C78: UN | D78: 23.96 | F78: 23.96 | G78: 23.96 | H78: TRUE
A79: 55 | B79: ADAPTADOR DE COMPRESSAO EM POLIPROPILENO (PP), PARA TUBO EM PEAD, 20 MM X 1/2", PARA LIGACAO PREDIAL DE AGUA (NTS 179) | C79: UN | D79: 4.17 | F79: 4.17 | G79: 4.17 | H79: TRUE
A80: 61 | B80: ADAPTADOR DE COMPRESSAO EM POLIPROPILENO (PP), PARA TUBO EM PEAD, 20 MM X 3/4", PARA LIGACAO PREDIAL DE AGUA (NTS 179) | C80: UN | D80: 3.94 | F80: 3.94 | G80: 3.94 | H80: TRUE
A81: 62 | B81: ADAPTADOR DE COMPRESSAO EM POLIPROPILENO (PP), PARA TUBO EM PEAD, 32 MM X 1", PARA LIGACAO PREDIAL DE AGUA (NTS 179) | C81: UN | D81: 8.17 | F81: 8.17 | G81: 8.17 | H81: TRUE
A82: 10899 | B82: ADAPTADOR EM LATAO, ENGATE RAPIDO 2 1/2" X ROSCA INTERNA 5 FIOS 2 1/2", PARA INSTALACAO PREDIAL DE COMBATE A INCENDIO | C82: UN | D82: 70.07 | F82: 70.07 | G82: 70.07 | H82: TRUE
A83: 10900 | B83: ADAPTADOR EM LATAO, ENGATE RAPIDO1 1/2" X ROSCA INTERNA 5 FIOS 2 1/2", PARA INSTALACAO PREDIAL DE COMBATE A INCENDIO | C83: UN | D83: 54.83 | F83: 54.83 | G83: 54.83 | H83: TRUE
A84: 47 | B84: ADAPTADOR PVC PBA, BOLSA/ROSCA, JE, DN 100 / DE 110 MM | C84: UN | D84: 68.51 | F84: 68.51 | G84: 68.51 | H84: TRUE
A85: 48 | B85: ADAPTADOR PVC PBA, BOLSA/ROSCA, JE, DN 50 / DE 60 MM | C85: UN | D85: 17.87 | F85: 17.87 | G85: 17.87 | H85: TRUE
A86: 46 | B86: ADAPTADOR PVC PBA, BOLSA/ROSCA, JE, DN 75 / DE 85 MM | C86: UN | D86: 40.07 | F86: 40.07 | G86: 40.07 | H86: TRUE
A87: 52 | B87: ADAPTADOR PVC PBA, PONTA/ROSCA, JE, DN 50 / DE 60 MM | C87: UN | D87: 13.57 | F87: 13.57 | G87: 13.57 | H87: TRUE
A88: 43 | B88: ADAPTADOR PVC PBA, PONTA/ROSCA, JE, DN 75 / DE 85 MM | C88: UN | D88: 45.82 | F88: 45.82 | G88: 45.82 | H88: TRUE
A89: 103 | B89: ADAPTADOR PVC SOLDAVEL CURTO COM BOLSA E ROSCA, 110 MM X 4", PARA AGUA FRIA | C89: UN | D89: 39.89 | F89: 39.89 | G89: 39.89 | H89: TRUE
A90: 107 | B90: ADAPTADOR PVC SOLDAVEL CURTO COM BOLSA E ROSCA, 20 MM X 1/2", PARA AGUA FRIA | C90: UN | D90: 0.75 | F90: 0.75 | G90: 0.75 | H90: TRUE
A91: 65 | B91: ADAPTADOR PVC SOLDAVEL CURTO COM BOLSA E ROSCA, 25 MM X 3/4", PARA AGUA FRIA | C91: UN | D91: 0.82 | F91: 0.82 | G91: 0.82 | H91: TRUE
A92: 108 | B92: ADAPTADOR PVC SOLDAVEL CURTO COM BOLSA E ROSCA, 32 MM X 1", PARA AGUA FRIA | C92: UN | D92: 1.65 | F92: 1.65 | G92: 1.65 | H92: TRUE
A93: 110 | B93: ADAPTADOR PVC SOLDAVEL CURTO COM BOLSA E ROSCA, 40 MM X 1 1/2", PARA AGUA FRIA | C93: UN | D93: 5.74 | F93: 5.74 | G93: 5.74 | H93: TRUE
A94: 109 | B94: ADAPTADOR PVC SOLDAVEL CURTO COM BOLSA E ROSCA, 40 MM X 1 1/4", PARA AGUA FRIA | C94: UN | D94: 3.42 | F94: 3.42 | G94: 3.42 | H94: TRUE
A95: 111 | B95: ADAPTADOR PVC SOLDAVEL CURTO COM BOLSA E ROSCA, 50 MM X 1 1/4", PARA AGUA FRIA | C95: UN | D95: 7.76 | F95: 7.76 | G95: 7.76 | H95: TRUE
A96: 112 | B96: ADAPTADOR PVC SOLDAVEL CURTO COM BOLSA E ROSCA, 50 MM X1 1/2", PARA AGUA FRIA | C96: UN | D96: 4.11 | F96: 4.11 | G96: 4.11 | H96: TRUE
A97: 113 | B97: ADAPTADOR PVC SOLDAVEL CURTO COM BOLSA E ROSCA, 60 MM X 2", PARA AGUA FRIA | C97: UN | D97: 10.3 | F97: 10.3 | G97: 10.3 | H97: TRUE
A98: 104 | B98: ADAPTADOR PVC SOLDAVEL CURTO COM BOLSA E ROSCA, 75 MM X 2 1/2", PARA AGUA FRIA | C98: UN | D98: 17.93 | F98: 17.93 | G98: 17.93 | H98: TRUE
A99: 102 | B99: ADAPTADOR PVC SOLDAVEL CURTO COM BOLSA E ROSCA, 85 MM X 3", PARA AGUA FRIA | C99: UN | D99: 24.72 | F99: 24.72 | G99: 24.72 | H99: TRUE
A100: 95 | B100: ADAPTADOR PVC SOLDAVEL, COM FLANGE E ANEL DE VEDACAO, 20 MM X 1/2", PARA CAIXA D'AGUA | C100: UN | D100: 10.44 | F100: 10.44 | G100: 10.44 | H100: TRUE
A101: 96 | B101: ADAPTADOR PVC SOLDAVEL, COM FLANGE E ANEL DE VEDACAO, 25 MM X 3/4", PARA CAIXA D'AGUA | C101: UN | D101: 11.36 | F101: 11.36 | G101: 11.36 | H101: TRUE
A102: 97 | B102: ADAPTADOR PVC SOLDAVEL, COM FLANGE E ANEL DE VEDACAO, 32 MM X 1", PARA CAIXA D'AGUA | C102: UN | D102: 17.09 | F102: 17.09 | G102: 17.09 | H102: TRUE
A103: 98 | B103: ADAPTADOR PVC SOLDAVEL, COM FLANGE E ANEL DE VEDACAO, 40 MM X 1 1/4", PARA CAIXA D'AGUA | C103: UN | D103: 25.59 | F103: 25.59 | G103: 25.59 | H103: TRUE
A104: 99 | B104: ADAPTADOR PVC SOLDAVEL, COM FLANGE E ANEL DE VEDACAO, 50 MM X 1 1/2", PARA CAIXA D'AGUA | C104: UN | D104: 24.18 | F104: 24.18 | G104: 24.18 | H104: TRUE
A105: 60 | B105: ADAPTADOR PVC, COM REGISTRO, PARA PEAD, 20 MM X 3/4", PARA LIGACAO PREDIAL DE AGUA | C105: UN | D105: 5.41 | F105: 5.41 | G105: 5.41 | H105: TRUE
A106: 72 | B106: ADAPTADOR PVC, ROSCAVEL, COM FLANGES E ANEL DE VEDACAO, 1 1/2", PARA CAIXA D'AGUA | C106: UN | D106: 46.38 | F106: 46.38 | G106: 46.38 | H106: TRUE
A107: 67 | B107: ADAPTADOR PVC, ROSCAVEL, COM FLANGES E ANEL DE VEDACAO, 1/2", PARA CAIXA D'AGUA | C107: UN | D107: 14.99 | F107: 14.99 | G107: 14.99 | H107: TRUE
A108: 71 | B108: ADAPTADOR PVC, ROSCAVEL, COM FLANGES E ANEL DE VEDACAO, 1", PARA CAIXA D'AGUA | C108: UN | D108: 28.64 | F108: 28.64 | G108: 28.64 | H108: TRUE
A109: 73 | B109: ADAPTADOR PVC, ROSCAVEL, COM FLANGES E ANEL DE VEDACAO, 3/4", PARA CAIXA D'AGUA | C109: UN | D109: 14.35 | F109: 14.35 | G109: 14.35 | H109: TRUE
A110: 100 | B110: ADAPTADOR PVC, SOLDAVEL, COM FLANGES E ANEL DE VEDACAO, 60 MM X 2", PARA CAIXA D'AGUA | C110: UN | D110: 42.25 | F110: 42.25 | G110: 42.25 | H110: TRUE
A111: 75 | B111: ADAPTADOR PVC, SOLDAVEL, COM FLANGES LIVRES, 110 MM X 4", PARA CAIXA D'AGUA | C111: UN | D111: 246.35 | F111: 246.35 | G111: 246.35 | H111: TRUE
A112: 83 | B112: ADAPTADOR PVC, SOLDAVEL, COM FLANGES LIVRES, 75 MM X 2 1/2", PARA CAIXA D'AGUA | C112: UN | D112: 196.95 | F112: 196.95 | G112: 196.95 | H112: TRUE
A113: 74 | B113: ADAPTADOR PVC, SOLDAVEL, COM FLANGES LIVRES, 85 MM X 3", PARA CAIXA D'AGUA | C113: UN | D113: 281.58 | F113: 281.58 | G113: 281.58 | H113: TRUE
A114: 106 | B114: ADAPTADOR PVC, SOLDAVEL, LONGO, COM FLANGE LIVRE, 110 MM X 4", PARA CAIXA D'AGUA | C114: UN | D114: 356.07 | F114: 356.07 | G114: 356.07 | H114: TRUE
A115: 88 | B115: ADAPTADOR PVC, SOLDAVEL, LONGO, COM FLANGE LIVRE, 32 MM X 1", PARA CAIXA D'AGUA | C115: UN | D115: 10.01 | F115: 10.01 | G115: 10.01 | H115: TRUE
A116: 82 | B116: ADAPTADOR PVC, SOLDAVEL, LONGO, COM FLANGE LIVRE, 75 MM X 2 1/2", PARA CAIXA D'AGUA | C116: UN | D116: 187.38 | F116: 187.38 | G116: 187.38 | H116: TRUE
A117: 105 | B117: ADAPTADOR PVC, SOLDAVEL, LONGO, COM FLANGE LIVRE, 85 MM X 3", PARA CAIXA D'AGUA | C117: UN | D117: 265.51 | F117: 265.51 | G117: 265.51 | H117: TRUE
A118: 39719 | B118: ADESIVO / COLA DE CONTATO LIQUIDO, A BASE DE RESINAS, PARA COLAGEM DE ESPUMA PARA ISOLAMENTO TERMICO FLEXIVEL | C118: L | D118: 200.15 | F118: 200.15 | G118: 200.15 | H118: TRUE
A119: 3410 | B119: ADESIVO / COLA PARA EPS (ISOPOR) E OUTROS MATERIAIS | C119: KG | D119: 45.02 | F119: 45.02 | G119: 45.02 | H119: TRUE
A120: 4791 | B120: ADESIVO ACRILICO DE BASE AQUOSA / COLA DE CONTATO | C120: KG | D120: 27.31 | F120: 27.31 | G120: 27.31 | H120: TRUE
A121: 157 | B121: ADESIVO ESTRUTURAL A BASE DE RESINA EPOXI PARA INJECAO EM TRINCAS, BICOMPONENTE, BAIXA VISCOSIDADE | C121: KG | D121: 157.99 | F121: 157.99 | G121: 157.99 | H121: TRUE
A122: 156 | B122: ADESIVO ESTRUTURAL A BASE DE RESINA EPOXI, BICOMPONENTE, FLUIDO | C122: KG | D122: 56.25 | F122: 56.25 | G122: 56.25 | H122: TRUE
A123: 131 | B123: ADESIVO ESTRUTURAL A BASE DE RESINA EPOXI, BICOMPONENTE, PASTOSO (TIXOTROPICO) | C123: KG | D123: 48.11 | F123: 48.11 | G123: 48.11 | H123: TRUE
A124: 21114 | B124: ADESIVO PARA TUBOS CPVC, *75* G | C124: UN | D124: 39.45 | F124: 39.45 | G124: 39.45 | H124: TRUE
A125: 119 | B125: ADESIVO PLASTICO PARA PVC, BISNAGA COM 75 GR | C125: UN | D125: 10 | F125: 10 | G125: 10 | H125: TRUE
A126: 122 | B126: ADESIVO PLASTICO PARA PVC, FRASCO COM *850* GR | C126: UN | D126: 76.94 | F126: 76.94 | G126: 76.94 | H126: TRUE
A127: 20080 | B127: ADESIVO PLASTICO PARA PVC, FRASCO COM 175 GR | C127: UN | D127: 25.11 | F127: 25.11 | G127: 25.11 | H127: TRUE
A128: 124 | B128: ADITIVO ACELERADOR DE PEGA E ENDURECIMENTO PARA ARGAMASSAS E CONCRETOS, LIQUIDO E ISENTO DE CLORETOS | C128: L | D128: 18.55 | F128: 18.55 | G128: 18.55 | H128: TRUE
A129: 7334 | B129: ADITIVO ADESIVO LIQUIDO PARA ARGAMASSAS DE REVESTIMENTOS CIMENTICIOS | C129: L | D129: 14.55 | F129: 14.55 | G129: 14.55 | H129: TRUE
A130: 45146 | B130: ADITIVO IMPERMEABILIZANTE CRISTALIZANTE PARA CONCRETO | C130: KG | D130: 35.57 | F130: 35.57 | G130: 35.57 | H130: TRUE
A131: 123 | B131: ADITIVO IMPERMEABILIZANTE DE PEGA NORMAL PARA ARGAMASSAS E CONCRETOS SEM ARMACAO, LIQUIDO E ISENTO DE CLORETOS | C131: L | D131: =IF($J$2=$F$1,F131,G131) -> 7.59 | F131: 7.59 | G131: 7.59 | H131: =F131=G131 -> TRUE
A132: 127 | B132: ADITIVO IMPERMEABILIZANTE DE PEGA ULTRARRAPIDA, LIQUIDO E ISENTO DE CLORETOS | C132: L | D132: 18.12 | F132: 18.12 | G132: 18.12 | H132: TRUE
A133: 133 | B133: ADITIVO LIQUIDO INCORPORADOR DE AR PARA CONCRETO E ARGAMASSA, LIQUIDO E ISENTO DE CLORETOS | C133: L | D133: 7.52 | F133: 7.52 | G133: 7.52 | H133: TRUE
A134: 43617 | B134: ADITIVO PLASTIFICANTE E ESTABILIZADOR PARA ARGAMASSAS DE ASSENTAMENTO E REBOCO, LIQUIDO E ISENTO DE CLORETOS | C134: L | D134: 8.41 | F134: 8.41 | G134: 8.41 | H134: TRUE
A135: 132 | B135: ADITIVO PLASTIFICANTE RETARDADOR DE PEGA E REDUTOR DE AGUA PARA CONCRETO, LIQUIDO E ISENTO DE CLORETOS | C135: L | D135: 7.8 | F135: 7.8 | G135: 7.8 | H135: TRUE
A136: 43618 | B136: ADITIVO SUPERPLASTIFICANTE DE PEGA NORMAL PARA CONCRETO, LIQUIDO E ISENTO DE CLORETOS | C136: KG | D136: 19.64 | F136: 19.64 | G136: 19.64 | H136: TRUE
A137: 37476 | B137: ADUELA/ GALERIA PRE-MOLDADA DE CONCRETO ARMADO, SECAO QUADRADA INTERNA DE 1,50 X 1,50 M (L X A), MISULA DE 20 X 20 CM, C = 1,00 M, ESPESSURA MIN = 15 CM, TB-45 E FCK DO CONCRETO = 30 MPA | C137: UN | D137: 4059.83 | F137: 4059.83 | G137: 4059.83 | H137: TRUE
A138: 37478 | B138: ADUELA/ GALERIA PRE-MOLDADA DE CONCRETO ARMADO, SECAO RETANGULAR INTERNA DE 2,00 X 2,00 M (L X A), MISULA DE 20 X 20 CM, C = 1,00 M, ESPESSURA MIN = 15 CM, TB-45 E FCK DO CONCRETO = 30 MPA | C138: UN | D138: 5085.04 | F138: 5085.04 | G138: 5085.04 | H138: TRUE
A139: 37477 | B139: ADUELA/ GALERIA PRE-MOLDADA DE CONCRETO ARMADO, SECAO RETANGULAR INTERNA DE 2,50 X 2,50 M (L X A), MISULA DE 20 X 20 CM, C = 1,00 M, ESPESSURA MIN = 15 CM, TB-45 E FCK DO CONCRETO = 30 MPA | C139: UN | D139: 6889.41 | F139: 6889.41 | G139: 6889.41 | H139: TRUE
A140: 37479 | B140: ADUELA/ GALERIA PRE-MOLDADA DE CONCRETO ARMADO, SECAO RETANGULAR INTERNA DE 3,00 X 3,00 M (L X A), MISULA DE 20 X 20 CM, C = 1.00 M, ESPESSURA MIN = 20 CM, TB-45 E FCK DO CONCRETO = 30 MPA | C140: UN | D140: 8170.92 | F140: 8170.92 | G140: 8170.92 | H140: TRUE
A141: 4319 | B141: AFASTADOR PARA TELHA DE FIBROCIMENTO CANALETE 90 OU KALHETAO | C141: UN | D141: 1.54 | F141: 1.54 | G141: 1.54 | H141: TRUE
A142: 42409 | B142: AGENTE DE CURA, PROTETOR DA EVAPORACAO DA AGUA DE HIDRATACAO DO CONCRETO | C142: KG | D142: 12.37 | F142: 12.37 | G142: 12.37 | H142: TRUE
A143: 40553 | B143: AGREGADO RECICLADO, TIPO RACHAO RECICLADO CINZA, CLASSE A | C143: M3 | D143: 60 | F143: 60 | G143: 60 | H143: TRUE
A144: 6114 | B144: AJUDANTE DE ARMADOR (HORISTA) | C144: H | D144: 15.94 | F144: 13.85 | G144: 15.94 | H144: FALSE
A145: 40912 | B145: AJUDANTE DE ARMADOR (MENSALISTA) | C145: MES | D145: 2806.93 | F145: 2434.43 | G145: 2806.93 | H145: FALSE
A146: 247 | B146: AJUDANTE DE ELETRICISTA (HORISTA) | C146: H | D146: 15.94 | F146: 13.85 | G146: 15.94 | H146: FALSE
A147: 40919 | B147: AJUDANTE DE ELETRICISTA (MENSALISTA) | C147: MES | D147: 2806.93 | F147: 2434.43 | G147: 2806.93 | H147: FALSE
A148: 44499 | B148: AJUDANTE DE ESTRUTURAS METALICAS (HORISTA) | C148: H | D148: 15.94 | F148: 13.85 | G148: 15.94 | H148: FALSE
A149: 40984 | B149: AJUDANTE DE ESTRUTURAS METALICAS (MENSALISTA) | C149: MES | D149: 2806.93 | F149: 2434.43 | G149: 2806.93 | H149: FALSE
A150: 248 | B150: AJUDANTE DE OPERACAO EM GERAL (HORISTA) | C150: H | D150: 15.78 | F150: 13.7 | G150: 15.78 | H150: FALSE
A151: 41086 | B151: AJUDANTE DE OPERACAO EM GERAL (MENSALISTA) | C151: MES | D151: 2777.89 | F151: 2409.24 | G151: 2777.89 | H151: FALSE
A152: 34466 | B152: AJUDANTE DE PINTOR (HORISTA) | C152: H | D152: 19.79 | F152: 17.19 | G152: 19.79 | H152: FALSE
A153: 41083 | B153: AJUDANTE DE PINTOR (MENSALISTA) | C153: MES | D153: 3483.86 | F153: 3021.53 | G153: 3483.86 | H153: FALSE
A154: 252 | B154: AJUDANTE DE SERRALHEIRO (HORISTA) | C154: H | D154: 15.94 | F154: 13.85 | G154: 15.94 | H154: FALSE
A155: 40909 | B155: AJUDANTE DE SERRALHEIRO (MENSALISTA) | C155: MES | D155: 2806.93 | F155: 2434.43 | G155: 2806.93 | H155: FALSE
A156: 242 | B156: AJUDANTE ESPECIALIZADO (HORISTA) | C156: H | D156: 15.78 | F156: 13.7 | G156: 15.78 | H156: FALSE
A157: 41085 | B157: AJUDANTE ESPECIALIZADO (MENSALISTA) | C157: MES | D157: 2777.89 | F157: 2409.24 | G157: 2777.89 | H157: FALSE
A158: 427 | B158: ALCA PREFORMADA DE CONTRA POSTE, EM ACO GALVANIZADO, PARA CABO 3/16", COMPRIMENTO *860* MM | C158: UN | D158: 10.32 | F158: 10.32 | G158: 10.32 | H158: TRUE
A159: 417 | B159: ALCA PREFORMADA DE DISTRIBUICAO, EM ACO GALVANIZADO, PARA CABO DE ALUMINIO DIAMETRO 16 A 25 MM | C159: UN | D159: 4.86 | F159: 4.86 | G159: 4.86 | H159: TRUE
A160: 11273 | B160: ALCA PREFORMADA DE DISTRIBUICAO, EM ACO GALVANIZADO, PARA CONDUTORES DE ALUMINIO AWG 1/0 (CAA 6/1 OU CA 7 FIOS) | C160: UN | D160: 15.1 | F160: 15.1 | G160: 15.1 | H160: TRUE
A161: 11272 | B161: ALCA PREFORMADA DE DISTRIBUICAO, EM ACO GALVANIZADO, PARA CONDUTORES DE ALUMINIO AWG 2 (CAA 6/1 OU CA 7 FIOS) | C161: UN | D161: 9.11 | F161: 9.11 | G161: 9.11 | H161: TRUE
A162: 11275 | B162: ALCA PREFORMADA DE SERVICO, EM ACO GALVANIZADO, PARA CONDUTORES DE ALUMINIO AWG 4 (CAA 6/1) | C162: UN | D162: 3.65 | F162: 3.65 | G162: 3.65 | H162: TRUE
A163: 11274 | B163: ALCA PREFORMADA DE SERVICO, EM ACO GALVANIZADO, PARA CONDUTORES DE ALUMINIO AWG 6 (CAA 6/1) | C163: UN | D163: 2.79 | F163: 2.79 | G163: 2.79 | H163: TRUE
A164: 38470 | B164: ALICATE DE CORTE DIAGONAL 6" COM ISOLAMENTO | C164: UN | D164: 46.99 | F164: 46.99 | G164: 46.99 | H164: TRUE
A165: 38547 | B165: ALICATE DE CRIMPAR RJ11, RJ12 E RJ45, COM CATRACA | C165: UN | D165: 128.23 | F165: 128.23 | G165: 128.23 | H165: TRUE
A166: 38469 | B166: ALICATE DE PRESSAO PARA SOLDA DE CHAPA 18" | C166: UN | D166: 137.88 | F166: 137.88 | G166: 137.88 | H166: TRUE
A167: 38467 | B167: ALICATE DE PRESSAO 11" PARA SOLDA, TIPO C | C167: UN | D167: 77.58 | F167: 77.58 | G167: 77.58 | H167: TRUE
A168: 38468 | B168: ALICATE DE PRESSAO 11" PARA SOLDA, TIPO U | C168: UN | D168: 85.37 | F168: 85.37 | G168: 85.37 | H168: TRUE
A169: 38471 | B169: ALICATE PARA ANEIS DE PISTAO, CAPACIDADE *50* A 100 MM | C169: UN | D169: 110.86 | F169: 110.86 | G169: 110.86 | H169: TRUE
A170: 37370 | B170: ALIMENTACAO - HORISTA (COLETADO CAIXA - ENCARGOS COMPLEMENTARES) | C170: H | D170: 1.09 | F170: 1.09 | G170: 1.09 | H170: TRUE
A171: 40862 | B171: ALIMENTACAO - MENSALISTA (COLETADO CAIXA - ENCARGOS COMPLEMENTARES) | C171: MES | D171: 205.81 | F171: 205.81 | G171: 205.81 | H171: TRUE
A172: 10658 | B172: ALISADORA DE CONCRETO COM MOTOR A GASOLINA DE 5,5 HP, PESO COM MOTOR DE 78 KG, 4 PAS | C172: UN | D172: 8337.56 | F172: 8337.56 | G172: 8337.56 | H172: TRUE
A173: 253 | B173: ALMOXARIFE (HORISTA) | C173: H | D173: 19.79 | F173: 17.19 | G173: 19.79 | H173: FALSE
A174: 40809 | B174: ALMOXARIFE (MENSALISTA) | C174: MES | D174: 3482.33 | F174: 3020.19 | G174: 3482.33 | H174: FALSE
A175: 42428 | B175: ALONGADOR COM TRES ALTURAS, EM TUBO DE ACO CARBONO, PINTURA NO PROCESSO ELETROSTATICO - EQUIPAMENTO DE GINASTICA PARA ACADEMIA AO AR LIVRE / ACADEMIA DA TERCEIRA IDADE - ATI | C175: UN | D175: 2271 | F175: 2271 | G175: 2271 | H175: TRUE
A176: 301 | B176: ANEL BORRACHA PARA TUBO ESGOTO PREDIAL, DN 100 MM (NBR 5688) | C176: UN | D176: 3.25 | F176: 3.25 | G176: 3.25 | H176: TRUE
A177: 296 | B177: ANEL BORRACHA PARA TUBO ESGOTO PREDIAL, DN 50 MM (NBR 5688) | C177: UN | D177: 1.83 | F177: 1.83 | G177: 1.83 | H177: TRUE
A178: 297 | B178: ANEL BORRACHA PARA TUBO ESGOTO PREDIAL, DN 75 MM (NBR 5688) | C178: UN | D178: 2.7 | F178: 2.7 | G178: 2.7 | H178: TRUE
A179: 299 | B179: ANEL BORRACHA, DN 100 MM, PARA TUBO SERIE REFORCADA ESGOTO PREDIAL | C179: UN | D179: 3.81 | F179: 3.81 | G179: 3.81 | H179: TRUE
A180: 300 | B180: ANEL BORRACHA, DN 150 MM, PARA TUBO SERIE REFORCADA ESGOTO PREDIAL | C180: UN | D180: 13.19 | F180: 13.19 | G180: 13.19 | H180: TRUE
A181: 20085 | B181: ANEL BORRACHA, DN 50 MM, PARA TUBO SERIE REFORCADA ESGOTO PREDIAL | C181: UN | D181: 2.41 | F181: 2.41 | G181: 2.41 | H181: TRUE
A182: 298 | B182: ANEL BORRACHA, DN 75 MM, PARA TUBO SERIE REFORCADA ESGOTO PREDIAL | C182: UN | D182: 2.93 | F182: 2.93 | G182: 2.93 | H182: TRUE
A183: 311 | B183: ANEL BORRACHA, PARA TUBO PVC DEFOFO, DN 100 MM (NBR 7665) | C183: UN | D183: 10.88 | F183: 10.88 | G183: 10.88 | H183: TRUE
A184: 318 | B184: ANEL BORRACHA, PARA TUBO PVC DEFOFO, DN 150 MM (NBR 7665) | C184: UN | D184: 21.91 | F184: 21.91 | G184: 21.91 | H184: TRUE
A185: 319 | B185: ANEL BORRACHA, PARA TUBO PVC DEFOFO, DN 200 MM (NBR 7665) | C185: UN | D185: 34.35 | F185: 34.35 | G185: 34.35 | H185: TRUE
A186: 303 | B186: ANEL BORRACHA, PARA TUBO PVC, REDE COLETOR ESGOTO, DN 100 MM (NBR 7362) | C186: UN | D186: 3.6 | F186: 3.6 | G186: 3.6 | H186: TRUE
A187: 305 | B187: ANEL BORRACHA, PARA TUBO PVC, REDE COLETOR ESGOTO, DN 150 MM (NBR 7362) | C187: UN | D187: 11.32 | F187: 11.32 | G187: 11.32 | H187: TRUE
A188: 306 | B188: ANEL BORRACHA, PARA TUBO PVC, REDE COLETOR ESGOTO, DN 200 MM (NBR 7362) | C188: UN | D188: 17.17 | F188: 17.17 | G188: 17.17 | H188: TRUE
A189: 307 | B189: ANEL BORRACHA, PARA TUBO PVC, REDE COLETOR ESGOTO, DN 250 MM (NBR 7362) | C189: UN | D189: 43.4 | F189: 43.4 | G189: 43.4 | H189: TRUE
A190: 309 | B190: ANEL BORRACHA, PARA TUBO PVC, REDE COLETOR ESGOTO, DN 350 MM (NBR 7362) | C190: UN | D190: 71.09 | F190: 71.09 | G190: 71.09 | H190: TRUE
A191: 310 | B191: ANEL BORRACHA, PARA TUBO PVC, REDE COLETOR ESGOTO, DN 400 MM (NBR 7362) | C191: UN | D191: 98.53 | F191: 98.53 | G191: 98.53 | H191: TRUE
A192: 328 | B192: ANEL BORRACHA, PARA TUBO/CONEXAO PVC PBA, DN 100 MM, PARA REDE AGUA | C192: UN | D192: 8.61 | F192: 8.61 | G192: 8.61 | H192: TRUE
A193: 325 | B193: ANEL BORRACHA, PARA TUBO/CONEXAO PVC PBA, DN 50 MM, PARA REDE AGUA | C193: UN | D193: 2.54 | F193: 2.54 | G193: 2.54 | H193: TRUE
A194: 20326 | B194: ANEL BORRACHA, PARA TUBO/CONEXAO PVC PBA, DN 60 MM, PARA REDE AGUA | C194: UN | D194: 4.65 | F194: 4.65 | G194: 4.65 | H194: TRUE
A195: 329 | B195: ANEL BORRACHA, PARA TUBO/CONEXAO PVC PBA, DN 75 MM, PARA REDE AGUA | C195: UN | D195: =IF($J$2=$F$1,F195,G195) -> 7.2 | F195: 7.2 | G195: 7.2 | H195: =F195=G195 -> TRUE
A196: 308 | B196: ANEL BORRACHA, PARA TUBO, PVC REDE COLETOR ESGOTO, DN 300 MM (NBR 7362) | C196: UN | D196: 96.85 | F196: 96.85 | G196: 96.85 | H196: TRUE
A197: 39642 | B197: ANEL DE BORRACHA PARA VEDACAO DE DUTO PEAD CORRUGADO PARA ELETRICA, DN 1 1/2" (NBR 15715) | C197: UN | D197: 3.19 | F197: 3.19 | G197: 3.19 | H197: TRUE
A198: 39641 | B198: ANEL DE BORRACHA PARA VEDACAO DE DUTO PEAD CORRUGADO PARA ELETRICA, DN 1 1/4" (NBR 15715) | C198: UN | D198: 2.8 | F198: 2.8 | G198: 2.8 | H198: TRUE
A199: 39643 | B199: ANEL DE BORRACHA PARA VEDACAO DE DUTO PEAD CORRUGADO PARA ELETRICA, DN 2" (NBR 15715) | C199: UN | D199: 3.75 | F199: 3.75 | G199: 3.75 | H199: TRUE
A200: 39644 | B200: ANEL DE BORRACHA PARA VEDACAO DE DUTO PEAD CORRUGADO PARA ELETRICA, DN 3" (NBR 15715) | C200: UN | D200: 5.81 | F200: 5.81 | G200: 5.81 | H200: TRUE
... 4642 more rows

Sheet COMPOSIÇÕES (hidden)
C2: ACADEMIA DA 3 IDADE | D2: Unidade | E2: Preço
B3: =#REF! ->  | C3: =#REF! ->  | D3: =#REF! ->  | E3: =#REF! -> 
C5: PLAYGROUND | D5: Unidade | E5: Preço
B6: AMM PLAY 001 | C6: =VLOOKUP($B6,#REF!,2,FALSE) ->  | D6: =VLOOKUP($B6,#REF!,6,FALSE) ->  | E6: =VLOOKUP($B6,#REF!,7,FALSE) -> 
B7: AMM PLAY 002 | C7: =VLOOKUP($B7,#REF!,2,FALSE) ->  | D7: =VLOOKUP($B7,#REF!,6,FALSE) ->  | E7: =VLOOKUP($B7,#REF!,7,FALSE) -> 
B8: AMM PLAY 003 | C8: =VLOOKUP($B8,#REF!,2,FALSE) ->  | D8: =VLOOKUP($B8,#REF!,6,FALSE) ->  | E8: =VLOOKUP($B8,#REF!,7,FALSE) -> 
B9: AMM PLAY 004 | C9: =VLOOKUP($B9,#REF!,2,FALSE) ->  | D9: =VLOOKUP($B9,#REF!,6,FALSE) ->  | E9: =VLOOKUP($B9,#REF!,7,FALSE) -> 
B10: AMM PLAY 005 | C10: =VLOOKUP($B10,#REF!,2,FALSE) ->  | D10: =VLOOKUP($B10,#REF!,6,FALSE) ->  | E10: =VLOOKUP($B10,#REF!,7,FALSE) -> 
B11: AMM PLAY 006 | C11: =VLOOKUP($B11,#REF!,2,FALSE) ->  | D11: =VLOOKUP($B11,#REF!,6,FALSE) ->  | E11: =VLOOKUP($B11,#REF!,7,FALSE) -> 
B12: AMM PLAY 007 | C12: =VLOOKUP($B12,#REF!,2,FALSE) ->  | D12: =VLOOKUP($B12,#REF!,6,FALSE) ->  | E12: =VLOOKUP($B12,#REF!,7,FALSE) -> 
B13: AMM PLAY 008 | C13: =VLOOKUP($B13,#REF!,2,FALSE) ->  | D13: =VLOOKUP($B13,#REF!,6,FALSE) ->  | E13: =VLOOKUP($B13,#REF!,7,FALSE) -> 
B14: AMM PLAY 009 | C14: =VLOOKUP($B14,#REF!,2,FALSE) ->  | D14: =VLOOKUP($B14,#REF!,6,FALSE) ->  | E14: =VLOOKUP($B14,#REF!,7,FALSE) -> 
B15: AMM PLAY 010 | C15: =VLOOKUP($B15,#REF!,2,FALSE) ->  | D15: =VLOOKUP($B15,#REF!,6,FALSE) ->  | E15: =VLOOKUP($B15,#REF!,7,FALSE) -> 
B17: AMM PAI | C17: COMPOSIÇÃO PAISAGISMO | D17: Unidade | E17: Preço
B18: AMM PAI 001 | C18: =VLOOKUP($B18,#REF!,2,FALSE) ->  | D18: =VLOOKUP($B18,#REF!,6,FALSE) ->  | E18: =VLOOKUP($B18,#REF!,7,FALSE) -> 
B19: AMM PAI 002 | C19: =VLOOKUP($B19,#REF!,2,FALSE) ->  | D19: =VLOOKUP($B19,#REF!,6,FALSE) ->  | E19: =VLOOKUP($B19,#REF!,7,FALSE) -> 
B20: AMM PAI 003 | C20: =VLOOKUP($B20,#REF!,2,FALSE) ->  | D20: =VLOOKUP($B20,#REF!,6,FALSE) ->  | E20: =VLOOKUP($B20,#REF!,7,FALSE) -> 
B21: AMM PAI 004 | C21: =VLOOKUP($B21,#REF!,2,FALSE) ->  | D21: =VLOOKUP($B21,#REF!,6,FALSE) ->  | E21: =VLOOKUP($B21,#REF!,7,FALSE) -> 
B22: AMM PAI 005 | C22: =VLOOKUP($B22,#REF!,2,FALSE) ->  | D22: =VLOOKUP($B22,#REF!,6,FALSE) ->  | E22: =VLOOKUP($B22,#REF!,7,FALSE) -> 
B23: AMM PAI 006 | C23: =VLOOKUP($B23,#REF!,2,FALSE) ->  | D23: =VLOOKUP($B23,#REF!,6,FALSE) ->  | E23: =VLOOKUP($B23,#REF!,7,FALSE) -> 
B24: AMM PAI 007 | C24: =VLOOKUP($B24,#REF!,2,FALSE) ->  | D24: =VLOOKUP($B24,#REF!,6,FALSE) ->  | E24: =VLOOKUP($B24,#REF!,7,FALSE) -> 
B25: AMM PAI 008 | C25: =VLOOKUP($B25,#REF!,2,FALSE) ->  | D25: =VLOOKUP($B25,#REF!,6,FALSE) ->  | E25: =VLOOKUP($B25,#REF!,7,FALSE) -> 
B26: AMM PAI 009 | C26: =VLOOKUP($B26,#REF!,2,FALSE) ->  | D26: =VLOOKUP($B26,#REF!,6,FALSE) ->  | E26: =VLOOKUP($B26,#REF!,7,FALSE) -> 
B27: AMM PAI 010 | C27: =VLOOKUP($B27,#REF!,2,FALSE) ->  | D27: =VLOOKUP($B27,#REF!,6,FALSE) ->  | E27: =VLOOKUP($B27,#REF!,7,FALSE) -> 
B28: AMM PAI 011 | C28: =VLOOKUP($B28,#REF!,2,FALSE) ->  | D28: =VLOOKUP($B28,#REF!,6,FALSE) ->  | E28: =VLOOKUP($B28,#REF!,7,FALSE) -> 
B29: AMM PAI 012 | C29: =VLOOKUP($B29,#REF!,2,FALSE) ->  | D29: =VLOOKUP($B29,#REF!,6,FALSE) ->  | E29: =VLOOKUP($B29,#REF!,7,FALSE) -> 
B30: AMM PAI 013 | C30: =VLOOKUP($B30,#REF!,2,FALSE) ->  | D30: =VLOOKUP($B30,#REF!,6,FALSE) ->  | E30: =VLOOKUP($B30,#REF!,7,FALSE) -> 
B31: AMM PAI 014 | C31: =VLOOKUP($B31,#REF!,2,FALSE) ->  | D31: =VLOOKUP($B31,#REF!,6,FALSE) ->  | E31: =VLOOKUP($B31,#REF!,7,FALSE) -> 
B32: AMM PAI 015 | C32: =VLOOKUP($B32,#REF!,2,FALSE) ->  | D32: =VLOOKUP($B32,#REF!,6,FALSE) ->  | E32: =VLOOKUP($B32,#REF!,7,FALSE) -> 
B33: AMM PAI 016 | C33: =VLOOKUP($B33,#REF!,2,FALSE) ->  | D33: =VLOOKUP($B33,#REF!,6,FALSE) ->  | E33: =VLOOKUP($B33,#REF!,7,FALSE) -> 
B34: AMM PAI 017 | C34: =VLOOKUP($B34,#REF!,2,FALSE) ->  | D34: =VLOOKUP($B34,#REF!,6,FALSE) ->  | E34: =VLOOKUP($B34,#REF!,7,FALSE) -> 
B35: AMM PAI 018 | C35: =VLOOKUP($B35,#REF!,2,FALSE) ->  | D35: =VLOOKUP($B35,#REF!,6,FALSE) ->  | E35: =VLOOKUP($B35,#REF!,7,FALSE) -> 
B36: AMM PAI 019 | C36: =VLOOKUP($B36,#REF!,2,FALSE) ->  | D36: =VLOOKUP($B36,#REF!,6,FALSE) ->  | E36: =VLOOKUP($B36,#REF!,7,FALSE) -> 
B37: AMM PAI 020 | C37: =VLOOKUP($B37,#REF!,2,FALSE) ->  | D37: =VLOOKUP($B37,#REF!,6,FALSE) ->  | E37: =VLOOKUP($B37,#REF!,7,FALSE) -> 
B38: AMM PAI 021 | C38: =VLOOKUP($B38,#REF!,2,FALSE) ->  | D38: =VLOOKUP($B38,#REF!,6,FALSE) ->  | E38: =VLOOKUP($B38,#REF!,7,FALSE) -> 
B39: AMM PAI 022 | C39: =VLOOKUP($B39,#REF!,2,FALSE) ->  | D39: =VLOOKUP($B39,#REF!,6,FALSE) ->  | E39: =VLOOKUP($B39,#REF!,7,FALSE) -> 
B40: AMM PAI 023 | C40: =VLOOKUP($B40,#REF!,2,FALSE) ->  | D40: =VLOOKUP($B40,#REF!,6,FALSE) ->  | E40: =VLOOKUP($B40,#REF!,7,FALSE) -> 
B41: AMM PAI 024 | C41: =VLOOKUP($B41,#REF!,2,FALSE) ->  | D41: =VLOOKUP($B41,#REF!,6,FALSE) ->  | E41: =VLOOKUP($B41,#REF!,7,FALSE) -> 
B42: AMM PAI 025 | C42: =VLOOKUP($B42,#REF!,2,FALSE) ->  | D42: =VLOOKUP($B42,#REF!,6,FALSE) ->  | E42: =VLOOKUP($B42,#REF!,7,FALSE) -> 
B43: AMM PAI 026 | C43: =VLOOKUP($B43,#REF!,2,FALSE) ->  | D43: =VLOOKUP($B43,#REF!,6,FALSE) ->  | E43: =VLOOKUP($B43,#REF!,7,FALSE) -> 
B44: AMM PAI 027 | C44: =VLOOKUP($B44,#REF!,2,FALSE) ->  | D44: =VLOOKUP($B44,#REF!,6,FALSE) ->  | E44: =VLOOKUP($B44,#REF!,7,FALSE) -> 
B45: AMM PAI 028 | C45: =VLOOKUP($B45,#REF!,2,FALSE) ->  | D45: =VLOOKUP($B45,#REF!,6,FALSE) ->  | E45: =VLOOKUP($B45,#REF!,7,FALSE) -> 
B47: AMM CIV | C47: COMPOSIÇÕES CIVIL | D47: Unidade | E47: Preço
B48: AMM CIV 001 | C48: =VLOOKUP($B48,'COMPOSIÇÃO CIVIL'!$B:$G,2,FALSE) ->  | D48: =VLOOKUP($B48,'COMPOSIÇÃO CIVIL'!$B:$G,6,FALSE) ->  | E48: =VLOOKUP($B48,'COMPOSIÇÃO CIVIL'!$B:$H,7,FALSE) -> 
B49: AMM CIV 002 | C49: =VLOOKUP($B49,'COMPOSIÇÃO CIVIL'!$B:$G,2,FALSE) ->  | D49: =VLOOKUP($B49,'COMPOSIÇÃO CIVIL'!$B:$G,6,FALSE) ->  | E49: =VLOOKUP($B49,'COMPOSIÇÃO CIVIL'!$B:$H,7,FALSE) -> 
B50: AMM CIV 003 | C50: =VLOOKUP($B50,'COMPOSIÇÃO CIVIL'!$B:$G,2,FALSE) ->  | D50: =VLOOKUP($B50,'COMPOSIÇÃO CIVIL'!$B:$G,6,FALSE) ->  | E50: =VLOOKUP($B50,'COMPOSIÇÃO CIVIL'!$B:$H,7,FALSE) -> 
B51: AMM CIV 004 | C51: =VLOOKUP($B51,'COMPOSIÇÃO CIVIL'!$B:$G,2,FALSE) ->  | D51: =VLOOKUP($B51,'COMPOSIÇÃO CIVIL'!$B:$G,6,FALSE) ->  | E51: =VLOOKUP($B51,'COMPOSIÇÃO CIVIL'!$B:$H,7,FALSE) -> 
B52: AMM CIV 005 | C52: =VLOOKUP($B52,'COMPOSIÇÃO CIVIL'!$B:$G,2,FALSE) ->  | D52: =VLOOKUP($B52,'COMPOSIÇÃO CIVIL'!$B:$G,6,FALSE) ->  | E52: =VLOOKUP($B52,'COMPOSIÇÃO CIVIL'!$B:$H,7,FALSE) -> 
B53: AMM CIV 006 | C53: =VLOOKUP($B53,'COMPOSIÇÃO CIVIL'!$B:$G,2,FALSE) ->  | D53: =VLOOKUP($B53,'COMPOSIÇÃO CIVIL'!$B:$G,6,FALSE) ->  | E53: =VLOOKUP($B53,'COMPOSIÇÃO CIVIL'!$B:$H,7,FALSE) -> 
B54: AMM CIV 007 | C54: =VLOOKUP($B54,'COMPOSIÇÃO CIVIL'!$B:$G,2,FALSE) ->  | D54: =VLOOKUP($B54,'COMPOSIÇÃO CIVIL'!$B:$G,6,FALSE) ->  | E54: =VLOOKUP($B54,'COMPOSIÇÃO CIVIL'!$B:$H,7,FALSE) -> 
B55: AMM CIV 008 | C55: =VLOOKUP($B55,'COMPOSIÇÃO CIVIL'!$B:$G,2,FALSE) ->  | D55: =VLOOKUP($B55,'COMPOSIÇÃO CIVIL'!$B:$G,6,FALSE) ->  | E55: =VLOOKUP($B55,'COMPOSIÇÃO CIVIL'!$B:$H,7,FALSE) -> 
B56: AMM CIV 009 | C56: =VLOOKUP($B56,'COMPOSIÇÃO CIVIL'!$B:$G,2,FALSE) ->  | D56: =VLOOKUP($B56,'COMPOSIÇÃO CIVIL'!$B:$G,6,FALSE) ->  | E56: =VLOOKUP($B56,'COMPOSIÇÃO CIVIL'!$B:$H,7,FALSE) -> 
B57: AMM CIV 010 | C57: =VLOOKUP($B57,'COMPOSIÇÃO CIVIL'!$B:$G,2,FALSE) ->  | D57: =VLOOKUP($B57,'COMPOSIÇÃO CIVIL'!$B:$G,6,FALSE) ->  | E57: =VLOOKUP($B57,'COMPOSIÇÃO CIVIL'!$B:$H,7,FALSE) -> 
B58: AMM CIV 011 | C58: =VLOOKUP($B58,'COMPOSIÇÃO CIVIL'!$B:$G,2,FALSE) ->  | D58: =VLOOKUP($B58,'COMPOSIÇÃO CIVIL'!$B:$G,6,FALSE) ->  | E58: =VLOOKUP($B58,'COMPOSIÇÃO CIVIL'!$B:$H,7,FALSE) -> 
B59: AMM CIV 012 | C59: =VLOOKUP($B59,'COMPOSIÇÃO CIVIL'!$B:$G,2,FALSE) ->  | D59: =VLOOKUP($B59,'COMPOSIÇÃO CIVIL'!$B:$G,6,FALSE) ->  | E59: =VLOOKUP($B59,'COMPOSIÇÃO CIVIL'!$B:$H,7,FALSE) -> 
B60: AMM CIV 013 | C60: =VLOOKUP($B60,'COMPOSIÇÃO CIVIL'!$B:$G,2,FALSE) ->  | D60: =VLOOKUP($B60,'COMPOSIÇÃO CIVIL'!$B:$G,6,FALSE) ->  | E60: =VLOOKUP($B60,'COMPOSIÇÃO CIVIL'!$B:$H,7,FALSE) -> 
B61: AMM CIV 014 | C61: =VLOOKUP($B61,'COMPOSIÇÃO CIVIL'!$B:$G,2,FALSE) ->  | D61: =VLOOKUP($B61,'COMPOSIÇÃO CIVIL'!$B:$G,6,FALSE) ->  | E61: =VLOOKUP($B61,'COMPOSIÇÃO CIVIL'!$B:$H,7,FALSE) -> 
B62: AMM CIV 015 | C62: =VLOOKUP($B62,'COMPOSIÇÃO CIVIL'!$B:$G,2,FALSE) ->  | D62: =VLOOKUP($B62,'COMPOSIÇÃO CIVIL'!$B:$G,6,FALSE) ->  | E62: =VLOOKUP($B62,'COMPOSIÇÃO CIVIL'!$B:$H,7,FALSE) -> 
B63: AMM CIV 016 | C63: =VLOOKUP($B63,'COMPOSIÇÃO CIVIL'!$B:$G,2,FALSE) ->  | D63: =VLOOKUP($B63,'COMPOSIÇÃO CIVIL'!$B:$G,6,FALSE) ->  | E63: =VLOOKUP($B63,'COMPOSIÇÃO CIVIL'!$B:$H,7,FALSE) -> 
B64: AMM CIV 017 | C64: =VLOOKUP($B64,'COMPOSIÇÃO CIVIL'!$B:$G,2,FALSE) ->  | D64: =VLOOKUP($B64,'COMPOSIÇÃO CIVIL'!$B:$G,6,FALSE) ->  | E64: =VLOOKUP($B64,'COMPOSIÇÃO CIVIL'!$B:$H,7,FALSE) -> 
B65: AMM CIV 018 | C65: =VLOOKUP($B65,'COMPOSIÇÃO CIVIL'!$B:$G,2,FALSE) ->  | D65: =VLOOKUP($B65,'COMPOSIÇÃO CIVIL'!$B:$G,6,FALSE) ->  | E65: =VLOOKUP($B65,'COMPOSIÇÃO CIVIL'!$B:$H,7,FALSE) -> 
B66: AMM CIV 019 | C66: =VLOOKUP($B66,'COMPOSIÇÃO CIVIL'!$B:$G,2,FALSE) ->  | D66: =VLOOKUP($B66,'COMPOSIÇÃO CIVIL'!$B:$G,6,FALSE) ->  | E66: =VLOOKUP($B66,'COMPOSIÇÃO CIVIL'!$B:$H,7,FALSE) -> 
B67: AMM CIV 020 | C67: =VLOOKUP($B67,'COMPOSIÇÃO CIVIL'!$B:$G,2,FALSE) ->  | D67: =VLOOKUP($B67,'COMPOSIÇÃO CIVIL'!$B:$G,6,FALSE) ->  | E67: =VLOOKUP($B67,'COMPOSIÇÃO CIVIL'!$B:$H,7,FALSE) -> 
B68: AMM CIV 021 | C68: =VLOOKUP($B68,'COMPOSIÇÃO CIVIL'!$B:$G,2,FALSE) ->  | D68: =VLOOKUP($B68,'COMPOSIÇÃO CIVIL'!$B:$G,6,FALSE) ->  | E68: =VLOOKUP($B68,'COMPOSIÇÃO CIVIL'!$B:$H,7,FALSE) -> 
B69: AMM CIV 022 | C69: =VLOOKUP($B69,'COMPOSIÇÃO CIVIL'!$B:$G,2,FALSE) ->  | D69: =VLOOKUP($B69,'COMPOSIÇÃO CIVIL'!$B:$G,6,FALSE) ->  | E69: =VLOOKUP($B69,'COMPOSIÇÃO CIVIL'!$B:$H,7,FALSE) -> 
B70: AMM CIV 023 | C70: =VLOOKUP($B70,'COMPOSIÇÃO CIVIL'!$B:$G,2,FALSE) ->  | D70: =VLOOKUP($B70,'COMPOSIÇÃO CIVIL'!$B:$G,6,FALSE) ->  | E70: =VLOOKUP($B70,'COMPOSIÇÃO CIVIL'!$B:$H,7,FALSE) -> 
B71: AMM CIV 024 | C71: =VLOOKUP($B71,'COMPOSIÇÃO CIVIL'!$B:$G,2,FALSE) ->  | D71: =VLOOKUP($B71,'COMPOSIÇÃO CIVIL'!$B:$G,6,FALSE) ->  | E71: =VLOOKUP($B71,'COMPOSIÇÃO CIVIL'!$B:$H,7,FALSE) -> 
B72: AMM CIV 025 | C72: =VLOOKUP($B72,'COMPOSIÇÃO CIVIL'!$B:$G,2,FALSE) ->  | D72: =VLOOKUP($B72,'COMPOSIÇÃO CIVIL'!$B:$G,6,FALSE) ->  | E72: =VLOOKUP($B72,'COMPOSIÇÃO CIVIL'!$B:$H,7,FALSE) -> 
B73: AMM CIV 026 | C73: =VLOOKUP($B73,'COMPOSIÇÃO CIVIL'!$B:$G,2,FALSE) ->  | D73: =VLOOKUP($B73,'COMPOSIÇÃO CIVIL'!$B:$G,6,FALSE) ->  | E73: =VLOOKUP($B73,'COMPOSIÇÃO CIVIL'!$B:$H,7,FALSE) -> 
B74: AMM CIV 027 | C74: =VLOOKUP($B74,'COMPOSIÇÃO CIVIL'!$B:$G,2,FALSE) ->  | D74: =VLOOKUP($B74,'COMPOSIÇÃO CIVIL'!$B:$G,6,FALSE) ->  | E74: =VLOOKUP($B74,'COMPOSIÇÃO CIVIL'!$B:$H,7,FALSE) -> 
B75: AMM CIV 028 | C75: =VLOOKUP($B75,'COMPOSIÇÃO CIVIL'!$B:$G,2,FALSE) ->  | D75: =VLOOKUP($B75,'COMPOSIÇÃO CIVIL'!$B:$G,6,FALSE) ->  | E75: =VLOOKUP($B75,'COMPOSIÇÃO CIVIL'!$B:$H,7,FALSE) -> 
B76: AMM CIV 029 | C76: =VLOOKUP($B76,'COMPOSIÇÃO CIVIL'!$B:$G,2,FALSE) ->  | D76: =VLOOKUP($B76,'COMPOSIÇÃO CIVIL'!$B:$G,6,FALSE) ->  | E76: =VLOOKUP($B76,'COMPOSIÇÃO CIVIL'!$B:$H,7,FALSE) -> 
B77: AMM CIV 030 | C77: =VLOOKUP($B77,'COMPOSIÇÃO CIVIL'!$B:$G,2,FALSE) ->  | D77: =VLOOKUP($B77,'COMPOSIÇÃO CIVIL'!$B:$G,6,FALSE) ->  | E77: =VLOOKUP($B77,'COMPOSIÇÃO CIVIL'!$B:$H,7,FALSE) -> 
B78: AMM CIV 031 | C78: =VLOOKUP($B78,'COMPOSIÇÃO CIVIL'!$B:$G,2,FALSE) ->  | D78: =VLOOKUP($B78,'COMPOSIÇÃO CIVIL'!$B:$G,6,FALSE) ->  | E78: =VLOOKUP($B78,'COMPOSIÇÃO CIVIL'!$B:$H,7,FALSE) -> 
B79: AMM CIV 032 | C79: =VLOOKUP($B79,'COMPOSIÇÃO CIVIL'!$B:$G,2,FALSE) ->  | D79: =VLOOKUP($B79,'COMPOSIÇÃO CIVIL'!$B:$G,6,FALSE) ->  | E79: =VLOOKUP($B79,'COMPOSIÇÃO CIVIL'!$B:$H,7,FALSE) -> 
B80: AMM CIV 033 | C80: =VLOOKUP($B80,'COMPOSIÇÃO CIVIL'!$B:$G,2,FALSE) ->  | D80: =VLOOKUP($B80,'COMPOSIÇÃO CIVIL'!$B:$G,6,FALSE) ->  | E80: =VLOOKUP($B80,'COMPOSIÇÃO CIVIL'!$B:$H,7,FALSE) -> 
B81: AMM CIV 034 | C81: =VLOOKUP($B81,'COMPOSIÇÃO CIVIL'!$B:$G,2,FALSE) ->  | D81: =VLOOKUP($B81,'COMPOSIÇÃO CIVIL'!$B:$G,6,FALSE) ->  | E81: =VLOOKUP($B81,'COMPOSIÇÃO CIVIL'!$B:$H,7,FALSE) -> 
B82: AMM CIV 035 | C82: =VLOOKUP($B82,'COMPOSIÇÃO CIVIL'!$B:$G,2,FALSE) ->  | D82: =VLOOKUP($B82,'COMPOSIÇÃO CIVIL'!$B:$G,6,FALSE) ->  | E82: =VLOOKUP($B82,'COMPOSIÇÃO CIVIL'!$B:$H,7,FALSE) -> 
B83: AMM CIV 036 | C83: =VLOOKUP($B83,'COMPOSIÇÃO CIVIL'!$B:$G,2,FALSE) ->  | D83: =VLOOKUP($B83,'COMPOSIÇÃO CIVIL'!$B:$G,6,FALSE) ->  | E83: =VLOOKUP($B83,'COMPOSIÇÃO CIVIL'!$B:$H,7,FALSE) -> 
B84: AMM CIV 037 | C84: =VLOOKUP($B84,'COMPOSIÇÃO CIVIL'!$B:$G,2,FALSE) ->  | D84: =VLOOKUP($B84,'COMPOSIÇÃO CIVIL'!$B:$G,6,FALSE) ->  | E84: =VLOOKUP($B84,'COMPOSIÇÃO CIVIL'!$B:$H,7,FALSE) -> 
B85: AMM CIV 038 | C85: =VLOOKUP($B85,'COMPOSIÇÃO CIVIL'!$B:$G,2,FALSE) ->  | D85: =VLOOKUP($B85,'COMPOSIÇÃO CIVIL'!$B:$G,6,FALSE) ->  | E85: =VLOOKUP($B85,'COMPOSIÇÃO CIVIL'!$B:$H,7,FALSE) -> 
B86: AMM CIV 039 | C86: =VLOOKUP($B86,'COMPOSIÇÃO CIVIL'!$B:$G,2,FALSE) ->  | D86: =VLOOKUP($B86,'COMPOSIÇÃO CIVIL'!$B:$G,6,FALSE) ->  | E86: =VLOOKUP($B86,'COMPOSIÇÃO CIVIL'!$B:$H,7,FALSE) -> 
B87: AMM CIV 040 | C87: =VLOOKUP($B87,'COMPOSIÇÃO CIVIL'!$B:$G,2,FALSE) ->  | D87: =VLOOKUP($B87,'COMPOSIÇÃO CIVIL'!$B:$G,6,FALSE) ->  | E87: =VLOOKUP($B87,'COMPOSIÇÃO CIVIL'!$B:$H,7,FALSE) -> 
B88: AMM CIV 041 | C88: =VLOOKUP($B88,'COMPOSIÇÃO CIVIL'!$B:$G,2,FALSE) ->  | D88: =VLOOKUP($B88,'COMPOSIÇÃO CIVIL'!$B:$G,6,FALSE) ->  | E88: =VLOOKUP($B88,'COMPOSIÇÃO CIVIL'!$B:$H,7,FALSE) -> 
B89: AMM CIV 042 | C89: =VLOOKUP($B89,'COMPOSIÇÃO CIVIL'!$B:$G,2,FALSE) ->  | D89: =VLOOKUP($B89,'COMPOSIÇÃO CIVIL'!$B:$G,6,FALSE) ->  | E89: =VLOOKUP($B89,'COMPOSIÇÃO CIVIL'!$B:$H,7,FALSE) -> 
B90: AMM CIV 043 | C90: =VLOOKUP($B90,'COMPOSIÇÃO CIVIL'!$B:$G,2,FALSE) ->  | D90: =VLOOKUP($B90,'COMPOSIÇÃO CIVIL'!$B:$G,6,FALSE) ->  | E90: =VLOOKUP($B90,'COMPOSIÇÃO CIVIL'!$B:$H,7,FALSE) -> 
B91: AMM CIV 044 | C91: =VLOOKUP($B91,'COMPOSIÇÃO CIVIL'!$B:$G,2,FALSE) ->  | D91: =VLOOKUP($B91,'COMPOSIÇÃO CIVIL'!$B:$G,6,FALSE) ->  | E91: =VLOOKUP($B91,'COMPOSIÇÃO CIVIL'!$B:$H,7,FALSE) -> 
B92: AMM CIV 045 | C92: =VLOOKUP($B92,'COMPOSIÇÃO CIVIL'!$B:$G,2,FALSE) ->  | D92: =VLOOKUP($B92,'COMPOSIÇÃO CIVIL'!$B:$G,6,FALSE) ->  | E92: =VLOOKUP($B92,'COMPOSIÇÃO CIVIL'!$B:$H,7,FALSE) -> 
B93: AMM CIV 046 | C93: =VLOOKUP($B93,'COMPOSIÇÃO CIVIL'!$B:$G,2,FALSE) ->  | D93: =VLOOKUP($B93,'COMPOSIÇÃO CIVIL'!$B:$G,6,FALSE) ->  | E93: =VLOOKUP($B93,'COMPOSIÇÃO CIVIL'!$B:$H,7,FALSE) -> 
B94: AMM CIV 047 | C94: =VLOOKUP($B94,'COMPOSIÇÃO CIVIL'!$B:$G,2,FALSE) ->  | D94: =VLOOKUP($B94,'COMPOSIÇÃO CIVIL'!$B:$G,6,FALSE) ->  | E94: =VLOOKUP($B94,'COMPOSIÇÃO CIVIL'!$B:$H,7,FALSE) -> 
B95: AMM CIV 048 | C95: =VLOOKUP($B95,'COMPOSIÇÃO CIVIL'!$B:$G,2,FALSE) ->  | D95: =VLOOKUP($B95,'COMPOSIÇÃO CIVIL'!$B:$G,6,FALSE) ->  | E95: =VLOOKUP($B95,'COMPOSIÇÃO CIVIL'!$B:$H,7,FALSE) -> 
B96: AMM CIV 049 | C96: =VLOOKUP($B96,'COMPOSIÇÃO CIVIL'!$B:$G,2,FALSE) ->  | D96: =VLOOKUP($B96,'COMPOSIÇÃO CIVIL'!$B:$G,6,FALSE) ->  | E96: =VLOOKUP($B96,'COMPOSIÇÃO CIVIL'!$B:$H,7,FALSE) -> 
B97: AMM CIV 050 | C97: =VLOOKUP($B97,'COMPOSIÇÃO CIVIL'!$B:$G,2,FALSE) ->  | D97: =VLOOKUP($B97,'COMPOSIÇÃO CIVIL'!$B:$G,6,FALSE) ->  | E97: =VLOOKUP($B97,'COMPOSIÇÃO CIVIL'!$B:$H,7,FALSE) -> 
B98: AMM CIV 051 | C98: =VLOOKUP($B98,'COMPOSIÇÃO CIVIL'!$B:$G,2,FALSE) ->  | D98: =VLOOKUP($B98,'COMPOSIÇÃO CIVIL'!$B:$G,6,FALSE) ->  | E98: =VLOOKUP($B98,'COMPOSIÇÃO CIVIL'!$B:$H,7,FALSE) -> 
B99: AMM CIV 052 | C99: =VLOOKUP($B99,'COMPOSIÇÃO CIVIL'!$B:$G,2,FALSE) ->  | D99: =VLOOKUP($B99,'COMPOSIÇÃO CIVIL'!$B:$G,6,FALSE) ->  | E99: =VLOOKUP($B99,'COMPOSIÇÃO CIVIL'!$B:$H,7,FALSE) -> 
B100: AMM CIV 053 | C100: =VLOOKUP($B100,'COMPOSIÇÃO CIVIL'!$B:$G,2,FALSE) ->  | D100: =VLOOKUP($B100,'COMPOSIÇÃO CIVIL'!$B:$G,6,FALSE) ->  | E100: =VLOOKUP($B100,'COMPOSIÇÃO CIVIL'!$B:$H,7,FALSE) -> 
B101: AMM CIV 054 | C101: =VLOOKUP($B101,'COMPOSIÇÃO CIVIL'!$B:$G,2,FALSE) ->  | D101: =VLOOKUP($B101,'COMPOSIÇÃO CIVIL'!$B:$G,6,FALSE) ->  | E101: =VLOOKUP($B101,'COMPOSIÇÃO CIVIL'!$B:$H,7,FALSE) -> 
B102: AMM CIV 055 | C102: =VLOOKUP($B102,'COMPOSIÇÃO CIVIL'!$B:$G,2,FALSE) ->  | D102: =VLOOKUP($B102,'COMPOSIÇÃO CIVIL'!$B:$G,6,FALSE) ->  | E102: =VLOOKUP($B102,'COMPOSIÇÃO CIVIL'!$B:$H,7,FALSE) -> 
B103: AMM CIV 056 | C103: =VLOOKUP($B103,'COMPOSIÇÃO CIVIL'!$B:$G,2,FALSE) ->  | D103: =VLOOKUP($B103,'COMPOSIÇÃO CIVIL'!$B:$G,6,FALSE) ->  | E103: =VLOOKUP($B103,'COMPOSIÇÃO CIVIL'!$B:$H,7,FALSE) -> 
B104: AMM CIV 057 | C104: =VLOOKUP($B104,'COMPOSIÇÃO CIVIL'!$B:$G,2,FALSE) ->  | D104: =VLOOKUP($B104,'COMPOSIÇÃO CIVIL'!$B:$G,6,FALSE) ->  | E104: =VLOOKUP($B104,'COMPOSIÇÃO CIVIL'!$B:$H,7,FALSE) -> 
B105: AMM CIV 058 | C105: =VLOOKUP($B105,'COMPOSIÇÃO CIVIL'!$B:$G,2,FALSE) ->  | D105: =VLOOKUP($B105,'COMPOSIÇÃO CIVIL'!$B:$G,6,FALSE) ->  | E105: =VLOOKUP($B105,'COMPOSIÇÃO CIVIL'!$B:$H,7,FALSE) -> 
B106: AMM CIV 059 | C106: =VLOOKUP($B106,'COMPOSIÇÃO CIVIL'!$B:$G,2,FALSE) ->  | D106: =VLOOKUP($B106,'COMPOSIÇÃO CIVIL'!$B:$G,6,FALSE) ->  | E106: =VLOOKUP($B106,'COMPOSIÇÃO CIVIL'!$B:$H,7,FALSE) -> 
B107: AMM CIV 060 | C107: =VLOOKUP($B107,'COMPOSIÇÃO CIVIL'!$B:$G,2,FALSE) ->  | D107: =VLOOKUP($B107,'COMPOSIÇÃO CIVIL'!$B:$G,6,FALSE) ->  | E107: =VLOOKUP($B107,'COMPOSIÇÃO CIVIL'!$B:$H,7,FALSE) -> 
B108: AMM CIV 061 | C108: =VLOOKUP($B108,'COMPOSIÇÃO CIVIL'!$B:$G,2,FALSE) ->  | D108: =VLOOKUP($B108,'COMPOSIÇÃO CIVIL'!$B:$G,6,FALSE) ->  | E108: =VLOOKUP($B108,'COMPOSIÇÃO CIVIL'!$B:$H,7,FALSE) -> 
B109: AMM CIV 062 | C109: =VLOOKUP($B109,'COMPOSIÇÃO CIVIL'!$B:$G,2,FALSE) ->  | D109: =VLOOKUP($B109,'COMPOSIÇÃO CIVIL'!$B:$G,6,FALSE) ->  | E109: =VLOOKUP($B109,'COMPOSIÇÃO CIVIL'!$B:$H,7,FALSE) -> 
B110: AMM CIV 063 | C110: =VLOOKUP($B110,'COMPOSIÇÃO CIVIL'!$B:$G,2,FALSE) ->  | D110: =VLOOKUP($B110,'COMPOSIÇÃO CIVIL'!$B:$G,6,FALSE) ->  | E110: =VLOOKUP($B110,'COMPOSIÇÃO CIVIL'!$B:$H,7,FALSE) -> 
B111: AMM CIV 064 | C111: =VLOOKUP($B111,'COMPOSIÇÃO CIVIL'!$B:$G,2,FALSE) ->  | D111: =VLOOKUP($B111,'COMPOSIÇÃO CIVIL'!$B:$G,6,FALSE) ->  | E111: =VLOOKUP($B111,'COMPOSIÇÃO CIVIL'!$B:$H,7,FALSE) -> 
B112: AMM CIV 065 | C112: =VLOOKUP($B112,'COMPOSIÇÃO CIVIL'!$B:$G,2,FALSE) ->  | D112: =VLOOKUP($B112,'COMPOSIÇÃO CIVIL'!$B:$G,6,FALSE) ->  | E112: =VLOOKUP($B112,'COMPOSIÇÃO CIVIL'!$B:$H,7,FALSE) -> 
B113: AMM CIV 066 | C113: =VLOOKUP($B113,'COMPOSIÇÃO CIVIL'!$B:$G,2,FALSE) ->  | D113: =VLOOKUP($B113,'COMPOSIÇÃO CIVIL'!$B:$G,6,FALSE) ->  | E113: =VLOOKUP($B113,'COMPOSIÇÃO CIVIL'!$B:$H,7,FALSE) -> 
B114: AMM CIV 067 | C114: =VLOOKUP($B114,'COMPOSIÇÃO CIVIL'!$B:$G,2,FALSE) ->  | D114: =VLOOKUP($B114,'COMPOSIÇÃO CIVIL'!$B:$G,6,FALSE) ->  | E114: =VLOOKUP($B114,'COMPOSIÇÃO CIVIL'!$B:$H,7,FALSE) -> 
B115: AMM CIV 068 | C115: =VLOOKUP($B115,'COMPOSIÇÃO CIVIL'!$B:$G,2,FALSE) ->  | D115: =VLOOKUP($B115,'COMPOSIÇÃO CIVIL'!$B:$G,6,FALSE) ->  | E115: =VLOOKUP($B115,'COMPOSIÇÃO CIVIL'!$B:$H,7,FALSE) -> 
B116: AMM CIV 069 | C116: =VLOOKUP($B116,'COMPOSIÇÃO CIVIL'!$B:$G,2,FALSE) ->  | D116: =VLOOKUP($B116,'COMPOSIÇÃO CIVIL'!$B:$G,6,FALSE) ->  | E116: =VLOOKUP($B116,'COMPOSIÇÃO CIVIL'!$B:$H,7,FALSE) -> 
B117: AMM CIV 070 | C117: =VLOOKUP($B117,'COMPOSIÇÃO CIVIL'!$B:$G,2,FALSE) ->  | D117: =VLOOKUP($B117,'COMPOSIÇÃO CIVIL'!$B:$G,6,FALSE) ->  | E117: =VLOOKUP($B117,'COMPOSIÇÃO CIVIL'!$B:$H,7,FALSE) -> 
B118: AMM CIV 071 | C118: =VLOOKUP($B118,'COMPOSIÇÃO CIVIL'!$B:$G,2,FALSE) ->  | D118: =VLOOKUP($B118,'COMPOSIÇÃO CIVIL'!$B:$G,6,FALSE) ->  | E118: =VLOOKUP($B118,'COMPOSIÇÃO CIVIL'!$B:$H,7,FALSE) -> 
B119: AMM CIV 072 | C119: =VLOOKUP($B119,'COMPOSIÇÃO CIVIL'!$B:$G,2,FALSE) ->  | D119: =VLOOKUP($B119,'COMPOSIÇÃO CIVIL'!$B:$G,6,FALSE) ->  | E119: =VLOOKUP($B119,'COMPOSIÇÃO CIVIL'!$B:$H,7,FALSE) -> 
B120: AMM CIV 073 | C120: =VLOOKUP($B120,'COMPOSIÇÃO CIVIL'!$B:$G,2,FALSE) ->  | D120: =VLOOKUP($B120,'COMPOSIÇÃO CIVIL'!$B:$G,6,FALSE) ->  | E120: =VLOOKUP($B120,'COMPOSIÇÃO CIVIL'!$B:$H,7,FALSE) -> 
B121: AMM CIV 074 | C121: =VLOOKUP($B121,'COMPOSIÇÃO CIVIL'!$B:$G,2,FALSE) ->  | D121: =VLOOKUP($B121,'COMPOSIÇÃO CIVIL'!$B:$G,6,FALSE) ->  | E121: =VLOOKUP($B121,'COMPOSIÇÃO CIVIL'!$B:$H,7,FALSE) -> 
B122: AMM CIV 075 | C122: =VLOOKUP($B122,'COMPOSIÇÃO CIVIL'!$B:$G,2,FALSE) ->  | D122: =VLOOKUP($B122,'COMPOSIÇÃO CIVIL'!$B:$G,6,FALSE) ->  | E122: =VLOOKUP($B122,'COMPOSIÇÃO CIVIL'!$B:$H,7,FALSE) -> 
B123: AMM CIV 076 | C123: =VLOOKUP($B123,'COMPOSIÇÃO CIVIL'!$B:$G,2,FALSE) ->  | D123: =VLOOKUP($B123,'COMPOSIÇÃO CIVIL'!$B:$G,6,FALSE) ->  | E123: =VLOOKUP($B123,'COMPOSIÇÃO CIVIL'!$B:$H,7,FALSE) -> 
B124: AMM CIV 077 | C124: =VLOOKUP($B124,'COMPOSIÇÃO CIVIL'!$B:$G,2,FALSE) ->  | D124: =VLOOKUP($B124,'COMPOSIÇÃO CIVIL'!$B:$G,6,FALSE) ->  | E124: =VLOOKUP($B124,'COMPOSIÇÃO CIVIL'!$B:$H,7,FALSE) -> 
B125: AMM CIV 078 | C125: =VLOOKUP($B125,'COMPOSIÇÃO CIVIL'!$B:$G,2,FALSE) ->  | D125: =VLOOKUP($B125,'COMPOSIÇÃO CIVIL'!$B:$G,6,FALSE) ->  | E125: =VLOOKUP($B125,'COMPOSIÇÃO CIVIL'!$B:$H,7,FALSE) -> 
B126: AMM CIV 079 | C126: =VLOOKUP($B126,'COMPOSIÇÃO CIVIL'!$B:$G,2,FALSE) ->  | D126: =VLOOKUP($B126,'COMPOSIÇÃO CIVIL'!$B:$G,6,FALSE) ->  | E126: =VLOOKUP($B126,'COMPOSIÇÃO CIVIL'!$B:$H,7,FALSE) -> 
B127: AMM CIV 080 | C127: =VLOOKUP($B127,'COMPOSIÇÃO CIVIL'!$B:$G,2,FALSE) ->  | D127: =VLOOKUP($B127,'COMPOSIÇÃO CIVIL'!$B:$G,6,FALSE) ->  | E127: =VLOOKUP($B127,'COMPOSIÇÃO CIVIL'!$B:$H,7,FALSE) -> 
B128: AMM CIV 081 | C128: =VLOOKUP($B128,'COMPOSIÇÃO CIVIL'!$B:$G,2,FALSE) ->  | D128: =VLOOKUP($B128,'COMPOSIÇÃO CIVIL'!$B:$G,6,FALSE) ->  | E128: =VLOOKUP($B128,'COMPOSIÇÃO CIVIL'!$B:$H,7,FALSE) -> 
B129: AMM CIV 082 | C129: =VLOOKUP($B129,'COMPOSIÇÃO CIVIL'!$B:$G,2,FALSE) ->  | D129: =VLOOKUP($B129,'COMPOSIÇÃO CIVIL'!$B:$G,6,FALSE) ->  | E129: =VLOOKUP($B129,'COMPOSIÇÃO CIVIL'!$B:$H,7,FALSE) -> 
B130: AMM CIV 083 | C130: =VLOOKUP($B130,'COMPOSIÇÃO CIVIL'!$B:$G,2,FALSE) ->  | D130: =VLOOKUP($B130,'COMPOSIÇÃO CIVIL'!$B:$G,6,FALSE) ->  | E130: =VLOOKUP($B130,'COMPOSIÇÃO CIVIL'!$B:$H,7,FALSE) -> 
B131: AMM CIV 084 | C131: =VLOOKUP($B131,'COMPOSIÇÃO CIVIL'!$B:$G,2,FALSE) ->  | D131: =VLOOKUP($B131,'COMPOSIÇÃO CIVIL'!$B:$G,6,FALSE) ->  | E131: =VLOOKUP($B131,'COMPOSIÇÃO CIVIL'!$B:$H,7,FALSE) -> 
B132: AMM CIV 085 | C132: =VLOOKUP($B132,'COMPOSIÇÃO CIVIL'!$B:$G,2,FALSE) ->  | D132: =VLOOKUP($B132,'COMPOSIÇÃO CIVIL'!$B:$G,6,FALSE) ->  | E132: =VLOOKUP($B132,'COMPOSIÇÃO CIVIL'!$B:$H,7,FALSE) -> 
B133: AMM CIV 086 | C133: =VLOOKUP($B133,'COMPOSIÇÃO CIVIL'!$B:$G,2,FALSE) ->  | D133: =VLOOKUP($B133,'COMPOSIÇÃO CIVIL'!$B:$G,6,FALSE) ->  | E133: =VLOOKUP($B133,'COMPOSIÇÃO CIVIL'!$B:$H,7,FALSE) -> 
B134: AMM CIV 087 | C134: =VLOOKUP($B134,'COMPOSIÇÃO CIVIL'!$B:$G,2,FALSE) ->  | D134: =VLOOKUP($B134,'COMPOSIÇÃO CIVIL'!$B:$G,6,FALSE) ->  | E134: =VLOOKUP($B134,'COMPOSIÇÃO CIVIL'!$B:$H,7,FALSE) -> 
B135: AMM CIV 088 | C135: =VLOOKUP($B135,'COMPOSIÇÃO CIVIL'!$B:$G,2,FALSE) ->  | D135: =VLOOKUP($B135,'COMPOSIÇÃO CIVIL'!$B:$G,6,FALSE) ->  | E135: =VLOOKUP($B135,'COMPOSIÇÃO CIVIL'!$B:$H,7,FALSE) -> 
B136: AMM CIV 089 | C136: =VLOOKUP($B136,'COMPOSIÇÃO CIVIL'!$B:$G,2,FALSE) ->  | D136: =VLOOKUP($B136,'COMPOSIÇÃO CIVIL'!$B:$G,6,FALSE) ->  | E136: =VLOOKUP($B136,'COMPOSIÇÃO CIVIL'!$B:$H,7,FALSE) -> 
B137: AMM CIV 090 | C137: =VLOOKUP($B137,'COMPOSIÇÃO CIVIL'!$B:$G,2,FALSE) ->  | D137: =VLOOKUP($B137,'COMPOSIÇÃO CIVIL'!$B:$G,6,FALSE) ->  | E137: =VLOOKUP($B137,'COMPOSIÇÃO CIVIL'!$B:$H,7,FALSE) -> 
B138: AMM CIV 091 | C138: =VLOOKUP($B138,'COMPOSIÇÃO CIVIL'!$B:$G,2,FALSE) ->  | D138: =VLOOKUP($B138,'COMPOSIÇÃO CIVIL'!$B:$G,6,FALSE) ->  | E138: =VLOOKUP($B138,'COMPOSIÇÃO CIVIL'!$B:$H,7,FALSE) -> 
B139: AMM CIV 092 | C139: =VLOOKUP($B139,'COMPOSIÇÃO CIVIL'!$B:$G,2,FALSE) ->  | D139: =VLOOKUP($B139,'COMPOSIÇÃO CIVIL'!$B:$G,6,FALSE) ->  | E139: =VLOOKUP($B139,'COMPOSIÇÃO CIVIL'!$B:$H,7,FALSE) -> 
B140: AMM CIV 093 | C140: =VLOOKUP($B140,'COMPOSIÇÃO CIVIL'!$B:$G,2,FALSE) ->  | D140: =VLOOKUP($B140,'COMPOSIÇÃO CIVIL'!$B:$G,6,FALSE) ->  | E140: =VLOOKUP($B140,'COMPOSIÇÃO CIVIL'!$B:$H,7,FALSE) -> 
B141: AMM CIV 094 | C141: =VLOOKUP($B141,'COMPOSIÇÃO CIVIL'!$B:$G,2,FALSE) ->  | D141: =VLOOKUP($B141,'COMPOSIÇÃO CIVIL'!$B:$G,6,FALSE) ->  | E141: =VLOOKUP($B141,'COMPOSIÇÃO CIVIL'!$B:$H,7,FALSE) -> 
B142: AMM CIV 095 | C142: =VLOOKUP($B142,'COMPOSIÇÃO CIVIL'!$B:$G,2,FALSE) ->  | D142: =VLOOKUP($B142,'COMPOSIÇÃO CIVIL'!$B:$G,6,FALSE) ->  | E142: =VLOOKUP($B142,'COMPOSIÇÃO CIVIL'!$B:$H,7,FALSE) -> 
B143: AMM CIV 096 | C143: =VLOOKUP($B143,'COMPOSIÇÃO CIVIL'!$B:$G,2,FALSE) ->  | D143: =VLOOKUP($B143,'COMPOSIÇÃO CIVIL'!$B:$G,6,FALSE) ->  | E143: =VLOOKUP($B143,'COMPOSIÇÃO CIVIL'!$B:$H,7,FALSE) -> 
B144: AMM CIV 097 | C144: =VLOOKUP($B144,'COMPOSIÇÃO CIVIL'!$B:$G,2,FALSE) ->  | D144: =VLOOKUP($B144,'COMPOSIÇÃO CIVIL'!$B:$G,6,FALSE) ->  | E144: =VLOOKUP($B144,'COMPOSIÇÃO CIVIL'!$B:$H,7,FALSE) -> 
B145: AMM CIV 098 | C145: =VLOOKUP($B145,'COMPOSIÇÃO CIVIL'!$B:$G,2,FALSE) ->  | D145: =VLOOKUP($B145,'COMPOSIÇÃO CIVIL'!$B:$G,6,FALSE) ->  | E145: =VLOOKUP($B145,'COMPOSIÇÃO CIVIL'!$B:$H,7,FALSE) -> 
B146: AMM CIV 099 | C146: =VLOOKUP($B146,'COMPOSIÇÃO CIVIL'!$B:$G,2,FALSE) ->  | D146: =VLOOKUP($B146,'COMPOSIÇÃO CIVIL'!$B:$G,6,FALSE) ->  | E146: =VLOOKUP($B146,'COMPOSIÇÃO CIVIL'!$B:$H,7,FALSE) -> 
B147: AMM CIV 0100 | C147: =VLOOKUP($B147,'COMPOSIÇÃO CIVIL'!$B:$G,2,FALSE) ->  | D147: =VLOOKUP($B147,'COMPOSIÇÃO CIVIL'!$B:$G,6,FALSE) ->  | E147: =VLOOKUP($B147,'COMPOSIÇÃO CIVIL'!$B:$H,7,FALSE) -> 
B148: AMM CIV 0101 | C148: =VLOOKUP($B148,'COMPOSIÇÃO CIVIL'!$B:$G,2,FALSE) ->  | D148: =VLOOKUP($B148,'COMPOSIÇÃO CIVIL'!$B:$G,6,FALSE) ->  | E148: =VLOOKUP($B148,'COMPOSIÇÃO CIVIL'!$B:$H,7,FALSE) -> 
B149: AMM CIV 0102 | C149: =VLOOKUP($B149,'COMPOSIÇÃO CIVIL'!$B:$G,2,FALSE) ->  | D149: =VLOOKUP($B149,'COMPOSIÇÃO CIVIL'!$B:$G,6,FALSE) ->  | E149: =VLOOKUP($B149,'COMPOSIÇÃO CIVIL'!$B:$H,7,FALSE) -> 
B150: AMM CIV 0103 | C150: =VLOOKUP($B150,'COMPOSIÇÃO CIVIL'!$B:$G,2,FALSE) ->  | D150: =VLOOKUP($B150,'COMPOSIÇÃO CIVIL'!$B:$G,6,FALSE) ->  | E150: =VLOOKUP($B150,'COMPOSIÇÃO CIVIL'!$B:$H,7,FALSE) -> 
B151: AMM CIV 0104 | C151: =VLOOKUP($B151,'COMPOSIÇÃO CIVIL'!$B:$G,2,FALSE) ->  | D151: =VLOOKUP($B151,'COMPOSIÇÃO CIVIL'!$B:$G,6,FALSE) ->  | E151: =VLOOKUP($B151,'COMPOSIÇÃO CIVIL'!$B:$H,7,FALSE) -> 
B152: AMM CIV 0105 | C152: =VLOOKUP($B152,'COMPOSIÇÃO CIVIL'!$B:$G,2,FALSE) ->  | D152: =VLOOKUP($B152,'COMPOSIÇÃO CIVIL'!$B:$G,6,FALSE) ->  | E152: =VLOOKUP($B152,'COMPOSIÇÃO CIVIL'!$B:$H,7,FALSE) -> 
B153: AMM CIV 0106 | C153: =VLOOKUP($B153,'COMPOSIÇÃO CIVIL'!$B:$G,2,FALSE) ->  | D153: =VLOOKUP($B153,'COMPOSIÇÃO CIVIL'!$B:$G,6,FALSE) ->  | E153: =VLOOKUP($B153,'COMPOSIÇÃO CIVIL'!$B:$H,7,FALSE) -> 
B154: AMM CIV 0107 | C154: =VLOOKUP($B154,'COMPOSIÇÃO CIVIL'!$B:$G,2,FALSE) ->  | D154: =VLOOKUP($B154,'COMPOSIÇÃO CIVIL'!$B:$G,6,FALSE) ->  | E154: =VLOOKUP($B154,'COMPOSIÇÃO CIVIL'!$B:$H,7,FALSE) -> 
B155: AMM CIV 0108 | C155: =VLOOKUP($B155,'COMPOSIÇÃO CIVIL'!$B:$G,2,FALSE) ->  | D155: =VLOOKUP($B155,'COMPOSIÇÃO CIVIL'!$B:$G,6,FALSE) ->  | E155: =VLOOKUP($B155,'COMPOSIÇÃO CIVIL'!$B:$H,7,FALSE) -> 
B156: AMM CIV 0109 | C156: =VLOOKUP($B156,'COMPOSIÇÃO CIVIL'!$B:$G,2,FALSE) ->  | D156: =VLOOKUP($B156,'COMPOSIÇÃO CIVIL'!$B:$G,6,FALSE) ->  | E156: =VLOOKUP($B156,'COMPOSIÇÃO CIVIL'!$B:$H,7,FALSE) -> 
B157: AMM CIV 0110 | C157: =VLOOKUP($B157,'COMPOSIÇÃO CIVIL'!$B:$G,2,FALSE) ->  | D157: =VLOOKUP($B157,'COMPOSIÇÃO CIVIL'!$B:$G,6,FALSE) ->  | E157: =VLOOKUP($B157,'COMPOSIÇÃO CIVIL'!$B:$H,7,FALSE) -> 
B158: AMM CIV 0111 | C158: =VLOOKUP($B158,'COMPOSIÇÃO CIVIL'!$B:$G,2,FALSE) ->  | D158: =VLOOKUP($B158,'COMPOSIÇÃO CIVIL'!$B:$G,6,FALSE) ->  | E158: =VLOOKUP($B158,'COMPOSIÇÃO CIVIL'!$B:$H,7,FALSE) -> 
B159: AMM CIV 0112 | C159: =VLOOKUP($B159,'COMPOSIÇÃO CIVIL'!$B:$G,2,FALSE) ->  | D159: =VLOOKUP($B159,'COMPOSIÇÃO CIVIL'!$B:$G,6,FALSE) ->  | E159: =VLOOKUP($B159,'COMPOSIÇÃO CIVIL'!$B:$H,7,FALSE) -> 
B160: AMM CIV 0113 | C160: =VLOOKUP($B160,'COMPOSIÇÃO CIVIL'!$B:$G,2,FALSE) ->  | D160: =VLOOKUP($B160,'COMPOSIÇÃO CIVIL'!$B:$G,6,FALSE) ->  | E160: =VLOOKUP($B160,'COMPOSIÇÃO CIVIL'!$B:$H,7,FALSE) -> 
B161: AMM CIV 0114 | C161: =VLOOKUP($B161,'COMPOSIÇÃO CIVIL'!$B:$G,2,FALSE) ->  | D161: =VLOOKUP($B161,'COMPOSIÇÃO CIVIL'!$B:$G,6,FALSE) ->  | E161: =VLOOKUP($B161,'COMPOSIÇÃO CIVIL'!$B:$H,7,FALSE) -> 
B162: AMM CIV 0115 | C162: =VLOOKUP($B162,'COMPOSIÇÃO CIVIL'!$B:$G,2,FALSE) ->  | D162: =VLOOKUP($B162,'COMPOSIÇÃO CIVIL'!$B:$G,6,FALSE) ->  | E162: =VLOOKUP($B162,'COMPOSIÇÃO CIVIL'!$B:$H,7,FALSE) -> 
B163: AMM CIV 0116 | C163: =VLOOKUP($B163,'COMPOSIÇÃO CIVIL'!$B:$G,2,FALSE) ->  | D163: =VLOOKUP($B163,'COMPOSIÇÃO CIVIL'!$B:$G,6,FALSE) ->  | E163: =VLOOKUP($B163,'COMPOSIÇÃO CIVIL'!$B:$H,7,FALSE) -> 
B164: AMM CIV 0117 | C164: =VLOOKUP($B164,'COMPOSIÇÃO CIVIL'!$B:$G,2,FALSE) ->  | D164: =VLOOKUP($B164,'COMPOSIÇÃO CIVIL'!$B:$G,6,FALSE) ->  | E164: =VLOOKUP($B164,'COMPOSIÇÃO CIVIL'!$B:$H,7,FALSE) -> 
B165: AMM CIV 0118 | C165: =VLOOKUP($B165,'COMPOSIÇÃO CIVIL'!$B:$G,2,FALSE) ->  | D165: =VLOOKUP($B165,'COMPOSIÇÃO CIVIL'!$B:$G,6,FALSE) ->  | E165: =VLOOKUP($B165,'COMPOSIÇÃO CIVIL'!$B:$H,7,FALSE) -> 
B166: AMM CIV 0119 | C166: =VLOOKUP($B166,'COMPOSIÇÃO CIVIL'!$B:$G,2,FALSE) ->  | D166: =VLOOKUP($B166,'COMPOSIÇÃO CIVIL'!$B:$G,6,FALSE) ->  | E166: =VLOOKUP($B166,'COMPOSIÇÃO CIVIL'!$B:$H,7,FALSE) -> 
B167: AMM CIV 0120 | C167: =VLOOKUP($B167,'COMPOSIÇÃO CIVIL'!$B:$G,2,FALSE) ->  | D167: =VLOOKUP($B167,'COMPOSIÇÃO CIVIL'!$B:$G,6,FALSE) ->  | E167: =VLOOKUP($B167,'COMPOSIÇÃO CIVIL'!$B:$H,7,FALSE) -> 
B168: AMM CIV 0121 | C168: =VLOOKUP($B168,'COMPOSIÇÃO CIVIL'!$B:$G,2,FALSE) ->  | D168: =VLOOKUP($B168,'COMPOSIÇÃO CIVIL'!$B:$G,6,FALSE) ->  | E168: =VLOOKUP($B168,'COMPOSIÇÃO CIVIL'!$B:$H,7,FALSE) -> 
B169: AMM CIV 0122 | C169: =VLOOKUP($B169,'COMPOSIÇÃO CIVIL'!$B:$G,2,FALSE) ->  | D169: =VLOOKUP($B169,'COMPOSIÇÃO CIVIL'!$B:$G,6,FALSE) ->  | E169: =VLOOKUP($B169,'COMPOSIÇÃO CIVIL'!$B:$H,7,FALSE) -> 
B170: AMM CIV 0123 | C170: =VLOOKUP($B170,'COMPOSIÇÃO CIVIL'!$B:$G,2,FALSE) ->  | D170: =VLOOKUP($B170,'COMPOSIÇÃO CIVIL'!$B:$G,6,FALSE) ->  | E170: =VLOOKUP($B170,'COMPOSIÇÃO CIVIL'!$B:$H,7,FALSE) -> 
B171: AMM CIV 0124 | C171: =VLOOKUP($B171,'COMPOSIÇÃO CIVIL'!$B:$G,2,FALSE) ->  | D171: =VLOOKUP($B171,'COMPOSIÇÃO CIVIL'!$B:$G,6,FALSE) ->  | E171: =VLOOKUP($B171,'COMPOSIÇÃO CIVIL'!$B:$H,7,FALSE) -> 
B172: AMM CIV 0125 | C172: =VLOOKUP($B172,'COMPOSIÇÃO CIVIL'!$B:$G,2,FALSE) ->  | D172: =VLOOKUP($B172,'COMPOSIÇÃO CIVIL'!$B:$G,6,FALSE) ->  | E172: =VLOOKUP($B172,'COMPOSIÇÃO CIVIL'!$B:$H,7,FALSE) -> 
B173: AMM CIV 0126 | C173: =VLOOKUP($B173,'COMPOSIÇÃO CIVIL'!$B:$G,2,FALSE) ->  | D173: =VLOOKUP($B173,'COMPOSIÇÃO CIVIL'!$B:$G,6,FALSE) ->  | E173: =VLOOKUP($B173,'COMPOSIÇÃO CIVIL'!$B:$H,7,FALSE) -> 
B174: AMM CIV 0127 | C174: =VLOOKUP($B174,'COMPOSIÇÃO CIVIL'!$B:$G,2,FALSE) ->  | D174: =VLOOKUP($B174,'COMPOSIÇÃO CIVIL'!$B:$G,6,FALSE) ->  | E174: =VLOOKUP($B174,'COMPOSIÇÃO CIVIL'!$B:$H,7,FALSE) -> 
B175: AMM CIV 0128 | C175: =VLOOKUP($B175,'COMPOSIÇÃO CIVIL'!$B:$G,2,FALSE) ->  | D175: =VLOOKUP($B175,'COMPOSIÇÃO CIVIL'!$B:$G,6,FALSE) ->  | E175: =VLOOKUP($B175,'COMPOSIÇÃO CIVIL'!$B:$H,7,FALSE) -> 
B176: AMM CIV 0129 | C176: =VLOOKUP($B176,'COMPOSIÇÃO CIVIL'!$B:$G,2,FALSE) ->  | D176: =VLOOKUP($B176,'COMPOSIÇÃO CIVIL'!$B:$G,6,FALSE) ->  | E176: =VLOOKUP($B176,'COMPOSIÇÃO CIVIL'!$B:$H,7,FALSE) -> 
B177: AMM CIV 0130 | C177: =VLOOKUP($B177,'COMPOSIÇÃO CIVIL'!$B:$G,2,FALSE) ->  | D177: =VLOOKUP($B177,'COMPOSIÇÃO CIVIL'!$B:$G,6,FALSE) ->  | E177: =VLOOKUP($B177,'COMPOSIÇÃO CIVIL'!$B:$H,7,FALSE) -> 
B178: AMM CIV 0131 | C178: =VLOOKUP($B178,'COMPOSIÇÃO CIVIL'!$B:$G,2,FALSE) ->  | D178: =VLOOKUP($B178,'COMPOSIÇÃO CIVIL'!$B:$G,6,FALSE) ->  | E178: =VLOOKUP($B178,'COMPOSIÇÃO CIVIL'!$B:$H,7,FALSE) -> 
B179: AMM CIV 0132 | C179: =VLOOKUP($B179,'COMPOSIÇÃO CIVIL'!$B:$G,2,FALSE) ->  | D179: =VLOOKUP($B179,'COMPOSIÇÃO CIVIL'!$B:$G,6,FALSE) ->  | E179: =VLOOKUP($B179,'COMPOSIÇÃO CIVIL'!$B:$H,7,FALSE) -> 
B180: AMM CIV 0133 | C180: =VLOOKUP($B180,'COMPOSIÇÃO CIVIL'!$B:$G,2,FALSE) ->  | D180: =VLOOKUP($B180,'COMPOSIÇÃO CIVIL'!$B:$G,6,FALSE) ->  | E180: =VLOOKUP($B180,'COMPOSIÇÃO CIVIL'!$B:$H,7,FALSE) -> 
B182: AMM HID | C182: COMPOSIÇÕES HIDRO | D182: Unidade | E182: Preço
B183: AMM HID 001 | C183: =VLOOKUP(B183,'COMP. HIDRO '!B:H,2,FALSE) ->  | D183: =VLOOKUP(B183,'COMP. HIDRO '!B:H,6,FALSE) ->  | E183: =VLOOKUP(B183,'COMP. HIDRO '!B:H,7,FALSE) -> 
B184: AMM HID 002 | C184: =VLOOKUP(B184,'COMP. HIDRO '!B:H,2,FALSE) ->  | D184: =VLOOKUP(B184,'COMP. HIDRO '!B:H,6,FALSE) ->  | E184: =VLOOKUP(B184,'COMP. HIDRO '!B:H,7,FALSE) -> 
B185: AMM HID 003 | C185: =VLOOKUP(B185,'COMP. HIDRO '!B:H,2,FALSE) ->  | D185: =VLOOKUP(B185,'COMP. HIDRO '!B:H,6,FALSE) ->  | E185: =VLOOKUP(B185,'COMP. HIDRO '!B:H,7,FALSE) -> 
B186: AMM HID 004 | C186: =VLOOKUP(B186,'COMP. HIDRO '!B:H,2,FALSE) ->  | D186: =VLOOKUP(B186,'COMP. HIDRO '!B:H,6,FALSE) ->  | E186: =VLOOKUP(B186,'COMP. HIDRO '!B:H,7,FALSE) -> 
B187: AMM HID 005 | C187: =VLOOKUP(B187,'COMP. HIDRO '!B:H,2,FALSE) ->  | D187: =VLOOKUP(B187,'COMP. HIDRO '!B:H,6,FALSE) ->  | E187: =VLOOKUP(B187,'COMP. HIDRO '!B:H,7,FALSE) -> 
B188: AMM HID 006 | C188: =VLOOKUP(B188,'COMP. HIDRO '!B:H,2,FALSE) ->  | D188: =VLOOKUP(B188,'COMP. HIDRO '!B:H,6,FALSE) ->  | E188: =VLOOKUP(B188,'COMP. HIDRO '!B:H,7,FALSE) -> 
B189: AMM HID 007 | C189: =VLOOKUP(B189,'COMP. HIDRO '!B:H,2,FALSE) ->  | D189: =VLOOKUP(B189,'COMP. HIDRO '!B:H,6,FALSE) ->  | E189: =VLOOKUP(B189,'COMP. HIDRO '!B:H,7,FALSE) -> 
B190: AMM HID 008 | C190: =VLOOKUP(B190,'COMP. HIDRO '!B:H,2,FALSE) ->  | D190: =VLOOKUP(B190,'COMP. HIDRO '!B:H,6,FALSE) ->  | E190: =VLOOKUP(B190,'COMP. HIDRO '!B:H,7,FALSE) -> 
B191: AMM HID 009 | C191: =VLOOKUP(B191,'COMP. HIDRO '!B:H,2,FALSE) ->  | D191: =VLOOKUP(B191,'COMP. HIDRO '!B:H,6,FALSE) ->  | E191: =VLOOKUP(B191,'COMP. HIDRO '!B:H,7,FALSE) -> 
B192: AMM HID 010 | C192: =VLOOKUP(B192,'COMP. HIDRO '!B:H,2,FALSE) ->  | D192: =VLOOKUP(B192,'COMP. HIDRO '!B:H,6,FALSE) ->  | E192: =VLOOKUP(B192,'COMP. HIDRO '!B:H,7,FALSE) -> 
B193: AMM HID 011 | C193: =VLOOKUP(B193,'COMP. HIDRO '!B:H,2,FALSE) ->  | D193: =VLOOKUP(B193,'COMP. HIDRO '!B:H,6,FALSE) ->  | E193: =VLOOKUP(B193,'COMP. HIDRO '!B:H,7,FALSE) -> 
B194: AMM HID 012 | C194: =VLOOKUP(B194,'COMP. HIDRO '!B:H,2,FALSE) ->  | D194: =VLOOKUP(B194,'COMP. HIDRO '!B:H,6,FALSE) ->  | E194: =VLOOKUP(B194,'COMP. HIDRO '!B:H,7,FALSE) -> 
B195: AMM HID 013 | C195: =VLOOKUP(B195,'COMP. HIDRO '!B:H,2,FALSE) ->  | D195: =VLOOKUP(B195,'COMP. HIDRO '!B:H,6,FALSE) ->  | E195: =VLOOKUP(B195,'COMP. HIDRO '!B:H,7,FALSE) -> 
B196: AMM HID 014 | C196: =VLOOKUP(B196,'COMP. HIDRO '!B:H,2,FALSE) ->  | D196: =VLOOKUP(B196,'COMP. HIDRO '!B:H,6,FALSE) ->  | E196: =VLOOKUP(B196,'COMP. HIDRO '!B:H,7,FALSE) -> 
B197: AMM HID 015 | C197: =VLOOKUP(B197,'COMP. HIDRO '!B:H,2,FALSE) ->  | D197: =VLOOKUP(B197,'COMP. HIDRO '!B:H,6,FALSE) ->  | E197: =VLOOKUP(B197,'COMP. HIDRO '!B:H,7,FALSE) -> 
B198: AMM HID 016 | C198: =VLOOKUP(B198,'COMP. HIDRO '!B:H,2,FALSE) ->  | D198: =VLOOKUP(B198,'COMP. HIDRO '!B:H,6,FALSE) ->  | E198: =VLOOKUP(B198,'COMP. HIDRO '!B:H,7,FALSE) -> 
B199: AMM HID 017 | C199: =VLOOKUP(B199,'COMP. HIDRO '!B:H,2,FALSE) ->  | D199: =VLOOKUP(B199,'COMP. HIDRO '!B:H,6,FALSE) ->  | E199: =VLOOKUP(B199,'COMP. HIDRO '!B:H,7,FALSE) -> 
B200: AMM HID 018 | C200: =VLOOKUP(B200,'COMP. HIDRO '!B:H,2,FALSE) ->  | D200: =VLOOKUP(B200,'COMP. HIDRO '!B:H,6,FALSE) ->  | E200: =VLOOKUP(B200,'COMP. HIDRO '!B:H,7,FALSE) -> 
B201: AMM HID 019 | C201: =VLOOKUP(B201,'COMP. HIDRO '!B:H,2,FALSE) ->  | D201: =VLOOKUP(B201,'COMP. HIDRO '!B:H,6,FALSE) ->  | E201: =VLOOKUP(B201,'COMP. HIDRO '!B:H,7,FALSE) -> 
B202: AMM HID 020 | C202: =VLOOKUP(B202,'COMP. HIDRO '!B:H,2,FALSE) ->  | D202: =VLOOKUP(B202,'COMP. HIDRO '!B:H,6,FALSE) ->  | E202: =VLOOKUP(B202,'COMP. HIDRO '!B:H,7,FALSE) -> 
B203: AMM HID 021 | C203: =VLOOKUP(B203,'COMP. HIDRO '!B:H,2,FALSE) ->  | D203: =VLOOKUP(B203,'COMP. HIDRO '!B:H,6,FALSE) ->  | E203: =VLOOKUP(B203,'COMP. HIDRO '!B:H,7,FALSE) -> 
B204: AMM HID 022 | C204: =VLOOKUP(B204,'COMP. HIDRO '!B:H,2,FALSE) ->  | D204: =VLOOKUP(B204,'COMP. HIDRO '!B:H,6,FALSE) ->  | E204: =VLOOKUP(B204,'COMP. HIDRO '!B:H,7,FALSE) -> 
B205: AMM HID 023 | C205: =VLOOKUP(B205,'COMP. HIDRO '!B:H,2,FALSE) ->  | D205: =VLOOKUP(B205,'COMP. HIDRO '!B:H,6,FALSE) ->  | E205: =VLOOKUP(B205,'COMP. HIDRO '!B:H,7,FALSE) -> 
... 476 more rows

Sheet COMP. HIDRO
A3: INSUMO
B5: R.N.DIAS CONSULTORIA E PROJETO ME
B6: CNPJ: 40.600.695/0001-67
B10: DADOS DA OBRA
B11: Objeto: “REFORMA E AMPLIAÇÃO CIRETRAN PEDRA PRETA - MT" | F11: BDI: | G11: 22,23%
B12: Endereço: RUA AMAMBAL, S/N - PEDRA PRETA - MT | F12: DATA: | G12: ='COMPOSIÇÃO CIVIL'!G11 -> 2025-01-28
B13: Cidade: PEDRA PRETA - MT
B15: ='PLANILHA ORÇAMENTÁRIA'!F20 -> FONTE SINAPI DEZEMBRO/2024 SEM DESONERAÇÃO
B16: COMPOSIÇÃO DE CUSTOS UNITÁRIOS - HIDROSSANITÁRIO
B18: HID 001 | C18: BUCHA DE REDUCAO LONGA DE PVC RIGIDO SOLDAVEL, MARROM, Ø 50 X 32 MM - FORNECIMENTO E INSTALAÇÃO | G18: UN | H18: =G27 -> 21.53
B19: SINAPI ou Cot. De Mercado | C19: COMPONENTES | D19: UN | E19: Quantidade | F19: Custos Unit. (R$) | G19: Custos Total (R$)
B20: M A T E R I A L
A21: INSUMO | B21: 820 | C21: =IF($A21="INSUMO",VLOOKUP($B21,'BANCO DE DADOS DEZ-24 INS'!$A:$D,2,FALSE),VLOOKUP($B21,'BANCO DE DADOS DEZ-24 SERV'!$B:$E,2,FALSE)) -> BUCHA DE REDUCAO DE PVC, SOLDAVEL, LONGA, COM 50 X 32 MM, PARA AGUA FRIA PREDIAL | D21: =IF($A21="INSUMO",VLOOKUP($B21,'BANCO DE DADOS DEZ-24 INS'!$A:$D,3,FALSE),VLOOKUP($B21,'BANCO DE DADOS DEZ-24 SERV'!$B:$E,3,FALSE)) -> UN | E21: 1 | F21: =IF($A21="INSUMO",VLOOKUP($B21,'BANCO DE DADOS DEZ-24 INS'!$A:$D,4,FALSE),VLOOKUP($B21,'BANCO DE DADOS DEZ-24 SERV'!$B:$E,4,FALSE)) -> 5.27 | G21: =TRUNC(E21*F21,2) -> 5.27
A22: INSUMO | B22: 20083 | C22: =IF($A22="INSUMO",VLOOKUP($B22,'BANCO DE DADOS DEZ-24 INS'!$A:$D,2,FALSE),VLOOKUP($B22,'BANCO DE DADOS DEZ-24 SERV'!$B:$E,2,FALSE)) -> SOLUCAO PREPARADORA / LIMPADORA PARA PVC, FRASCO COM 1000 CM3 | D22: =IF($A22="INSUMO",VLOOKUP($B22,'BANCO DE DADOS DEZ-24 INS'!$A:$D,3,FALSE),VLOOKUP($B22,'BANCO DE DADOS DEZ-24 SERV'!$B:$E,3,FALSE)) -> UN | E22: 0.051 | F22: =IF($A22="INSUMO",VLOOKUP($B22,'BANCO DE DADOS DEZ-24 INS'!$A:$D,4,FALSE),VLOOKUP($B22,'BANCO DE DADOS DEZ-24 SERV'!$B:$E,4,FALSE)) -> 87.17 | G22: =TRUNC(E22*F22,2) -> 4.44
A23: INSUMO | B23: 122 | C23: =IF($A23="INSUMO",VLOOKUP($B23,'BANCO DE DADOS DEZ-24 INS'!$A:$D,2,FALSE),VLOOKUP($B23,'BANCO DE DADOS DEZ-24 SERV'!$B:$E,2,FALSE)) -> ADESIVO PLASTICO PARA PVC, FRASCO COM *850* GR | D23: =IF($A23="INSUMO",VLOOKUP($B23,'BANCO DE DADOS DEZ-24 INS'!$A:$D,3,FALSE),VLOOKUP($B23,'BANCO DE DADOS DEZ-24 SERV'!$B:$E,3,FALSE)) -> UN | E23: 0.0047 | F23: =IF($A23="INSUMO",VLOOKUP($B23,'BANCO DE DADOS DEZ-24 INS'!$A:$D,4,FALSE),VLOOKUP($B23,'BANCO DE DADOS DEZ-24 SERV'!$B:$E,4,FALSE)) -> 76.94 | G23: =TRUNC(E23*F23,2) -> 0.36
B24: M Ã O D E O B R A
A25: SERVIÇO | B25: 88316 | C25: =IF($A25="INSUMO",VLOOKUP($B25,'BANCO DE DADOS DEZ-24 INS'!$A:$D,2,FALSE),VLOOKUP($B25,'BANCO DE DADOS DEZ-24 SERV'!$B:$E,2,FALSE)) -> SERVENTE COM ENCARGOS COMPLEMENTARES | D25: =IF($A25="INSUMO",VLOOKUP($B25,'BANCO DE DADOS DEZ-24 INS'!$A:$D,3,FALSE),VLOOKUP($B25,'BANCO DE DADOS DEZ-24 SERV'!$B:$E,3,FALSE)) -> H | E25: 0.25 | F25: =IF($A25="INSUMO",VLOOKUP($B25,'BANCO DE DADOS DEZ-24 INS'!$A:$D,4,FALSE),VLOOKUP($B25,'BANCO DE DADOS DEZ-24 SERV'!$B:$E,4,FALSE)) -> 20.32 | G25: =TRUNC(E25*F25,2) -> 5.08
A26: SERVIÇO | B26: 88267 | C26: =IF($A26="INSUMO",VLOOKUP($B26,'BANCO DE DADOS DEZ-24 INS'!$A:$D,2,FALSE),VLOOKUP($B26,'BANCO DE DADOS DEZ-24 SERV'!$B:$E,2,FALSE)) -> ENCANADOR OU BOMBEIRO HIDRÁULICO COM ENCARGOS COMPLEMENTARES | D26: =IF($A26="INSUMO",VLOOKUP($B26,'BANCO DE DADOS DEZ-24 INS'!$A:$D,3,FALSE),VLOOKUP($B26,'BANCO DE DADOS DEZ-24 SERV'!$B:$E,3,FALSE)) -> H | E26: 0.25 | F26: =IF($A26="INSUMO",VLOOKUP($B26,'BANCO DE DADOS DEZ-24 INS'!$A:$D,4,FALSE),VLOOKUP($B26,'BANCO DE DADOS DEZ-24 SERV'!$B:$E,4,FALSE)) -> 25.55 | G26: =TRUNC(E26*F26,2) -> 6.38
B27: **COMPOSIÇÃO BASEADA NA ORSE (MAIO/2023) - COD - 1084 | F27: TOTAL | G27: =SUM(G21:G26) -> 21.53
B28: O INSUMO DE CÓDIGO 122 (ADESIVO PLÁSTICO PARA PVC) POSSUI UNIDADE DE MEDIDA DIFERENTE DA REFERÊNCIA UTILIZADA PARA ELABORAÇÃO DESTA COMPOSIÇÃO, PORTANTO SE FAZ NECESSÁRIA A CONVERSÃO DE UNIDADES CONFORME APRESENTADO NO CÁLCULO ABAIXO.
B29: 0,004 kg ----------- x gramas 1,00 kg -------------- 1000 gramas x: 4,00 gramas 850 gramas ----------- 1 unidade 4,00 gramas ---------- x unidades x: 0,0047 unidades
B30: O INSUMO DE CÓDIGO 20083 (SOLUCAO LIMPADORA) POSSUI UNIDADE DE MEDIDA DIFERENTE DA REFERÊNCIA UTILIZADA PARA ELABORAÇÃO DESTA COMPOSIÇÃO, PORTANTO SE FAZ NECESSÁRIA A CONVERSÃO DE UNIDADES CONFORME APRESENTADO NO CÁLCULO ABAIXO.
B31: 1 L ----------- 1 unidade 0,051 L ---------- x unidades x: 0,051 unidades
B33: HID 002 | C33: LAVATORIO DE CANTO EM LOUÇA BRANCA SUSPENSO - INCLUSO SIFÃO CROMADO, VÁLVULA EM METAL CROMADO E ENGATE FLEXÍVEL EM AÇO INOX 30CM - FORNECIMENTO E INSTALAÇÃO | G33: UN | H33: =G44 -> 566.05
B34: SINAPI ou Cot. De Mercado | C34: COMPONENTES | D34: UN | E34: Quantidade | F34: Custos Unit. (R$) | G34: Custos Total (R$)
B35: M A T E R I A L
A36: INSUMO | B36: 36521 | C36: =IF($A36="INSUMO",VLOOKUP($B36,'BANCO DE DADOS DEZ-24 INS'!$A:$D,2,FALSE),VLOOKUP($B36,'BANCO DE DADOS DEZ-24 SERV'!$B:$E,2,FALSE)) -> LAVATORIO DE CANTO DE LOUCA BRANCA, SUSPENSO (SEM COLUNA), DIMENSOES *40 X 30* CM (L X C) | D36: =IF($A36="INSUMO",VLOOKUP($B36,'BANCO DE DADOS DEZ-24 INS'!$A:$D,3,FALSE),VLOOKUP($B36,'BANCO DE DADOS DEZ-24 SERV'!$B:$E,3,FALSE)) -> UN | E36: 1 | F36: =IF($A36="INSUMO",VLOOKUP($B36,'BANCO DE DADOS DEZ-24 INS'!$A:$D,4,FALSE),VLOOKUP($B36,'BANCO DE DADOS DEZ-24 SERV'!$B:$E,4,FALSE)) -> 156.46 | G36: =TRUNC(E36*F36,2) -> 156.46
A37: INSUMO | B37: 6136 | C37: =IF($A37="INSUMO",VLOOKUP($B37,'BANCO DE DADOS DEZ-24 INS'!$A:$D,2,FALSE),VLOOKUP($B37,'BANCO DE DADOS DEZ-24 SERV'!$B:$E,2,FALSE)) -> SIFAO EM METAL CROMADO PARA PIA OU LAVATORIO, 1 X 1.1/2" | D37: =IF($A37="INSUMO",VLOOKUP($B37,'BANCO DE DADOS DEZ-24 INS'!$A:$D,3,FALSE),VLOOKUP($B37,'BANCO DE DADOS DEZ-24 SERV'!$B:$E,3,FALSE)) -> UN | E37: 1 | F37: =IF($A37="INSUMO",VLOOKUP($B37,'BANCO DE DADOS DEZ-24 INS'!$A:$D,4,FALSE),VLOOKUP($B37,'BANCO DE DADOS DEZ-24 SERV'!$B:$E,4,FALSE)) -> 199.5 | G37: =TRUNC(E37*F37,2) -> 199.5
A38: INSUMO | B38: 38643 | C38: =IF($A38="INSUMO",VLOOKUP($B38,'BANCO DE DADOS DEZ-24 INS'!$A:$D,2,FALSE),VLOOKUP($B38,'BANCO DE DADOS DEZ-24 SERV'!$B:$E,2,FALSE)) -> VALVULA EM METAL CROMADO PARA LAVATORIO, 1" SEM LADRAO | D38: =IF($A38="INSUMO",VLOOKUP($B38,'BANCO DE DADOS DEZ-24 INS'!$A:$D,3,FALSE),VLOOKUP($B38,'BANCO DE DADOS DEZ-24 SERV'!$B:$E,3,FALSE)) -> UN | E38: 1 | F38: =IF($A38="INSUMO",VLOOKUP($B38,'BANCO DE DADOS DEZ-24 INS'!$A:$D,4,FALSE),VLOOKUP($B38,'BANCO DE DADOS DEZ-24 SERV'!$B:$E,4,FALSE)) -> 49.87 | G38: =TRUNC(E38*F38,2) -> 49.87
A39: INSUMO | B39: 4351 | C39: =IF($A39="INSUMO",VLOOKUP($B39,'BANCO DE DADOS DEZ-24 INS'!$A:$D,2,FALSE),VLOOKUP($B39,'BANCO DE DADOS DEZ-24 SERV'!$B:$E,2,FALSE)) -> PARAFUSO NIQUELADO 3 1/2" COM ACABAMENTO CROMADO PARA FIXAR PECA SANITARIA, INCLUI PORCA CEGA, ARRUELA E BUCHA DE NYLON TAMANHO S-8 | D39: =IF($A39="INSUMO",VLOOKUP($B39,'BANCO DE DADOS DEZ-24 INS'!$A:$D,3,FALSE),VLOOKUP($B39,'BANCO DE DADOS DEZ-24 SERV'!$B:$E,3,FALSE)) -> UN | E39: 2 | F39: =IF($A39="INSUMO",VLOOKUP($B39,'BANCO DE DADOS DEZ-24 INS'!$A:$D,4,FALSE),VLOOKUP($B39,'BANCO DE DADOS DEZ-24 SERV'!$B:$E,4,FALSE)) -> 17.1 | G39: =TRUNC(E39*F39,2) -> 34.2
A40: INSUMO | B40: 11683 | C40: =IF($A40="INSUMO",VLOOKUP($B40,'BANCO DE DADOS DEZ-24 INS'!$A:$D,2,FALSE),VLOOKUP($B40,'BANCO DE DADOS DEZ-24 SERV'!$B:$E,2,FALSE)) -> ENGATE / RABICHO FLEXIVEL INOX 1/2" X 30 CM | D40: =IF($A40="INSUMO",VLOOKUP($B40,'BANCO DE DADOS DEZ-24 INS'!$A:$D,3,FALSE),VLOOKUP($B40,'BANCO DE DADOS DEZ-24 SERV'!$B:$E,3,FALSE)) -> UN | E40: 1 | F40: =IF($A40="INSUMO",VLOOKUP($B40,'BANCO DE DADOS DEZ-24 INS'!$A:$D,4,FALSE),VLOOKUP($B40,'BANCO DE DADOS DEZ-24 SERV'!$B:$E,4,FALSE)) -> 45.75 | G40: =TRUNC(E40*F40,2) -> 45.75
B41: M Ã O D E O B R A
A42: SERVIÇO | B42: 88316 | C42: =IF($A42="INSUMO",VLOOKUP($B42,'BANCO DE DADOS DEZ-24 INS'!$A:$D,2,FALSE),VLOOKUP($B42,'BANCO DE DADOS DEZ-24 SERV'!$B:$E,2,FALSE)) -> SERVENTE COM ENCARGOS COMPLEMENTARES | D42: =IF($A42="INSUMO",VLOOKUP($B42,'BANCO DE DADOS DEZ-24 INS'!$A:$D,3,FALSE),VLOOKUP($B42,'BANCO DE DADOS DEZ-24 SERV'!$B:$E,3,FALSE)) -> H | E42: 1.75 | F42: =IF($A42="INSUMO",VLOOKUP($B42,'BANCO DE DADOS DEZ-24 INS'!$A:$D,4,FALSE),VLOOKUP($B42,'BANCO DE DADOS DEZ-24 SERV'!$B:$E,4,FALSE)) -> 20.32 | G42: =TRUNC(E42*F42,2) -> 35.56
A43: SERVIÇO | B43: 88267 | C43: =IF($A43="INSUMO",VLOOKUP($B43,'BANCO DE DADOS DEZ-24 INS'!$A:$D,2,FALSE),VLOOKUP($B43,'BANCO DE DADOS DEZ-24 SERV'!$B:$E,2,FALSE)) -> ENCANADOR OU BOMBEIRO HIDRÁULICO COM ENCARGOS COMPLEMENTARES | D43: =IF($A43="INSUMO",VLOOKUP($B43,'BANCO DE DADOS DEZ-24 INS'!$A:$D,3,FALSE),VLOOKUP($B43,'BANCO DE DADOS DEZ-24 SERV'!$B:$E,3,FALSE)) -> H | E43: 1.75 | F43: =IF($A43="INSUMO",VLOOKUP($B43,'BANCO DE DADOS DEZ-24 INS'!$A:$D,4,FALSE),VLOOKUP($B43,'BANCO DE DADOS DEZ-24 SERV'!$B:$E,4,FALSE)) -> 25.55 | G43: =TRUNC(E43*F43,2) -> 44.71
B44: **COMPOSIÇÃO BASEADA NA ORSE (MAIO/2023) - COD - 7350 | F44: TOTAL | G44: =SUM(G36:G43) -> 566.05
B45: É APRESENTADA DUAS UNIDADES DO INSUMO DE CÓDIGO 4351 (PARAFUSO NIQUELADO 3 1/2"), POIS A REFERÊNCIA UTILIZADA É APRESENTADA EM CONJUNTO DE FIXAÇÃO COM DOIS PARAFUSOS.
B47: HID 003 | C47: LAVATORIO/CUBA DE SOBREPOR RETANGULAR LOUCA BRANCA (INCLUSO SIFÃO EM METAL CROMADO, VÁLVULA EM METAL CROMADO E ENGATE FLEXÍVEL) - FORNECIMENTO E INSTALAÇÃO | G47: UN | H47: =G58 -> 850.93
B48: SINAPI ou Cot. De Mercado | C48: COMPONENTES | D48: UN | E48: Quantidade | F48: Custos Unit. (R$) | G48: Custos Total (R$)
B49: M A T E R I A L
A50: INSUMO | B50: 10427 | C50: =IF($A50="INSUMO",VLOOKUP($B50,'BANCO DE DADOS DEZ-24 INS'!$A:$D,2,FALSE),VLOOKUP($B50,'BANCO DE DADOS DEZ-24 SERV'!$B:$E,2,FALSE)) -> LAVATORIO / CUBA DE SOBREPOR, RETANGULAR, DE LOUCA BRANCA, COM LADRAO, DIMENSOES *52 X 45* CM (L X C) | D50: =IF($A50="INSUMO",VLOOKUP($B50,'BANCO DE DADOS DEZ-24 INS'!$A:$D,3,FALSE),VLOOKUP($B50,'BANCO DE DADOS DEZ-24 SERV'!$B:$E,3,FALSE)) -> UN | E50: 1 | F50: =IF($A50="INSUMO",VLOOKUP($B50,'BANCO DE DADOS DEZ-24 INS'!$A:$D,4,FALSE),VLOOKUP($B50,'BANCO DE DADOS DEZ-24 SERV'!$B:$E,4,FALSE)) -> 486.69 | G50: =TRUNC(E50*F50,2) -> 486.69
A51: INSUMO | B51: 3146 | C51: =IF($A51="INSUMO",VLOOKUP($B51,'BANCO DE DADOS DEZ-24 INS'!$A:$D,2,FALSE),VLOOKUP($B51,'BANCO DE DADOS DEZ-24 SERV'!$B:$E,2,FALSE)) -> FITA VEDA ROSCA, EM PTFE, ROLO DE 18 MM X 10 M (L X C) | D51: =IF($A51="INSUMO",VLOOKUP($B51,'BANCO DE DADOS DEZ-24 INS'!$A:$D,3,FALSE),VLOOKUP($B51,'BANCO DE DADOS DEZ-24 SERV'!$B:$E,3,FALSE)) -> UN | E51: 0.084 | F51: =IF($A51="INSUMO",VLOOKUP($B51,'BANCO DE DADOS DEZ-24 INS'!$A:$D,4,FALSE),VLOOKUP($B51,'BANCO DE DADOS DEZ-24 SERV'!$B:$E,4,FALSE)) -> 3.92 | G51: =TRUNC(E51*F51,2) -> 0.32
A52: INSUMO | B52: 38643 | C52: =IF($A52="INSUMO",VLOOKUP($B52,'BANCO DE DADOS DEZ-24 INS'!$A:$D,2,FALSE),VLOOKUP($B52,'BANCO DE DADOS DEZ-24 SERV'!$B:$E,2,FALSE)) -> VALVULA EM METAL CROMADO PARA LAVATORIO, 1" SEM LADRAO | D52: =IF($A52="INSUMO",VLOOKUP($B52,'BANCO DE DADOS DEZ-24 INS'!$A:$D,3,FALSE),VLOOKUP($B52,'BANCO DE DADOS DEZ-24 SERV'!$B:$E,3,FALSE)) -> UN | E52: 1 | F52: =IF($A52="INSUMO",VLOOKUP($B52,'BANCO DE DADOS DEZ-24 INS'!$A:$D,4,FALSE),VLOOKUP($B52,'BANCO DE DADOS DEZ-24 SERV'!$B:$E,4,FALSE)) -> 49.87 | G52: =TRUNC(E52*F52,2) -> 49.87
A53: INSUMO | B53: 6136 | C53: =IF($A53="INSUMO",VLOOKUP($B53,'BANCO DE DADOS DEZ-24 INS'!$A:$D,2,FALSE),VLOOKUP($B53,'BANCO DE DADOS DEZ-24 SERV'!$B:$E,2,FALSE)) -> SIFAO EM METAL CROMADO PARA PIA OU LAVATORIO, 1 X 1.1/2" | D53: =IF($A53="INSUMO",VLOOKUP($B53,'BANCO DE DADOS DEZ-24 INS'!$A:$D,3,FALSE),VLOOKUP($B53,'BANCO DE DADOS DEZ-24 SERV'!$B:$E,3,FALSE)) -> UN | E53: 1 | F53: =IF($A53="INSUMO",VLOOKUP($B53,'BANCO DE DADOS DEZ-24 INS'!$A:$D,4,FALSE),VLOOKUP($B53,'BANCO DE DADOS DEZ-24 SERV'!$B:$E,4,FALSE)) -> 199.5 | G53: =TRUNC(E53*F53,2) -> 199.5
A54: INSUMO | B54: 11683 | C54: =IF($A54="INSUMO",VLOOKUP($B54,'BANCO DE DADOS DEZ-24 INS'!$A:$D,2,FALSE),VLOOKUP($B54,'BANCO DE DADOS DEZ-24 SERV'!$B:$E,2,FALSE)) -> ENGATE / RABICHO FLEXIVEL INOX 1/2" X 30 CM | D54: =IF($A54="INSUMO",VLOOKUP($B54,'BANCO DE DADOS DEZ-24 INS'!$A:$D,3,FALSE),VLOOKUP($B54,'BANCO DE DADOS DEZ-24 SERV'!$B:$E,3,FALSE)) -> UN | E54: 1 | F54: =IF($A54="INSUMO",VLOOKUP($B54,'BANCO DE DADOS DEZ-24 INS'!$A:$D,4,FALSE),VLOOKUP($B54,'BANCO DE DADOS DEZ-24 SERV'!$B:$E,4,FALSE)) -> 45.75 | G54: =TRUNC(E54*F54,2) -> 45.75
B55: M Ã O D E O B R A
A56: SERVIÇO | B56: 88316 | C56: =IF($A56="INSUMO",VLOOKUP($B56,'BANCO DE DADOS DEZ-24 INS'!$A:$D,2,FALSE),VLOOKUP($B56,'BANCO DE DADOS DEZ-24 SERV'!$B:$E,2,FALSE)) -> SERVENTE COM ENCARGOS COMPLEMENTARES | D56: =IF($A56="INSUMO",VLOOKUP($B56,'BANCO DE DADOS DEZ-24 INS'!$A:$D,3,FALSE),VLOOKUP($B56,'BANCO DE DADOS DEZ-24 SERV'!$B:$E,3,FALSE)) -> H | E56: 1.5 | F56: =IF($A56="INSUMO",VLOOKUP($B56,'BANCO DE DADOS DEZ-24 INS'!$A:$D,4,FALSE),VLOOKUP($B56,'BANCO DE DADOS DEZ-24 SERV'!$B:$E,4,FALSE)) -> 20.32 | G56: =TRUNC(E56*F56,2) -> 30.48
A57: SERVIÇO | B57: 88267 | C57: =IF($A57="INSUMO",VLOOKUP($B57,'BANCO DE DADOS DEZ-24 INS'!$A:$D,2,FALSE),VLOOKUP($B57,'BANCO DE DADOS DEZ-24 SERV'!$B:$E,2,FALSE)) -> ENCANADOR OU BOMBEIRO HIDRÁULICO COM ENCARGOS COMPLEMENTARES | D57: =IF($A57="INSUMO",VLOOKUP($B57,'BANCO DE DADOS DEZ-24 INS'!$A:$D,3,FALSE),VLOOKUP($B57,'BANCO DE DADOS DEZ-24 SERV'!$B:$E,3,FALSE)) -> H | E57: 1.5 | F57: =IF($A57="INSUMO",VLOOKUP($B57,'BANCO DE DADOS DEZ-24 INS'!$A:$D,4,FALSE),VLOOKUP($B57,'BANCO DE DADOS DEZ-24 SERV'!$B:$E,4,FALSE)) -> 25.55 | G57: =TRUNC(E57*F57,2) -> 38.32
B58: **COMPOSIÇÃO BASEADA NA ORSE (MAIO/2023) - COD - 7352 | F58: TOTAL | G58: =SUM(G50:G57) -> 850.93
B59: O INSUMO DE CÓDIGO 3146 (FITA VEDA ROSCA EM ROLOS DE 18 MM X 10 M) POSSUI UNIDADE DE MEDIDA DIFERENTE DA REFERÊNCIA UTILIZADA PARA ELABORAÇÃO DESTA COMPOSIÇÃO, PORTANTO SE FAZ NECESSÁRIA A CONVERSÃO DE UNIDADES CONFORME APRESENTADO NO CÁLCULO ABAIXO.
B60: 10 metros ----------- 1 unidade 0,84 metros ---------- x unidades x: 0,084 unidades
B62: HID 004 | C62: TORNEIRA CROMADA DE MESA PARA LAVATORIO TEMPORIZADA PRESSAO BICA BAIXA - FORNECIMENTO E INSTALAÇÃO | G62: UN | H62: =G70 -> 184.22
B63: SINAPI ou Cot. De Mercado | C63: COMPONENTES | D63: UN | E63: Quantidade | F63: Custos Unit. (R$) | G63: Custos Total (R$)
B64: M A T E R I A L
A65: INSUMO | B65: 36796 | C65: =IF($A65="INSUMO",VLOOKUP($B65,'BANCO DE DADOS DEZ-24 INS'!$A:$D,2,FALSE),VLOOKUP($B65,'BANCO DE DADOS DEZ-24 SERV'!$B:$E,2,FALSE)) -> TORNEIRA METALICA CROMADA DE MESA, PARA LAVATORIO, TEMPORIZADA PRESSAO FECHAMENTO AUTOMATICO, BICA BAIXA | D65: =IF($A65="INSUMO",VLOOKUP($B65,'BANCO DE DADOS DEZ-24 INS'!$A:$D,3,FALSE),VLOOKUP($B65,'BANCO DE DADOS DEZ-24 SERV'!$B:$E,3,FALSE)) -> UN | E65: 1 | F65: =IF($A65="INSUMO",VLOOKUP($B65,'BANCO DE DADOS DEZ-24 INS'!$A:$D,4,FALSE),VLOOKUP($B65,'BANCO DE DADOS DEZ-24 SERV'!$B:$E,4,FALSE)) -> 161.1 | G65: =TRUNC(E65*F65,2) -> 161.1
A66: INSUMO | B66: 3146 | C66: =IF($A66="INSUMO",VLOOKUP($B66,'BANCO DE DADOS DEZ-24 INS'!$A:$D,2,FALSE),VLOOKUP($B66,'BANCO DE DADOS DEZ-24 SERV'!$B:$E,2,FALSE)) -> FITA VEDA ROSCA, EM PTFE, ROLO DE 18 MM X 10 M (L X C) | D66: =IF($A66="INSUMO",VLOOKUP($B66,'BANCO DE DADOS DEZ-24 INS'!$A:$D,3,FALSE),VLOOKUP($B66,'BANCO DE DADOS DEZ-24 SERV'!$B:$E,3,FALSE)) -> UN | E66: 0.05 | F66: =IF($A66="INSUMO",VLOOKUP($B66,'BANCO DE DADOS DEZ-24 INS'!$A:$D,4,FALSE),VLOOKUP($B66,'BANCO DE DADOS DEZ-24 SERV'!$B:$E,4,FALSE)) -> 3.92 | G66: =TRUNC(E66*F66,2) -> 0.19
B67: M Ã O D E O B R A
A68: SERVIÇO | B68: 88316 | C68: =IF($A68="INSUMO",VLOOKUP($B68,'BANCO DE DADOS DEZ-24 INS'!$A:$D,2,FALSE),VLOOKUP($B68,'BANCO DE DADOS DEZ-24 SERV'!$B:$E,2,FALSE)) -> SERVENTE COM ENCARGOS COMPLEMENTARES | D68: =IF($A68="INSUMO",VLOOKUP($B68,'BANCO DE DADOS DEZ-24 INS'!$A:$D,3,FALSE),VLOOKUP($B68,'BANCO DE DADOS DEZ-24 SERV'!$B:$E,3,FALSE)) -> H | E68: 0.5 | F68: =IF($A68="INSUMO",VLOOKUP($B68,'BANCO DE DADOS DEZ-24 INS'!$A:$D,4,FALSE),VLOOKUP($B68,'BANCO DE DADOS DEZ-24 SERV'!$B:$E,4,FALSE)) -> 20.32 | G68: =TRUNC(E68*F68,2) -> 10.16
A69: SERVIÇO | B69: 88267 | C69: =IF($A69="INSUMO",VLOOKUP($B69,'BANCO DE DADOS DEZ-24 INS'!$A:$D,2,FALSE),VLOOKUP($B69,'BANCO DE DADOS DEZ-24 SERV'!$B:$E,2,FALSE)) -> ENCANADOR OU BOMBEIRO HIDRÁULICO COM ENCARGOS COMPLEMENTARES | D69: =IF($A69="INSUMO",VLOOKUP($B69,'BANCO DE DADOS DEZ-24 INS'!$A:$D,3,FALSE),VLOOKUP($B69,'BANCO DE DADOS DEZ-24 SERV'!$B:$E,3,FALSE)) -> H | E69: 0.5 | F69: =IF($A69="INSUMO",VLOOKUP($B69,'BANCO DE DADOS DEZ-24 INS'!$A:$D,4,FALSE),VLOOKUP($B69,'BANCO DE DADOS DEZ-24 SERV'!$B:$E,4,FALSE)) -> 25.55 | G69: =TRUNC(E69*F69,2) -> 12.77
B70: **COMPOSIÇÃO BASEADA NA ORSE (MAIO/2023) - COD - 11232 | F70: TOTAL | G70: =SUM(G65:G69) -> 184.22
B71: O INSUMO DE CÓDIGO 3146 (FITA VEDA ROSCA EM ROLOS DE 18 MM X 10 M) POSSUI UNIDADE DE MEDIDA DIFERENTE DA REFERÊNCIA UTILIZADA PARA ELABORAÇÃO DESTA COMPOSIÇÃO, PORTANTO SE FAZ NECESSÁRIA A CONVERSÃO DE UNIDADES CONFORME APRESENTADO NO CÁLCULO ABAIXO.
B72: 10 metros ----------- 1 unidade 0,5 metros ---------- x unidades x: 0,05 unidades
B74: HID 005 | C74: TERMINAL DE VENTILAÇÃO - DN 50 MM - FORNECIMENTO E INSTALAÇÃO | G74: UN | H74: =G83 -> 13.94
B75: SINAPI ou Cot. De Mercado | C75: COMPONENTES | D75: UN | E75: Quantidade | F75: Custos Unit. (R$) | G75: Custos Total (R$)
B76: M A T E R I A L
A77: INSUMO | B77: 39319 | C77: =IF($A77="INSUMO",VLOOKUP($B77,'BANCO DE DADOS DEZ-24 INS'!$A:$D,2,FALSE),VLOOKUP($B77,'BANCO DE DADOS DEZ-24 SERV'!$B:$E,2,FALSE)) -> TERMINAL DE VENTILACAO, 50 MM, SERIE NORMAL, ESGOTO PREDIAL | D77: =IF($A77="INSUMO",VLOOKUP($B77,'BANCO DE DADOS DEZ-24 INS'!$A:$D,3,FALSE),VLOOKUP($B77,'BANCO DE DADOS DEZ-24 SERV'!$B:$E,3,FALSE)) -> UN | E77: 1 | F77: =IF($A77="INSUMO",VLOOKUP($B77,'BANCO DE DADOS DEZ-24 INS'!$A:$D,4,FALSE),VLOOKUP($B77,'BANCO DE DADOS DEZ-24 SERV'!$B:$E,4,FALSE)) -> 9.18 | G77: =TRUNC(E77*F77,2) -> 9.18
A78: INSUMO | B78: 122 | C78: =IF($A78="INSUMO",VLOOKUP($B78,'BANCO DE DADOS DEZ-24 INS'!$A:$D,2,FALSE),VLOOKUP($B78,'BANCO DE DADOS DEZ-24 SERV'!$B:$E,2,FALSE)) -> ADESIVO PLASTICO PARA PVC, FRASCO COM *850* GR | D78: =IF($A78="INSUMO",VLOOKUP($B78,'BANCO DE DADOS DEZ-24 INS'!$A:$D,3,FALSE),VLOOKUP($B78,'BANCO DE DADOS DEZ-24 SERV'!$B:$E,3,FALSE)) -> UN | E78: 0.008 | F78: =IF($A78="INSUMO",VLOOKUP($B78,'BANCO DE DADOS DEZ-24 INS'!$A:$D,4,FALSE),VLOOKUP($B78,'BANCO DE DADOS DEZ-24 SERV'!$B:$E,4,FALSE)) -> 76.94 | G78: =TRUNC(E78*F78,2) -> 0.61
A79: INSUMO | B79: 20083 | C79: =IF($A79="INSUMO",VLOOKUP($B79,'BANCO DE DADOS DEZ-24 INS'!$A:$D,2,FALSE),VLOOKUP($B79,'BANCO DE DADOS DEZ-24 SERV'!$B:$E,2,FALSE)) -> SOLUCAO PREPARADORA / LIMPADORA PARA PVC, FRASCO COM 1000 CM3 | D79: =IF($A79="INSUMO",VLOOKUP($B79,'BANCO DE DADOS DEZ-24 INS'!$A:$D,3,FALSE),VLOOKUP($B79,'BANCO DE DADOS DEZ-24 SERV'!$B:$E,3,FALSE)) -> UN | E79: 0.011 | F79: =IF($A79="INSUMO",VLOOKUP($B79,'BANCO DE DADOS DEZ-24 INS'!$A:$D,4,FALSE),VLOOKUP($B79,'BANCO DE DADOS DEZ-24 SERV'!$B:$E,4,FALSE)) -> 87.17 | G79: =TRUNC(E79*F79,2) -> 0.95
B80: M Ã O D E O B R A
A81: SERVIÇO | B81: 88316 | C81: =IF($A81="INSUMO",VLOOKUP($B81,'BANCO DE DADOS DEZ-24 INS'!$A:$D,2,FALSE),VLOOKUP($B81,'BANCO DE DADOS DEZ-24 SERV'!$B:$E,2,FALSE)) -> SERVENTE COM ENCARGOS COMPLEMENTARES | D81: =IF($A81="INSUMO",VLOOKUP($B81,'BANCO DE DADOS DEZ-24 INS'!$A:$D,3,FALSE),VLOOKUP($B81,'BANCO DE DADOS DEZ-24 SERV'!$B:$E,3,FALSE)) -> H | E81: 0.07 | F81: =IF($A81="INSUMO",VLOOKUP($B81,'BANCO DE DADOS DEZ-24 INS'!$A:$D,4,FALSE),VLOOKUP($B81,'BANCO DE DADOS DEZ-24 SERV'!$B:$E,4,FALSE)) -> 20.32 | G81: =TRUNC(E81*F81,2) -> 1.42
